Workbook

Sheet Error01
B1: MACROS ARE DISABLED! If the Security Warning bar appears above, or a Warning box opens, enable Macros by pressing Enable Content or Options.
B11: Looks like this:
B14: or this:
A17: or one of these:

Sheet Instructions
A1: Start Page
A2: 1 | B2: Enter Project Information in colored boxes at top of page. | Z2: =B2 -> Enter Project Information in colored boxes at top of page.
B3: It is recommended that you save your inputs at this point using the green Save Button at the top of the page so as to avoid accidentally saving your changes to the template file.
A4: 2 | B4: Answer all questions in the Project Questionnaire section that have colored boxes for the answer. (You can navigate directly to each entry by pressing the Tab key on your keyboard) | Z4: =B4 -> Answer all questions in the Project Questionnaire section that have colored boxes for the answer. (You can navigate directly to each entry by pressing the Tab key on your keyboard)
B5: Please Note that questions 6 & 7 require 2 entries - the numeric value and appropriate units.
B6: If unsure how to answer the question, please click on the blue button to "Show Input Hints" at the top of the page. These hints can be toggled on and off by clicking the button again.
A7: 3 | B7: For each Core Mix to be used (up to 3), answer all questions that have colored boxes for the answer.
B8: Please Note that questions 2a-2e & 3a-3b require 2 entries - the numeric value and appropriate units & watch for any warning messages that may pop-up or be displayed in red to the right of the questions
B9: The number of mixes to be used is entered under the Project Questionnaire section & should be discussed with the District Roadside Manager if you are unsure of the answer.
B10: When answering questions 2c or 2e about the steepest gradients, the default "units" are set to be entered as a slope ratio (i.e. 4:1 h:v), but only the first part of the ratio should be entered. For example, to enter a 3:1 slope, type in just 3, and the program will automatically show 3.0:1. Fractional slopes (such as 7:2) may be entered as a formula (=7/2) or a decimal (3.5) and will automatically be converted to a ":1" ratio. Alternatively, the units can be changed to "Grade" and entered as a percentage (i.e. 40% or 0.4)
B11: For any question in these sections that require direct entry of areas with units, an area calculator tool is provided in case you do not already know the size of the area in either square feet or acres. It can be used for unit conversions (metric to imperial, yards or miles to feet, etc.) or combining multiple sub-areas into one total area for each core mix.
B12: To use the area calculator tool, click on the button beside question 2a to open it and:
B13: a) Fill out either Length & Width or Area and select the proper units for each entry.
B14: If sub areas are repeated (for example, 3 areas with the same length/width), they can be entered once by setting the multiplier at the bottom of the sub-area to the number of times the shape is repeated.
B15: b) Answer the question about the maximum slope of each area.
B16: Note: areas should be subdivided based on a break point of 3:1 slopes (33.33% grade) in order to assign the areas as Mow or Non-Mow correctly.
B17: c) Once all sub-areas are entered, press the green button to "Use Results on Start Page."
A18: 4 | B18: It is recommended that you save your work after answering the questions for each section using the green Save Button at the top of the page prior to continuing.
A19: 5 | B19: Once all colored boxes in each section have been filled in, click the green "Show Results" button. | Z19: =B19 -> Once all colored boxes in each section have been filled in, click the green "Show Results" button.
A21: Fertilizer Page (if necessary, i.e. not using default fertilizer rates)
A22: 1 | B22: Confirm that the Laboratory used was entered correctly on the Start Page (The Lab Info is at the bottom of the Project Information Section on the Fertilizer Page). | Z22: =B22 -> Confirm that the Laboratory used was entered correctly on the Start Page (The Lab Info is at the bottom of the Project Information Section on the Fertilizer Page).
A23: 2 | B23: Enter the Sample No./Name, Description, and Phosphorus value from the lab results (see the Example Lab Results tab for where to find this information for each Laboratory). | Z23: =B23 -> Enter the Sample No./Name, Description, and Phosphorus value from the lab results (see the Example Lab Results tab for where to find this information for each Laboratory).
B24: └» If more rows are needed for additional samples, press the "Add More Rows" button at right.
A25: 3 | B25: Check that the selected Lab Units match the results given by the Testing Laboratory. | Z25: =B25 -> Check that the selected Lab Units match the results given by the Testing Laboratory.
A26: 4 | B26: If so desired, use the Statistical Analysis information and your knowledge of the soil sample locations to group soil samples together into two or three subgroups to provide a more accurate representation of varying soil types in the project area. Each subgroup will be averaged independently and assigned its own soil rating with associated fertilizer(s) & application rate(s). | Z26: =B26 -> If so desired, use the Statistical Analysis information and your knowledge of the soil sample locations to group soil samples together into two or three subgroups to provide a more accurate representation of varying soil types in the project area. Each subgroup will be averaged independently and assigned its own soil rating with associated fertilizer(s) & application rate(s).
B27: └» To group the soils, enter a 1, 2, or 3 in the Group column at left.
B28: If no subgroups are desired, leave the Group column blank.
B29: Hover over the Statistical Analysis column headers for more information & Use "Filter by Color" from the dropdown menu to show only certain rows that match one of the statistical groups.
A31: Lime Page (if necessary, i.e. not using default lime rates)
A32: 1 | B32: Ensure that the Testing Laboratory selected & it's corresponding Test Method is correct. | Z32: =B32 -> Ensure that the Testing Laboratory selected & it's corresponding Test Method is correct.
A33: 2 | B33: Answer the question about recommendations provided by the testing lab (below the Project Info section)
B34: └» If the answer is yes, enter the recommended application rate in tons/ac based on Agricultural Lime
B35: Note: if the rate provided was not in tons/acre, you can use excel to convert the rate. The following conversion factors may be useful:
B36: 1 acre = 43,560 square feet; 1 sq. yd. = 9 sq. ft.; 1 sq. mile = 27,878,400 sq. ft. 1 sq. km = 100 hectares; 1 hectare = 107,639 sq. ft.; 1 sq. meter = 10.76 sq. ft. 1 ton [US] = 2,000 lbs; 1 kg = 2.205 lbs; 1 metric ton = 2,204.6 lbs
A37: 3 | B37: Select the Type (Group) of Lime to be used | Z37: =B37 -> Select the Type (Group) of Lime to be used
B38: └» For Groups B & C, select the % CCE that is closest to your specific product.
A39: 4 | B39: Enter the pH Buffer for each sample. Please note that the pH range allowed by each test varies, and the program will only allow values within this range to be entered. | Z39: =B39 -> Enter the pH Buffer for each sample. Please note that the pH range allowed by each test varies, and the program will only allow values within this range to be entered.
B40: You can skip this step if the answer from step #2 above is yes (the lab provided a Lime application rate recommendation either based on an average of all the samples analyzed, or the recommendations for each sample were the same)
A42: Lab Analysis Summary Page (only visible if not using default nutrient rates)
A43: 1 | B43: Confirm that there are no errors and all summaries match the information from the previous pages.
A44: 2 | B44: If subdividing the areas to be permanently seeded into groups based on similar soil sample results, enter the approx. areas of each subgroup in the Fertilizer Summary area. Otherwise, leave those fields blank or enter 0. | Z44: =B44 -> If subdividing the areas to be permanently seeded into groups based on similar soil sample results, enter the approx. areas of each subgroup in the Fertilizer Summary area. Otherwise, leave those fields blank or enter 0.
A46: Nutrient Rates, Mulch, and Roadside Summary
A47: 1 | B47: Confirm that there are no errors and all summaries match the information from the previous pages.
A49: Roadside Notes
A50: 1 | B50: Choose whether or not to include each note by entering "Yes" or "No" in the box to the left of the note.
A51: 2 | B51: Enter any project specific Custom Notes at the bottom of the page as desired.
A53: Seed Selection
A54: Note: Seed selection is to be performed by the VDOT District Roadside Manager or his/her delegate!
A55: 1 | B55: On the Start Page click the blue button at the bottom of the page to open the Seed Rate Selection Page.
A56: 2 | B56: Answer the questions at the top regarding the use of custom seed mixes, & if they are to be used on this project, fill out the sections for each custom seed mix at the bottom of the page. (There can be up to 3 custom seed blends to use in place of core seed mixes on each project)
B57: Hyperlinks are provided to the right of the questions to navigate directly to the entry for each blend. Instructions can be found beside the input area for the first custom mix.
A58: 3 | B58: Adjust Application Rate for Core Mixes & Additives as desired.
A59: 4 | B59: If additional additives that are not already on the list are to be used, enter a Description, Application Rate (in lbs/ac) and whether or not the additive is a Legume. If the additive is restricted from use in mowed areas, please indicate that with two asterisks (**) at the end of the description.
A60: 5 | B60: Click on the blue button at the top of the page to Open the Seed Mix Selection Page. (This button can also be found at the bottom of the start page).
A61: 6 | B61: On the Seed Mix Selection page, use the drop down lists to select a Core Mixture for each Season for both Mow & Non-Mow areas (Slopes). The entire top row of each Core Mix used must be filled out.
B62: The drop down list can be opened by clicking on the gray button at the right of each colored cell when it is selected
A63: 7 | B63: Use the drop down lists to include additives as desired for each season for both Mow & Non-Mow areas
A64: 8 | B64: Navigate to the Seed Used page to review the list of seeds & additives and their application rates.
B65: If so desired, use the blue button at the top of the page to toggle between showing all seeds available and just the seeds that have been selected for use on this project.
A66: 9 | B66: Review the Custom Seed Mix lists at the bottom of the page to ensure that there are no warnings.
B67: NOTE: The seed lists and seed mix selection tabs are set to automatically be hidden each time the spreadsheet is closed (so long as the user saves changes after closing the program).
A69: Printing the Report
A70: 1 | B70: The report can be printed from any page that has the green "Print Report" button.
B71: NOTE: The results should be printed to PDF so that the Nutrient Summary, Mulch, Seed Lists, Roadside Summary, and Roadside Notes pages can be imported into the Roadside Development sheets in MicroStation.

Sheet Report Cover (hidden)
C5: ROADSIDE DEVELOPMENT REPORT (RDR)
C6: (From VDOT Roadside Development Spreadsheet, ver. 2.0, Feb. 1, 2017)
B8: Project Name/No. | C8: =IFERROR('Start Page'!D3,"") -> 0
B9: PPMS (UPC) # | C9: =IFERROR('Start Page'!D4,"") -> 0
B10: Date Entered | C10: =IFERROR('Start Page'!G5,"") -> 0

Sheet Start Page
B1: Fill in ALL fields with highlighting Yellow: L&D; Blue: Roadside; Green: Both; Gray: Default Value that can be changed | Y1: Column | Z1: Width | AA1: Merged Widths: Area (ac) | AB1: D:H (used: 71) | AC1: C:F (used 58) | AD1: C:H (used 84) | AE1: C:D (used 34) | AF1: G:H (used 26) | AK1: Lists: | AL1: GradeSlope | AM1: YorN | AN1: Units | AO1: Regions | AP1: Topsoil Class
B2: Project Information: | Y2: A | Z2: =CELL("width",A:A) -> 3 | AA2: RH | AB2: =SUM(Z5:Z9) -> 68 | AC2: =SUM(Z4:Z7) -> 54 | AD2: =SUM(Z4:Z9) -> 80 | AE2: =SUM(Z4:Z5) -> 34 | AF2: =SUM(Z8:Z9) -> 26 | AL2: Grade (Percent: 33%) | AM2: Yes | AN2: SF | AO2: Coastal | AP2: A
B3: Project Name/No.: | E3: Roadside Data From: | Y3: B | Z3: =CELL("width",B:B) -> 5 | AB3: =CELL("width",AB1) -> 0 | AC3: =CELL("width",AC1) -> 0 | AD3: =CELL("width",AD1) -> 0 | AE3: =CELL("width",AE1) -> 0 | AF3: =CELL("width",AF1) -> 0 | AL3: Slope (Ratio: 3:1) | AM3: No | AN3: Ac | AO3: Piedmont | AP3: B
B4: PPMS (UPC) #: | E4: L&D Data From: | Y4: C | Z4: =CELL("width",C:C) -> 12 | AM4: Y | AN4: Square Feet | AO4: Mountain
B5: Planting Date: | E5: Date Entered: | Y5: D | Z5: =CELL("width",D:D) -> 22 | AM5: N | AN5: acres
B6: Proj. Description: | Y6: E | Z6: =CELL("width",E:E) -> 7 | AB6: =D6 -> 0 | AN6: acre
B7: File Location: | D7: =FilePath -> G:\Projects\2013 Projects\13-144 VDOT_MS4_MNT#301_NMP_Spreadsheet_Program\09_Deliverables\Final\ | Y7: F | Z7: =CELL("width",F:F) -> 13 | AB7: =D7 -> G:\Projects\2013 Projects\13-144 VDOT_MS4_MNT#301_NMP_Spreadsheet_Program\09_Deliverables\Final\ | AN7: s.f.
Y8: G | Z8: =CELL("width",G:G) -> 13 | AN8: ac.
B9: Project Questionnaire: | Y9: H | Z9: =CELL("width",H:H) -> 13 | AA9: RH
B10: 1. | C10: Which region is this project located in? | AC10: =C10 -> Which region is this project located in?
B11: 2. | C11: For the area to be fertilized, have the existing vegetation and topsoil layers been disturbed by grading or other earth moving activity? | G11: Yes | AC11: =C11 -> For the area to be fertilized, have the existing vegetation and topsoil layers been disturbed by grading or other earth moving activity?
B12: 2a. | C12: └» Is the subsoil exposed? | G12: Yes | H12: =IF(AND(LEFT(ansDisturbed,1)="n",LEFT(ansExposed,1)="y"),"Please Check Answers to Questions 2 & 2a!","") -> 
B13: 3. | C13: Is the fertilized being applied to repair or re-vegetate an area that failed to achieve stabilization after both regular and overseeding? | G13: No | AC13: =C13 -> Is the fertilized being applied to repair or re-vegetate an area that failed to achieve stabilization after both regular and overseeding? | AD13: =IF(OR(LEFT(ansExposed,1)="n",LEFT(ansDisturbed,1)="n"),"Not Applicable","Is the area being fertilized to repair or re-vegetate an area that failed on a construction project after both regular and overseeding?") -> Is the area being fertilized to repair or re-vegetate an area that failed on a construction project after both regular and overseeding?
B14: 4a. | C14: =IF(LEFT(ansFailed,1)="y","Which laboratory (lab) was used to analyze the soil samples?","If soil samples were analyzed, which laboratory (lab) was used?") -> If soil samples were analyzed, which laboratory (lab) was used? | AA14: =IF(nLabUsed="",0,VLOOKUP(nLabUsed,tLabConversions[],7,FALSE)) -> 0
C15: =IF(RIGHT($G$14,1)="*","*: "& VLOOKUP($G$14,tLabConversions[],4,FALSE),"") -> 
B16: 4b. | C16: =IF(LEFT(ansFailed,1)="y","How many samples were analyzed by this lab?","If soil samples were analyzed, how many will be entered here?") -> If soil samples were analyzed, how many will be entered here?
B17: 5. | C17: How many core seed mixes will be used on this project? | I17: =IF(OR(AND(iNumMixes<3,SUM(G53:G61)>0),AND(iNumMixes<2,SUM(G53:G61,G40:G48)>0)),"Please check your answer to this question or clear entries from unused Core Mixes below.","") -> 
B18: 6. | C18: How large is the area that will receive temporary seed? | H18: ac | I18: =IF(H18="","Please Select Units!",IF(OR(AND(LEFT(H18,1)="s",G18>0,G18<50),AND(LEFT(H18,1)="a",G18>500)),"Please confirm that the correct units are selected","")) ->  | AA18: =fAreaConv_hidden -> 0
B19: 7. | C19: Will topsoil be used on this project?
B20: 7a. | C20: =IF(LEFT($G$19,1)="n","Not Applicable (leave blank)","Which class of Topsoil should be used (A or B)?") -> Which class of Topsoil should be used (A or B)?
B21: 7b. | C21: =IF(LEFT($G$19,1)="n","Not Applicable (leave blank)","How deep should the layer of topsoil be (in inches)?") -> How deep should the layer of topsoil be (in inches)? | H21: inches
B22: 7c. | C22: =IF(LEFT($G$19,1)="n","Not Applicable (leave blank)","How large is the area that will receive Topsoil?") -> How large is the area that will receive Topsoil? | H22: ac | I22: =IF(H22="","Please Select Units!",IF(OR(AND(LEFT(H22,1)="s",G22>0,G22<50),AND(LEFT(H22,1)="a",G22>500)),"Please confirm that the correct units are selected","")) ->  | AA22: =fAreaConv_hidden -> 0
B23: 8. | C23: Total area of regular seed (based on entries below): | G23: =IF(SUM(AA27,AA40,AA53)>0.5,SUM(AA27,AA40,AA53),ROUND(SUM(AA27,AA40,AA53)*43560,0)) -> 0 | H23: =IF(SUM(AA27,AA40,AA53)>0.5,"acres","sf") -> sf | AA23: =fAreaConv_hidden -> 0
H24: Slope (Ratio: 3:1)
B25: Core Mix #1 | F25: =IF(AND(Area_PS1>0,AA27=rAC1_TotalAcres),"See Area Calculation Worksheet","") ->  | H25: Units: | AA25: RH
A26: Core Mix 1 | B26: 1. | C26: ="Please enter a description of the area receiving "&rSP_Mix1&" (e.g. Urban, Rural, Project 1, Smith Parcel, National Park Land, etc.)" -> Please enter a description of the area receiving Core Mix #1 (e.g. Urban, Rural, Project 1, Smith Parcel, National Park Land, etc.) | AC26: =C26 -> Please enter a description of the area receiving Core Mix #1 (e.g. Urban, Rural, Project 1, Smith Parcel, National Park Land, etc.) | AF26: =G26 -> 0
B27: 2a. | C27: How large is the area that will receive regular seed? | H27: ac | I27: =IF(H27="","Please Select Units!",IF(OR(AND(LEFT(H27,1)="s",G27>0,G27<50),AND(LEFT(H27,1)="a",G27>500)),"Please confirm that the correct units are selected",IF(AA27<>SUM(AA28,AA30),"Please Check Answers to Questions 2a, 2b, & 2d",""))) ->  | AA27: =fAreaConv_hidden -> 0 | AE27: =C27 -> How large is the area that will receive regular seed?
B28: 2b. | C28: How much of the area receiving Regular Seed has slopes equal to or flatter than 3:1? (This area is the "Mowed Area") | H28: ac | I28: =IF(H28="","Please Select Units!",IF(OR(AND(LEFT(H28,1)="s",G28>0,G28<50),AND(LEFT(H28,1)="a",G28>500)),"Please confirm that the correct units are selected","")) ->  | AA28: =fAreaConv_hidden -> 0 | AC28: =C28 -> How much of the area receiving Regular Seed has slopes equal to or flatter than 3:1? (This area is the "Mowed Area")
B29: 2c. | C29: What is the steepest gradient of the area with slopes equal to or flatter than 3:1? ("Mowed Area") | H29: Slope (Ratio: 3:1) | I29: =IF(H29="","Please Select Input Method!",IF(OR(AND(LEFT(H29,1)="s",OR(G29<1,G29>25)),AND(LEFT(H29,1)="G",G29>50%)),"Please confirm that the correct entry method is selected",IF(OR(AND(LEFT(H29,1)="s",G29<3),AND(LEFT(H29,1)="G",G29>33%)),"The Max. Slope for this area should be FLATTER than 3:1 (33%)",""))) -> Please confirm that the correct entry method is selected | AA29: =IF(LEFT(H29,1)="g",1/G29,G29) -> 0 | AC29: What is the steepest gradient of the area with slopes equal to or flatter than 3:1? ("Mowed Area")
B30: 2d. | C30: How much of the area receiving Regular Seed has slopes that steeper than 3:1? (This area is the "Non-Mowed Area", aka "Slopes") | H30: ac | I30: =IF(H30="","Please Select Units!",IF(OR(AND(LEFT(H30,1)="s",G30>0,G30<50),AND(LEFT(H30,1)="a",G30>500)),"Please confirm that the correct units are selected","")) ->  | AA30: =fAreaConv_hidden -> 0 | AC30: How much of the area receiving Regular Seed has slopes that steeper than 3:1? (This area is the "Non-Mowed Area", aka "Slopes")
B31: 2e. | C31: What is the steepest gradient of the area with slopes steeper than 3:1? ("Non-Mowed Area" aka "Slopes") | H31: Slope (Ratio: 3:1) | I31: =IF(H31="","Please Select Input Method!",IF(OR(AND(LEFT(H31,1)="s",OR(G31<1,G31>25)),AND(LEFT(H31,1)="G",G31>50%)),"Please confirm that the correct entry method is selected",IF(OR(AND(LEFT(H31,1)="s",G31>=3),AND(LEFT(H31,1)="G",G31<=33%)),"The Max. Slope for this area should be STEEPER than 3:1 (33%)",""))) -> Please confirm that the correct entry method is selected | AA31: =IF(LEFT(H31,1)="g",1/G31,G31) -> 0 | AC31: What is the steepest gradient of the area with slopes steeper than 3:1? ("Non-Mowed Area" aka "Slopes")
B32: 3. | C32: Does this area include both Urban and Rural sections? <OR> Does this area contain sections with an adjusted seed application rate? | AC32: Does this area include both Urban and Rural sections? <OR> Does this area contain sections with an adjusted seed application rate?
B33: 3a. | C33: =IF(LEFT(G32,1)="n","Not Applicable (Leave Blank)","How much of the area with adjusted rates (urban) is mowed? (≤ 3:1)") -> How much of the area with adjusted rates (urban) is mowed? (≤ 3:1) | H33: ac | I33: =IF(AND(LEFT(G32,1)="n",G33>0),"Please confirm that this area is intended to receive an adjusted seed application rate",IF(AND(LEFT(G32,1)="y",H33=""),"Please Select Units!",IF(OR(AND(LEFT(H33,1)="s",G33>0,G33<50),AND(LEFT(H33,1)="a",G33>500)),"Please confirm that the correct units are selected",""))) ->  | AA33: =fAreaConv_hidden -> 0 | AC33: How much of the area with adjusted rates (urban) is mowed? (≤ 3:1)
B34: 3b. | C34: =IF(LEFT(G32,1)="n","Not Applicable (Leave Blank)","How much of the area with adjusted rates is NOT mowed? (> 3:1)") -> How much of the area with adjusted rates is NOT mowed? (> 3:1) | H34: ac | I34: =IF(AND(LEFT(G32,1)="n",G34>0),"Please confirm that this area is intended to receive an adjusted seed application rate",IF(AND(LEFT(G32,1)="y",H34=""),"Please Select Units!",IF(OR(AND(LEFT(H34,1)="s",G34>0,G34<50),AND(LEFT(H34,1)="a",G34>500)),"Please confirm that the correct units are selected",""))) ->  | AA34: =fAreaConv_hidden -> 0 | AC34: How much of the area with adjusted rates is NOT mowed? (> 3:1)
B35: 3c. | C35: =IF(LEFT(G32,1)="n","Not Applicable (Leave Blank)","What adjustment factor should be applied? (Typ. 2x for Urban Areas)") -> What adjustment factor should be applied? (Typ. 2x for Urban Areas) | H35: =IF(LEFT(G32,1)="n","","x Normal Rate") -> x Normal Rate | AC35: (no formula here b/c font size used to keep at 1 row)
A36: =IF(fRowHeight=0,"Click on the Plus Sign (+) on the left to show the "&B25&" Questionnaire","Click on the Minus Sign (-) on the left to hide the "&B25&" Questionnaire") -> Click on the Minus Sign (-) on the left to hide the Core Mix #1 Questionnaire
B38: Core Mix #2 | F38: =IF(AND(Area_PS2>0,AA40=rAC2_TotalAcres),"See Area Calculation Worksheet","") ->  | H38: Units: | AA38: RH
A39: Core Mix 2 | B39: 1. | C39: ="Please enter a description of the area receiving "&rSP_Mix2&" (e.g. Urban, Rural, Project 1, Smith Parcel, National Park Land, etc.)" -> Please enter a description of the area receiving Core Mix #2 (e.g. Urban, Rural, Project 1, Smith Parcel, National Park Land, etc.) | AC39: =C39 -> Please enter a description of the area receiving Core Mix #2 (e.g. Urban, Rural, Project 1, Smith Parcel, National Park Land, etc.) | AF39: =G39 -> 0
B40: 2a. | C40: How large is the area that will receive regular seed? | H40: ac | I40: =IF(H40="","Please Select Units!",IF(OR(AND(LEFT(H40,1)="s",G40>0,G40<50),AND(LEFT(H40,1)="a",G40>500)),"Please confirm that the correct units are selected",IF(AA40<>SUM(AA41,AA43),"Please Check Answers to Questions 2a, 2b, & 2d",""))) ->  | AA40: =fAreaConv_hidden -> 0 | AE40: =C40 -> How large is the area that will receive regular seed?
B41: 2b. | C41: How much of the area receiving Regular Seed has slopes equal to or flatter than 3:1? (This area is considered the "Mowed Area") | H41: ac | I41: =IF(H41="","Please Select Units!",IF(OR(AND(LEFT(H41,1)="s",G41>0,G41<50),AND(LEFT(H41,1)="a",G41>500)),"Please confirm that the correct units are selected","")) ->  | AA41: =fAreaConv_hidden -> 0 | AC41: =C41 -> How much of the area receiving Regular Seed has slopes equal to or flatter than 3:1? (This area is considered the "Mowed Area")
B42: 2c. | C42: What is the steepest gradient of the area with slopes equal to or flatter than 3:1? ("Mowed Area") | H42: Slope (Ratio: 3:1) | I42: =IF(H42="","Please Select Input Method!",IF(OR(AND(LEFT(H42,1)="s",OR(G42<1,G42>25)),AND(LEFT(H42,1)="G",G42>50%)),"Please confirm that the correct entry method is selected",IF(OR(AND(LEFT(H42,1)="s",G42<3),AND(LEFT(H42,1)="G",G42>33%)),"The Max. Slope for this area should be FLATTER than 3:1 (33%)",""))) -> Please confirm that the correct entry method is selected | AA42: =IF(LEFT(H42,1)="g",1/G42,G42) -> 0 | AC42: What is the steepest gradient of the area with slopes equal to or flatter than 3:1? ("Mowed Area")
B43: 2d. | C43: How much of the area receiving Regular Seed has slopes that steeper than 3:1? (This area is considered the "Non-Mowed Area") | H43: ac | I43: =IF(H43="","Please Select Units!",IF(OR(AND(LEFT(H43,1)="s",G43>0,G43<50),AND(LEFT(H43,1)="a",G43>500)),"Please confirm that the correct units are selected","")) ->  | AA43: =fAreaConv_hidden -> 0 | AC43: How much of the area receiving Regular Seed has slopes that steeper than 3:1? (This area is considered the "Non-Mowed Area")
B44: 2e. | C44: What is the steepest gradient of the area with slopes steeper than 3:1? ("Non-Mowed Area" aka "Slopes") | H44: Slope (Ratio: 3:1) | I44: =IF(H44="","Please Select Input Method!",IF(OR(AND(LEFT(H44,1)="s",OR(G44<1,G44>25)),AND(LEFT(H44,1)="G",G44>50%)),"Please confirm that the correct entry method is selected",IF(OR(AND(LEFT(H44,1)="s",G44>=3),AND(LEFT(H44,1)="G",G44<=33%)),"The Max. Slope for this area should be STEEPER than 3:1 (33%)",""))) -> Please confirm that the correct entry method is selected | AA44: =IF(LEFT(H44,1)="g",1/G44,G44) -> 0 | AC44: What is the steepest gradient of the area with slopes steeper than 3:1? ("Non-Mowed Area" aka "Slopes")
B45: 3. | C45: Does this area include both Urban and Rural sections? <OR> Does this area contain sections with an adjusted seed application rate? | AC45: Does this area include both Urban and Rural sections? <OR> Does this area contain sections with an adjusted seed application rate?
B46: 3a. | C46: =IF(LEFT(G45,1)="n","Not Applicable (Leave Blank)","How much of the area with adjusted rates (urban) is mowed? (≤ 3:1)") -> How much of the area with adjusted rates (urban) is mowed? (≤ 3:1) | H46: ac | I46: =IF(AND(LEFT(G45,1)="n",G46>0),"Please confirm that this area is intended to receive an adjusted seed application rate",IF(AND(LEFT(G45,1)="y",H46=""),"Please Select Units!",IF(OR(AND(LEFT(H46,1)="s",G46>0,G46<50),AND(LEFT(H46,1)="a",G46>500)),"Please confirm that the correct units are selected",""))) ->  | AA46: =fAreaConv_hidden -> 0 | AC46: How much of the area with adjusted rates (urban) is mowed? (≤ 3:1)
B47: 3b. | C47: =IF(LEFT(G45,1)="n","Not Applicable (Leave Blank)","How much of the area with adjusted rates is NOT mowed? (> 3:1)") -> How much of the area with adjusted rates is NOT mowed? (> 3:1) | H47: ac | I47: =IF(AND(LEFT(G45,1)="n",G47>0),"Please confirm that this area is intended to receive an adjusted seed application rate",IF(AND(LEFT(G45,1)="y",H47=""),"Please Select Units!",IF(OR(AND(LEFT(H47,1)="s",G47>0,G47<50),AND(LEFT(H47,1)="a",G47>500)),"Please confirm that the correct units are selected",""))) ->  | AA47: =fAreaConv_hidden -> 0 | AC47: How much of the area with adjusted rates is NOT mowed? (> 3:1)
B48: 3c. | C48: =IF(LEFT(G45,1)="n","Not Applicable (Leave Blank)","What adjustment factor should be applied? (Typ. 2x for Urban Areas)") -> What adjustment factor should be applied? (Typ. 2x for Urban Areas) | H48: =IF(LEFT(G45,1)="n","","x Normal Rate") -> x Normal Rate | AC48: (no formula here b/c font size used to keep at 1 row)
A49: =IF(fRowHeight=0,"Click on the Plus Sign (+) on the left to show the "&B38&" Questionnaire","Click on the Minus Sign (-) on the left to hide the "&B38&" Questionnaire") -> Click on the Plus Sign (+) on the left to show the Core Mix #2 Questionnaire
B51: Core Mix #3 | F51: =IF(AND(Area_PS3>0,AA53=rAC3_TotalAcres),"See Area Calculation Worksheet","") ->  | H51: Units: | AA51: RH
A52: Core Mix 3 | B52: 1. | C52: ="Please enter a description of the area receiving "&rSP_Mix3&" (e.g. Urban, Rural, Project 1, Smith Parcel, National Park Land, etc.)" -> Please enter a description of the area receiving Core Mix #3 (e.g. Urban, Rural, Project 1, Smith Parcel, National Park Land, etc.) | AC52: =C52 -> Please enter a description of the area receiving Core Mix #3 (e.g. Urban, Rural, Project 1, Smith Parcel, National Park Land, etc.) | AF52: =G52 -> 0
B53: 2a. | C53: How large is the area that will receive regular seed? | H53: ac | I53: =IF(H53="","Please Select Units!",IF(OR(AND(LEFT(H53,1)="s",G53>0,G53<50),AND(LEFT(H53,1)="a",G53>500)),"Please confirm that the correct units are selected",IF(AA53<>SUM(AA54,AA56),"Please Check Answers to Questions 2a, 2b, & 2d",""))) ->  | AA53: =fAreaConv_hidden -> 0 | AE53: =C53 -> How large is the area that will receive regular seed?
B54: 2b. | C54: How much of the area receiving Regular Seed has slopes equal to or flatter than 3:1? (This area is considered the "Mowed Area") | H54: ac | I54: =IF(H54="","Please Select Units!",IF(OR(AND(LEFT(H54,1)="s",G54>0,G54<50),AND(LEFT(H54,1)="a",G54>500)),"Please confirm that the correct units are selected","")) ->  | AA54: =fAreaConv_hidden -> 0 | AC54: =C54 -> How much of the area receiving Regular Seed has slopes equal to or flatter than 3:1? (This area is considered the "Mowed Area")
B55: 2c. | C55: What is the steepest gradient of the area with slopes equal to or flatter than 3:1? ("Mowed Area") | H55: Slope (Ratio: 3:1) | I55: =IF(H55="","Please Select Input Method!",IF(OR(AND(LEFT(H55,1)="s",OR(G55<1,G55>25)),AND(LEFT(H55,1)="G",G55>50%)),"Please confirm that the correct entry method is selected",IF(OR(AND(LEFT(H55,1)="s",G55<3),AND(LEFT(H55,1)="G",G55>33%)),"The Max. Slope for this area should be FLATTER than 3:1 (33%)",""))) -> Please confirm that the correct entry method is selected | AA55: =IF(LEFT(H55,1)="g",1/G55,G55) -> 0 | AC55: What is the steepest gradient of the area with slopes equal to or flatter than 3:1? ("Mowed Area")
B56: 2d. | C56: How much of the area receiving Regular Seed has slopes that steeper than 3:1? (This area is considered the "Non-Mowed Area") | H56: ac | I56: =IF(H56="","Please Select Units!",IF(OR(AND(LEFT(H56,1)="s",G56>0,G56<50),AND(LEFT(H56,1)="a",G56>500)),"Please confirm that the correct units are selected","")) ->  | AA56: =fAreaConv_hidden -> 0 | AC56: How much of the area receiving Regular Seed has slopes that steeper than 3:1? (This area is considered the "Non-Mowed Area")
B57: 2e. | C57: What is the steepest gradient of the area with slopes steeper than 3:1? ("Non-Mowed Area" aka "Slopes") | H57: Slope (Ratio: 3:1) | I57: =IF(H57="","Please Select Input Method!",IF(OR(AND(LEFT(H57,1)="s",OR(G57<1,G57>25)),AND(LEFT(H57,1)="G",G57>50%)),"Please confirm that the correct entry method is selected",IF(OR(AND(LEFT(H57,1)="s",G57>=3),AND(LEFT(H57,1)="G",G57<=33%)),"The Max. Slope for this area should be STEEPER than 3:1 (33%)",""))) -> Please confirm that the correct entry method is selected | AA57: =IF(LEFT(H57,1)="g",1/G57,G57) -> 0 | AC57: What is the steepest gradient of the area with slopes steeper than 3:1? ("Non-Mowed Area" aka "Slopes")
B58: 3. | C58: Does this area include both Urban and Rural sections? <OR> Does this area contain sections with an adjusted seed application rate? | AC58: Does this area include both Urban and Rural sections? <OR> Does this area contain sections with an adjusted seed application rate?
B59: 3a. | C59: =IF(LEFT(G58,1)="n","Not Applicable (Leave Blank)","How much of the area with adjusted rates (urban) is mowed? (≤ 3:1)") -> How much of the area with adjusted rates (urban) is mowed? (≤ 3:1) | H59: ac | I59: =IF(AND(LEFT(G58,1)="n",G59>0),"Please confirm that this area is intended to receive an adjusted seed application rate",IF(AND(LEFT(G58,1)="y",H59=""),"Please Select Units!",IF(OR(AND(LEFT(H59,1)="s",G59>0,G59<50),AND(LEFT(H59,1)="a",G59>500)),"Please confirm that the correct units are selected",""))) ->  | AA59: =fAreaConv_hidden -> 0 | AC59: How much of the area with adjusted rates (urban) is mowed? (≤ 3:1)
B60: 3b. | C60: =IF(LEFT(G58,1)="n","Not Applicable (Leave Blank)","How much of the area with adjusted rates is NOT mowed? (> 3:1)") -> How much of the area with adjusted rates is NOT mowed? (> 3:1) | H60: ac | I60: =IF(AND(LEFT(G58,1)="n",G60>0),"Please confirm that this area is intended to receive an adjusted seed application rate",IF(AND(LEFT(G58,1)="y",H60=""),"Please Select Units!",IF(OR(AND(LEFT(H60,1)="s",G60>0,G60<50),AND(LEFT(H60,1)="a",G60>500)),"Please confirm that the correct units are selected",""))) ->  | AA60: =fAreaConv_hidden -> 0 | AC60: How much of the area with adjusted rates is NOT mowed? (> 3:1)
B61: 3c. | C61: =IF(LEFT(G58,1)="n","Not Applicable (Leave Blank)","What adjustment factor should be applied? (Typ. 2x for Urban Areas)") -> What adjustment factor should be applied? (Typ. 2x for Urban Areas) | H61: =IF(LEFT(G58,1)="n","","x Normal Rate") -> x Normal Rate | AC61: (no formula here b/c font size used to keep at 1 row)
A62: =IF(fRowHeight=0,"Click on the Plus Sign (+) on the left to show the "&B51&" Questionnaire","Click on the Minus Sign (-) on the left to hide the "&B51&" Questionnaire") -> Click on the Plus Sign (+) on the left to show the Core Mix #3 Questionnaire
B64: =IF(rSP_Results=0,"","Once all yellow fields are filled out, press the green Show Results button to continue…") -> Once all yellow fields are filled out, press the green Show Results button to continue…
B65: Results: | AA65: RH | AB65: =IF(AA66=0,"Show Results",IF(OR(LEFT(ansFailed,1)="y",AA69>0),"Custom","Default")) -> Show Results
B66: 1. | C66: ="This project will follow the VDOT Nutrient Management Plan (NMP) for "&NMPresults -> This project will follow the VDOT Nutrient Management Plan (NMP) for Turf Establishment on Construction Projects | AA66: =fRowHeight -> 0 | AB66: ← if >0, results section is shown. If 0, prompts user to show results on start page. | AD66: =C66 -> This project will follow the VDOT Nutrient Management Plan (NMP) for Turf Establishment on Construction Projects
B67: 2. | C67: =IF(LEFT(ansFailed,1)="y", "Please enter your soil test results on the Fertilizer & Lime Worksheets to determine the type and application rate of fertilizer(s) to use as well as how much lime to apply.","This project may use the default rates of Fertilizer and Lime listed below:") -> This project may use the default rates of Fertilizer and Lime listed below: | AD67: =C67 -> This project may use the default rates of Fertilizer and Lime listed below:
B68: 2. | C68: Although this project qualifies for use of the default application rates for Fertilizer and Lime, the user has opted to analyze soil samples and adjust the rates accordingly. Please see Lab Analysis Summary for the adjusted application rates. | AA68: =fRowHeight -> 0 | AB68: ← if 0, either User has opted to analyze soil samples rather than use default rates OR Results Section is not shown | AD68: =C68 -> Although this project qualifies for use of the default application rates for Fertilizer and Lime, the user has opted to analyze soil samples and adjust the rates accordingly. Please see Lab Analysis Summary for the adjusted application rates.
B69: Fertilizer(s): | AA69: =fRowHeight -> 0 | AB69: ← if 0, Fertilizer/Lime rates based on ansFailed
C70: Temporary Seed: | D70: =IF(NMPresults="Roadside Management","150 lbs. per acre (3.4 lbs. per 1,000 SF) of 10-10-10","125 lbs. per acre (2.9 lbs per 1,000 SF) of 15-30-15") -> 125 lbs. per acre (2.9 lbs per 1,000 SF) of 15-30-15
C71: Regular Seed: | D71: =IF(NMPresults="Roadside Management","300 lbs. per acre (6.9 lbs. per 1,000 SF) of 10-10-10","250 lbs. per acre (5.7 lbs. per 1,000 SF) of 15-30-15") -> 250 lbs. per acre (5.7 lbs. per 1,000 SF) of 15-30-15
C72: Overseeding: | D72: 65 lbs. per acre (1.5 lbs. per 1,000 SF) of 46-0-0
B73: Lime:
C74: Temporary Seed: | D74: 1 Ton per Acre of Agricultural Lime
C75: Regular Seed: | D75: =IF(NMPresults="Roadside Management","1 Ton per Acre of Agricultural Lime","2 Tons per Acre of Agricultural Lime") -> 2 Tons per Acre of Agricultural Lime
C76: Overseeding: | D76: 1 Ton per Acre of Agricultural Lime
B78: BUTTONS FOR VDOT USE ONLY:

Sheet Area Calc 1 (hidden)
C1: Use Yellow Fields to Calculate the Seeded Area for Each Core-Mix: | E1: foot (feet) | K1: WARNING: Pressing the Clear Entries Button can NOT be undone! Press it only if you intend to delete ALL input on this worksheet.
B2: Core Mix #1: | D2: =IF(ISBLANK('Start Page'!G26),"",'Start Page'!G26) -> 
B3: Area 1 | C3: Measurement | D3: Value | E3: Units | F3: Conv. Factor | G3: Value in ft
C4: Length | F4: =IF(E4="","",VLOOKUP(E4,conv_Table,3,FALSE)) ->  | G4: =IF(COUNTA(D4:E4)=2,D4*F4,"") ->  | K4: Conversion Factors
C5: Width | F5: =IF(E5="","",VLOOKUP(E5,conv_Table,3,FALSE)) ->  | G5: =IF(COUNTA(D5:E5)=2,D5*F5,"") ->  | M5: Units of Length/Width
E6: OR | K6: 1 | L6: foot (feet) | N6: 1 | O6: foot
C7: Area | F7: =IF(E7="","",VLOOKUP(E7,conv_Table,3,FALSE)) ->  | G7: =IF(COUNTA(D7:E7)=2,D7*F7,"") ->  | K7: 1 | L7: mile(s) | M7: = | N7: 5280 | O7: feet
E8: AND | K8: 1 | L8: kilometer(s) | M8: = | N8: 3280.84 | O8: feet
C9: Multiplier | D9: 1 | K9: 1 | L9: meter(s) | M9: = | N9: 3.28084 | O9: feet
C10: Is the slope of this area steeper than 3:1 (33.3% grade)? | K10: 1 | L10: yard(s) | M10: = | N10: 3 | O10: feet
C11: Area 1 Total: | D11: =IF(AND(COUNTA(D4:D5)>0,COUNTA(D7)>0),"Please enter either length & width or area, not both.",IF(D7<>"",IF(E7="","Please select units.",D7*F7*D9),IF(COUNTA(E4:E5)<2,"Please select units.",(D4*F4)*(D5*F5)*D9))) -> Please select units. | E11: =IF(LEFT(G10,1)="Y","Non-Mow Area",IF(LEFT(G10,1)="N","Mow Area","Please answer question about slopes")) -> Please answer question about slopes
E12: foot (feet)
B13: Area 2 | C13: Measurement | D13: Value | E13: Units | F13: Conv. Factor | G13: Value in ft | M13: Units of Area
C14: Length | F14: =IF(E14="","",VLOOKUP(E14,conv_Table,3,FALSE)) ->  | G14: =IF(COUNTA(D14:E14)=2,D14*F14,"") ->  | K14: 1 | L14: sq. ft. | M14: = | N14: 1 | O14: sq. ft.
C15: Width | F15: =IF(E15="","",VLOOKUP(E15,conv_Table,3,FALSE)) ->  | G15: =IF(COUNTA(D15:E15)=2,D15*F15,"") ->  | K15: 1 | L15: acre(s) | M15: = | N15: 43560 | O15: sq. ft.
E16: OR | K16: 1 | L16: hectare(s) | M16: = | N16: =N17/100 -> 107639.1111 | O16: sq. ft.
C17: Area | F17: =IF(E17="","",VLOOKUP(E17,conv_Table,3,FALSE)) ->  | G17: =IF(COUNTA(D17:E17)=2,D17*F17,"") ->  | K17: 1 | L17: sq. kilometer(s) | M17: = | N17: =N8^2 -> 10763911.11 | O17: sq. ft.
E18: AND | K18: 1 | L18: sq. meter(s) | M18: = | N18: =N9^2 -> 10.76391111 | O18: sq. ft.
C19: Multiplier | D19: 1 | K19: 1 | L19: sq. mile(s) | M19: = | N19: =N7^2 -> 27878400 | O19: sq. ft.
C20: Is the slope of this area steeper than 3:1 (33.3% grade)? | K20: 1 | L20: sq. yard(s) | M20: = | N20: 9 | O20: sq. ft.
C21: Area 2 Total: | D21: =IF(AND(COUNTA(D14:D15)>0,COUNTA(D17)>0),"Please enter either length & width or area, not both.",IF(D17<>"",IF(E17="","Please select units.",D17*F17*D19),IF(COUNTA(E14:E15)<2,"Please select units.",(D14*F14)*(D15*F15)*D19))) -> Please select units. | E21: =IF(LEFT(G20,1)="Y","Non-Mow Area",IF(LEFT(G20,1)="N","Mow Area","Please answer question about slopes")) -> Please answer question about slopes
E22: foot (feet)
B23: Area 3 | C23: Measurement | D23: Value | E23: Units | F23: Conv. Factor | G23: Value in ft
C24: Length | F24: =IF(E24="","",VLOOKUP(E24,conv_Table,3,FALSE)) ->  | G24: =IF(COUNTA(D24:E24)=2,D24*F24,"") -> 
C25: Width | F25: =IF(E25="","",VLOOKUP(E25,conv_Table,3,FALSE)) ->  | G25: =IF(COUNTA(D25:E25)=2,D25*F25,"") -> 
E26: OR
C27: Area | F27: =IF(E27="","",VLOOKUP(E27,conv_Table,3,FALSE)) ->  | G27: =IF(COUNTA(D27:E27)=2,D27*F27,"") -> 
E28: AND
C29: Multiplier | D29: 1
C30: Is the slope of this area steeper than 3:1 (33.3% grade)?
C31: Area 3 Total: | D31: =IF(AND(COUNTA(D24:D25)>0,COUNTA(D27)>0),"Please enter either length & width or area, not both.",IF(D27<>"",IF(E27="","Please select units.",D27*F27*D29),IF(COUNTA(E24:E25)<2,"Please select units.",(D24*F24)*(D25*F25)*D29))) -> Please select units. | E31: =IF(LEFT(G30,1)="Y","Non-Mow Area",IF(LEFT(G30,1)="N","Mow Area","Please answer question about slopes")) -> Please answer question about slopes
E32: foot (feet)
B33: Area 4 | C33: Measurement | D33: Value | E33: Units | F33: Conv. Factor | G33: Value in ft
C34: Length | F34: =IF(E34="","",VLOOKUP(E34,conv_Table,3,FALSE)) ->  | G34: =IF(COUNTA(D34:E34)=2,D34*F34,"") -> 
C35: Width | F35: =IF(E35="","",VLOOKUP(E35,conv_Table,3,FALSE)) ->  | G35: =IF(COUNTA(D35:E35)=2,D35*F35,"") -> 
E36: OR
C37: Area | F37: =IF(E37="","",VLOOKUP(E37,conv_Table,3,FALSE)) ->  | G37: =IF(COUNTA(D37:E37)=2,D37*F37,"") -> 
E38: AND
C39: Multiplier | D39: 1
C40: Is the slope of this area steeper than 3:1 (33.3% grade)?
C41: Area 4 Total: | D41: =IF(AND(COUNTA(D34:D35)>0,COUNTA(D37)>0),"Please enter either length & width or area, not both.",IF(D37<>"",IF(E37="","Please select units.",D37*F37*D39),IF(COUNTA(E34:E35)<2,"Please select units.",(D34*F34)*(D35*F35)*D39))) -> Please select units. | E41: =IF(LEFT(G40,1)="Y","Non-Mow Area",IF(LEFT(G40,1)="N","Mow Area","Please answer question about slopes")) -> Please answer question about slopes
E42: foot (feet)
B43: Area 5 | C43: Measurement | D43: Value | E43: Units | F43: Conv. Factor | G43: Value in ft
C44: Length | F44: =IF(E44="","",VLOOKUP(E44,conv_Table,3,FALSE)) ->  | G44: =IF(COUNTA(D44:E44)=2,D44*F44,"") -> 
C45: Width | F45: =IF(E45="","",VLOOKUP(E45,conv_Table,3,FALSE)) ->  | G45: =IF(COUNTA(D45:E45)=2,D45*F45,"") -> 
E46: OR
C47: Area | F47: =IF(E47="","",VLOOKUP(E47,conv_Table,3,FALSE)) ->  | G47: =IF(COUNTA(D47:E47)=2,D47*F47,"") -> 
E48: AND
C49: Multiplier | D49: 1
C50: Is the slope of this area steeper than 3:1 (33.3% grade)?
C51: Area 5 Total: | D51: =IF(AND(COUNTA(D44:D45)>0,COUNTA(D47)>0),"Please enter either length & width or area, not both.",IF(D47<>"",IF(E47="","Please select units.",D47*F47*D49),IF(COUNTA(E44:E45)<2,"Please select units.",(D44*F44)*(D45*F45)*D49))) -> Please select units. | E51: =IF(LEFT(G50,1)="Y","Non-Mow Area",IF(LEFT(G50,1)="N","Mow Area","Please answer question about slopes")) -> Please answer question about slopes
C53: Area 1 Total: | E53: =IF(ISNUMBER(D11),D11,IF(SUM(D4:D7)>0,"Check Entry",0)) -> 0 | F53: =IF(ISNUMBER(E53),ROUND(E53/43560,2),"Check Entry") -> 0 | G53: =IF(F53>0,IF(LEFT(G10,1)="Y","Non-Mow Area",IF(LEFT(G10,1)="N","Mow Area","Check slopes")),"") -> 
C54: Area 2 Total: | E54: =IF(ISNUMBER(D21),D21,IF(SUM(D14:D17)>0,"Check Entry",0)) -> 0 | F54: =IF(ISNUMBER(E54),ROUND(E54/43560,2),"Check Entry") -> 0 | G54: =IF(E54>0,IF(LEFT(G20,1)="Y","Non-Mow Area",IF(LEFT(G20,1)="N","Mow Area","Check slopes")),"") -> 
C55: Area 3 Total: | E55: =IF(ISNUMBER(D31),D31,IF(SUM(D24:D27)>0,"Check Entry",0)) -> 0 | F55: =IF(ISNUMBER(E55),ROUND(E55/43560,2),"Check Entry") -> 0 | G55: =IF(E55>0,IF(LEFT(G30,1)="Y","Non-Mow Area",IF(LEFT(G30,1)="N","Mow Area","Check slopes")),"") -> 
C56: Area 4 Total: | E56: =IF(ISNUMBER(D41),D41,IF(SUM(D34:D37)>0,"Check Entry",0)) -> 0 | F56: =IF(ISNUMBER(E56),ROUND(E56/43560,2),"Check Entry") -> 0 | G56: =IF(E56>0,IF(LEFT(G40,1)="Y","Non-Mow Area",IF(LEFT(G40,1)="N","Mow Area","Check slopes")),"") -> 
C57: Area 5 Total: | E57: =IF(ISNUMBER(D51),D51,IF(SUM(D44:D47)>0,"Check Entry",0)) -> 0 | F57: =IF(ISNUMBER(E57),ROUND(E57/43560,2),"Check Entry") -> 0 | G57: =IF(E57>0,IF(LEFT(G50,1)="Y","Non-Mow Area",IF(LEFT(G50,1)="N","Mow Area","Check slopes")),"") -> 
C58: Total Area Calculated: | E58: =IF(COUNTIF(E53:E57,"Check Entry")>0,"Check Entries",SUM(E53:E57)) -> 0 | F58: =IF(COUNTIF(F53:F57,"Check Entry")>0,"Check Entries",SUM(F53:F57)) -> 0
C59: Total Mow Area: | E59: =IF(COUNTIF(E53:E57,"Check Entry")>0,"Check Entries",IF(COUNTIF(G53:G57,"Check Slopes")>0,"Check Slopes",SUMIF(G53:G57,"Mow Area",E53:E57))) -> 0 | F59: =IF(COUNTIF(F53:F57,"Check Entry")>0,"Check Entries",IF(COUNTIF(G53:G57,"Check Slopes")>0,"Check Slopes",SUMIF(G53:G57,"Mow Area",F53:F57))) -> 0
C60: Total Non-Mow Area: | E60: =IF(COUNTIF(E53:E57,"Check Entry")>0,"Check Entries",IF(COUNTIF(G53:G57,"Check Slopes")>0,"Check Slopes",SUMIF(G53:G57,"Non-Mow Area",E53:E57))) -> 0 | F60: =IF(COUNTIF(F53:F57,"Check Entry")>0,"Check Entries",IF(COUNTIF(G53:G57,"Check Slopes")>0,"Check Slopes",SUMIF(G53:G57,"Non-Mow Area",F53:F57))) -> 0

Sheet Area Calc 2 (hidden)
C1: Use Yellow Fields to Calculate the Seeded Area for Each Core-Mix: | E1: foot (feet) | K1: WARNING: Pressing the Clear Entries Button can NOT be undone! Press it only if you intend to delete ALL input on this worksheet.
B2: Core Mix #2: | D2: =IF(ISBLANK('Start Page'!G39),"",'Start Page'!G39) -> 
B3: Area 1 | C3: Measurement | D3: Value | E3: Units | F3: Conv. Factor | G3: Value in ft
C4: Length | F4: =IF(E4="","",VLOOKUP(E4,conv_Table,3,FALSE)) ->  | G4: =IF(COUNTA(D4:E4)=2,D4*F4,"") ->  | K4: Conversion Factors
C5: Width | F5: =IF(E5="","",VLOOKUP(E5,conv_Table,3,FALSE)) ->  | G5: =IF(COUNTA(D5:E5)=2,D5*F5,"") ->  | M5: Units of Length/Width
E6: OR | K6: 1 | L6: foot (feet) | N6: 1 | O6: foot
C7: Area | F7: =IF(E7="","",VLOOKUP(E7,conv_Table,3,FALSE)) ->  | G7: =IF(COUNTA(D7:E7)=2,D7*F7,"") ->  | K7: 1 | L7: mile(s) | M7: = | N7: 5280 | O7: feet
E8: AND | K8: 1 | L8: kilometer(s) | M8: = | N8: 3280.84 | O8: feet
C9: Multiplier | D9: 1 | K9: 1 | L9: meter(s) | M9: = | N9: 3.28084 | O9: feet
C10: Is the slope of this area steeper than 3:1 (33.3% grade)? | K10: 1 | L10: yard(s) | M10: = | N10: 3 | O10: feet
C11: Area 1 Total: | D11: =IF(AND(COUNTA(D4:D5)>0,COUNTA(D7)>0),"Please enter either length & width or area, not both.",IF(D7<>"",IF(E7="","Please select units.",D7*F7*D9),IF(COUNTA(E4:E5)<2,"Please select units.",(D4*F4)*(D5*F5)*D9))) -> Please select units. | E11: =IF(LEFT(G10,1)="Y","Non-Mow Area",IF(LEFT(G10,1)="N","Mow Area","Please answer question about slopes")) -> Please answer question about slopes
E12: foot (feet)
B13: Area 2 | C13: Measurement | D13: Value | E13: Units | F13: Conv. Factor | G13: Value in ft | M13: Units of Area
C14: Length | F14: =IF(E14="","",VLOOKUP(E14,conv_Table,3,FALSE)) ->  | G14: =IF(COUNTA(D14:E14)=2,D14*F14,"") ->  | K14: 1 | L14: sq. ft. | M14: = | N14: 1 | O14: sq. ft.
C15: Width | F15: =IF(E15="","",VLOOKUP(E15,conv_Table,3,FALSE)) ->  | G15: =IF(COUNTA(D15:E15)=2,D15*F15,"") ->  | K15: 1 | L15: acre(s) | M15: = | N15: 43560 | O15: sq. ft.
E16: OR | K16: 1 | L16: hectare(s) | M16: = | N16: =N17/100 -> 107639.1111 | O16: sq. ft.
C17: Area | F17: =IF(E17="","",VLOOKUP(E17,conv_Table,3,FALSE)) ->  | G17: =IF(COUNTA(D17:E17)=2,D17*F17,"") ->  | K17: 1 | L17: sq. kilometer(s) | M17: = | N17: =N8^2 -> 10763911.11 | O17: sq. ft.
E18: AND | K18: 1 | L18: sq. meter(s) | M18: = | N18: =N9^2 -> 10.76391111 | O18: sq. ft.
C19: Multiplier | D19: 1 | K19: 1 | L19: sq. mile(s) | M19: = | N19: =N7^2 -> 27878400 | O19: sq. ft.
C20: Is the slope of this area steeper than 3:1 (33.3% grade)? | K20: 1 | L20: sq. yard(s) | M20: = | N20: 9 | O20: sq. ft.
C21: Area 2 Total: | D21: =IF(AND(COUNTA(D14:D15)>0,COUNTA(D17)>0),"Please enter either length & width or area, not both.",IF(D17<>"",IF(E17="","Please select units.",D17*F17*D19),IF(COUNTA(E14:E15)<2,"Please select units.",(D14*F14)*(D15*F15)*D19))) -> Please select units. | E21: =IF(LEFT(G20,1)="Y","Non-Mow Area",IF(LEFT(G20,1)="N","Mow Area","Please answer question about slopes")) -> Please answer question about slopes
E22: foot (feet)
B23: Area 3 | C23: Measurement | D23: Value | E23: Units | F23: Conv. Factor | G23: Value in ft
C24: Length | F24: =IF(E24="","",VLOOKUP(E24,conv_Table,3,FALSE)) ->  | G24: =IF(COUNTA(D24:E24)=2,D24*F24,"") -> 
C25: Width | F25: =IF(E25="","",VLOOKUP(E25,conv_Table,3,FALSE)) ->  | G25: =IF(COUNTA(D25:E25)=2,D25*F25,"") -> 
E26: OR
C27: Area | F27: =IF(E27="","",VLOOKUP(E27,conv_Table,3,FALSE)) ->  | G27: =IF(COUNTA(D27:E27)=2,D27*F27,"") -> 
E28: AND
C29: Multiplier | D29: 1
C30: Is the slope of this area steeper than 3:1 (33.3% grade)?
C31: Area 3 Total: | D31: =IF(AND(COUNTA(D24:D25)>0,COUNTA(D27)>0),"Please enter either length & width or area, not both.",IF(D27<>"",IF(E27="","Please select units.",D27*F27*D29),IF(COUNTA(E24:E25)<2,"Please select units.",(D24*F24)*(D25*F25)*D29))) -> Please select units. | E31: =IF(LEFT(G30,1)="Y","Non-Mow Area",IF(LEFT(G30,1)="N","Mow Area","Please answer question about slopes")) -> Please answer question about slopes
E32: foot (feet)
B33: Area 4 | C33: Measurement | D33: Value | E33: Units | F33: Conv. Factor | G33: Value in ft
C34: Length | F34: =IF(E34="","",VLOOKUP(E34,conv_Table,3,FALSE)) ->  | G34: =IF(COUNTA(D34:E34)=2,D34*F34,"") -> 
C35: Width | F35: =IF(E35="","",VLOOKUP(E35,conv_Table,3,FALSE)) ->  | G35: =IF(COUNTA(D35:E35)=2,D35*F35,"") -> 
E36: OR
C37: Area | F37: =IF(E37="","",VLOOKUP(E37,conv_Table,3,FALSE)) ->  | G37: =IF(COUNTA(D37:E37)=2,D37*F37,"") -> 
E38: AND
C39: Multiplier | D39: 1
C40: Is the slope of this area steeper than 3:1 (33.3% grade)?
C41: Area 4 Total: | D41: =IF(AND(COUNTA(D34:D35)>0,COUNTA(D37)>0),"Please enter either length & width or area, not both.",IF(D37<>"",IF(E37="","Please select units.",D37*F37*D39),IF(COUNTA(E34:E35)<2,"Please select units.",(D34*F34)*(D35*F35)*D39))) -> Please select units. | E41: =IF(LEFT(G40,1)="Y","Non-Mow Area",IF(LEFT(G40,1)="N","Mow Area","Please answer question about slopes")) -> Please answer question about slopes
E42: foot (feet)
B43: Area 5 | C43: Measurement | D43: Value | E43: Units | F43: Conv. Factor | G43: Value in ft
C44: Length | F44: =IF(E44="","",VLOOKUP(E44,conv_Table,3,FALSE)) ->  | G44: =IF(COUNTA(D44:E44)=2,D44*F44,"") -> 
C45: Width | F45: =IF(E45="","",VLOOKUP(E45,conv_Table,3,FALSE)) ->  | G45: =IF(COUNTA(D45:E45)=2,D45*F45,"") -> 
E46: OR
C47: Area | F47: =IF(E47="","",VLOOKUP(E47,conv_Table,3,FALSE)) ->  | G47: =IF(COUNTA(D47:E47)=2,D47*F47,"") -> 
E48: AND
C49: Multiplier | D49: 1
C50: Is the slope of this area steeper than 3:1 (33.3% grade)?
C51: Area 5 Total: | D51: =IF(AND(COUNTA(D44:D45)>0,COUNTA(D47)>0),"Please enter either length & width or area, not both.",IF(D47<>"",IF(E47="","Please select units.",D47*F47*D49),IF(COUNTA(E44:E45)<2,"Please select units.",(D44*F44)*(D45*F45)*D49))) -> Please select units. | E51: =IF(LEFT(G50,1)="Y","Non-Mow Area",IF(LEFT(G50,1)="N","Mow Area","Please answer question about slopes")) -> Please answer question about slopes
C53: Area 1 Total: | E53: =IF(ISNUMBER(D11),D11,IF(SUM(D4:D7)>0,"Check Entry",0)) -> 0 | F53: =IF(ISNUMBER(E53),ROUND(E53/43560,2),"Check Entry") -> 0 | G53: =IF(F53>0,IF(LEFT(G10,1)="Y","Non-Mow Area",IF(LEFT(G10,1)="N","Mow Area","Check slopes")),"") -> 
C54: Area 2 Total: | E54: =IF(ISNUMBER(D21),D21,IF(SUM(D14:D17)>0,"Check Entry",0)) -> 0 | F54: =IF(ISNUMBER(E54),ROUND(E54/43560,2),"Check Entry") -> 0 | G54: =IF(E54>0,IF(LEFT(G20,1)="Y","Non-Mow Area",IF(LEFT(G20,1)="N","Mow Area","Check slopes")),"") -> 
C55: Area 3 Total: | E55: =IF(ISNUMBER(D31),D31,IF(SUM(D24:D27)>0,"Check Entry",0)) -> 0 | F55: =IF(ISNUMBER(E55),ROUND(E55/43560,2),"Check Entry") -> 0 | G55: =IF(E55>0,IF(LEFT(G30,1)="Y","Non-Mow Area",IF(LEFT(G30,1)="N","Mow Area","Check slopes")),"") -> 
C56: Area 4 Total: | E56: =IF(ISNUMBER(D41),D41,IF(SUM(D34:D37)>0,"Check Entry",0)) -> 0 | F56: =IF(ISNUMBER(E56),ROUND(E56/43560,2),"Check Entry") -> 0 | G56: =IF(E56>0,IF(LEFT(G40,1)="Y","Non-Mow Area",IF(LEFT(G40,1)="N","Mow Area","Check slopes")),"") -> 
C57: Area 5 Total: | E57: =IF(ISNUMBER(D51),D51,IF(SUM(D44:D47)>0,"Check Entry",0)) -> 0 | F57: =IF(ISNUMBER(E57),ROUND(E57/43560,2),"Check Entry") -> 0 | G57: =IF(E57>0,IF(LEFT(G50,1)="Y","Non-Mow Area",IF(LEFT(G50,1)="N","Mow Area","Check slopes")),"") -> 
C58: Total Area Calculated: | E58: =IF(COUNTIF(E53:E57,"Check Entry")>0,"Check Entries",SUM(E53:E57)) -> 0 | F58: =IF(COUNTIF(F53:F57,"Check Entry")>0,"Check Entries",SUM(F53:F57)) -> 0
C59: Total Mow Area: | E59: =IF(COUNTIF(E53:E57,"Check Entry")>0,"Check Entries",IF(COUNTIF(G53:G57,"Check Slopes")>0,"Check Slopes",SUMIF(G53:G57,"Mow Area",E53:E57))) -> 0 | F59: =IF(COUNTIF(F53:F57,"Check Entry")>0,"Check Entries",IF(COUNTIF(G53:G57,"Check Slopes")>0,"Check Slopes",SUMIF(G53:G57,"Mow Area",F53:F57))) -> 0
C60: Total Non-Mow Area: | E60: =IF(COUNTIF(E53:E57,"Check Entry")>0,"Check Entries",IF(COUNTIF(G53:G57,"Check Slopes")>0,"Check Slopes",SUMIF(G53:G57,"Non-Mow Area",E53:E57))) -> 0 | F60: =IF(COUNTIF(F53:F57,"Check Entry")>0,"Check Entries",IF(COUNTIF(G53:G57,"Check Slopes")>0,"Check Slopes",SUMIF(G53:G57,"Non-Mow Area",F53:F57))) -> 0

Sheet Area Calc 3 (hidden)
C1: Use Yellow Fields to Calculate the Seeded Area for Each Core-Mix: | E1: foot (feet) | K1: WARNING: Pressing the Clear Entries Button can NOT be undone! Press it only if you intend to delete ALL input on this worksheet.
B2: Core Mix #3: | D2: =IF(ISBLANK('Start Page'!G52),"",'Start Page'!G52) -> 
B3: Area 1 | C3: Measurement | D3: Value | E3: Units | F3: Conv. Factor | G3: Value in ft
C4: Length | F4: =IF(E4="","",VLOOKUP(E4,conv_Table,3,FALSE)) ->  | G4: =IF(COUNTA(D4:E4)=2,D4*F4,"") ->  | K4: Conversion Factors
C5: Width | F5: =IF(E5="","",VLOOKUP(E5,conv_Table,3,FALSE)) ->  | G5: =IF(COUNTA(D5:E5)=2,D5*F5,"") ->  | M5: Units of Length/Width
E6: OR | K6: 1 | L6: foot (feet) | N6: 1 | O6: foot
C7: Area | F7: =IF(E7="","",VLOOKUP(E7,conv_Table,3,FALSE)) ->  | G7: =IF(COUNTA(D7:E7)=2,D7*F7,"") ->  | K7: 1 | L7: mile(s) | M7: = | N7: 5280 | O7: feet
E8: AND | K8: 1 | L8: kilometer(s) | M8: = | N8: 3280.84 | O8: feet
C9: Multiplier | D9: 1 | K9: 1 | L9: meter(s) | M9: = | N9: 3.28084 | O9: feet
C10: Is the slope of this area steeper than 3:1 (33.3% grade)? | K10: 1 | L10: yard(s) | M10: = | N10: 3 | O10: feet
C11: Area 1 Total: | D11: =IF(AND(COUNTA(D4:D5)>0,COUNTA(D7)>0),"Please enter either length & width or area, not both.",IF(D7<>"",IF(E7="","Please select units.",D7*F7*D9),IF(COUNTA(E4:E5)<2,"Please select units.",(D4*F4)*(D5*F5)*D9))) -> Please select units. | E11: =IF(LEFT(G10,1)="Y","Non-Mow Area",IF(LEFT(G10,1)="N","Mow Area","Please answer question about slopes")) -> Please answer question about slopes
E12: foot (feet)
B13: Area 2 | C13: Measurement | D13: Value | E13: Units | F13: Conv. Factor | G13: Value in ft | M13: Units of Area
C14: Length | F14: =IF(E14="","",VLOOKUP(E14,conv_Table,3,FALSE)) ->  | G14: =IF(COUNTA(D14:E14)=2,D14*F14,"") ->  | K14: 1 | L14: sq. ft. | M14: = | N14: 1 | O14: sq. ft.
C15: Width | F15: =IF(E15="","",VLOOKUP(E15,conv_Table,3,FALSE)) ->  | G15: =IF(COUNTA(D15:E15)=2,D15*F15,"") ->  | K15: 1 | L15: acre(s) | M15: = | N15: 43560 | O15: sq. ft.
E16: OR | K16: 1 | L16: hectare(s) | M16: = | N16: =N17/100 -> 107639.1111 | O16: sq. ft.
C17: Area | F17: =IF(E17="","",VLOOKUP(E17,conv_Table,3,FALSE)) ->  | G17: =IF(COUNTA(D17:E17)=2,D17*F17,"") ->  | K17: 1 | L17: sq. kilometer(s) | M17: = | N17: =N8^2 -> 10763911.11 | O17: sq. ft.
E18: AND | K18: 1 | L18: sq. meter(s) | M18: = | N18: =N9^2 -> 10.76391111 | O18: sq. ft.
C19: Multiplier | D19: 1 | K19: 1 | L19: sq. mile(s) | M19: = | N19: =N7^2 -> 27878400 | O19: sq. ft.
C20: Is the slope of this area steeper than 3:1 (33.3% grade)? | K20: 1 | L20: sq. yard(s) | M20: = | N20: 9 | O20: sq. ft.
C21: Area 2 Total: | D21: =IF(AND(COUNTA(D14:D15)>0,COUNTA(D17)>0),"Please enter either length & width or area, not both.",IF(D17<>"",IF(E17="","Please select units.",D17*F17*D19),IF(COUNTA(E14:E15)<2,"Please select units.",(D14*F14)*(D15*F15)*D19))) -> Please select units. | E21: =IF(LEFT(G20,1)="Y","Non-Mow Area",IF(LEFT(G20,1)="N","Mow Area","Please answer question about slopes")) -> Please answer question about slopes
E22: foot (feet)
B23: Area 3 | C23: Measurement | D23: Value | E23: Units | F23: Conv. Factor | G23: Value in ft
C24: Length | F24: =IF(E24="","",VLOOKUP(E24,conv_Table,3,FALSE)) ->  | G24: =IF(COUNTA(D24:E24)=2,D24*F24,"") -> 
C25: Width | F25: =IF(E25="","",VLOOKUP(E25,conv_Table,3,FALSE)) ->  | G25: =IF(COUNTA(D25:E25)=2,D25*F25,"") -> 
E26: OR
C27: Area | F27: =IF(E27="","",VLOOKUP(E27,conv_Table,3,FALSE)) ->  | G27: =IF(COUNTA(D27:E27)=2,D27*F27,"") -> 
E28: AND
C29: Multiplier | D29: 1
C30: Is the slope of this area steeper than 3:1 (33.3% grade)?
C31: Area 3 Total: | D31: =IF(AND(COUNTA(D24:D25)>0,COUNTA(D27)>0),"Please enter either length & width or area, not both.",IF(D27<>"",IF(E27="","Please select units.",D27*F27*D29),IF(COUNTA(E24:E25)<2,"Please select units.",(D24*F24)*(D25*F25)*D29))) -> Please select units. | E31: =IF(LEFT(G30,1)="Y","Non-Mow Area",IF(LEFT(G30,1)="N","Mow Area","Please answer question about slopes")) -> Please answer question about slopes
E32: foot (feet)
B33: Area 4 | C33: Measurement | D33: Value | E33: Units | F33: Conv. Factor | G33: Value in ft
C34: Length | F34: =IF(E34="","",VLOOKUP(E34,conv_Table,3,FALSE)) ->  | G34: =IF(COUNTA(D34:E34)=2,D34*F34,"") -> 
C35: Width | F35: =IF(E35="","",VLOOKUP(E35,conv_Table,3,FALSE)) ->  | G35: =IF(COUNTA(D35:E35)=2,D35*F35,"") -> 
E36: OR
C37: Area | F37: =IF(E37="","",VLOOKUP(E37,conv_Table,3,FALSE)) ->  | G37: =IF(COUNTA(D37:E37)=2,D37*F37,"") -> 
E38: AND
C39: Multiplier | D39: 1
C40: Is the slope of this area steeper than 3:1 (33.3% grade)?
C41: Area 4 Total: | D41: =IF(AND(COUNTA(D34:D35)>0,COUNTA(D37)>0),"Please enter either length & width or area, not both.",IF(D37<>"",IF(E37="","Please select units.",D37*F37*D39),IF(COUNTA(E34:E35)<2,"Please select units.",(D34*F34)*(D35*F35)*D39))) -> Please select units. | E41: =IF(LEFT(G40,1)="Y","Non-Mow Area",IF(LEFT(G40,1)="N","Mow Area","Please answer question about slopes")) -> Please answer question about slopes
E42: foot (feet)
B43: Area 5 | C43: Measurement | D43: Value | E43: Units | F43: Conv. Factor | G43: Value in ft
C44: Length | F44: =IF(E44="","",VLOOKUP(E44,conv_Table,3,FALSE)) ->  | G44: =IF(COUNTA(D44:E44)=2,D44*F44,"") -> 
C45: Width | F45: =IF(E45="","",VLOOKUP(E45,conv_Table,3,FALSE)) ->  | G45: =IF(COUNTA(D45:E45)=2,D45*F45,"") -> 
E46: OR
C47: Area | F47: =IF(E47="","",VLOOKUP(E47,conv_Table,3,FALSE)) ->  | G47: =IF(COUNTA(D47:E47)=2,D47*F47,"") -> 
E48: AND
C49: Multiplier | D49: 1
C50: Is the slope of this area steeper than 3:1 (33.3% grade)?
C51: Area 5 Total: | D51: =IF(AND(COUNTA(D44:D45)>0,COUNTA(D47)>0),"Please enter either length & width or area, not both.",IF(D47<>"",IF(E47="","Please select units.",D47*F47*D49),IF(COUNTA(E44:E45)<2,"Please select units.",(D44*F44)*(D45*F45)*D49))) -> Please select units. | E51: =IF(LEFT(G50,1)="Y","Non-Mow Area",IF(LEFT(G50,1)="N","Mow Area","Please answer question about slopes")) -> Please answer question about slopes
C53: Area 1 Total: | E53: =IF(ISNUMBER(D11),D11,IF(SUM(D4:D7)>0,"Check Entry",0)) -> 0 | F53: =IF(ISNUMBER(E53),ROUND(E53/43560,2),"Check Entry") -> 0 | G53: =IF(F53>0,IF(LEFT(G10,1)="Y","Non-Mow Area",IF(LEFT(G10,1)="N","Mow Area","Check slopes")),"") -> 
C54: Area 2 Total: | E54: =IF(ISNUMBER(D21),D21,IF(SUM(D14:D17)>0,"Check Entry",0)) -> 0 | F54: =IF(ISNUMBER(E54),ROUND(E54/43560,2),"Check Entry") -> 0 | G54: =IF(E54>0,IF(LEFT(G20,1)="Y","Non-Mow Area",IF(LEFT(G20,1)="N","Mow Area","Check slopes")),"") -> 
C55: Area 3 Total: | E55: =IF(ISNUMBER(D31),D31,IF(SUM(D24:D27)>0,"Check Entry",0)) -> 0 | F55: =IF(ISNUMBER(E55),ROUND(E55/43560,2),"Check Entry") -> 0 | G55: =IF(E55>0,IF(LEFT(G30,1)="Y","Non-Mow Area",IF(LEFT(G30,1)="N","Mow Area","Check slopes")),"") -> 
C56: Area 4 Total: | E56: =IF(ISNUMBER(D41),D41,IF(SUM(D34:D37)>0,"Check Entry",0)) -> 0 | F56: =IF(ISNUMBER(E56),ROUND(E56/43560,2),"Check Entry") -> 0 | G56: =IF(E56>0,IF(LEFT(G40,1)="Y","Non-Mow Area",IF(LEFT(G40,1)="N","Mow Area","Check slopes")),"") -> 
C57: Area 5 Total: | E57: =IF(ISNUMBER(D51),D51,IF(SUM(D44:D47)>0,"Check Entry",0)) -> 0 | F57: =IF(ISNUMBER(E57),ROUND(E57/43560,2),"Check Entry") -> 0 | G57: =IF(E57>0,IF(LEFT(G50,1)="Y","Non-Mow Area",IF(LEFT(G50,1)="N","Mow Area","Check slopes")),"") -> 
C58: Total Area Calculated: | E58: =IF(COUNTIF(E53:E57,"Check Entry")>0,"Check Entries",SUM(E53:E57)) -> 0 | F58: =IF(COUNTIF(F53:F57,"Check Entry")>0,"Check Entries",SUM(F53:F57)) -> 0
C59: Total Mow Area: | E59: =IF(COUNTIF(E53:E57,"Check Entry")>0,"Check Entries",IF(COUNTIF(G53:G57,"Check Slopes")>0,"Check Slopes",SUMIF(G53:G57,"Mow Area",E53:E57))) -> 0 | F59: =IF(COUNTIF(F53:F57,"Check Entry")>0,"Check Entries",IF(COUNTIF(G53:G57,"Check Slopes")>0,"Check Slopes",SUMIF(G53:G57,"Mow Area",F53:F57))) -> 0
C60: Total Non-Mow Area: | E60: =IF(COUNTIF(E53:E57,"Check Entry")>0,"Check Entries",IF(COUNTIF(G53:G57,"Check Slopes")>0,"Check Slopes",SUMIF(G53:G57,"Non-Mow Area",E53:E57))) -> 0 | F60: =IF(COUNTIF(F53:F57,"Check Entry")>0,"Check Entries",IF(COUNTIF(G53:G57,"Check Slopes")>0,"Check Slopes",SUMIF(G53:G57,"Non-Mow Area",F53:F57))) -> 0

Sheet Fertilizer (hidden)
A1: Fill in columns with blue or yellow headers | J1: WARNING: Pressing the Clear Page/All Button can NOT be undone! Press it only if you intend to delete ALL input on this page or in this file. | U1: Intermediate Steps for Multiple Fertilizer Groups | AA1: Column Widths for Merged Cells | AC1: C:H used 70 | AD1: C:D (used 30) | AE1: G:H (used 18)
A2: ='Start Page'!B3 -> Project Name/No.: | C2: ='Start Page'!D3 -> 0 | D2: ='Start Page'!E3 -> Roadside Data From: | F2: ='Start Page'!G3 -> 0 | AA2: A | AB2: 5.67 | AC2: =SUM(AB4:AB9) -> 66.44 | AD2: =SUM(AB4:AB5) -> 29.11 | AE2: =SUM(AB8:AB9) -> 16.11
A3: ='Start Page'!B4 -> PPMS (UPC) #: | C3: ='Start Page'!D4 -> 0 | D3: ='Start Page'!E4 -> L&D Data From: | F3: ='Start Page'!G4 -> 0 | AA3: B | AB3: 12
A4: ='Start Page'!B5 -> Planting Date: | C4: ='Start Page'!D5 -> 0 | D4: ='Start Page'!E5 -> Date Entered: | F4: ='Start Page'!G5 -> 0 | AA4: C | AB4: 22.11
A5: ='Start Page'!B6 -> Proj. Description: | C5: ='Start Page'!D6 -> 0 | AA5: D | AB5: 7 | AC5: =C5 -> 0
A6: ='Start Page'!B7 -> File Location: | C6: ='Start Page'!D7 -> G:\Projects\2013 Projects\13-144 VDOT_MS4_MNT#301_NMP_Spreadsheet_Program\09_Deliverables\Final\ | AA6: E | AB6: 12 | AC6: =C6 -> G:\Projects\2013 Projects\13-144 VDOT_MS4_MNT#301_NMP_Spreadsheet_Program\09_Deliverables\Final\
A7: Laboratory: | C7: =nLabUsed -> 0 | E7: P Test: | F7: =VLOOKUP($C$7,tLabConversions[],2,FALSE) ->  | G7: Lime Test: | H7: =VLOOKUP($C$7,tLabConversions[],3,FALSE) ->  | J7: Statistical Analysis: | AA7: F | AB7: 9.22
B8: =IF(RIGHT(C7,1)="*","*:","") ->  | C8: =IF(RIGHT(C7,1)="*",VLOOKUP($C$7,tLabConversions[],4,FALSE),"") ->  | J8: Avg. Fertility | K8: =SUBTOTAL(1,tLabResults[3 Sub-groups]) ->  | L8: =LOOKUP(ROUND(K8,0),tSoilRating[P Break (ppm)],tSoilRating[VA Tech Fertility Rating]) ->  | AA8: G | AB8: 9.22 | AD8: =C7 -> 0
D9: Soil Fertility Rating | E9: Fertilizer | F9: Application Rate | J9: Std. Dev. | K9: =SUBTOTAL(7,tLabResults[3 Sub-groups]) ->  | AA9: H | AB9: 6.89
E10: Grade
E11: (N-P2O5-K2O) | J11: Upper Limit | K11: =$K$8+$K$9 ->  | L11: =LOOKUP(ROUND(K11,0),tSoilRating[P Break (ppm)],tSoilRating[VA Tech Fertility Rating]) -> 
B12: < OR > | C12: Single Fertilizer: | D12: =IF(COUNTIF(tLabResults[Fertility Rating],"Review")>0,"Review",IF(COUNTA(tLabResults[Fertility Rating])>SUBTOTAL(3,tLabResults[Fertility Rating]),"Clear",tLabResults[[#Totals],[Fertility Rating]])) ->  | E12: =IF(D12="Review","Data Entry!",IF(D12="Clear","Filters from",VLOOKUP(D12,tFertilizers[],2+Shift,FALSE))) ->  | F12: =IF(D12="Review","See rows",IF(D12="Clear","Soil Data",VLOOKUP(D12,tFertilizers[],3+Shift,FALSE))) ->  | G12: =IF(D12="Review","with red text below",IF(D12="Clear","Table (below).",VLOOKUP(D12,tFertilizers[],4+Shift,FALSE))) ->  | J12: Lower Limit | K12: =$K$8-$K$9 ->  | L12: =LOOKUP(ROUND(K12,0),tSoilRating[P Break (ppm)],tSoilRating[VA Tech Fertility Rating]) ->  | V12: No. of Samples | W12: =tLabResults[[#Headers],[P Value (ppm)]] -> P Value (ppm) | X12: =tLabResults[[#Headers],[VA Tech P Value]] -> VA Tech P Value | Y12: =tLabResults[[#Headers],[Fertility Rating]] -> Fertility Rating | AE12: =G12 -> 
C13: Group 1 Fertilizer | D13: =IF(V13>0,Y13,"N/A") -> N/A | E13: =IF(D13="Review","Data Entry!",IF(V13<1,"N/A",VLOOKUP(D13,tFertilizers[],2+Shift,FALSE))) -> N/A | F13: =IF(D13="Review","See rows",IF(V13<1,"N/A",VLOOKUP(D13,tFertilizers[],3+Shift,FALSE))) -> N/A | G13: =IF(D13="Review","with red text below",IF(V13<1,"N/A",VLOOKUP(D13,tFertilizers[],4+Shift,FALSE))) -> N/A | U13: 1 | V13: =IF(COUNTIFS(tLabResults[Group],U13,tLabResults[Fertility Rating],"Review")>0,"Review",COUNTIF(tLabResults[Group],U13)) -> 0 | W13: =IF(AND(V13>0,ISNUMBER(V13)),SUMIF(tLabResults[Group],U13,tLabResults[P Value (ppm)])/V13,0) -> 0 | X13: =IF($F$7="Mehlich I",W13,IF(W13>205,fConvert_upper,fConvert_lower)) ->  | Y13: =IF(OR(V13="Review", X13<0),"Review",LOOKUP(X13,tSoilRating[P Break (ppm)],tSoilRating[VA Tech Fertility Rating])) ->  | AE13: =G13 -> N/A
C14: Group 2 Fertilizer | D14: =IF(V14>0,Y14,"N/A") -> N/A | E14: =IF(D14="Review","Data Entry!",IF(V14<1,"N/A",VLOOKUP(D14,tFertilizers[],2+Shift,FALSE))) -> N/A | F14: =IF(D14="Review","See rows",IF(V14<1,"N/A",VLOOKUP(D14,tFertilizers[],3+Shift,FALSE))) -> N/A | G14: =IF(D14="Review","with red text below",IF(V14<1,"N/A",VLOOKUP(D14,tFertilizers[],4+Shift,FALSE))) -> N/A | U14: 2 | V14: =IF(COUNTIFS(tLabResults[Group],U14,tLabResults[Fertility Rating],"Review")>0,"Review",COUNTIF(tLabResults[Group],U14)) -> 0 | W14: =IF(AND(V14>0,ISNUMBER(V14)),SUMIF(tLabResults[Group],U14,tLabResults[P Value (ppm)])/V14,0) -> 0 | X14: =IF($F$7="Mehlich I",W14,IF(W14>205,fConvert_upper,fConvert_lower)) ->  | Y14: =IF(OR(V14="Review", X14<0),"Review",LOOKUP(X14,tSoilRating[P Break (ppm)],tSoilRating[VA Tech Fertility Rating])) ->  | AE14: =G14 -> N/A
C15: Group 3 Fertilizer | D15: =IF(V15>0,Y15,"N/A") -> N/A | E15: =IF(D15="Review","Data Entry!",IF(V15<1,"N/A",VLOOKUP(D15,tFertilizers[],2+Shift,FALSE))) -> N/A | F15: =IF(D15="Review","See rows",IF(V15<1,"N/A",VLOOKUP(D15,tFertilizers[],3+Shift,FALSE))) -> N/A | G15: =IF(D15="Review","with red text below",IF(V15<1,"N/A",VLOOKUP(D15,tFertilizers[],4+Shift,FALSE))) -> N/A | U15: 3 | V15: =IF(COUNTIFS(tLabResults[Group],U15,tLabResults[Fertility Rating],"Review")>0,"Review",COUNTIF(tLabResults[Group],U15)) -> 0 | W15: =IF(AND(V15>0,ISNUMBER(V15)),SUMIF(tLabResults[Group],U15,tLabResults[P Value (ppm)])/V15,0) -> 0 | X15: =IF($F$7="Mehlich I",W15,IF(W15>205,fConvert_upper,fConvert_lower)) ->  | Y15: =IF(OR(V15="Review", X15<0),"Review",LOOKUP(X15,tSoilRating[P Break (ppm)],tSoilRating[VA Tech Fertility Rating])) ->  | AE15: =G15 -> N/A
A16: =IF(AND(COUNT(tLabResults[Group])>0,COUNT(tLabResults[Group])<iNumSamples),"When breaking soil samples into groups, please ensure that each sample is assigned to a group.","") ->  | J16: Statistical Analysis | U16: Total | V16: =COUNT(tLabResults[[Lab P value ]]) -> 0 | W16: =tLabResults[[#Totals],[P Value (ppm)]] ->  | X16: =tLabResults[[#Totals],[VA Tech P Value]] ->  | Y16: =tLabResults[[#Totals],[Fertility Rating]] -> 
A17: Group | B17: Sample No. or Name | C17: Description | D17: Lab P value | E17: Lab Units | F17: P Value (ppm) | G17: VA Tech P Value | H17: Fertility Rating | I17: (Blank) Col. | J17: 2 Sub-groups | K17: 3 Sub-groups
E18: =fLabUnits ->  | F18: =IF(tLabResults[[#This Row],[Lab Units]]="","0",IF(tLabResults[[#This Row],[Lab Units]]="ppm (p)",tLabResults[[#This Row],[Lab P value ]],IF(RIGHT(tLabResults[[#This Row],[Lab Units]],3)="O5)",fUnits_P2O5,fUnits_LbsAc))) ->  | G18: =IF($F$7="Mehlich I",tLabResults[[#This Row],[P Value (ppm)]],IF(tLabResults[[#This Row],[P Value (ppm)]]>205,fConvert_upper,fConvert_lower)) ->  | H18: =IF(OR(tLabResults[[#This Row],[VA Tech P Value]]<0,tLabResults[[#This Row],[Lab P value ]]=""),"Review",LOOKUP(tLabResults[[#This Row],[VA Tech P Value]],tSoilRating[P Break (ppm)],tSoilRating[VA Tech Fertility Rating])) ->  | I18: =IF(tLabResults[[#This Row],[Fertility Rating]]="Review","Input","") ->  | J18: =tLabResults[[#This Row],[VA Tech P Value]] ->  | K18: =tLabResults[[#This Row],[VA Tech P Value]] -> 
E19: =fLabUnits ->  | F19: =IF(tLabResults[[#This Row],[Lab Units]]="","0",IF(tLabResults[[#This Row],[Lab Units]]="ppm (p)",tLabResults[[#This Row],[Lab P value ]],IF(RIGHT(tLabResults[[#This Row],[Lab Units]],3)="O5)",fUnits_P2O5,fUnits_LbsAc))) ->  | G19: =IF($F$7="Mehlich I",tLabResults[[#This Row],[P Value (ppm)]],IF(tLabResults[[#This Row],[P Value (ppm)]]>205,fConvert_upper,fConvert_lower)) ->  | H19: =IF(OR(tLabResults[[#This Row],[VA Tech P Value]]<0,tLabResults[[#This Row],[Lab P value ]]=""),"Review",LOOKUP(tLabResults[[#This Row],[VA Tech P Value]],tSoilRating[P Break (ppm)],tSoilRating[VA Tech Fertility Rating])) ->  | I19: =IF(tLabResults[[#This Row],[Fertility Rating]]="Review","Input","") ->  | J19: =tLabResults[[#This Row],[VA Tech P Value]] ->  | K19: =tLabResults[[#This Row],[VA Tech P Value]] -> 
B20: Total | D20: =SUBTOTAL(102,tLabResults[[Lab P value ]]) -> 0 | F20: =SUBTOTAL(1,tLabResults[P Value (ppm)]) ->  | G20: =IF($F$7="Mehlich I",tLabResults[[#Totals],[P Value (ppm)]],IF(tLabResults[[#Totals],[P Value (ppm)]]>205,fConvert_upper,fConvert_lower)) ->  | H20: =IF(tLabResults[[#Totals],[VA Tech P Value]]<0,"L-",LOOKUP(tLabResults[[#Totals],[VA Tech P Value]],tSoilRating[P Break (ppm)],tSoilRating[VA Tech Fertility Rating])) -> 

Sheet Lime (hidden)
A1: Fill in fields with yellow highlighting & column with yellow header | AA1: Column Widths for Merged Cells | AC1: C:G (used 70) | AD1: C:D (used 30)
A2: ='Start Page'!B3 -> Project Name/No.: | C2: ='Start Page'!D3 -> 0 | D2: ='Start Page'!E3 -> Roadside Data From: | F2: ='Start Page'!G3 -> 0 | AA2: A | AB2: 5.67 | AC2: =SUM(AB4:AB8) -> 66.44 | AD2: =SUM(AB4:AB5) -> 29.11
A3: ='Start Page'!B4 -> PPMS (UPC) #: | C3: ='Start Page'!D4 -> 0 | D3: ='Start Page'!E4 -> L&D Data From: | F3: ='Start Page'!G4 -> 0 | AA3: B | AB3: 12
A4: ='Start Page'!B5 -> Planting Date: | C4: ='Start Page'!D5 -> 0 | D4: ='Start Page'!E5 -> Date Entered: | F4: ='Start Page'!G5 -> 0 | AA4: C | AB4: 22.11
A5: ='Start Page'!B6 -> Proj. Description: | C5: ='Start Page'!D6 -> 0 | AA5: D | AB5: 7 | AC5: =C5 -> 0
B6: ='Start Page'!B7 -> File Location: | C6: ='Start Page'!D7 -> G:\Projects\2013 Projects\13-144 VDOT_MS4_MNT#301_NMP_Spreadsheet_Program\09_Deliverables\Final\ | AA6: E | AB6: 15.11 | AC6: =C6 -> G:\Projects\2013 Projects\13-144 VDOT_MS4_MNT#301_NMP_Spreadsheet_Program\09_Deliverables\Final\
A7: Laboratory: | C7: =nLabUsed -> 0 | E7: Lime Test: | F7: =VLOOKUP($C$7,tLabConversions[],3,FALSE) ->  | AA7: F | AB7: 15.33
A8: Test Method: | C8: =VLOOKUP($F$7,tKey_LimeType[],2,FALSE) ->  | AA8: G | AB8: 6.89 | AD8: =C7 -> 0
A9: Did the Laboratory provide a recommended Lime Application rate for the entire area? | G9: y
A10: =IF(LEFT(G9,1)="y","What is the recommended application rate for Agricultural Lime (100% CCE) in tons/ac?","") -> What is the recommended application rate for Agricultural Lime (100% CCE) in tons/ac? | G10: 3
A11: =IF(RIGHT(C7,1)="*","*:","") ->  | C11: =IF(RIGHT(C7,1)="*",VLOOKUP($C$7,tLabConversions[],4,FALSE),"") ->  | AA11: Min. pH: | AB11: =IF($F$7="1C",0,IF($F$7="1A",5.3,6.3)) -> 
A12: Type of Lime: | AA12: Max. pH: | AB12: =IF($F$7="1C",0,IF($F$7="1A",6.6,6.9)) -> 
A13: =IF(LEFT(C12,1)="A","","% of CCE:") -> % of CCE: | AA13: No. Errors | AB13: =COUNTIF(tLimeCalcs[[Buffer pH ]],">"&AB12)+COUNTIF(tLimeCalcs[[Buffer pH ]],"<"&AB11)+COUNTIF(tLimeCalcs[[Buffer pH ]],"") -> 2
AA14: No. Entries | AB14: =COUNT(tLimeCalcs[[Buffer pH ]]) -> 0
B15: Average Buffer pH: | D15: =IF(COUNTA(tLimeCalcs[[Buffer pH ]])>SUBTOTAL(3,tLimeCalcs[[Buffer pH ]]),"Clear Filter",IF(LEFT(G9,1)="y","n/a",IF(COUNTIF(tLimeCalcs[Lime Application Rate (tons/ac)],"Review Input")>0,"Review Input",tLimeCalcs[[#Totals],[Buffer pH ]]))) -> n/a
B16: Agricultural Lime Application Rate: | D16: =IF(F7="1C","**",IF(LEFT(G9,1)="y",G10,IF(ISNUMBER(D15)=FALSE,"Review",tLimeCalcs[[#Totals],[Lime Application Rate (tons/ac)]]))) ->  | E16: =IF(F7="1C","Contact Lab for recommendation**",IF(LEFT(D16,1)="R","Input","tons/ac")) -> 
B17: Adjusted Lime Application Rate: | D17: =IF(LEFT(G9,1)="y",IF(LEFT($C$12,1)="A","N/A",IFERROR(VLOOKUP($D$16,tPercentCCE[],MATCH($C$13,rCCE_RowNum)),"Review")),IF(COUNTIF(tLimeCalcs[Adjusted Rate (tons/ac)],"Review Input")>0,"Review",tLimeCalcs[[#Totals],[Adjusted Rate (tons/ac)]])) -> Review | E17: =IF(D17="N/A","",IF(LEFT(D17,1)="R","Input","tons/ac")) -> Input
B19: Sample No. or Name | C19: Description | D19: Buffer pH | E19: Lime Application Rate (tons/ac) | F19: Adjusted Rate (tons/ac) | G19: Inverse pH
B20: =IF(ISBLANK(Fertilizer!B18),"",Fertilizer!B18) ->  | C20: =IF(ISBLANK(Fertilizer!C18),"",Fertilizer!C18) ->  | E20: =IF($F$7="1C","*Contact Lab*",IFERROR(VLOOKUP(tLimeCalcs[[#This Row],[Buffer pH ]],IF($F$7="1A",tLime_VATech[],tLime_SMB[]),4,TRUE),"Review Input")) ->  | F20: =IF(OR(LEFT($C$12,1)="A",$F$7="1C"),"N/A",IFERROR(VLOOKUP(tLimeCalcs[[#This Row],[Lime Application Rate (tons/ac)]],tPercentCCE[],MATCH($C$13,rCCE_RowNum)),"Review Input")) ->  | G20: =10^tLimeCalcs[[#This Row],[Buffer pH ]] -> 1
B21: =IF(ISBLANK(Fertilizer!B19),"",Fertilizer!B19) ->  | C21: =IF(ISBLANK(Fertilizer!C19),"",Fertilizer!C19) ->  | E21: =IF($F$7="1C","*Contact Lab*",IFERROR(VLOOKUP(tLimeCalcs[[#This Row],[Buffer pH ]],IF($F$7="1A",tLime_VATech[],tLime_SMB[]),4,TRUE),"Review Input")) ->  | F21: =IF(OR(LEFT($C$12,1)="A",$F$7="1C"),"N/A",IFERROR(VLOOKUP(tLimeCalcs[[#This Row],[Lime Application Rate (tons/ac)]],tPercentCCE[],MATCH($C$13,rCCE_RowNum)),"Review Input")) ->  | G21: =10^tLimeCalcs[[#This Row],[Buffer pH ]] -> 1
B22: Averages | C22: =VLOOKUP(tLimeCalcs[[#Totals],[Inverse pH]],IF($F$7="1A",tLime_VATech[],tLime_SMB[]),3,TRUE) ->  | D22: =SUBTOTAL(101,tLimeCalcs[[Buffer pH ]]) ->  | E22: =IF($F$7="1C","*Contact Lab*",VLOOKUP(tLimeCalcs[[#Totals],[Buffer pH ]],IF($F$7="1A",tLime_VATech[],tLime_SMB[]),3,TRUE)) ->  | F22: =IF(OR(LEFT($C$12,1)="A",$F$7="1C"),"N/A",VLOOKUP(tLimeCalcs[[#Totals],[Lime Application Rate (tons/ac)]],tPercentCCE[],MATCH($C$13,rCCE_RowNum))) ->  | G22: =LOG(SUBTOTAL(101,tLimeCalcs[Inverse pH])) -> 0

Sheet Lab Analysis Summary (hidden)
A2: Project Name/No.: | B2: ='Start Page'!D3 -> 0 | D2: Entered By: | E2: ='Start Page'!G3 -> 0
A3: PPMS (UPC) #: | B3: ='Start Page'!D4 -> 0 | D3: Checked By: | E3: ='Start Page'!G4 -> 0
A4: Planting Date: | B4: ='Start Page'!D5 -> 0 | D4: Sampling Date: | E4: ='Start Page'!G5 -> 0
A5: Proj. Description: | B5: ='Start Page'!D6 -> 0
A6: File Location: | B6: ='Start Page'!D7 -> G:\Projects\2013 Projects\13-144 VDOT_MS4_MNT#301_NMP_Spreadsheet_Program\09_Deliverables\Final\
A7: Testing Laboratory: | B7: ='Start Page'!G14 -> 0
A9: AREA SUMMARY
A10: Total Area Receiving Temporary Seeding | D10: =Area_TS -> 0 | E10: =OFFSET(Area_TS,0,1) -> ac
A11: Total Area Receiving Permanent Seeding | D11: =Area_PS -> 0 | E11: =OFFSET(Area_PS,0,1) -> sf
A13: FERTILIZER SUMMARY
B14: Soil Fertility Rating | C14: Fertilizer Grade | D14: Application Rate | G14: Area | H14: Units | AC14: Total Nutrient Applied: (=Area x Rate)
C15: (N-P2O5-K2O) | AA15: Fertilizer: | AB15: Area (ac) | AC15: N | AD15: P | AE15: K
A16: Temp. Seeding | B16: n/a | C16: 15-30-15 | D16: 150 lbs/ac | E16: 3.4 lbs/1,000 SF | G16: =D10 -> 0 | H16: =E10 -> ac | AA16: TS | AB16: =Area_TSac -> 0 | AC16: =IF(LEFT($H$16,1)="a",$G16*VLOOKUP($AA16,tFertRatio_ac[],2+Shift,FALSE),$G16*VLOOKUP($AA16,tFertRatio_sf[],2+Shift,FALSE)) -> 0 | AD16: =IF(LEFT($H$16,1)="a",$G16*VLOOKUP($AA16,tFertRatio_ac[],3+Shift,FALSE),$G16*VLOOKUP($AA16,tFertRatio_sf[],3+Shift,FALSE)) -> 0 | AE16: =IF(LEFT($H$16,1)="a",$G16*VLOOKUP($AA16,tFertRatio_ac[],4+Shift,FALSE),$G16*VLOOKUP($AA16,tFertRatio_sf[],4+Shift,FALSE)) -> 0
A17: Single Fertilizer: | B17: =Fertilizer!D12 ->  | C17: =Fertilizer!E12 ->  | D17: =Fertilizer!F12 ->  | E17: =Fertilizer!G12 ->  | F17: =Fertilizer!H12 -> 0 | G17: =D11 -> 0 | H17: =E11 -> sf | AA17: PS-1rate | AB17: =Area_PSac -> 0 | AC17: =IF(LEFT($H17,1)="a",$G17*VLOOKUP($B17,tFertRatio_ac[],2+Shift,FALSE),$G17*VLOOKUP($B17,tFertRatio_sf[],2+Shift,FALSE)) ->  | AD17: =IF(LEFT($H17,1)="a",$G17*VLOOKUP($B17,tFertRatio_ac[],3+Shift,FALSE),$G17*VLOOKUP($B17,tFertRatio_sf[],3+Shift,FALSE)) ->  | AE17: =IF(LEFT($H17,1)="a",$G17*VLOOKUP($B17,tFertRatio_ac[],4+Shift,FALSE),$G17*VLOOKUP($B17,tFertRatio_sf[],4+Shift,FALSE)) -> 
A18: Group 1 Fertilizer | B18: =Fertilizer!D13 -> N/A | C18: =Fertilizer!E13 -> N/A | D18: =Fertilizer!F13 -> N/A | E18: =Fertilizer!G13 -> N/A | F18: =Fertilizer!H13 -> 0 | H18: ac | I18: =IF(AND(G18>0,H18=""),"Please Select Units!",IF(AND(B18="N/A",G18>0),"Please Assign Soil Samples to this Group on the Fertilzier tab or Clear this Entry!",IF(OR(AND(LEFT(H18,1)="s",(G18<50)),AND(LEFT(H18,1)="a",G18>500)),"Please confirm that the correct units are selected",""))) ->  | AA18: PS-Grp 1 | AB18: =IF(LEFT(H18,1)="s",G18*43560,G18) -> 0 | AC18: =IFERROR(IF(LEFT($H18,1)="a",$G18*VLOOKUP($B18,tFertRatio_ac[],2+Shift,FALSE),$G18*VLOOKUP($B18,tFertRatio_sf[],2+Shift,FALSE)),0) -> 0 | AD18: =IFERROR(IF(LEFT($H18,1)="a",$G18*VLOOKUP($B18,tFertRatio_ac[],3+Shift,FALSE),$G18*VLOOKUP($B18,tFertRatio_sf[],3+Shift,FALSE)),0) -> 0 | AE18: =IFERROR(IF(LEFT($H18,1)="a",$G18*VLOOKUP($B18,tFertRatio_ac[],4+Shift,FALSE),$G18*VLOOKUP($B18,tFertRatio_sf[],4+Shift,FALSE)),0) -> 0
A19: Group 2 Fertilizer | B19: =Fertilizer!D14 -> N/A | C19: =Fertilizer!E14 -> N/A | D19: =Fertilizer!F14 -> N/A | E19: =Fertilizer!G14 -> N/A | F19: =Fertilizer!H14 -> 0 | H19: ac | I19: =IF(AND(G19>0,H19=""),"Please Select Units!",IF(AND(B19="N/A",G19>0),"Please Assign Soil Samples to this Group on the Fertilzier tab or Clear this Entry!",IF(OR(AND(LEFT(H19,1)="s",(G19<50)),AND(LEFT(H19,1)="a",G19>500)),"Please confirm that the correct units are selected",""))) ->  | AA19: PS-Grp 2 | AB19: =IF(LEFT(H19,1)="s",G19*43560,G19) -> 0 | AC19: =IFERROR(IF(LEFT($H19,1)="a",$G19*VLOOKUP($B19,tFertRatio_ac[],2+Shift,FALSE),$G19*VLOOKUP($B19,tFertRatio_sf[],2+Shift,FALSE)),0) -> 0 | AD19: =IFERROR(IF(LEFT($H19,1)="a",$G19*VLOOKUP($B19,tFertRatio_ac[],3+Shift,FALSE),$G19*VLOOKUP($B19,tFertRatio_sf[],3+Shift,FALSE)),0) -> 0 | AE19: =IFERROR(IF(LEFT($H19,1)="a",$G19*VLOOKUP($B19,tFertRatio_ac[],4+Shift,FALSE),$G19*VLOOKUP($B19,tFertRatio_sf[],4+Shift,FALSE)),0) -> 0
A20: Group 3 Fertilizer | B20: =Fertilizer!D15 -> N/A | C20: =Fertilizer!E15 -> N/A | D20: =Fertilizer!F15 -> N/A | E20: =Fertilizer!G15 -> N/A | F20: =Fertilizer!H15 -> 0 | I20: =IF(AND(G20>0,H20=""),"Please Select Units!",IF(AND(B20="N/A",G20>0),"Please Assign Soil Samples to this Group on the Fertilzier tab or Clear this Entry!",IF(OR(AND(LEFT(H20,1)="s",(G20<50)),AND(LEFT(H20,1)="a",G20>500)),"Please confirm that the correct units are selected",""))) ->  | AA20: PS-Grp 3 | AB20: =IF(LEFT(H20,1)="s",G20*43560,G20) -> 0 | AC20: =IFERROR(IF(LEFT($H20,1)="a",$G20*VLOOKUP($B20,tFertRatio_ac[],2+Shift,FALSE),$G20*VLOOKUP($B20,tFertRatio_sf[],2+Shift,FALSE)),0) -> 0 | AD20: =IFERROR(IF(LEFT($H20,1)="a",$G20*VLOOKUP($B20,tFertRatio_ac[],3+Shift,FALSE),$G20*VLOOKUP($B20,tFertRatio_sf[],3+Shift,FALSE)),0) -> 0 | AE20: =IFERROR(IF(LEFT($H20,1)="a",$G20*VLOOKUP($B20,tFertRatio_ac[],4+Shift,FALSE),$G20*VLOOKUP($B20,tFertRatio_sf[],4+Shift,FALSE)),0) -> 0
AA21: OS | AB21: =Area_PSac -> 0 | AC21: =IF(LEFT($H17,1)="a",$G17*VLOOKUP($AA21,tFertRatio_ac[],2+Shift,FALSE),$G17*VLOOKUP($AA21,tFertRatio_sf[],2+Shift,FALSE)) -> 0 | AD21: =IF(LEFT($H17,1)="a",$G17*VLOOKUP($AA21,tFertRatio_ac[],3+Shift,FALSE),$G17*VLOOKUP($AA21,tFertRatio_sf[],3+Shift,FALSE)) -> 0 | AE21: =IF(LEFT($H17,1)="a",$G17*VLOOKUP($AA21,tFertRatio_ac[],4+Shift,FALSE),$G17*VLOOKUP($AA21,tFertRatio_sf[],4+Shift,FALSE)) -> 0
A22: LIME SUMMARY
A23: Type of Lime: | C23: =Lime!C12 -> 0
A24: =IF(LEFT(C23,1)="A","","% of CCE:") -> % of CCE: | C24: =Lime!C13 -> 0
A25: Average Buffer pH: | D25: =Lime!D15 -> n/a
A26: Agricultural Lime Application Rate: | D26: =Lime!D16 ->  | E26: =Lime!E16 -> 
A27: Adjusted Lime Application Rate: | D27: =Lime!D17 -> Review | E27: =Lime!E17 -> Input
A30: NUTRIENT SUMMARY | B30: Nitrogen (N) | C30: Phosphoric Acid (P) | D30: Potash (K) | E30: Lime (tons)
A31: Permanent Seeding | B31: =IF(SUM($G$18:$G$20)=0,AC$17,IF(SUM($AB$18:$AB$20)<>$AB$17,"Check Areas",IF(OR(SUM($AC$18:$AE$20)=0,COUNTIF($I$18:$I$20,"")<3),"Check Groups",SUM(AC$18:AC$20)))) ->  | C31: =IF(SUM($G$18:$G$20)=0,AD$17,IF(SUM($AB$18:$AB$20)<>$AB$17,"Check Areas",IF(OR(SUM($AC$18:$AE$20)=0,COUNTIF($I$18:$I$20,"")<3),"Check Groups",SUM(AD$18:AD$20)))) ->  | E31: =$D$26*Area_PSac ->  | F31: =IF($B$31="Check Areas","The sum of the areas for the 3 fertilizer groups above do not add up to the total area of permanent seeding",IF($B$31="Check Groups","Review the warning messages beside the fertilizer groups above","")) -> 
A32: Incr. Adjustment (P.S. Only) | B32: =B31*0.25 ->  | C32: =C31*0.25 ->  | D32: =D31*0.25 ->  | E32: =E31*0.25 ->  | F32: =IF($B$31="Check Areas","The sum of the areas for the 3 fertilizer groups above do not add up to the total area of permanent seeding",IF($B$31="Check Groups","Review the warning messages beside the fertilizer groups above","")) -> 
A33: Temporary Seeding | B33: =AC16 -> 0 | C33: =AD16 -> 0 | D33: =AE16 -> 0 | E33: =IF(LEFT(NMPresults,4)="Turf",$D$26*Area_TSac,0) -> 
A34: Overseeding | B34: =AC21 -> 0 | C34: =AD21 -> 0 | D34: =AE21 -> 0 | E34: =E31*0.5 -> 
A35: Total Applied (lbs) | B35: =SUM(B31:B34) ->  | C35: =SUM(C31:C34) ->  | D35: =SUM(D31:D34) ->  | E35: =SUM(E31:E34) ->  | F35: =IF($B$31="Check Areas","The sum of the areas for the 3 fertilizer groups above do not add up to the total area of permanent seeding",IF($B$31="Check Groups","Review the warning messages beside the fertilizer groups above","")) -> 

Sheet Nutrient Rates (hidden)
B2: Area | C2: Fertilizer Grade | D2: Application Rate (Fertilizer) | E2: Nitrogen (N) | F2: Phosphoric Acid (P) | G2: Potash (K) | H2: Application Rate (Lime)
B3: (ac) | C3: (N-P-K) | D3: (lbs/ac) | E3: (lbs/ac) | H3: (tons/ac)
A4: Regular Seed | B4: =Area_PSac -> 0 | C4: =VLOOKUP("Default Fertilizer",tFertilizers[],2+Shift,FALSE) -> 15-30-15 | D4: =VLOOKUP("Default Fertilizer",tFertilizers[],3+Shift,FALSE) -> 250 | E4: =VLOOKUP("Default",tFertRatio_ac[],2+Shift,FALSE) -> 37.5 | F4: =VLOOKUP("Default",tFertRatio_ac[],3+Shift,FALSE) -> 75 | G4: =VLOOKUP("Default",tFertRatio_ac[],4+Shift,FALSE) -> 37.5 | H4: 2
A5: Incremental Adjustment (P.S. Only) | B5: =0.25*B4 -> 0 | C5: =C4 -> 15-30-15 | D5: =D4 -> 250 | E5: =E4 -> 37.5 | F5: 75 | G5: 37.5 | H5: 2
A6: Temporary Seed | B6: =Area_TSac -> 0 | C6: =VLOOKUP("Temporary Seeding",tFertilizers[],2+Shift,FALSE) -> 15-30-15 | D6: =VLOOKUP("Temporary Seeding",tFertilizers[],3+Shift,FALSE) -> 125 | E6: =VLOOKUP("TS",tFertRatio_ac[],2+Shift,FALSE) -> 18.75 | F6: =VLOOKUP("TS",tFertRatio_ac[],3+Shift,FALSE) -> 37.5 | G6: =VLOOKUP("TS",tFertRatio_ac[],4+Shift,FALSE) -> 18.75 | H6: 1
A7: Overseeding | B7: =B4 -> 0 | C7: =VLOOKUP("Overseeding",tFertilizers[],2+Shift,FALSE) -> 46-0-0 | D7: =VLOOKUP("Overseeding",tFertilizers[],3+Shift,FALSE) -> 65 | E7: =VLOOKUP("OS",tFertRatio_ac[],2+Shift,FALSE) -> 30 | F7: =VLOOKUP("OS",tFertRatio_ac[],3+Shift,FALSE) -> 0 | G7: =VLOOKUP("OS",tFertRatio_ac[],4+Shift,FALSE) -> 0 | H7: 1
A8: Total Applied (lbs) | E8: =SUMPRODUCT($B$4:$B$7,E4:E7) -> 0 | F8: =SUMPRODUCT($B$4:$B$7,F4:F7) -> 0 | G8: =SUMPRODUCT($B$4:$B$7,G4:G7) -> 0 | H8: =SUMPRODUCT($B$4:$B$7,H4:H7) -> 0

Sheet Mulch (hidden)
A2: Location | C2: Max. Slope | D2: Area (ac) | E2: Mulch Type | F2: Inc. Adj. | G2: Total Area (ac)
A3: Core Mix 1 | B3: Mow | C3: ='Start Page'!$AA29 -> 0 | D3: ='Start Page'!$AA28 -> 0 | E3: =VLOOKUP(C3,Table22[],3,TRUE) -> n/a | F3: =D3*0.25 -> 0 | G3: =F3+D3 -> 0
A4: Core Mix 1 | B4: Slopes | C4: ='Start Page'!$AA31 -> 0 | D4: ='Start Page'!$AA30 -> 0 | E4: =VLOOKUP(C4,Table22[],3,TRUE) -> n/a | F4: 0 | G4: =F4+D4 -> 0
A5: Core Mix 2 | B5: Mow | C5: ='Start Page'!$AA42 -> 0 | D5: ='Start Page'!$AA41 -> 0 | E5: =VLOOKUP(C5,Table22[],3,TRUE) -> n/a | F5: 0 | G5: 0
A6: Core Mix 2 | B6: Slopes | C6: ='Start Page'!$AA44 -> 0 | D6: ='Start Page'!$AA43 -> 0 | E6: =VLOOKUP(C6,Table22[],3,TRUE) -> n/a | F6: 0 | G6: 0
A7: Core Mix 3 | B7: Mow | C7: ='Start Page'!$AA55 -> 0 | D7: ='Start Page'!$AA54 -> 0 | E7: =VLOOKUP(C7,Table22[],3,TRUE) -> n/a | F7: 0 | G7: 0
A8: Core Mix 3 | B8: Slopes | C8: ='Start Page'!$AA57 -> 0 | D8: ='Start Page'!$AA56 -> 0 | E8: =VLOOKUP(C8,Table22[],3,TRUE) -> n/a | F8: 0 | G8: 0
A9: Temporary Seed | C9: n/a | D9: =Area_TSac -> 0 | E9: HECP Type 3 | F9: 0 | G9: 0
A12: HECP | B12: REGULAR SEED | D12: TEMPORARY | E12: OVER- | F12: TOTAL | G12: TOTAL
A13: TYPE | B13: MOW | C13: SLOPES | D13: SEED | E13: SEEDING | F13: (ACRES) | G13: (SQ. YARDS)
A14: TYPE 1 | B14: =SUMIFS($G$3:$G$8,$B$3:$B$8,B$13,$E$3:$E$8,"HECP "&$A14) -> 0 | C14: 0 | D14: 0 | E14: 0 | F14: =SUM(B14:E14) -> 0 | G14: =(F14*43560)/(3^2) -> 0
A15: TYPE 2 | B15: 0 | C15: 0 | D15: 0 | E15: 0 | F15: =SUM(B15:E15) -> 0 | G15: =(F15*43560)/(3^2) -> 0
A16: TYPE 3 | B16: 0 | C16: 0 | D16: =G9 -> 0 | E16: 0 | F16: =SUM(B16:E16) -> 0 | G16: =(F16*43560)/(3^2) -> 0
A17: TYPE 4 | B17: 0 | C17: 0 | D17: 0 | E17: 0 | F17: =SUM(B17:E17) -> 0 | G17: =(F17*43560)/(3^2) -> 0
A18: n/a | B18: =SUMIFS($G$3:$G$8,$B$3:$B$8,B$13,$E$3:$E$8,$A18) -> 0 | C18: =SUMIFS($G$3:$G$8,$B$3:$B$8,C$13,$E$3:$E$8,$A18) -> 0 | D18: 0 | E18: 0 | F18: =SUM(B18:E18) -> 0 | G18: =(F18*43560)/(3^2) -> 0
A19: (too steep)

Sheet Seed Lists (hidden)
AA1: Hide Row? | AB1: Page Break Group Number | AC1: Count of Core Mix Seeds in Table | AD1: Count of Additive Seeds in Table | AE1: Rows Shown
C2: =UPPER('Seed Rate Selection'!A6) -> CORE MIXES: | AA2: =COUNTIF(tSeed_Core[Selected?],"yes")<1 -> TRUE | AB2: 1 | AE2: Used
B3: =UPPER(tSeed_Core[[#Headers],[Mix]]) -> MIX | C3: =UPPER(tSeed_Core[[#Headers],[Description]]) -> DESCRIPTION | D3: =UPPER(tSeed_Core[[#Headers],[Lbs/Acre]]) -> LBS/ACRE | AA3: =COUNTIF(tSeed_Core[Selected?],"yes")<1 -> TRUE | AB3: 1
B4: 1* | C4: =UPPER(VLOOKUP($B4,tSeed_Core[],2,FALSE)) -> 100% CERTIFIED FINE FESCUE* | D4: =UPPER(VLOOKUP($B4,tSeed_Core[],4,FALSE)) ->  | AA4: =VLOOKUP($B4,tSeed_Core[],9,FALSE)="no" -> TRUE | AB4: 1
B5: 2 | C5: =UPPER(VLOOKUP($B5,tSeed_Core[],2,FALSE)) -> 100% CERTIFIED TALL FESCUE | D5: =UPPER(VLOOKUP($B5,tSeed_Core[],4,FALSE)) ->  | AA5: =VLOOKUP($B5,tSeed_Core[],9,FALSE)="no" -> TRUE | AB5: 1
B6: 3* | C6: =UPPER(VLOOKUP($B6,tSeed_Core[],2,FALSE)) -> 50% CERTIFIED TALL FESCUE / 50% CERTIFIED FINE FESCUE* | D6: =UPPER(VLOOKUP($B6,tSeed_Core[],4,FALSE)) ->  | AA6: =VLOOKUP($B6,tSeed_Core[],9,FALSE)="no" -> TRUE | AB6: 1
B7: 4 | C7: =UPPER(VLOOKUP($B7,tSeed_Core[],2,FALSE)) -> 50% ORCHARDGRASS / 50% CERTIFIED KENTUCKY BLUEGRASS | D7: =UPPER(VLOOKUP($B7,tSeed_Core[],4,FALSE)) ->  | AA7: =VLOOKUP($B7,tSeed_Core[],9,FALSE)="no" -> TRUE | AB7: 1
B8: 5 | C8: =UPPER(VLOOKUP($B8,tSeed_Core[],2,FALSE)) -> 100% BERMUDAGRASS | D8: =UPPER(VLOOKUP($B8,tSeed_Core[],4,FALSE)) ->  | AA8: =VLOOKUP($B8,tSeed_Core[],9,FALSE)="no" -> TRUE | AB8: 1
B9: C1 | C9: =UPPER(VLOOKUP($B9,tSeed_Core[],2,FALSE)) -> CUSTOM 1, SEE BOX BELOW FOR CONTENTS OF MIXTURE | D9: =UPPER(VLOOKUP($B9,tSeed_Core[],4,FALSE)) -> 0 | AA9: =VLOOKUP($B9,tSeed_Core[],9,FALSE)="no" -> TRUE | AB9: 1
B10: C2 | C10: =UPPER(VLOOKUP($B10,tSeed_Core[],2,FALSE)) -> CUSTOM 2, SEE BOX BELOW FOR CONTENTS OF MIXTURE | D10: =UPPER(VLOOKUP($B10,tSeed_Core[],4,FALSE)) -> 0 | AA10: =VLOOKUP($B10,tSeed_Core[],9,FALSE)="no" -> TRUE | AB10: 1
B11: C3 | C11: =UPPER(VLOOKUP($B11,tSeed_Core[],2,FALSE)) -> CUSTOM 3, SEE BOX BELOW FOR CONTENTS OF MIXTURE | D11: =UPPER(VLOOKUP($B11,tSeed_Core[],4,FALSE)) -> 0 | AA11: =VLOOKUP($B11,tSeed_Core[],9,FALSE)="no" -> TRUE | AB11: 1
B12: T1 | C12: =UPPER(VLOOKUP($B12,tSeed_Core[],2,FALSE)) -> 50% CERTIFIED TALL FESCUE / 50% BARLEY, WINTER RYE, OR WINTER WHEAT | D12: =UPPER(VLOOKUP($B12,tSeed_Core[],4,FALSE)) ->  | AA12: =VLOOKUP($B12,tSeed_Core[],9,FALSE)="no" -> TRUE | AB12: 1
B13: T2 | C13: =UPPER(VLOOKUP($B13,tSeed_Core[],2,FALSE)) -> 50% FOXTAIL MILLET / 50% CERTIFIED TALL FESCUE | D13: =UPPER(VLOOKUP($B13,tSeed_Core[],4,FALSE)) ->  | AA13: =VLOOKUP($B13,tSeed_Core[],9,FALSE)="no" -> TRUE | AB13: 1
B14: *: | C14: =UPPER('Seed Rate Selection'!B20)&CHAR(10)&UPPER('Seed Rate Selection'!C20) -> FINE FESCUES INCLUDE CHEWINGS, CREEPING RED, HARD, & SHEEP. SEE SEEDING SCHEDULE FOR TYPE(S) SPECIFIED FOR THIS PROJECT. | AA14: =AND(AA4=TRUE,AA6=TRUE) -> TRUE | AB14: 1
AA15: FALSE | AB15: 2
C16: ='Seed Rate Selection'!A33 -> ADDITIVES: | AA16: =COUNTIF(tSeed_Add[Selected?],"yes")<1 -> TRUE | AB16: 2
B17: =UPPER(tSeed_Add[[#Headers],[Type]]) -> TYPE | C17: =UPPER(tSeed_Add[[#Headers],[Description]]) -> DESCRIPTION | D17: =UPPER(tSeed_Add[[#Headers],[Lbs/Acre]]) -> LBS/ACRE | AA17: =COUNTIF(tSeed_Add[Selected?],"yes")<1 -> TRUE | AB17: 2
B18: A | C18: =UPPER(VLOOKUP($B18,tSeed_Add[],2,FALSE)) -> 100% LOVEGRASS** | D18: =UPPER(VLOOKUP($B18,tSeed_Add[],4,FALSE)) ->  | AA18: =VLOOKUP($B18,tSeed_Add[],9,FALSE)="no" -> TRUE | AB18: 2
B19: B | C19: =UPPER(VLOOKUP($B19,tSeed_Add[],2,FALSE)) -> 100% BARLEY, WINTER RYE, OR WINTER WHEAT | D19: =UPPER(VLOOKUP($B19,tSeed_Add[],4,FALSE)) ->  | AA19: =VLOOKUP($B19,tSeed_Add[],9,FALSE)="no" -> TRUE | AB19: 2
B20: C | C20: =UPPER(VLOOKUP($B20,tSeed_Add[],2,FALSE)) -> 100% FOXTAIL MILLET | D20: =UPPER(VLOOKUP($B20,tSeed_Add[],4,FALSE)) ->  | AA20: =VLOOKUP($B20,tSeed_Add[],9,FALSE)="no" -> TRUE | AB20: 2
B21: D | C21: =UPPER(VLOOKUP($B21,tSeed_Add[],2,FALSE)) -> 100% ANNUAL RYEGRASS | D21: =UPPER(VLOOKUP($B21,tSeed_Add[],4,FALSE)) ->  | AA21: =VLOOKUP($B21,tSeed_Add[],9,FALSE)="no" -> TRUE | AB21: 2
B22: E | C22: =UPPER(VLOOKUP($B22,tSeed_Add[],2,FALSE)) -> 100% BLUE GRAMA | D22: =UPPER(VLOOKUP($B22,tSeed_Add[],4,FALSE)) ->  | AA22: =VLOOKUP($B22,tSeed_Add[],9,FALSE)="no" -> TRUE | AB22: 2
B23: F | C23: =UPPER(VLOOKUP($B23,tSeed_Add[],2,FALSE)) -> 100% ALFALFA | D23: =UPPER(VLOOKUP($B23,tSeed_Add[],4,FALSE)) ->  | AA23: =VLOOKUP($B23,tSeed_Add[],9,FALSE)="no" -> TRUE | AB23: 2
B24: G | C24: =UPPER(VLOOKUP($B24,tSeed_Add[],2,FALSE)) -> 100% WHITE CLOVER | D24: =UPPER(VLOOKUP($B24,tSeed_Add[],4,FALSE)) ->  | AA24: =VLOOKUP($B24,tSeed_Add[],9,FALSE)="no" -> TRUE | AB24: 2
B25: H | C25: =UPPER(VLOOKUP($B25,tSeed_Add[],2,FALSE)) -> 100% CROWN VETCH (LEGUME)** | D25: =UPPER(VLOOKUP($B25,tSeed_Add[],4,FALSE)) ->  | AA25: =VLOOKUP($B25,tSeed_Add[],9,FALSE)="no" -> TRUE | AB25: 2
B26: I | C26: =UPPER(VLOOKUP($B26,tSeed_Add[],2,FALSE)) -> 100% SERICEA LESPEDEZA (LEGUME)** | D26: =UPPER(VLOOKUP($B26,tSeed_Add[],4,FALSE)) ->  | AA26: =VLOOKUP($B26,tSeed_Add[],9,FALSE)="no" -> TRUE | AB26: 2
B27: J | C27: =UPPER(VLOOKUP($B27,tSeed_Add[],2,FALSE)) -> 100% BIRDSFOOT TREFOIL (LEGUME)** | D27: =UPPER(VLOOKUP($B27,tSeed_Add[],4,FALSE)) ->  | AA27: =VLOOKUP($B27,tSeed_Add[],9,FALSE)="no" -> TRUE | AB27: 2
B28: K | C28: =UPPER(VLOOKUP($B28,tSeed_Add[],2,FALSE)) -> POLLINATOR SEED MIX | D28: =UPPER(VLOOKUP($B28,tSeed_Add[],4,FALSE)) ->  | AA28: =VLOOKUP($B28,tSeed_Add[],9,FALSE)="no" -> TRUE | AB28: 2
B29: L | C29: =UPPER(VLOOKUP($B29,tSeed_Add[],2,FALSE)) ->  | D29: =UPPER(VLOOKUP($B29,tSeed_Add[],4,FALSE)) ->  | AA29: =VLOOKUP($B29,tSeed_Add[],9,FALSE)="no" -> TRUE | AB29: 2
B30: M | C30: =UPPER(VLOOKUP($B30,tSeed_Add[],2,FALSE)) ->  | D30: =UPPER(VLOOKUP($B30,tSeed_Add[],4,FALSE)) ->  | AA30: =VLOOKUP($B30,tSeed_Add[],9,FALSE)="no" -> TRUE | AB30: 2
B31: N | C31: =UPPER(VLOOKUP($B31,tSeed_Add[],2,FALSE)) ->  | D31: =UPPER(VLOOKUP($B31,tSeed_Add[],4,FALSE)) ->  | AA31: =VLOOKUP($B31,tSeed_Add[],9,FALSE)="no" -> TRUE | AB31: 2
B32: O | C32: =UPPER(VLOOKUP($B32,tSeed_Add[],2,FALSE)) ->  | D32: =UPPER(VLOOKUP($B32,tSeed_Add[],4,FALSE)) ->  | AA32: =VLOOKUP($B32,tSeed_Add[],9,FALSE)="no" -> TRUE | AB32: 2
B33: =IF(OR(COUNTIFS(tSeed_Add[Selected?],"Yes",tSeed_Add[Slope Restricted?],"Yes")>0,rSeedShown="All"),"**:","") ->  | C33: =IF(OR(COUNTIFS(tSeed_Add[Selected?],"Yes",tSeed_Add[Slope Restricted?],"Yes")>0,rSeedShown="All"),"THESE ADDITIVES ARE NOT TO BE USED IN AREAS THAT WILL BE MOWED (SLOPES FLATTER THAN OR EQUAL TO 3:1)","") ->  | AA33: =AND(B33="",rSeedShown="Used") -> TRUE | AB33: 2
AA34: =COUNTIF(tSeed_Add[Selected?],"yes")<1 -> TRUE | AB34: 2
C35: =IF('Seed Rate Selection'!C4=1,"CUSTOM SEED MIX",IF('Seed Rate Selection'!C4>1,"CUSTOM SEED MIXES","")) ->  | AA35: =OR(LEFT('Seed Rate Selection'!$C$3,1)="n",ISBLANK('Seed Rate Selection'!$C$3)) -> TRUE | AB35: 3
B36: PERCENT | C36: =UPPER('Seed Rate Selection'!C55) -> CUSTOM MIX CODE: | D36: ='Seed Rate Selection'!D55 -> C1 | AA36: ='Seed Rate Selection'!$C$4<1 -> TRUE | AB36: 3
B37: OF | C37: =UPPER('Seed Rate Selection'!C56) -> APPLICATION RATE (LBS/AC): | D37: ='Seed Rate Selection'!D56 -> 0 | E37: =IF(AND('Seed Rate Selection'!$C$4>=1,D37<1),"Please Check Entries for Custom Seed Mix 1 on the Seed Lists Page","") ->  | AA37: ='Seed Rate Selection'!$C$4<1 -> TRUE | AB37: 3
B38: MIX | C38: =UPPER('Seed Rate Selection'!C57) -> SEED NAME | D38: =UPPER('Seed Rate Selection'!D57) -> LBS/ACRE | AA38: ='Seed Rate Selection'!$C$4<1 -> TRUE | AB38: 3
A39: 1 | B39: =IF(ISBLANK(INDEX(tSeed_Custom1[% Of Mix],$A39)),"",INDEX(tSeed_Custom1[% Of Mix],$A39)) -> 0 | C39: =IF(ISBLANK(INDEX(tSeed_Custom1[Seed Name],$A39)),"",UPPER(INDEX(tSeed_Custom1[Seed Name],$A39))) ->  | D39: =IF(ISBLANK(INDEX(tSeed_Custom1[Lbs/Acre],$A39)),"",INDEX(tSeed_Custom1[Lbs/Acre],$A39)) ->  | E39: =IF(OR(COUNTIF(C39:D39,"")=1,AND(COUNTIF(C39:D39,"")<2,'Seed Rate Selection'!$C$4<1)),"Please Check Entries for Custom Seed Mix 1 on the Seed Lists Page","") ->  | AA39: =AND(C39="",D39="") -> TRUE | AB39: 3
A40: 2 | B40: =IF(ISBLANK(INDEX(tSeed_Custom1[% Of Mix],$A40)),"",INDEX(tSeed_Custom1[% Of Mix],$A40)) -> 0 | C40: =IF(ISBLANK(INDEX(tSeed_Custom1[Seed Name],$A40)),"",UPPER(INDEX(tSeed_Custom1[Seed Name],$A40))) ->  | D40: =IF(ISBLANK(INDEX(tSeed_Custom1[Lbs/Acre],$A40)),"",INDEX(tSeed_Custom1[Lbs/Acre],$A40)) ->  | E40: =IF(OR(COUNTIF(C40:D40,"")=1,AND(COUNTIF(C40:D40,"")<2,'Seed Rate Selection'!$C$4<1)),"Please Check Entries for Custom Seed Mix 1 on the Seed Lists Page","") ->  | AA40: =AND(C40="",D40="") -> TRUE | AB40: 3
A41: 3 | B41: =IF(ISBLANK(INDEX(tSeed_Custom1[% Of Mix],$A41)),"",INDEX(tSeed_Custom1[% Of Mix],$A41)) -> 0 | C41: =IF(ISBLANK(INDEX(tSeed_Custom1[Seed Name],$A41)),"",UPPER(INDEX(tSeed_Custom1[Seed Name],$A41))) ->  | D41: =IF(ISBLANK(INDEX(tSeed_Custom1[Lbs/Acre],$A41)),"",INDEX(tSeed_Custom1[Lbs/Acre],$A41)) ->  | E41: =IF(OR(COUNTIF(C41:D41,"")=1,AND(COUNTIF(C41:D41,"")<2,'Seed Rate Selection'!$C$4<1)),"Please Check Entries for Custom Seed Mix 1 on the Seed Lists Page","") ->  | AA41: TRUE | AB41: 3
A42: 4 | B42: =IF(ISBLANK(INDEX(tSeed_Custom1[% Of Mix],$A42)),"",INDEX(tSeed_Custom1[% Of Mix],$A42)) -> 0 | C42: =IF(ISBLANK(INDEX(tSeed_Custom1[Seed Name],$A42)),"",UPPER(INDEX(tSeed_Custom1[Seed Name],$A42))) ->  | D42: =IF(ISBLANK(INDEX(tSeed_Custom1[Lbs/Acre],$A42)),"",INDEX(tSeed_Custom1[Lbs/Acre],$A42)) ->  | E42: =IF(OR(COUNTIF(C42:D42,"")=1,AND(COUNTIF(C42:D42,"")<2,'Seed Rate Selection'!$C$4<1)),"Please Check Entries for Custom Seed Mix 1 on the Seed Lists Page","") ->  | AA42: TRUE | AB42: 3
A43: 5 | B43: =IF(ISBLANK(INDEX(tSeed_Custom1[% Of Mix],$A43)),"",INDEX(tSeed_Custom1[% Of Mix],$A43)) -> 0 | C43: =IF(ISBLANK(INDEX(tSeed_Custom1[Seed Name],$A43)),"",UPPER(INDEX(tSeed_Custom1[Seed Name],$A43))) ->  | D43: =IF(ISBLANK(INDEX(tSeed_Custom1[Lbs/Acre],$A43)),"",INDEX(tSeed_Custom1[Lbs/Acre],$A43)) ->  | E43: =IF(OR(COUNTIF(C43:D43,"")=1,AND(COUNTIF(C43:D43,"")<2,'Seed Rate Selection'!$C$4<1)),"Please Check Entries for Custom Seed Mix 1 on the Seed Lists Page","") ->  | AA43: TRUE | AB43: 3
A44: 6 | B44: =IF(ISBLANK(INDEX(tSeed_Custom1[% Of Mix],$A44)),"",INDEX(tSeed_Custom1[% Of Mix],$A44)) -> 0 | C44: =IF(ISBLANK(INDEX(tSeed_Custom1[Seed Name],$A44)),"",UPPER(INDEX(tSeed_Custom1[Seed Name],$A44))) ->  | D44: =IF(ISBLANK(INDEX(tSeed_Custom1[Lbs/Acre],$A44)),"",INDEX(tSeed_Custom1[Lbs/Acre],$A44)) ->  | E44: =IF(OR(COUNTIF(C44:D44,"")=1,AND(COUNTIF(C44:D44,"")<2,'Seed Rate Selection'!$C$4<1)),"Please Check Entries for Custom Seed Mix 1 on the Seed Lists Page","") ->  | AA44: TRUE | AB44: 3
A45: 7 | B45: =IF(ISBLANK(INDEX(tSeed_Custom1[% Of Mix],$A45)),"",INDEX(tSeed_Custom1[% Of Mix],$A45)) -> 0 | C45: =IF(ISBLANK(INDEX(tSeed_Custom1[Seed Name],$A45)),"",UPPER(INDEX(tSeed_Custom1[Seed Name],$A45))) ->  | D45: =IF(ISBLANK(INDEX(tSeed_Custom1[Lbs/Acre],$A45)),"",INDEX(tSeed_Custom1[Lbs/Acre],$A45)) ->  | E45: =IF(OR(COUNTIF(C45:D45,"")=1,AND(COUNTIF(C45:D45,"")<2,'Seed Rate Selection'!$C$4<1)),"Please Check Entries for Custom Seed Mix 1 on the Seed Lists Page","") ->  | AA45: TRUE | AB45: 3
A46: 8 | B46: =IF(ISBLANK(INDEX(tSeed_Custom1[% Of Mix],$A46)),"",INDEX(tSeed_Custom1[% Of Mix],$A46)) -> 0 | C46: =IF(ISBLANK(INDEX(tSeed_Custom1[Seed Name],$A46)),"",UPPER(INDEX(tSeed_Custom1[Seed Name],$A46))) ->  | D46: =IF(ISBLANK(INDEX(tSeed_Custom1[Lbs/Acre],$A46)),"",INDEX(tSeed_Custom1[Lbs/Acre],$A46)) ->  | E46: =IF(OR(COUNTIF(C46:D46,"")=1,AND(COUNTIF(C46:D46,"")<2,'Seed Rate Selection'!$C$4<1)),"Please Check Entries for Custom Seed Mix 1 on the Seed Lists Page","") ->  | AA46: TRUE | AB46: 3
A47: 9 | B47: =IF(ISBLANK(INDEX(tSeed_Custom1[% Of Mix],$A47)),"",INDEX(tSeed_Custom1[% Of Mix],$A47)) -> 0 | C47: =IF(ISBLANK(INDEX(tSeed_Custom1[Seed Name],$A47)),"",UPPER(INDEX(tSeed_Custom1[Seed Name],$A47))) ->  | D47: =IF(ISBLANK(INDEX(tSeed_Custom1[Lbs/Acre],$A47)),"",INDEX(tSeed_Custom1[Lbs/Acre],$A47)) ->  | E47: =IF(OR(COUNTIF(C47:D47,"")=1,AND(COUNTIF(C47:D47,"")<2,'Seed Rate Selection'!$C$4<1)),"Please Check Entries for Custom Seed Mix 1 on the Seed Lists Page","") ->  | AA47: TRUE | AB47: 3
A48: 10 | B48: =IF(ISBLANK(INDEX(tSeed_Custom1[% Of Mix],$A48)),"",INDEX(tSeed_Custom1[% Of Mix],$A48)) -> 0 | C48: =IF(ISBLANK(INDEX(tSeed_Custom1[Seed Name],$A48)),"",UPPER(INDEX(tSeed_Custom1[Seed Name],$A48))) ->  | D48: =IF(ISBLANK(INDEX(tSeed_Custom1[Lbs/Acre],$A48)),"",INDEX(tSeed_Custom1[Lbs/Acre],$A48)) ->  | E48: =IF(OR(COUNTIF(C48:D48,"")=1,AND(COUNTIF(C48:D48,"")<2,'Seed Rate Selection'!$C$4<1)),"Please Check Entries for Custom Seed Mix 1 on the Seed Lists Page","") ->  | AA48: TRUE | AB48: 3
A49: 11 | B49: =IF(ISBLANK(INDEX(tSeed_Custom1[% Of Mix],$A49)),"",INDEX(tSeed_Custom1[% Of Mix],$A49)) -> 0 | C49: =IF(ISBLANK(INDEX(tSeed_Custom1[Seed Name],$A49)),"",UPPER(INDEX(tSeed_Custom1[Seed Name],$A49))) ->  | D49: =IF(ISBLANK(INDEX(tSeed_Custom1[Lbs/Acre],$A49)),"",INDEX(tSeed_Custom1[Lbs/Acre],$A49)) ->  | E49: =IF(OR(COUNTIF(C49:D49,"")=1,AND(COUNTIF(C49:D49,"")<2,'Seed Rate Selection'!$C$4<1)),"Please Check Entries for Custom Seed Mix 1 on the Seed Lists Page","") ->  | AA49: TRUE | AB49: 3
A50: 12 | B50: =IF(ISBLANK(INDEX(tSeed_Custom1[% Of Mix],$A50)),"",INDEX(tSeed_Custom1[% Of Mix],$A50)) -> 0 | C50: =IF(ISBLANK(INDEX(tSeed_Custom1[Seed Name],$A50)),"",UPPER(INDEX(tSeed_Custom1[Seed Name],$A50))) ->  | D50: =IF(ISBLANK(INDEX(tSeed_Custom1[Lbs/Acre],$A50)),"",INDEX(tSeed_Custom1[Lbs/Acre],$A50)) ->  | E50: =IF(OR(COUNTIF(C50:D50,"")=1,AND(COUNTIF(C50:D50,"")<2,'Seed Rate Selection'!$C$4<1)),"Please Check Entries for Custom Seed Mix 1 on the Seed Lists Page","") ->  | AA50: TRUE | AB50: 3
A51: 13 | B51: =IF(ISBLANK(INDEX(tSeed_Custom1[% Of Mix],$A51)),"",INDEX(tSeed_Custom1[% Of Mix],$A51)) -> 0 | C51: =IF(ISBLANK(INDEX(tSeed_Custom1[Seed Name],$A51)),"",UPPER(INDEX(tSeed_Custom1[Seed Name],$A51))) ->  | D51: =IF(ISBLANK(INDEX(tSeed_Custom1[Lbs/Acre],$A51)),"",INDEX(tSeed_Custom1[Lbs/Acre],$A51)) ->  | E51: =IF(OR(COUNTIF(C51:D51,"")=1,AND(COUNTIF(C51:D51,"")<2,'Seed Rate Selection'!$C$4<1)),"Please Check Entries for Custom Seed Mix 1 on the Seed Lists Page","") ->  | AA51: TRUE | AB51: 3
A52: 14 | B52: =IF(ISBLANK(INDEX(tSeed_Custom1[% Of Mix],$A52)),"",INDEX(tSeed_Custom1[% Of Mix],$A52)) -> 0 | C52: =IF(ISBLANK(INDEX(tSeed_Custom1[Seed Name],$A52)),"",UPPER(INDEX(tSeed_Custom1[Seed Name],$A52))) ->  | D52: =IF(ISBLANK(INDEX(tSeed_Custom1[Lbs/Acre],$A52)),"",INDEX(tSeed_Custom1[Lbs/Acre],$A52)) ->  | E52: =IF(OR(COUNTIF(C52:D52,"")=1,AND(COUNTIF(C52:D52,"")<2,'Seed Rate Selection'!$C$4<1)),"Please Check Entries for Custom Seed Mix 1 on the Seed Lists Page","") ->  | AA52: TRUE | AB52: 3
A53: 15 | B53: =IF(ISBLANK(INDEX(tSeed_Custom1[% Of Mix],$A53)),"",INDEX(tSeed_Custom1[% Of Mix],$A53)) -> 0 | C53: =IF(ISBLANK(INDEX(tSeed_Custom1[Seed Name],$A53)),"",UPPER(INDEX(tSeed_Custom1[Seed Name],$A53))) ->  | D53: =IF(ISBLANK(INDEX(tSeed_Custom1[Lbs/Acre],$A53)),"",INDEX(tSeed_Custom1[Lbs/Acre],$A53)) ->  | E53: =IF(OR(COUNTIF(C53:D53,"")=1,AND(COUNTIF(C53:D53,"")<2,'Seed Rate Selection'!$C$4<1)),"Please Check Entries for Custom Seed Mix 1 on the Seed Lists Page","") ->  | AA53: TRUE | AB53: 3
AA54: ='Seed Rate Selection'!$C$4<1 -> TRUE | AB54: 3
B55: PERCENT | C55: =UPPER('Seed Rate Selection'!C74) -> CUSTOM MIX CODE: | D55: ='Seed Rate Selection'!D74 -> C2 | AA55: ='Seed Rate Selection'!$C$4<2 -> TRUE | AB55: 4
B56: OF | C56: =UPPER('Seed Rate Selection'!C75) -> APPLICATION RATE (LBS/AC): | D56: ='Seed Rate Selection'!D75 -> 0 | E56: =IF(AND('Seed Rate Selection'!$C$4>=2,D56<1),"Please Check Entries for Custom Seed Mix 2 on the Seed Lists Page","") ->  | AA56: ='Seed Rate Selection'!$C$4<2 -> TRUE | AB56: 4
B57: MIX | C57: =UPPER('Seed Rate Selection'!C76) -> SEED NAME | D57: =UPPER('Seed Rate Selection'!D76) -> LBS/ACRE | AA57: ='Seed Rate Selection'!$C$4<2 -> TRUE | AB57: 4
A58: 1 | B58: =IF(ISBLANK(INDEX(tSeed_Custom2[% Of Mix],$A58)),"",INDEX(tSeed_Custom2[% Of Mix],$A58)) -> 0 | C58: =IF(ISBLANK(INDEX(tSeed_Custom2[Seed Name],$A58)),"",UPPER(INDEX(tSeed_Custom2[Seed Name],$A58))) ->  | D58: =IF(ISBLANK(INDEX(tSeed_Custom2[Lbs/Acre],$A58)),"",INDEX(tSeed_Custom2[Lbs/Acre],$A58)) ->  | E58: =IF(OR(COUNTIF(C58:D58,"")=1,AND(COUNTIF(C58:D58,"")<2,'Seed Rate Selection'!$C$4<2)),"Please Check Entries for Custom Seed Mix 2 on the Seed Lists Page","") ->  | AA58: =AND(C58="",D58="") -> TRUE | AB58: 4
A59: 2 | B59: =IF(ISBLANK(INDEX(tSeed_Custom2[% Of Mix],$A59)),"",INDEX(tSeed_Custom2[% Of Mix],$A59)) -> 0 | C59: =IF(ISBLANK(INDEX(tSeed_Custom2[Seed Name],$A59)),"",UPPER(INDEX(tSeed_Custom2[Seed Name],$A59))) ->  | D59: =IF(ISBLANK(INDEX(tSeed_Custom2[Lbs/Acre],$A59)),"",INDEX(tSeed_Custom2[Lbs/Acre],$A59)) ->  | E59: =IF(OR(COUNTIF(C59:D59,"")=1,AND(COUNTIF(C59:D59,"")<2,'Seed Rate Selection'!$C$4<2)),"Please Check Entries for Custom Seed Mix 2 on the Seed Lists Page","") ->  | AA59: =AND(C59="",D59="") -> TRUE | AB59: 4
A60: 3 | B60: =IF(ISBLANK(INDEX(tSeed_Custom2[% Of Mix],$A60)),"",INDEX(tSeed_Custom2[% Of Mix],$A60)) -> 0 | C60: =IF(ISBLANK(INDEX(tSeed_Custom2[Seed Name],$A60)),"",UPPER(INDEX(tSeed_Custom2[Seed Name],$A60))) ->  | D60: =IF(ISBLANK(INDEX(tSeed_Custom2[Lbs/Acre],$A60)),"",INDEX(tSeed_Custom2[Lbs/Acre],$A60)) ->  | E60: =IF(OR(COUNTIF(C60:D60,"")=1,AND(COUNTIF(C60:D60,"")<2,'Seed Rate Selection'!$C$4<2)),"Please Check Entries for Custom Seed Mix 2 on the Seed Lists Page","") ->  | AA60: TRUE | AB60: 4
A61: 4 | B61: =IF(ISBLANK(INDEX(tSeed_Custom2[% Of Mix],$A61)),"",INDEX(tSeed_Custom2[% Of Mix],$A61)) -> 0 | C61: =IF(ISBLANK(INDEX(tSeed_Custom2[Seed Name],$A61)),"",UPPER(INDEX(tSeed_Custom2[Seed Name],$A61))) ->  | D61: =IF(ISBLANK(INDEX(tSeed_Custom2[Lbs/Acre],$A61)),"",INDEX(tSeed_Custom2[Lbs/Acre],$A61)) ->  | E61: =IF(OR(COUNTIF(C61:D61,"")=1,AND(COUNTIF(C61:D61,"")<2,'Seed Rate Selection'!$C$4<2)),"Please Check Entries for Custom Seed Mix 2 on the Seed Lists Page","") ->  | AA61: TRUE | AB61: 4
A62: 5 | B62: =IF(ISBLANK(INDEX(tSeed_Custom2[% Of Mix],$A62)),"",INDEX(tSeed_Custom2[% Of Mix],$A62)) -> 0 | C62: =IF(ISBLANK(INDEX(tSeed_Custom2[Seed Name],$A62)),"",UPPER(INDEX(tSeed_Custom2[Seed Name],$A62))) ->  | D62: =IF(ISBLANK(INDEX(tSeed_Custom2[Lbs/Acre],$A62)),"",INDEX(tSeed_Custom2[Lbs/Acre],$A62)) ->  | E62: =IF(OR(COUNTIF(C62:D62,"")=1,AND(COUNTIF(C62:D62,"")<2,'Seed Rate Selection'!$C$4<2)),"Please Check Entries for Custom Seed Mix 2 on the Seed Lists Page","") ->  | AA62: TRUE | AB62: 4
A63: 6 | B63: =IF(ISBLANK(INDEX(tSeed_Custom2[% Of Mix],$A63)),"",INDEX(tSeed_Custom2[% Of Mix],$A63)) -> 0 | C63: =IF(ISBLANK(INDEX(tSeed_Custom2[Seed Name],$A63)),"",UPPER(INDEX(tSeed_Custom2[Seed Name],$A63))) ->  | D63: =IF(ISBLANK(INDEX(tSeed_Custom2[Lbs/Acre],$A63)),"",INDEX(tSeed_Custom2[Lbs/Acre],$A63)) ->  | E63: =IF(OR(COUNTIF(C63:D63,"")=1,AND(COUNTIF(C63:D63,"")<2,'Seed Rate Selection'!$C$4<2)),"Please Check Entries for Custom Seed Mix 2 on the Seed Lists Page","") ->  | AA63: TRUE | AB63: 4
A64: 7 | B64: =IF(ISBLANK(INDEX(tSeed_Custom2[% Of Mix],$A64)),"",INDEX(tSeed_Custom2[% Of Mix],$A64)) -> 0 | C64: =IF(ISBLANK(INDEX(tSeed_Custom2[Seed Name],$A64)),"",UPPER(INDEX(tSeed_Custom2[Seed Name],$A64))) ->  | D64: =IF(ISBLANK(INDEX(tSeed_Custom2[Lbs/Acre],$A64)),"",INDEX(tSeed_Custom2[Lbs/Acre],$A64)) ->  | E64: =IF(OR(COUNTIF(C64:D64,"")=1,AND(COUNTIF(C64:D64,"")<2,'Seed Rate Selection'!$C$4<2)),"Please Check Entries for Custom Seed Mix 2 on the Seed Lists Page","") ->  | AA64: TRUE | AB64: 4
A65: 8 | B65: =IF(ISBLANK(INDEX(tSeed_Custom2[% Of Mix],$A65)),"",INDEX(tSeed_Custom2[% Of Mix],$A65)) -> 0 | C65: =IF(ISBLANK(INDEX(tSeed_Custom2[Seed Name],$A65)),"",UPPER(INDEX(tSeed_Custom2[Seed Name],$A65))) ->  | D65: =IF(ISBLANK(INDEX(tSeed_Custom2[Lbs/Acre],$A65)),"",INDEX(tSeed_Custom2[Lbs/Acre],$A65)) ->  | E65: =IF(OR(COUNTIF(C65:D65,"")=1,AND(COUNTIF(C65:D65,"")<2,'Seed Rate Selection'!$C$4<2)),"Please Check Entries for Custom Seed Mix 2 on the Seed Lists Page","") ->  | AA65: TRUE | AB65: 4
A66: 9 | B66: =IF(ISBLANK(INDEX(tSeed_Custom2[% Of Mix],$A66)),"",INDEX(tSeed_Custom2[% Of Mix],$A66)) -> 0 | C66: =IF(ISBLANK(INDEX(tSeed_Custom2[Seed Name],$A66)),"",UPPER(INDEX(tSeed_Custom2[Seed Name],$A66))) ->  | D66: =IF(ISBLANK(INDEX(tSeed_Custom2[Lbs/Acre],$A66)),"",INDEX(tSeed_Custom2[Lbs/Acre],$A66)) ->  | E66: =IF(OR(COUNTIF(C66:D66,"")=1,AND(COUNTIF(C66:D66,"")<2,'Seed Rate Selection'!$C$4<2)),"Please Check Entries for Custom Seed Mix 2 on the Seed Lists Page","") ->  | AA66: TRUE | AB66: 4
A67: 10 | B67: =IF(ISBLANK(INDEX(tSeed_Custom2[% Of Mix],$A67)),"",INDEX(tSeed_Custom2[% Of Mix],$A67)) -> 0 | C67: =IF(ISBLANK(INDEX(tSeed_Custom2[Seed Name],$A67)),"",UPPER(INDEX(tSeed_Custom2[Seed Name],$A67))) ->  | D67: =IF(ISBLANK(INDEX(tSeed_Custom2[Lbs/Acre],$A67)),"",INDEX(tSeed_Custom2[Lbs/Acre],$A67)) ->  | E67: =IF(OR(COUNTIF(C67:D67,"")=1,AND(COUNTIF(C67:D67,"")<2,'Seed Rate Selection'!$C$4<2)),"Please Check Entries for Custom Seed Mix 2 on the Seed Lists Page","") ->  | AA67: TRUE | AB67: 4
A68: 11 | B68: =IF(ISBLANK(INDEX(tSeed_Custom2[% Of Mix],$A68)),"",INDEX(tSeed_Custom2[% Of Mix],$A68)) -> 0 | C68: =IF(ISBLANK(INDEX(tSeed_Custom2[Seed Name],$A68)),"",UPPER(INDEX(tSeed_Custom2[Seed Name],$A68))) ->  | D68: =IF(ISBLANK(INDEX(tSeed_Custom2[Lbs/Acre],$A68)),"",INDEX(tSeed_Custom2[Lbs/Acre],$A68)) ->  | E68: =IF(OR(COUNTIF(C68:D68,"")=1,AND(COUNTIF(C68:D68,"")<2,'Seed Rate Selection'!$C$4<2)),"Please Check Entries for Custom Seed Mix 2 on the Seed Lists Page","") ->  | AA68: TRUE | AB68: 4
A69: 12 | B69: =IF(ISBLANK(INDEX(tSeed_Custom2[% Of Mix],$A69)),"",INDEX(tSeed_Custom2[% Of Mix],$A69)) -> 0 | C69: =IF(ISBLANK(INDEX(tSeed_Custom2[Seed Name],$A69)),"",UPPER(INDEX(tSeed_Custom2[Seed Name],$A69))) ->  | D69: =IF(ISBLANK(INDEX(tSeed_Custom2[Lbs/Acre],$A69)),"",INDEX(tSeed_Custom2[Lbs/Acre],$A69)) ->  | E69: =IF(OR(COUNTIF(C69:D69,"")=1,AND(COUNTIF(C69:D69,"")<2,'Seed Rate Selection'!$C$4<2)),"Please Check Entries for Custom Seed Mix 2 on the Seed Lists Page","") ->  | AA69: TRUE | AB69: 4
A70: 13 | B70: =IF(ISBLANK(INDEX(tSeed_Custom2[% Of Mix],$A70)),"",INDEX(tSeed_Custom2[% Of Mix],$A70)) -> 0 | C70: =IF(ISBLANK(INDEX(tSeed_Custom2[Seed Name],$A70)),"",UPPER(INDEX(tSeed_Custom2[Seed Name],$A70))) ->  | D70: =IF(ISBLANK(INDEX(tSeed_Custom2[Lbs/Acre],$A70)),"",INDEX(tSeed_Custom2[Lbs/Acre],$A70)) ->  | E70: =IF(OR(COUNTIF(C70:D70,"")=1,AND(COUNTIF(C70:D70,"")<2,'Seed Rate Selection'!$C$4<2)),"Please Check Entries for Custom Seed Mix 2 on the Seed Lists Page","") ->  | AA70: TRUE | AB70: 4
A71: 14 | B71: =IF(ISBLANK(INDEX(tSeed_Custom2[% Of Mix],$A71)),"",INDEX(tSeed_Custom2[% Of Mix],$A71)) -> 0 | C71: =IF(ISBLANK(INDEX(tSeed_Custom2[Seed Name],$A71)),"",UPPER(INDEX(tSeed_Custom2[Seed Name],$A71))) ->  | D71: =IF(ISBLANK(INDEX(tSeed_Custom2[Lbs/Acre],$A71)),"",INDEX(tSeed_Custom2[Lbs/Acre],$A71)) ->  | E71: =IF(OR(COUNTIF(C71:D71,"")=1,AND(COUNTIF(C71:D71,"")<2,'Seed Rate Selection'!$C$4<2)),"Please Check Entries for Custom Seed Mix 2 on the Seed Lists Page","") ->  | AA71: TRUE | AB71: 4
A72: 15 | B72: =IF(ISBLANK(INDEX(tSeed_Custom2[% Of Mix],$A72)),"",INDEX(tSeed_Custom2[% Of Mix],$A72)) -> 0 | C72: =IF(ISBLANK(INDEX(tSeed_Custom2[Seed Name],$A72)),"",UPPER(INDEX(tSeed_Custom2[Seed Name],$A72))) ->  | D72: =IF(ISBLANK(INDEX(tSeed_Custom2[Lbs/Acre],$A72)),"",INDEX(tSeed_Custom2[Lbs/Acre],$A72)) ->  | E72: =IF(OR(COUNTIF(C72:D72,"")=1,AND(COUNTIF(C72:D72,"")<2,'Seed Rate Selection'!$C$4<2)),"Please Check Entries for Custom Seed Mix 2 on the Seed Lists Page","") ->  | AA72: TRUE | AB72: 4
AA73: ='Seed Rate Selection'!$C$4<2 -> TRUE | AB73: 4
B74: PERCENT | C74: =UPPER('Seed Rate Selection'!C93) -> CUSTOM MIX CODE: | D74: ='Seed Rate Selection'!D93 -> C3 | AA74: ='Seed Rate Selection'!$C$4<3 -> TRUE | AB74: 5
B75: OF | C75: =UPPER('Seed Rate Selection'!C94) -> APPLICATION RATE (LBS/AC): | D75: ='Seed Rate Selection'!D94 -> 0 | E75: =IF(AND('Seed Rate Selection'!$C$4>=3,D75<1),"Please Check Entries for Custom Seed Mix 3 on the Seed Lists Page","") ->  | AA75: ='Seed Rate Selection'!$C$4<3 -> TRUE | AB75: 5
B76: MIX | C76: =UPPER('Seed Rate Selection'!C95) -> SEED NAME | D76: =UPPER('Seed Rate Selection'!D95) -> LBS/ACRE | AA76: ='Seed Rate Selection'!$C$4<3 -> TRUE | AB76: 5
A77: 1 | B77: =IF(ISBLANK(INDEX(tSeed_Custom3[% Of Mix],$A77)),"",INDEX(tSeed_Custom3[% Of Mix],$A77)) -> 0 | C77: =IF(ISBLANK(INDEX(tSeed_Custom3[Seed Name],$A77)),"",UPPER(INDEX(tSeed_Custom3[Seed Name],$A77))) ->  | D77: =IF(ISBLANK(INDEX(tSeed_Custom3[Lbs/Acre],$A77)),"",INDEX(tSeed_Custom3[Lbs/Acre],$A77)) ->  | E77: =IF(OR(COUNTIF(C77:D77,"")=1,AND(COUNTIF(C77:D77,"")<2,'Seed Rate Selection'!$C$4<3)),"Please Check Entries for Custom Seed Mix 3 on the Seed Lists Page","") ->  | AA77: =AND(C77="",D77="") -> TRUE | AB77: 5
A78: 2 | B78: =IF(ISBLANK(INDEX(tSeed_Custom3[% Of Mix],$A78)),"",INDEX(tSeed_Custom3[% Of Mix],$A78)) -> 0 | C78: =IF(ISBLANK(INDEX(tSeed_Custom3[Seed Name],$A78)),"",UPPER(INDEX(tSeed_Custom3[Seed Name],$A78))) ->  | D78: =IF(ISBLANK(INDEX(tSeed_Custom3[Lbs/Acre],$A78)),"",INDEX(tSeed_Custom3[Lbs/Acre],$A78)) ->  | E78: =IF(OR(COUNTIF(C78:D78,"")=1,AND(COUNTIF(C78:D78,"")<2,'Seed Rate Selection'!$C$4<3)),"Please Check Entries for Custom Seed Mix 3 on the Seed Lists Page","") ->  | AA78: =AND(C78="",D78="") -> TRUE | AB78: 5
A79: 3 | B79: =IF(ISBLANK(INDEX(tSeed_Custom3[% Of Mix],$A79)),"",INDEX(tSeed_Custom3[% Of Mix],$A79)) -> 0 | C79: =IF(ISBLANK(INDEX(tSeed_Custom3[Seed Name],$A79)),"",UPPER(INDEX(tSeed_Custom3[Seed Name],$A79))) ->  | D79: =IF(ISBLANK(INDEX(tSeed_Custom3[Lbs/Acre],$A79)),"",INDEX(tSeed_Custom3[Lbs/Acre],$A79)) ->  | E79: =IF(OR(COUNTIF(C79:D79,"")=1,AND(COUNTIF(C79:D79,"")<2,'Seed Rate Selection'!$C$4<3)),"Please Check Entries for Custom Seed Mix 3 on the Seed Lists Page","") ->  | AA79: TRUE | AB79: 5
A80: 4 | B80: =IF(ISBLANK(INDEX(tSeed_Custom3[% Of Mix],$A80)),"",INDEX(tSeed_Custom3[% Of Mix],$A80)) -> 0 | C80: =IF(ISBLANK(INDEX(tSeed_Custom3[Seed Name],$A80)),"",UPPER(INDEX(tSeed_Custom3[Seed Name],$A80))) ->  | D80: =IF(ISBLANK(INDEX(tSeed_Custom3[Lbs/Acre],$A80)),"",INDEX(tSeed_Custom3[Lbs/Acre],$A80)) ->  | E80: =IF(OR(COUNTIF(C80:D80,"")=1,AND(COUNTIF(C80:D80,"")<2,'Seed Rate Selection'!$C$4<3)),"Please Check Entries for Custom Seed Mix 3 on the Seed Lists Page","") ->  | AA80: TRUE | AB80: 5
A81: 5 | B81: =IF(ISBLANK(INDEX(tSeed_Custom3[% Of Mix],$A81)),"",INDEX(tSeed_Custom3[% Of Mix],$A81)) -> 0 | C81: =IF(ISBLANK(INDEX(tSeed_Custom3[Seed Name],$A81)),"",UPPER(INDEX(tSeed_Custom3[Seed Name],$A81))) ->  | D81: =IF(ISBLANK(INDEX(tSeed_Custom3[Lbs/Acre],$A81)),"",INDEX(tSeed_Custom3[Lbs/Acre],$A81)) ->  | E81: =IF(OR(COUNTIF(C81:D81,"")=1,AND(COUNTIF(C81:D81,"")<2,'Seed Rate Selection'!$C$4<3)),"Please Check Entries for Custom Seed Mix 3 on the Seed Lists Page","") ->  | AA81: TRUE | AB81: 5
A82: 6 | B82: =IF(ISBLANK(INDEX(tSeed_Custom3[% Of Mix],$A82)),"",INDEX(tSeed_Custom3[% Of Mix],$A82)) -> 0 | C82: =IF(ISBLANK(INDEX(tSeed_Custom3[Seed Name],$A82)),"",UPPER(INDEX(tSeed_Custom3[Seed Name],$A82))) ->  | D82: =IF(ISBLANK(INDEX(tSeed_Custom3[Lbs/Acre],$A82)),"",INDEX(tSeed_Custom3[Lbs/Acre],$A82)) ->  | E82: =IF(OR(COUNTIF(C82:D82,"")=1,AND(COUNTIF(C82:D82,"")<2,'Seed Rate Selection'!$C$4<3)),"Please Check Entries for Custom Seed Mix 3 on the Seed Lists Page","") ->  | AA82: TRUE | AB82: 5
A83: 7 | B83: =IF(ISBLANK(INDEX(tSeed_Custom3[% Of Mix],$A83)),"",INDEX(tSeed_Custom3[% Of Mix],$A83)) -> 0 | C83: =IF(ISBLANK(INDEX(tSeed_Custom3[Seed Name],$A83)),"",UPPER(INDEX(tSeed_Custom3[Seed Name],$A83))) ->  | D83: =IF(ISBLANK(INDEX(tSeed_Custom3[Lbs/Acre],$A83)),"",INDEX(tSeed_Custom3[Lbs/Acre],$A83)) ->  | E83: =IF(OR(COUNTIF(C83:D83,"")=1,AND(COUNTIF(C83:D83,"")<2,'Seed Rate Selection'!$C$4<3)),"Please Check Entries for Custom Seed Mix 3 on the Seed Lists Page","") ->  | AA83: TRUE | AB83: 5
A84: 8 | B84: =IF(ISBLANK(INDEX(tSeed_Custom3[% Of Mix],$A84)),"",INDEX(tSeed_Custom3[% Of Mix],$A84)) -> 0 | C84: =IF(ISBLANK(INDEX(tSeed_Custom3[Seed Name],$A84)),"",UPPER(INDEX(tSeed_Custom3[Seed Name],$A84))) ->  | D84: =IF(ISBLANK(INDEX(tSeed_Custom3[Lbs/Acre],$A84)),"",INDEX(tSeed_Custom3[Lbs/Acre],$A84)) ->  | E84: =IF(OR(COUNTIF(C84:D84,"")=1,AND(COUNTIF(C84:D84,"")<2,'Seed Rate Selection'!$C$4<3)),"Please Check Entries for Custom Seed Mix 3 on the Seed Lists Page","") ->  | AA84: TRUE | AB84: 5
A85: 9 | B85: =IF(ISBLANK(INDEX(tSeed_Custom3[% Of Mix],$A85)),"",INDEX(tSeed_Custom3[% Of Mix],$A85)) -> 0 | C85: =IF(ISBLANK(INDEX(tSeed_Custom3[Seed Name],$A85)),"",UPPER(INDEX(tSeed_Custom3[Seed Name],$A85))) ->  | D85: =IF(ISBLANK(INDEX(tSeed_Custom3[Lbs/Acre],$A85)),"",INDEX(tSeed_Custom3[Lbs/Acre],$A85)) ->  | E85: =IF(OR(COUNTIF(C85:D85,"")=1,AND(COUNTIF(C85:D85,"")<2,'Seed Rate Selection'!$C$4<3)),"Please Check Entries for Custom Seed Mix 3 on the Seed Lists Page","") ->  | AA85: TRUE | AB85: 5
A86: 10 | B86: =IF(ISBLANK(INDEX(tSeed_Custom3[% Of Mix],$A86)),"",INDEX(tSeed_Custom3[% Of Mix],$A86)) -> 0 | C86: =IF(ISBLANK(INDEX(tSeed_Custom3[Seed Name],$A86)),"",UPPER(INDEX(tSeed_Custom3[Seed Name],$A86))) ->  | D86: =IF(ISBLANK(INDEX(tSeed_Custom3[Lbs/Acre],$A86)),"",INDEX(tSeed_Custom3[Lbs/Acre],$A86)) ->  | E86: =IF(OR(COUNTIF(C86:D86,"")=1,AND(COUNTIF(C86:D86,"")<2,'Seed Rate Selection'!$C$4<3)),"Please Check Entries for Custom Seed Mix 3 on the Seed Lists Page","") ->  | AA86: TRUE | AB86: 5
A87: 11 | B87: =IF(ISBLANK(INDEX(tSeed_Custom3[% Of Mix],$A87)),"",INDEX(tSeed_Custom3[% Of Mix],$A87)) -> 0 | C87: =IF(ISBLANK(INDEX(tSeed_Custom3[Seed Name],$A87)),"",UPPER(INDEX(tSeed_Custom3[Seed Name],$A87))) ->  | D87: =IF(ISBLANK(INDEX(tSeed_Custom3[Lbs/Acre],$A87)),"",INDEX(tSeed_Custom3[Lbs/Acre],$A87)) ->  | E87: =IF(OR(COUNTIF(C87:D87,"")=1,AND(COUNTIF(C87:D87,"")<2,'Seed Rate Selection'!$C$4<3)),"Please Check Entries for Custom Seed Mix 3 on the Seed Lists Page","") ->  | AA87: TRUE | AB87: 5
A88: 12 | B88: =IF(ISBLANK(INDEX(tSeed_Custom3[% Of Mix],$A88)),"",INDEX(tSeed_Custom3[% Of Mix],$A88)) -> 0 | C88: =IF(ISBLANK(INDEX(tSeed_Custom3[Seed Name],$A88)),"",UPPER(INDEX(tSeed_Custom3[Seed Name],$A88))) ->  | D88: =IF(ISBLANK(INDEX(tSeed_Custom3[Lbs/Acre],$A88)),"",INDEX(tSeed_Custom3[Lbs/Acre],$A88)) ->  | E88: =IF(OR(COUNTIF(C88:D88,"")=1,AND(COUNTIF(C88:D88,"")<2,'Seed Rate Selection'!$C$4<3)),"Please Check Entries for Custom Seed Mix 3 on the Seed Lists Page","") ->  | AA88: TRUE | AB88: 5
A89: 13 | B89: =IF(ISBLANK(INDEX(tSeed_Custom3[% Of Mix],$A89)),"",INDEX(tSeed_Custom3[% Of Mix],$A89)) -> 0 | C89: =IF(ISBLANK(INDEX(tSeed_Custom3[Seed Name],$A89)),"",UPPER(INDEX(tSeed_Custom3[Seed Name],$A89))) ->  | D89: =IF(ISBLANK(INDEX(tSeed_Custom3[Lbs/Acre],$A89)),"",INDEX(tSeed_Custom3[Lbs/Acre],$A89)) ->  | E89: =IF(OR(COUNTIF(C89:D89,"")=1,AND(COUNTIF(C89:D89,"")<2,'Seed Rate Selection'!$C$4<3)),"Please Check Entries for Custom Seed Mix 3 on the Seed Lists Page","") ->  | AA89: TRUE | AB89: 5
A90: 14 | B90: =IF(ISBLANK(INDEX(tSeed_Custom3[% Of Mix],$A90)),"",INDEX(tSeed_Custom3[% Of Mix],$A90)) -> 0 | C90: =IF(ISBLANK(INDEX(tSeed_Custom3[Seed Name],$A90)),"",UPPER(INDEX(tSeed_Custom3[Seed Name],$A90))) ->  | D90: =IF(ISBLANK(INDEX(tSeed_Custom3[Lbs/Acre],$A90)),"",INDEX(tSeed_Custom3[Lbs/Acre],$A90)) ->  | E90: =IF(OR(COUNTIF(C90:D90,"")=1,AND(COUNTIF(C90:D90,"")<2,'Seed Rate Selection'!$C$4<3)),"Please Check Entries for Custom Seed Mix 3 on the Seed Lists Page","") ->  | AA90: TRUE | AB90: 5
A91: 15 | B91: =IF(ISBLANK(INDEX(tSeed_Custom3[% Of Mix],$A91)),"",INDEX(tSeed_Custom3[% Of Mix],$A91)) -> 0 | C91: =IF(ISBLANK(INDEX(tSeed_Custom3[Seed Name],$A91)),"",UPPER(INDEX(tSeed_Custom3[Seed Name],$A91))) ->  | D91: =IF(ISBLANK(INDEX(tSeed_Custom3[Lbs/Acre],$A91)),"",INDEX(tSeed_Custom3[Lbs/Acre],$A91)) ->  | E91: =IF(OR(COUNTIF(C91:D91,"")=1,AND(COUNTIF(C91:D91,"")<2,'Seed Rate Selection'!$C$4<3)),"Please Check Entries for Custom Seed Mix 3 on the Seed Lists Page","") ->  | AA91: TRUE | AB91: 5
AA92: ='Seed Rate Selection'!$C$4<3 -> TRUE | AB92: 5

Sheet Roadside Summary (hidden)
M2: CODES LISTED IN THIS TABLE REFER TO THE LISTS OF CORE MIXES & ADDITIVES, WHICH SHOW SEED NAMES & APPLICATION RATES FOR THIS PROJECT. | N2: SEEDING SCHEDULE
N3: SLOPES | O3: MOWED | P3: =N3 -> SLOPES | Q3: =O3 -> MOWED | R3: SLOPES | S3: MOWED | T3: SLOPES | U3: MOWED
A4: ROADSIDE DEVELOPMENT SUMMARY | N4: SEED MIX | O4: =N4 -> SEED MIX | P4: =N4 -> SEED MIX | Q4: SEED MIX | R4: SEED MIX | S4: SEED MIX | T4: SEED MIX | U4: SEED MIX
A5: PROJECT NUMBERS AND/OR LOCATION DESC. | B5: REGULAR SEED | C5: OVER SEEDING | D5: LEGUME SEED | E5: LEGUME | F5: TEMPORARY SEED | G5: =IF(LEFT(ansTopsoil)="n","NO TOPSOIL SPECIFIED",iTopsoilDepth&""" TOPSOIL"&CHAR(10)&"CLASS "&UPPER(sTopsoilClass)) -> " TOPSOIL CLASS | H5: LIME | J5: FERTILIZER | N5: WITH | O5: =N5 -> WITH | P5: WITH | Q5: WITH | R5: WITH | S5: WITH | T5: WITH | U5: WITH
E6: OVER | I6: N | J6: P | K6: K | N6: ADDITIVE | O6: =N6 -> ADDITIVE | P6: ADDITIVE | Q6: ADDITIVE | R6: ADDITIVE | S6: ADDITIVE | T6: ADDITIVE | U6: ADDITIVE
E7: SEEDING | I7: NITROGEN | J7: PHOSPHORUS | K7: POTASSIUM | N7: SPRING | P7: SUMMER | R7: FALL | T7: DORMANT
B8: LBS. | C8: LBS. | D8: LBS. | E8: LBS. | F8: LBS. | G8: =IF(LEFT(ansTopsoil)="n","","ACRES") -> ACRES | H8: TONS | I8: LBS. | J8: LBS. | K8: LBS. | M8: PROJECT NUMBERS | N8: MONTH & DATE | P8: MONTH & DATE | R8: MONTH & DATE | T8: MONTH & DATE
A9: ='Start Page'!$D$3 -> 0 | B9: =IF(iNumMixes<2,'Seed Mix Selection'!$J$58-'Seed Mix Selection'!$I$58,"SEE") -> 0 | C9: =IF(iNumMixes<2,'Seed Mix Selection'!$J$58-B9,"BREAK") -> 0 | D9: =IF(iNumMixes<2,'Seed Mix Selection'!$J$64-'Seed Mix Selection'!$I$64,"DOWN") -> 0 | E9: =IF(iNumMixes<2,'Seed Mix Selection'!$J$64-D9,"BELOW") -> 0 | F9: ='Seed Mix Selection'!C72 -> 0 | G9: =IF(LEFT(ansTopsoil)="n","",Area_Soil) -> 0 | H9: =IF(ansDefault="Custom",'Lab Analysis Summary'!E35,'Nutrient Rates'!D8+'Nutrient Rates'!H8) -> 0 | I9: =ROUND(IF(ansDefault="Custom",'Lab Analysis Summary'!B35,'Nutrient Rates'!E8),0) -> 0 | J9: =ROUND(IF(ansDefault="Custom",'Lab Analysis Summary'!C35,'Nutrient Rates'!F8),0) -> 0 | K9: =ROUND(IF(ansDefault="Custom",'Lab Analysis Summary'!D35,'Nutrient Rates'!G8),0) -> 0 | M9: AND/OR LOCATION | N9: =VLOOKUP(ansRegion,tPlantTimes[],2,FALSE) ->  | P9: =VLOOKUP(ansRegion,tPlantTimes[],3,FALSE) ->  | R9: =VLOOKUP(ansRegion,tPlantTimes[],4,FALSE) ->  | T9: =VLOOKUP(ansRegion,tPlantTimes[],5,FALSE) -> 
A10: =IF(iNumMixes=1,"",'Start Page'!$G$26) -> 0 | B10: =IF(iNumMixes<2,"",'Seed Mix Selection'!$J58-'Seed Mix Selection'!$I58) ->  | C10: =IF(iNumMixes<2,"",'Seed Mix Selection'!$J58-B10) ->  | D10: =IF(iNumMixes<2,"",'Seed Mix Selection'!$J64-'Seed Mix Selection'!$I64) ->  | E10: =IF(iNumMixes<2,"",'Seed Mix Selection'!$J64-D10) ->  | M10: =IF(iNumMixes=1,'Start Page'!$D$3,'Start Page'!$G$26) -> 0 | N10: =OFFSET(rSMS_CM1,0,1) -> () | O10: =OFFSET(rSMS_CM1,0,2) -> () | P10: =OFFSET(rSMS_CM1,0,3) -> () | Q10: =OFFSET(rSMS_CM1,0,4) -> () | R10: =OFFSET(rSMS_CM1,0,5) -> () | S10: =OFFSET(rSMS_CM1,0,6) -> () | T10: =OFFSET(rSMS_CM1,0,7) -> () | U10: =OFFSET(rSMS_CM1,0,8) -> ()
A11: =IF(iNumMixes<2,"",'Start Page'!$G$39) ->  | B11: =IF(iNumMixes<2,"",'Seed Mix Selection'!$J59-'Seed Mix Selection'!$I59) ->  | C11: =IF(iNumMixes<2,"",'Seed Mix Selection'!$J59-B11) ->  | D11: =IF(iNumMixes<2,"",'Seed Mix Selection'!$J65-'Seed Mix Selection'!$I65) ->  | E11: =IF(iNumMixes<2,"",'Seed Mix Selection'!$J65-D11) ->  | M11: =IF(iNumMixes<2,"",'Start Page'!$G$39) ->  | N11: =IF(iNumMixes<2,"",OFFSET(rSMS_CM2,0,1)) ->  | O11: =IF(iNumMixes<2,"",OFFSET(rSMS_CM2,0,2)) ->  | P11: =IF(iNumMixes<2,"",OFFSET(rSMS_CM2,0,3)) ->  | Q11: =IF(iNumMixes<2,"",OFFSET(rSMS_CM2,0,4)) ->  | R11: =IF(iNumMixes<2,"",OFFSET(rSMS_CM2,0,5)) ->  | S11: =IF(iNumMixes<2,"",OFFSET(rSMS_CM2,0,6)) ->  | T11: =IF(iNumMixes<2,"",OFFSET(rSMS_CM2,0,7)) ->  | U11: =IF(iNumMixes<2,"",OFFSET(rSMS_CM2,0,8)) -> 
A12: =IF(iNumMixes<3,"",'Start Page'!$G$52) ->  | B12: =IF(iNumMixes<3,"",'Seed Mix Selection'!$J60-'Seed Mix Selection'!$I60) ->  | C12: =IF(iNumMixes<3,"",'Seed Mix Selection'!$J60-B12) ->  | D12: =IF(iNumMixes<3,"",'Seed Mix Selection'!$J66-'Seed Mix Selection'!$I66) ->  | E12: =IF(iNumMixes<3,"",'Seed Mix Selection'!$J66-D12) ->  | M12: =IF(iNumMixes<3,"",'Start Page'!$G$52) ->  | N12: =IF(iNumMixes<3,"",OFFSET(rSMS_CM3,0,1)) ->  | O12: =IF(iNumMixes<3,"",OFFSET(rSMS_CM3,0,2)) ->  | P12: =IF(iNumMixes<3,"",OFFSET(rSMS_CM3,0,3)) ->  | Q12: =IF(iNumMixes<3,"",OFFSET(rSMS_CM3,0,4)) ->  | R12: =IF(iNumMixes<3,"",OFFSET(rSMS_CM3,0,5)) ->  | S12: =IF(iNumMixes<3,"",OFFSET(rSMS_CM3,0,6)) ->  | T12: =IF(iNumMixes<3,"",OFFSET(rSMS_CM3,0,7)) ->  | U12: =IF(iNumMixes<3,"",OFFSET(rSMS_CM3,0,8)) -> 
A15: TOTAL | B15: =IF(iNumMixes=1,B$9,SUM(B$10:B$12)) -> 0 | C15: =IF(iNumMixes=1,C$9,SUM(C$10:C$12)) -> 0 | D15: =IF(iNumMixes=1,D$9,SUM(D$10:D$12)) -> 0 | E15: =IF(iNumMixes=1,E$9,SUM(E$10:E$12)) -> 0 | F15: =F9 -> 0 | G15: =IF(LEFT(ansTopsoil)="n","",SUM(G9:G14)) -> 0 | H15: =H9 -> 0 | I15: =I9 -> 0 | J15: =J9 -> 0 | K15: =K9 -> 0
M16: *: SPECIFIED TYPE(S) OF FINE FESCUE:
M17: =IF(LEFT('Seed Mix Selection'!B11,1)="S",IF(iNumMixes=1,'Start Page'!$D$3,'Start Page'!$G$26),"") ->  | N17: =IF('Seed Mix Selection'!C11="","",IF(LEFT('Seed Mix Selection'!C11,5)="Other",'Seed Mix Selection'!C12,'Seed Mix Selection'!C11)) ->  | O17: =IF('Seed Mix Selection'!D11="","",IF(LEFT('Seed Mix Selection'!D11,5)="Other",'Seed Mix Selection'!D12,'Seed Mix Selection'!D11)) ->  | P17: =IF('Seed Mix Selection'!E11="","",IF(LEFT('Seed Mix Selection'!E11,5)="Other",'Seed Mix Selection'!E12,'Seed Mix Selection'!E11)) ->  | Q17: =IF('Seed Mix Selection'!F11="","",IF(LEFT('Seed Mix Selection'!F11,5)="Other",'Seed Mix Selection'!F12,'Seed Mix Selection'!F11)) ->  | R17: =IF('Seed Mix Selection'!G11="","",IF(LEFT('Seed Mix Selection'!G11,5)="Other",'Seed Mix Selection'!G12,'Seed Mix Selection'!G11)) ->  | S17: =IF('Seed Mix Selection'!H11="","",IF(LEFT('Seed Mix Selection'!H11,5)="Other",'Seed Mix Selection'!H12,'Seed Mix Selection'!H11)) ->  | T17: =IF('Seed Mix Selection'!I11="","",IF(LEFT('Seed Mix Selection'!I11,5)="Other",'Seed Mix Selection'!I12,'Seed Mix Selection'!I11)) ->  | U17: =IF('Seed Mix Selection'!J11="","",IF(LEFT('Seed Mix Selection'!J11,5)="Other",'Seed Mix Selection'!J12,'Seed Mix Selection'!J11)) -> 
M18: =IF(LEFT('Seed Mix Selection'!B23,1)="S",IF(iNumMixes<2,"Verify # of Mixes*",'Start Page'!$G$39),"") ->  | N18: =IF('Seed Mix Selection'!C23="","",IF(LEFT('Seed Mix Selection'!C23,5)="Other",'Seed Mix Selection'!C24,'Seed Mix Selection'!C23)) ->  | O18: =IF('Seed Mix Selection'!D23="","",IF(LEFT('Seed Mix Selection'!D23,5)="Other",'Seed Mix Selection'!D24,'Seed Mix Selection'!D23)) ->  | P18: =IF('Seed Mix Selection'!E23="","",IF(LEFT('Seed Mix Selection'!E23,5)="Other",'Seed Mix Selection'!E24,'Seed Mix Selection'!E23)) ->  | Q18: =IF('Seed Mix Selection'!F23="","",IF(LEFT('Seed Mix Selection'!F23,5)="Other",'Seed Mix Selection'!F24,'Seed Mix Selection'!F23)) ->  | R18: =IF('Seed Mix Selection'!G23="","",IF(LEFT('Seed Mix Selection'!G23,5)="Other",'Seed Mix Selection'!G24,'Seed Mix Selection'!G23)) ->  | S18: =IF('Seed Mix Selection'!H23="","",IF(LEFT('Seed Mix Selection'!H23,5)="Other",'Seed Mix Selection'!H24,'Seed Mix Selection'!H23)) ->  | T18: =IF('Seed Mix Selection'!I23="","",IF(LEFT('Seed Mix Selection'!I23,5)="Other",'Seed Mix Selection'!I24,'Seed Mix Selection'!I23)) ->  | U18: =IF('Seed Mix Selection'!J23="","",IF(LEFT('Seed Mix Selection'!J23,5)="Other",'Seed Mix Selection'!J24,'Seed Mix Selection'!J23)) -> 
M19: =IF(LEFT('Seed Mix Selection'!B35,1)="S",IF(iNumMixes<3,"Verify # of Mixes*",'Start Page'!$G$52),"") ->  | N19: =IF('Seed Mix Selection'!C35="","",IF(LEFT('Seed Mix Selection'!C35,5)="Other",'Seed Mix Selection'!C36,'Seed Mix Selection'!C35)) ->  | O19: =IF('Seed Mix Selection'!D35="","",IF(LEFT('Seed Mix Selection'!D35,5)="Other",'Seed Mix Selection'!D36,'Seed Mix Selection'!D35)) ->  | P19: =IF('Seed Mix Selection'!E35="","",IF(LEFT('Seed Mix Selection'!E35,5)="Other",'Seed Mix Selection'!E36,'Seed Mix Selection'!E35)) ->  | Q19: =IF('Seed Mix Selection'!F35="","",IF(LEFT('Seed Mix Selection'!F35,5)="Other",'Seed Mix Selection'!F36,'Seed Mix Selection'!F35)) ->  | R19: =IF('Seed Mix Selection'!G35="","",IF(LEFT('Seed Mix Selection'!G35,5)="Other",'Seed Mix Selection'!G36,'Seed Mix Selection'!G35)) ->  | S19: =IF('Seed Mix Selection'!H35="","",IF(LEFT('Seed Mix Selection'!H35,5)="Other",'Seed Mix Selection'!H36,'Seed Mix Selection'!H35)) ->  | T19: =IF('Seed Mix Selection'!I35="","",IF(LEFT('Seed Mix Selection'!I35,5)="Other",'Seed Mix Selection'!I36,'Seed Mix Selection'!I35)) ->  | U19: =IF('Seed Mix Selection'!J35="","",IF(LEFT('Seed Mix Selection'!J35,5)="Other",'Seed Mix Selection'!J36,'Seed Mix Selection'!J35)) -> 
M20: =IF(COUNTIF(N17:U19,"Any Type**")>0,"**: "&'Seed Rate Selection'!B20,"") -> 
M21: =IF(COUNTIF(M17:M19,"Verify # of Mixes*")>0,"*: Please check your answer to question #5 on the Start Page (Proj. Questionnaire) against the input on the","") -> 
M22: =IF(COUNTIF(M17:M19,"Verify # of Mixes*")>0," Seed Mix Selection Page as they do not match. (May need to contact District Roadside Manager).","") -> 

Sheet Roadside Notes (hidden)
A1: Include Note? | B1: • • | C1: Choose whether or not to include each note by selecting/entering Yes or No in the gray box to the left of each note. Default values have been entered for each note, but they can all be overwritten if so desired. Also, Enter any Custom Notes specific to this project at the bottom of the list of notes and ensure that the box to the left updates accordingly. | AB1: Row Group | AZ1: Roadside Notes
A2: =COUNTIF(rNotesFilter,"") -> 0 | C2: NOTES | AB2: 1
A3: Yes | B3: 1 | C3: RECOMMENDATIONS FOR THE APPLICATION OF SEED MIXTURES (CORE MIX AND ADDITIVES), FERTILIZER, LIME, ETC. SHALL BE OBTAINED FROM THE DISTRICT ROADSIDE MANAGER. | AB3: 1
A4: Yes | B4: =IF(LEFT(A4,1)="n",B3,B3+1) -> 2 | C4: ALL SEED, FERTILIZER, LIME, MULCH, ETC. MUST BE IN CONFORMANCE WITH VDOT ROAD AND BRIDGE SPECIFICATIONS AND ANY APPLICABLE INFORMATIONAL & INSTRUCTIONAL MEMORANDA.
A5: Yes | B5: =IF(LEFT(A5,1)="n",B4,B4+1) -> 3 | C5: ="APPROXIMATELY "&Area_PSac&" ACRES WILL BE DISTURBED ON THIS PROJECT AND WILL REQUIRE THE ESTABLISHMENT OF GRASSES AND/OR LEGUMES." -> APPROXIMATELY 0 ACRES WILL BE DISTURBED ON THIS PROJECT AND WILL REQUIRE THE ESTABLISHMENT OF GRASSES AND/OR LEGUMES. | D5: =IF(A5="","Please Choose whether or not to include this note","") ->  | AB5: 1
A6: Yes | B6: =IF(LEFT(A6,1)="n",B5,B5+1) -> 4 | C6: REGULAR SEED SHALL BE APPLIED AT THE RATES SHOWN IN THE CORE MIX, ADDITIVES, AND WHERE APPLICABLE, CUSTOM SEED MIX TABLES. SEEDING QUANTITIES SHOWN IN THE ROADSIDE DEVELOPMENT SUMMARY TABLE ARE BASED ON THE HIGHEST "NORMAL" SEEDING RATE FOR EACH CORE MIX (BY SEASON FOR BOTH MOWED AREAS AND NON-MOWED SLOPES), WITH A 25% INCREMENTAL ADJUSTMENT TO ACCOUNT FOR SEEDING PROGRESSION, SEEDING AFTER SIGN OR GUARDRAIL INSTALLATION, AND OTHER MINOR UNPLANNED DISTURBANCES. | D6: =IF(A6="","Please Choose whether or not to include this note","") ->  | AB6: 1
A7: Yes | B7: =IF(LEFT(A7,1)="n",B6,B6+1) -> 5 | C7: REGULAR SEED SHALL BE FERTILIZED AT THE RATES SHOWN IN THE FERTILIZER SUMMARY TABLE. THE TOTAL FERTILIZER QUANTITIES SHOWN IN THE TABLES INCLUDES THE 25% INCREMENTAL ADJUSTMENT DESCRIBED ABOVE. | AB7: 1
A8: Yes | B8: 6 | C8: OVERSEEDING RATES SHALL BE 100% OF THE REGULAR SEED RATE WITHOUT THE INCREMENTAL ADJUSTMENT. | AB8: 1
A9: Yes | B9: 7 | C9: OVERSEEDING SHALL ONLY INCLUDE FERTILIZER ONCE, AT THE RATE SHOWN IN THE FERTILIZER SUMMARY TABLE. ADDITIONAL OVERSEEDING MAY BE DONE WITH NO FERTILIZER APPLIED, OR A SOIL TEST MAY BE PERFORMED TO DETERMINE THE SPECIFIC NUTRIENTS NECESSARY TO ESTABLISH THE GRASSES AND/OR LEGUMES. | AB9: 1
A10: Yes | B10: 8 | C10: THE ENGINEER WILL REQUIRE THE CONTRACTOR TO PERFORM SUPPLEMENTAL SEEDING WHEN LESS THAN 75% UNIFORM STAND OF THE PERMANENT GRASS (AND LEGUMES) SPECIFIED IN THE MIXTURES IS OBTAINED. (ANNUAL SPECIES SUCH AS RYE AND MILLET ARE TEMPORARY VARIETIES AND REQUIRE SUPPLEMENTAL SEEDING.) | AB10: 1
A11: Yes | B11: 9 | C11: LEGUME SEED SHALL BE INOCULATED WITH THE APPROPRIATE STRAIN AND RATE OF BACTERIA. FOR HYDROSEEDING, USE FIVE TIMES (5X) THE AMOUNT OF INOCULANT RECOMMENDED BY THE MANUFACTURER. | AB11: 1
A12: Yes | B12: 10 | C12: THE DATE SEED IS APPLIED SHALL BE USED TO DETERMINE WHETHER TO USE HULLED OR UNHULLED SEED FOR BERMUDAGRASS AND SERICEA LESPEDEZA. | AB12: 1
A13: =A12 -> Yes | C13: =CONCATENATE("SPRING & SUMMER (",LEFT('Roadside Summary'!N9,4)," TO ",RIGHT('Roadside Summary'!P9,4),"): USE HULLED SEED",CHAR(10),"FALL & WINTER (",LEFT('Roadside Summary'!R9,4)," TO ",RIGHT('Roadside Summary'!T9,4),"): USE UNHULLED SEED.") ->  | AB13: 1
A14: Yes | B14: =IF(LEFT(A14,1)="n",B12,B12+1) -> 11 | C14: =CONCATENATE("EROSION CONTROL MULCH, AS DIRECTED BY THE ENGINEER, IS TO BE USED ON AREAS THAT ARE TO BE LEFT DORMANT FOR MORE THAN 14 DAYS DURING THE DORMANT PERIOD (",UPPER('Roadside Summary'!T9),").") ->  | AB14: 2
A15: Yes | B15: 12 | C15: WHEN EROSION CONTROL MULCH IS USED, IT SHALL PROVIDE 100% COVERAGE OF ALL DENUDED AREAS. | AB15: 2
A16: Yes | B16: 13 | C16: HECP SHALL BE APPLIED ACCORDING TO THE MANUFACTERUER'S SPECIFICATIONS (OR RECOMMENDATIONS). | AB16: 2
A17: =IF(LEFT(C17,6)="Custom","No","Yes") -> No | B17: 13 | C17: CUSTOM NOTE 1 | AB17: 4
A18: =IF(LEFT(C18,6)="Custom","No","Yes") -> No | B18: 13 | C18: CUSTOM NOTE 2 | AB18: 4
A19: =IF(LEFT(C19,6)="Custom","No","Yes") -> No | B19: 13 | C19: CUSTOM NOTE 3 | AB19: 4
A20: =IF(LEFT(C20,6)="Custom","No","Yes") -> No | B20: 13 | C20: CUSTOM NOTE 4 | AB20: 4
A21: =IF(LEFT(C21,6)="Custom","No","Yes") -> No | B21: 13 | C21: CUSTOM NOTE 5 | AB21: 4
A22: =IF(LEFT(C22,6)="Custom","No","Yes") -> No | B22: =IF(LEFT(A22,1)="n",B21,B21+1) -> 13 | C22: CUSTOM NOTE 6 | AB22: 4
A23: =IF(LEFT(C23,6)="Custom","No","Yes") -> No | B23: =IF(LEFT(A23,1)="n",B22,B22+1) -> 13 | C23: CUSTOM NOTE 7 | AB23: 4
A24: =IF(LEFT(C24,6)="Custom","No","Yes") -> No | B24: =IF(LEFT(A24,1)="n",B23,B23+1) -> 13 | C24: CUSTOM NOTE 8 | AB24: 4
A25: =IF(LEFT(C25,6)="Custom","No","Yes") -> No | B25: 13 | C25: CUSTOM NOTE 9 | AB25: 4
A26: =IF(LEFT(C26,6)="Custom","No","Yes") -> No | B26: 13 | C26: CUSTOM NOTE 10 | AB26: 4

Sheet Seed Mix Selection (hidden)
B1: Select Seed Mixtures for each Time Period for both Mowed & Non-Mowed Areas utilizing the Drop-down Lists | AB1: Total Seed Weights | AN1: Total Legume Weights
C2: SLOPES | D2: MOWED | E2: SLOPES | F2: MOWED | G2: SLOPES | H2: MOWED | I2: SLOPES | J2: MOWED
C3: SEED MIX | D3: SEED MIX | E3: SEED MIX | F3: SEED MIX | G3: SEED MIX | H3: SEED MIX | I3: SEED MIX | J3: SEED MIX
C4: WITH | D4: WITH | E4: WITH | F4: WITH | G4: WITH | H4: WITH | I4: WITH | J4: WITH
C5: ADDITIVE | D5: ADDITIVE | E5: ADDITIVE | F5: ADDITIVE | G5: ADDITIVE | H5: ADDITIVE | I5: ADDITIVE | J5: ADDITIVE
C6: SPRING | E6: SUMMER | G6: FALL | I6: DORMANT | AC6: =C2 -> SLOPES | AD6: MOWED | AE6: SLOPES | AF6: MOWED | AG6: SLOPES | AH6: MOWED | AI6: SLOPES | AJ6: MOWED | AO6: =AC6 -> SLOPES | AP6: =AD6 -> MOWED | AQ6: =AE6 -> SLOPES | AR6: MOWED | AS6: SLOPES | AT6: MOWED | AU6: SLOPES | AV6: MOWED
C7: MONTH & DATE | E7: MONTH & DATE | G7: MONTH & DATE | I7: MONTH & DATE | AC7: =C6 -> SPRING | AD7: =C6 -> SPRING | AE7: =E6 -> SUMMER | AF7: =E6 -> SUMMER | AG7: =G6 -> FALL | AH7: =G6 -> FALL | AI7: =I6 -> DORMANT | AJ7: =I6 -> DORMANT | AK7: MOW | AL7: Non-Mow | AO7: =AC7 -> SPRING | AP7: =AD7 -> SPRING | AQ7: =AE7 -> SUMMER | AR7: =AF7 -> SUMMER | AS7: =AG7 -> FALL | AT7: =AH7 -> FALL | AU7: =AI7 -> DORMANT | AV7: =AJ7 -> DORMANT | AW7: MOW | AX7: Non-Mow
C8: =VLOOKUP(ansRegion,tPlantTimes[],2,FALSE) ->  | E8: =VLOOKUP(ansRegion,tPlantTimes[],3,FALSE) ->  | G8: =VLOOKUP(ansRegion,tPlantTimes[],4,FALSE) ->  | I8: =VLOOKUP(ansRegion,tPlantTimes[],5,FALSE) ->  | AB8: Total Seed Weights (lbs/ac) | AK8: Max. | AL8: Max. | AN8: Total Legume Weights (lbs/ac) | AW8: Max. | AX8: Max.
A9: Core Mix 1 | B9: Mix Code | C9: ="("&IF(AND(C10<>" ",C10<>""),LEFT(C10,FIND(":",C10)-1),"")&")"&IF(AND(C13<>" ",C13<>""),LEFT(C13,1),"")&IF(AND(C14<>" ",C14<>""),LEFT(C14,1),"")&IF(AND(C15<>" ",C15<>""),LEFT(C15,1),"")&IF(AND(C16<>" ",C16<>""),LEFT(C16,1),"")&IF(AND(C17<>" ",C17<>""),LEFT(C17,1),"")&IF(AND(C18<>" ",C18<>""),LEFT(C18,1),"") -> () | D9: ="("&IF(AND(D10<>" ",D10<>""),LEFT(D10,FIND(":",D10)-1),"")&")"&IF(AND(D13<>" ",D13<>""),LEFT(D13,1),"")&IF(AND(D14<>" ",D14<>""),LEFT(D14,1),"")&IF(AND(D15<>" ",D15<>""),LEFT(D15,1),"")&IF(AND(D16<>" ",D16<>""),LEFT(D16,1),"")&IF(AND(D17<>" ",D17<>""),LEFT(D17,1),"")&IF(AND(D18<>" ",D18<>""),LEFT(D18,1),"") -> () | E9: ="("&IF(AND(E10<>" ",E10<>""),LEFT(E10,FIND(":",E10)-1),"")&")"&IF(AND(E13<>" ",E13<>""),LEFT(E13,1),"")&IF(AND(E14<>" ",E14<>""),LEFT(E14,1),"")&IF(AND(E15<>" ",E15<>""),LEFT(E15,1),"")&IF(AND(E16<>" ",E16<>""),LEFT(E16,1),"")&IF(AND(E17<>" ",E17<>""),LEFT(E17,1),"")&IF(AND(E18<>" ",E18<>""),LEFT(E18,1),"") -> () | F9: () | G9: () | H9: () | I9: () | J9: () | K9: Mix Description: | M9: =OFFSET(rSP_Mix1,1,5) -> 0 | AA9: Core Mix 1 | AB9: Mix Code | AC9: =$C9 -> () | AD9: =$D9 -> () | AE9: =$E9 -> () | AF9: =$F9 -> () | AG9: =$G9 -> () | AH9: =$H9 -> () | AI9: =$I9 -> () | AJ9: =$J9 -> () | AK9: Rate | AL9: Rate | AN9: Mix Code | AO9: =$C9 -> () | AP9: =$D9 -> () | AQ9: =$E9 -> () | AR9: =$F9 -> () | AS9: =$G9 -> () | AT9: =$H9 -> () | AU9: =$I9 -> () | AV9: =$J9 -> () | AW9: Rate | AX9: Rate
B10: Core Mixture (1, 2, 3…) | AB10: Core Mixture (1, 2, 3…) | AC10: =IF(AND(C10<>" ",C10<>""),VLOOKUP(LEFT(C10,FIND(":",C10)-1),tSeed_Core[],4,FALSE),0) -> 0 | AD10: =IF(AND(D10<>" ",D10<>""),VLOOKUP(LEFT(D10,FIND(":",D10)-1),tSeed_Core[],4,FALSE),0) -> 0 | AE10: =IF(AND(E10<>" ",E10<>""),VLOOKUP(LEFT(E10,FIND(":",E10)-1),tSeed_Core[],4,FALSE),0) -> 0 | AF10: =IF(AND(F10<>" ",F10<>""),VLOOKUP(LEFT(F10,FIND(":",F10)-1),tSeed_Core[],4,FALSE),0) -> 0 | AG10: =IF(AND(G10<>" ",G10<>""),VLOOKUP(LEFT(G10,FIND(":",G10)-1),tSeed_Core[],4,FALSE),0) -> 0 | AH10: =IF(AND(H10<>" ",H10<>""),VLOOKUP(LEFT(H10,FIND(":",H10)-1),tSeed_Core[],4,FALSE),0) -> 0 | AI10: =IF(AND(I10<>" ",I10<>""),VLOOKUP(LEFT(I10,FIND(":",I10)-1),tSeed_Core[],4,FALSE),0) -> 0 | AJ10: =IF(AND(J10<>" ",J10<>""),VLOOKUP(LEFT(J10,FIND(":",J10)-1),tSeed_Core[],4,FALSE),0) -> 0 | AN10: Core Mixture (1, 2, 3…) | AO10: =IF(LEFT(C10,1)="C",VLOOKUP(LEFT(C10,FIND(":",C10)-1),tSeed_Core[],5,FALSE),0) -> 0 | AP10: =IF(LEFT(D10,1)="C",VLOOKUP(LEFT(D10,FIND(":",D10)-1),tSeed_Core[],5,FALSE),0) -> 0 | AQ10: =IF(LEFT(E10,1)="C",VLOOKUP(LEFT(E10,FIND(":",E10)-1),tSeed_Core[],5,FALSE),0) -> 0 | AR10: =IF(LEFT(F10,1)="C",VLOOKUP(LEFT(F10,FIND(":",F10)-1),tSeed_Core[],5,FALSE),0) -> 0 | AS10: =IF(LEFT(G10,1)="C",VLOOKUP(LEFT(G10,FIND(":",G10)-1),tSeed_Core[],5,FALSE),0) -> 0 | AT10: =IF(LEFT(H10,1)="C",VLOOKUP(LEFT(H10,FIND(":",H10)-1),tSeed_Core[],5,FALSE),0) -> 0 | AU10: =IF(LEFT(I10,1)="C",VLOOKUP(LEFT(I10,FIND(":",I10)-1),tSeed_Core[],5,FALSE),0) -> 0 | AV10: =IF(LEFT(J10,1)="C",VLOOKUP(LEFT(J10,FIND(":",J10)-1),tSeed_Core[],5,FALSE),0) -> 0
B11: =IF(COUNTIF(AC11:AJ11,"Yes")>0,"Specific Type of Fine Fescue","n/a") -> n/a | AB11: Fine Fescue? | AC11: =IF(RIGHT(C10,1)="*","Yes","No") -> No | AD11: =IF(RIGHT(D10,1)="*","Yes","No") -> No | AE11: =IF(RIGHT(E10,1)="*","Yes","No") -> No | AF11: =IF(RIGHT(F10,1)="*","Yes","No") -> No | AG11: =IF(RIGHT(G10,1)="*","Yes","No") -> No | AH11: =IF(RIGHT(H10,1)="*","Yes","No") -> No | AI11: =IF(RIGHT(I10,1)="*","Yes","No") -> No | AJ11: =IF(RIGHT(J10,1)="*","Yes","No") -> No
B12: =IF(COUNTIF(AC12:AJ12,"Yes")>0,"Specify Other Type","n/a") -> n/a | AB12: User Entry? | AC12: =IF(LEFT(C11,5)="Other","Yes","No") -> No | AD12: =IF(LEFT(D11,5)="Other","Yes","No") -> No | AE12: No | AF12: No | AG12: No | AH12: No | AI12: No | AJ12: No
B13: Additive 1 (A, B, C…) | K13: =IF(OR(AND(COUNTIF(C10:H10,"C1:*")>0,OFFSET(rSeedCustom_1,1,1)<0.01),AND(COUNTIF(C10:H10,"C2:*")>0,OFFSET(rSeedCustom_2,1,1)<0.01),AND(COUNTIF(C10:H10,"C3:*")>0,OFFSET(rSeedCustom_3,1,1)<0.01)),"Please Check the Custom Seed Mix inputs on the Seed Mix Selection tab","") ->  | AB13: Additive 1 (A, B, C…) | AC13: =IF(AND(C13<>" ",C13<>""),IF(VLOOKUP(LEFT(C13,FIND(":",C13)-1),tSeed_Add[],5,FALSE)="No",VLOOKUP(LEFT(C13,FIND(":",C13)-1),tSeed_Add[],4,FALSE),0),0) -> 0 | AD13: =IF(AND(D13<>" ",D13<>""),IF(VLOOKUP(LEFT(D13,FIND(":",D13)-1),tSeed_Add[],5,FALSE)="No",VLOOKUP(LEFT(D13,FIND(":",D13)-1),tSeed_Add[],4,FALSE),0),0) -> 0 | AE13: =IF(AND(E13<>" ",E13<>""),IF(VLOOKUP(LEFT(E13,FIND(":",E13)-1),tSeed_Add[],5,FALSE)="No",VLOOKUP(LEFT(E13,FIND(":",E13)-1),tSeed_Add[],4,FALSE),0),0) -> 0 | AF13: =IF(AND(F13<>" ",F13<>""),IF(VLOOKUP(LEFT(F13,FIND(":",F13)-1),tSeed_Add[],5,FALSE)="No",VLOOKUP(LEFT(F13,FIND(":",F13)-1),tSeed_Add[],4,FALSE),0),0) -> 0 | AG13: =IF(AND(G13<>" ",G13<>""),IF(VLOOKUP(LEFT(G13,FIND(":",G13)-1),tSeed_Add[],5,FALSE)="No",VLOOKUP(LEFT(G13,FIND(":",G13)-1),tSeed_Add[],4,FALSE),0),0) -> 0 | AH13: =IF(AND(H13<>" ",H13<>""),IF(VLOOKUP(LEFT(H13,FIND(":",H13)-1),tSeed_Add[],5,FALSE)="No",VLOOKUP(LEFT(H13,FIND(":",H13)-1),tSeed_Add[],4,FALSE),0),0) -> 0 | AI13: =IF(AND(I13<>" ",I13<>""),IF(VLOOKUP(LEFT(I13,FIND(":",I13)-1),tSeed_Add[],5,FALSE)="No",VLOOKUP(LEFT(I13,FIND(":",I13)-1),tSeed_Add[],4,FALSE),0),0) -> 0 | AJ13: =IF(AND(J13<>" ",J13<>""),IF(VLOOKUP(LEFT(J13,FIND(":",J13)-1),tSeed_Add[],5,FALSE)="No",VLOOKUP(LEFT(J13,FIND(":",J13)-1),tSeed_Add[],4,FALSE),0),0) -> 0 | AN13: Additive 1 (A, B, C…) | AO13: =IF(AND(C13<>" ",C13<>""),IF(VLOOKUP(LEFT(C13,FIND(":",C13)-1),tSeed_Add[],5,FALSE)="Yes",VLOOKUP(LEFT(C13,FIND(":",C13)-1),tSeed_Add[],4,FALSE),0),0) -> 0 | AP13: =IF(AND(D13<>" ",D13<>""),IF(VLOOKUP(LEFT(D13,FIND(":",D13)-1),tSeed_Add[],5,FALSE)="Yes",VLOOKUP(LEFT(D13,FIND(":",D13)-1),tSeed_Add[],4,FALSE),0),0) -> 0 | AQ13: =IF(AND(E13<>" ",E13<>""),IF(VLOOKUP(LEFT(E13,FIND(":",E13)-1),tSeed_Add[],5,FALSE)="Yes",VLOOKUP(LEFT(E13,FIND(":",E13)-1),tSeed_Add[],4,FALSE),0),0) -> 0 | AR13: =IF(AND(F13<>" ",F13<>""),IF(VLOOKUP(LEFT(F13,FIND(":",F13)-1),tSeed_Add[],5,FALSE)="Yes",VLOOKUP(LEFT(F13,FIND(":",F13)-1),tSeed_Add[],4,FALSE),0),0) -> 0 | AS13: =IF(AND(G13<>" ",G13<>""),IF(VLOOKUP(LEFT(G13,FIND(":",G13)-1),tSeed_Add[],5,FALSE)="Yes",VLOOKUP(LEFT(G13,FIND(":",G13)-1),tSeed_Add[],4,FALSE),0),0) -> 0 | AT13: =IF(AND(H13<>" ",H13<>""),IF(VLOOKUP(LEFT(H13,FIND(":",H13)-1),tSeed_Add[],5,FALSE)="Yes",VLOOKUP(LEFT(H13,FIND(":",H13)-1),tSeed_Add[],4,FALSE),0),0) -> 0 | AU13: =IF(AND(I13<>" ",I13<>""),IF(VLOOKUP(LEFT(I13,FIND(":",I13)-1),tSeed_Add[],5,FALSE)="Yes",VLOOKUP(LEFT(I13,FIND(":",I13)-1),tSeed_Add[],4,FALSE),0),0) -> 0 | AV13: =IF(AND(J13<>" ",J13<>""),IF(VLOOKUP(LEFT(J13,FIND(":",J13)-1),tSeed_Add[],5,FALSE)="Yes",VLOOKUP(LEFT(J13,FIND(":",J13)-1),tSeed_Add[],4,FALSE),0),0) -> 0
B14: Additive 2 (A, B, C…) | AB14: Additive 2 (A, B, C…) | AC14: =IF(AND(C14<>" ",C14<>""),IF(VLOOKUP(LEFT(C14,FIND(":",C14)-1),tSeed_Add[],5,FALSE)="No",VLOOKUP(LEFT(C14,FIND(":",C14)-1),tSeed_Add[],4,FALSE),0),0) -> 0 | AD14: =IF(AND(D14<>" ",D14<>""),IF(VLOOKUP(LEFT(D14,FIND(":",D14)-1),tSeed_Add[],5,FALSE)="No",VLOOKUP(LEFT(D14,FIND(":",D14)-1),tSeed_Add[],4,FALSE),0),0) -> 0 | AE14: =IF(AND(E14<>" ",E14<>""),IF(VLOOKUP(LEFT(E14,FIND(":",E14)-1),tSeed_Add[],5,FALSE)="No",VLOOKUP(LEFT(E14,FIND(":",E14)-1),tSeed_Add[],4,FALSE),0),0) -> 0 | AF14: =IF(AND(F14<>" ",F14<>""),IF(VLOOKUP(LEFT(F14,FIND(":",F14)-1),tSeed_Add[],5,FALSE)="No",VLOOKUP(LEFT(F14,FIND(":",F14)-1),tSeed_Add[],4,FALSE),0),0) -> 0 | AG14: =IF(AND(G14<>" ",G14<>""),IF(VLOOKUP(LEFT(G14,FIND(":",G14)-1),tSeed_Add[],5,FALSE)="No",VLOOKUP(LEFT(G14,FIND(":",G14)-1),tSeed_Add[],4,FALSE),0),0) -> 0 | AH14: =IF(AND(H14<>" ",H14<>""),IF(VLOOKUP(LEFT(H14,FIND(":",H14)-1),tSeed_Add[],5,FALSE)="No",VLOOKUP(LEFT(H14,FIND(":",H14)-1),tSeed_Add[],4,FALSE),0),0) -> 0 | AI14: =IF(AND(I14<>" ",I14<>""),IF(VLOOKUP(LEFT(I14,FIND(":",I14)-1),tSeed_Add[],5,FALSE)="No",VLOOKUP(LEFT(I14,FIND(":",I14)-1),tSeed_Add[],4,FALSE),0),0) -> 0 | AJ14: =IF(AND(J14<>" ",J14<>""),IF(VLOOKUP(LEFT(J14,FIND(":",J14)-1),tSeed_Add[],5,FALSE)="No",VLOOKUP(LEFT(J14,FIND(":",J14)-1),tSeed_Add[],4,FALSE),0),0) -> 0 | AN14: Additive 2 (A, B, C…) | AO14: =IF(AND(C14<>" ",C14<>""),IF(VLOOKUP(LEFT(C14,FIND(":",C14)-1),tSeed_Add[],5,FALSE)="Yes",VLOOKUP(LEFT(C14,FIND(":",C14)-1),tSeed_Add[],4,FALSE),0),0) -> 0 | AP14: =IF(AND(D14<>" ",D14<>""),IF(VLOOKUP(LEFT(D14,FIND(":",D14)-1),tSeed_Add[],5,FALSE)="Yes",VLOOKUP(LEFT(D14,FIND(":",D14)-1),tSeed_Add[],4,FALSE),0),0) -> 0 | AQ14: =IF(AND(E14<>" ",E14<>""),IF(VLOOKUP(LEFT(E14,FIND(":",E14)-1),tSeed_Add[],5,FALSE)="Yes",VLOOKUP(LEFT(E14,FIND(":",E14)-1),tSeed_Add[],4,FALSE),0),0) -> 0 | AR14: =IF(AND(F14<>" ",F14<>""),IF(VLOOKUP(LEFT(F14,FIND(":",F14)-1),tSeed_Add[],5,FALSE)="Yes",VLOOKUP(LEFT(F14,FIND(":",F14)-1),tSeed_Add[],4,FALSE),0),0) -> 0 | AS14: =IF(AND(G14<>" ",G14<>""),IF(VLOOKUP(LEFT(G14,FIND(":",G14)-1),tSeed_Add[],5,FALSE)="Yes",VLOOKUP(LEFT(G14,FIND(":",G14)-1),tSeed_Add[],4,FALSE),0),0) -> 0 | AT14: =IF(AND(H14<>" ",H14<>""),IF(VLOOKUP(LEFT(H14,FIND(":",H14)-1),tSeed_Add[],5,FALSE)="Yes",VLOOKUP(LEFT(H14,FIND(":",H14)-1),tSeed_Add[],4,FALSE),0),0) -> 0 | AU14: =IF(AND(I14<>" ",I14<>""),IF(VLOOKUP(LEFT(I14,FIND(":",I14)-1),tSeed_Add[],5,FALSE)="Yes",VLOOKUP(LEFT(I14,FIND(":",I14)-1),tSeed_Add[],4,FALSE),0),0) -> 0 | AV14: =IF(AND(J14<>" ",J14<>""),IF(VLOOKUP(LEFT(J14,FIND(":",J14)-1),tSeed_Add[],5,FALSE)="Yes",VLOOKUP(LEFT(J14,FIND(":",J14)-1),tSeed_Add[],4,FALSE),0),0) -> 0
B15: Additive 3 (A, B, C…) | AB15: Additive 3 (A, B, C…) | AC15: =IF(AND(C15<>" ",C15<>""),IF(VLOOKUP(LEFT(C15,FIND(":",C15)-1),tSeed_Add[],5,FALSE)="No",VLOOKUP(LEFT(C15,FIND(":",C15)-1),tSeed_Add[],4,FALSE),0),0) -> 0 | AD15: =IF(AND(D15<>" ",D15<>""),IF(VLOOKUP(LEFT(D15,FIND(":",D15)-1),tSeed_Add[],5,FALSE)="No",VLOOKUP(LEFT(D15,FIND(":",D15)-1),tSeed_Add[],4,FALSE),0),0) -> 0 | AE15: =IF(AND(E15<>" ",E15<>""),IF(VLOOKUP(LEFT(E15,FIND(":",E15)-1),tSeed_Add[],5,FALSE)="No",VLOOKUP(LEFT(E15,FIND(":",E15)-1),tSeed_Add[],4,FALSE),0),0) -> 0 | AF15: =IF(AND(F15<>" ",F15<>""),IF(VLOOKUP(LEFT(F15,FIND(":",F15)-1),tSeed_Add[],5,FALSE)="No",VLOOKUP(LEFT(F15,FIND(":",F15)-1),tSeed_Add[],4,FALSE),0),0) -> 0 | AG15: =IF(AND(G15<>" ",G15<>""),IF(VLOOKUP(LEFT(G15,FIND(":",G15)-1),tSeed_Add[],5,FALSE)="No",VLOOKUP(LEFT(G15,FIND(":",G15)-1),tSeed_Add[],4,FALSE),0),0) -> 0 | AH15: =IF(AND(H15<>" ",H15<>""),IF(VLOOKUP(LEFT(H15,FIND(":",H15)-1),tSeed_Add[],5,FALSE)="No",VLOOKUP(LEFT(H15,FIND(":",H15)-1),tSeed_Add[],4,FALSE),0),0) -> 0 | AI15: =IF(AND(I15<>" ",I15<>""),IF(VLOOKUP(LEFT(I15,FIND(":",I15)-1),tSeed_Add[],5,FALSE)="No",VLOOKUP(LEFT(I15,FIND(":",I15)-1),tSeed_Add[],4,FALSE),0),0) -> 0 | AJ15: =IF(AND(J15<>" ",J15<>""),IF(VLOOKUP(LEFT(J15,FIND(":",J15)-1),tSeed_Add[],5,FALSE)="No",VLOOKUP(LEFT(J15,FIND(":",J15)-1),tSeed_Add[],4,FALSE),0),0) -> 0 | AN15: Additive 3 (A, B, C…) | AO15: =IF(AND(C15<>" ",C15<>""),IF(VLOOKUP(LEFT(C15,FIND(":",C15)-1),tSeed_Add[],5,FALSE)="Yes",VLOOKUP(LEFT(C15,FIND(":",C15)-1),tSeed_Add[],4,FALSE),0),0) -> 0 | AP15: =IF(AND(D15<>" ",D15<>""),IF(VLOOKUP(LEFT(D15,FIND(":",D15)-1),tSeed_Add[],5,FALSE)="Yes",VLOOKUP(LEFT(D15,FIND(":",D15)-1),tSeed_Add[],4,FALSE),0),0) -> 0 | AQ15: =IF(AND(E15<>" ",E15<>""),IF(VLOOKUP(LEFT(E15,FIND(":",E15)-1),tSeed_Add[],5,FALSE)="Yes",VLOOKUP(LEFT(E15,FIND(":",E15)-1),tSeed_Add[],4,FALSE),0),0) -> 0 | AR15: =IF(AND(F15<>" ",F15<>""),IF(VLOOKUP(LEFT(F15,FIND(":",F15)-1),tSeed_Add[],5,FALSE)="Yes",VLOOKUP(LEFT(F15,FIND(":",F15)-1),tSeed_Add[],4,FALSE),0),0) -> 0 | AS15: =IF(AND(G15<>" ",G15<>""),IF(VLOOKUP(LEFT(G15,FIND(":",G15)-1),tSeed_Add[],5,FALSE)="Yes",VLOOKUP(LEFT(G15,FIND(":",G15)-1),tSeed_Add[],4,FALSE),0),0) -> 0 | AT15: =IF(AND(H15<>" ",H15<>""),IF(VLOOKUP(LEFT(H15,FIND(":",H15)-1),tSeed_Add[],5,FALSE)="Yes",VLOOKUP(LEFT(H15,FIND(":",H15)-1),tSeed_Add[],4,FALSE),0),0) -> 0 | AU15: =IF(AND(I15<>" ",I15<>""),IF(VLOOKUP(LEFT(I15,FIND(":",I15)-1),tSeed_Add[],5,FALSE)="Yes",VLOOKUP(LEFT(I15,FIND(":",I15)-1),tSeed_Add[],4,FALSE),0),0) -> 0 | AV15: =IF(AND(J15<>" ",J15<>""),IF(VLOOKUP(LEFT(J15,FIND(":",J15)-1),tSeed_Add[],5,FALSE)="Yes",VLOOKUP(LEFT(J15,FIND(":",J15)-1),tSeed_Add[],4,FALSE),0),0) -> 0
B16: Additive 4 (A, B, C…) | AB16: Additive 4 (A, B, C…) | AC16: =IF(AND(C16<>" ",C16<>""),IF(VLOOKUP(LEFT(C16,FIND(":",C16)-1),tSeed_Add[],5,FALSE)="No",VLOOKUP(LEFT(C16,FIND(":",C16)-1),tSeed_Add[],4,FALSE),0),0) -> 0 | AD16: =IF(AND(D16<>" ",D16<>""),IF(VLOOKUP(LEFT(D16,FIND(":",D16)-1),tSeed_Add[],5,FALSE)="No",VLOOKUP(LEFT(D16,FIND(":",D16)-1),tSeed_Add[],4,FALSE),0),0) -> 0 | AE16: =IF(AND(E16<>" ",E16<>""),IF(VLOOKUP(LEFT(E16,FIND(":",E16)-1),tSeed_Add[],5,FALSE)="No",VLOOKUP(LEFT(E16,FIND(":",E16)-1),tSeed_Add[],4,FALSE),0),0) -> 0 | AF16: =IF(AND(F16<>" ",F16<>""),IF(VLOOKUP(LEFT(F16,FIND(":",F16)-1),tSeed_Add[],5,FALSE)="No",VLOOKUP(LEFT(F16,FIND(":",F16)-1),tSeed_Add[],4,FALSE),0),0) -> 0 | AG16: =IF(AND(G16<>" ",G16<>""),IF(VLOOKUP(LEFT(G16,FIND(":",G16)-1),tSeed_Add[],5,FALSE)="No",VLOOKUP(LEFT(G16,FIND(":",G16)-1),tSeed_Add[],4,FALSE),0),0) -> 0 | AH16: =IF(AND(H16<>" ",H16<>""),IF(VLOOKUP(LEFT(H16,FIND(":",H16)-1),tSeed_Add[],5,FALSE)="No",VLOOKUP(LEFT(H16,FIND(":",H16)-1),tSeed_Add[],4,FALSE),0),0) -> 0 | AI16: =IF(AND(I16<>" ",I16<>""),IF(VLOOKUP(LEFT(I16,FIND(":",I16)-1),tSeed_Add[],5,FALSE)="No",VLOOKUP(LEFT(I16,FIND(":",I16)-1),tSeed_Add[],4,FALSE),0),0) -> 0 | AJ16: =IF(AND(J16<>" ",J16<>""),IF(VLOOKUP(LEFT(J16,FIND(":",J16)-1),tSeed_Add[],5,FALSE)="No",VLOOKUP(LEFT(J16,FIND(":",J16)-1),tSeed_Add[],4,FALSE),0),0) -> 0 | AN16: Additive 4 (A, B, C…) | AO16: =IF(AND(C16<>" ",C16<>""),IF(VLOOKUP(LEFT(C16,FIND(":",C16)-1),tSeed_Add[],5,FALSE)="Yes",VLOOKUP(LEFT(C16,FIND(":",C16)-1),tSeed_Add[],4,FALSE),0),0) -> 0 | AP16: =IF(AND(D16<>" ",D16<>""),IF(VLOOKUP(LEFT(D16,FIND(":",D16)-1),tSeed_Add[],5,FALSE)="Yes",VLOOKUP(LEFT(D16,FIND(":",D16)-1),tSeed_Add[],4,FALSE),0),0) -> 0 | AQ16: =IF(AND(E16<>" ",E16<>""),IF(VLOOKUP(LEFT(E16,FIND(":",E16)-1),tSeed_Add[],5,FALSE)="Yes",VLOOKUP(LEFT(E16,FIND(":",E16)-1),tSeed_Add[],4,FALSE),0),0) -> 0 | AR16: =IF(AND(F16<>" ",F16<>""),IF(VLOOKUP(LEFT(F16,FIND(":",F16)-1),tSeed_Add[],5,FALSE)="Yes",VLOOKUP(LEFT(F16,FIND(":",F16)-1),tSeed_Add[],4,FALSE),0),0) -> 0 | AS16: =IF(AND(G16<>" ",G16<>""),IF(VLOOKUP(LEFT(G16,FIND(":",G16)-1),tSeed_Add[],5,FALSE)="Yes",VLOOKUP(LEFT(G16,FIND(":",G16)-1),tSeed_Add[],4,FALSE),0),0) -> 0 | AT16: =IF(AND(H16<>" ",H16<>""),IF(VLOOKUP(LEFT(H16,FIND(":",H16)-1),tSeed_Add[],5,FALSE)="Yes",VLOOKUP(LEFT(H16,FIND(":",H16)-1),tSeed_Add[],4,FALSE),0),0) -> 0 | AU16: =IF(AND(I16<>" ",I16<>""),IF(VLOOKUP(LEFT(I16,FIND(":",I16)-1),tSeed_Add[],5,FALSE)="Yes",VLOOKUP(LEFT(I16,FIND(":",I16)-1),tSeed_Add[],4,FALSE),0),0) -> 0 | AV16: =IF(AND(J16<>" ",J16<>""),IF(VLOOKUP(LEFT(J16,FIND(":",J16)-1),tSeed_Add[],5,FALSE)="Yes",VLOOKUP(LEFT(J16,FIND(":",J16)-1),tSeed_Add[],4,FALSE),0),0) -> 0
B17: Additive 5 (A, B, C…) | AB17: Additive 5 (A, B, C…) | AC17: =IF(AND(C17<>" ",C17<>""),IF(VLOOKUP(LEFT(C17,FIND(":",C17)-1),tSeed_Add[],5,FALSE)="No",VLOOKUP(LEFT(C17,FIND(":",C17)-1),tSeed_Add[],4,FALSE),0),0) -> 0 | AD17: =IF(AND(D17<>" ",D17<>""),IF(VLOOKUP(LEFT(D17,FIND(":",D17)-1),tSeed_Add[],5,FALSE)="No",VLOOKUP(LEFT(D17,FIND(":",D17)-1),tSeed_Add[],4,FALSE),0),0) -> 0 | AE17: =IF(AND(E17<>" ",E17<>""),IF(VLOOKUP(LEFT(E17,FIND(":",E17)-1),tSeed_Add[],5,FALSE)="No",VLOOKUP(LEFT(E17,FIND(":",E17)-1),tSeed_Add[],4,FALSE),0),0) -> 0 | AF17: =IF(AND(F17<>" ",F17<>""),IF(VLOOKUP(LEFT(F17,FIND(":",F17)-1),tSeed_Add[],5,FALSE)="No",VLOOKUP(LEFT(F17,FIND(":",F17)-1),tSeed_Add[],4,FALSE),0),0) -> 0 | AG17: =IF(AND(G17<>" ",G17<>""),IF(VLOOKUP(LEFT(G17,FIND(":",G17)-1),tSeed_Add[],5,FALSE)="No",VLOOKUP(LEFT(G17,FIND(":",G17)-1),tSeed_Add[],4,FALSE),0),0) -> 0 | AH17: =IF(AND(H17<>" ",H17<>""),IF(VLOOKUP(LEFT(H17,FIND(":",H17)-1),tSeed_Add[],5,FALSE)="No",VLOOKUP(LEFT(H17,FIND(":",H17)-1),tSeed_Add[],4,FALSE),0),0) -> 0 | AI17: =IF(AND(I17<>" ",I17<>""),IF(VLOOKUP(LEFT(I17,FIND(":",I17)-1),tSeed_Add[],5,FALSE)="No",VLOOKUP(LEFT(I17,FIND(":",I17)-1),tSeed_Add[],4,FALSE),0),0) -> 0 | AJ17: =IF(AND(J17<>" ",J17<>""),IF(VLOOKUP(LEFT(J17,FIND(":",J17)-1),tSeed_Add[],5,FALSE)="No",VLOOKUP(LEFT(J17,FIND(":",J17)-1),tSeed_Add[],4,FALSE),0),0) -> 0 | AK17: Adjusted Rate (if Applicable) | AN17: Additive 5 (A, B, C…) | AO17: =IF(AND(C17<>" ",C17<>""),IF(VLOOKUP(LEFT(C17,FIND(":",C17)-1),tSeed_Add[],5,FALSE)="Yes",VLOOKUP(LEFT(C17,FIND(":",C17)-1),tSeed_Add[],4,FALSE),0),0) -> 0 | AP17: =IF(AND(D17<>" ",D17<>""),IF(VLOOKUP(LEFT(D17,FIND(":",D17)-1),tSeed_Add[],5,FALSE)="Yes",VLOOKUP(LEFT(D17,FIND(":",D17)-1),tSeed_Add[],4,FALSE),0),0) -> 0 | AQ17: =IF(AND(E17<>" ",E17<>""),IF(VLOOKUP(LEFT(E17,FIND(":",E17)-1),tSeed_Add[],5,FALSE)="Yes",VLOOKUP(LEFT(E17,FIND(":",E17)-1),tSeed_Add[],4,FALSE),0),0) -> 0 | AR17: =IF(AND(F17<>" ",F17<>""),IF(VLOOKUP(LEFT(F17,FIND(":",F17)-1),tSeed_Add[],5,FALSE)="Yes",VLOOKUP(LEFT(F17,FIND(":",F17)-1),tSeed_Add[],4,FALSE),0),0) -> 0 | AS17: =IF(AND(G17<>" ",G17<>""),IF(VLOOKUP(LEFT(G17,FIND(":",G17)-1),tSeed_Add[],5,FALSE)="Yes",VLOOKUP(LEFT(G17,FIND(":",G17)-1),tSeed_Add[],4,FALSE),0),0) -> 0 | AT17: =IF(AND(H17<>" ",H17<>""),IF(VLOOKUP(LEFT(H17,FIND(":",H17)-1),tSeed_Add[],5,FALSE)="Yes",VLOOKUP(LEFT(H17,FIND(":",H17)-1),tSeed_Add[],4,FALSE),0),0) -> 0 | AU17: =IF(AND(I17<>" ",I17<>""),IF(VLOOKUP(LEFT(I17,FIND(":",I17)-1),tSeed_Add[],5,FALSE)="Yes",VLOOKUP(LEFT(I17,FIND(":",I17)-1),tSeed_Add[],4,FALSE),0),0) -> 0 | AV17: =IF(AND(J17<>" ",J17<>""),IF(VLOOKUP(LEFT(J17,FIND(":",J17)-1),tSeed_Add[],5,FALSE)="Yes",VLOOKUP(LEFT(J17,FIND(":",J17)-1),tSeed_Add[],4,FALSE),0),0) -> 0 | AW17: Adjusted Rate (if Applicable)
B18: Additive 6 (A, B, C…) | AB18: Additive 6 (A, B, C…) | AC18: =IF(AND(C18<>" ",C18<>""),IF(VLOOKUP(LEFT(C18,FIND(":",C18)-1),tSeed_Add[],5,FALSE)="No",VLOOKUP(LEFT(C18,FIND(":",C18)-1),tSeed_Add[],4,FALSE),0),0) -> 0 | AD18: =IF(AND(D18<>" ",D18<>""),IF(VLOOKUP(LEFT(D18,FIND(":",D18)-1),tSeed_Add[],5,FALSE)="No",VLOOKUP(LEFT(D18,FIND(":",D18)-1),tSeed_Add[],4,FALSE),0),0) -> 0 | AE18: =IF(AND(E18<>" ",E18<>""),IF(VLOOKUP(LEFT(E18,FIND(":",E18)-1),tSeed_Add[],5,FALSE)="No",VLOOKUP(LEFT(E18,FIND(":",E18)-1),tSeed_Add[],4,FALSE),0),0) -> 0 | AF18: =IF(AND(F18<>" ",F18<>""),IF(VLOOKUP(LEFT(F18,FIND(":",F18)-1),tSeed_Add[],5,FALSE)="No",VLOOKUP(LEFT(F18,FIND(":",F18)-1),tSeed_Add[],4,FALSE),0),0) -> 0 | AG18: =IF(AND(G18<>" ",G18<>""),IF(VLOOKUP(LEFT(G18,FIND(":",G18)-1),tSeed_Add[],5,FALSE)="No",VLOOKUP(LEFT(G18,FIND(":",G18)-1),tSeed_Add[],4,FALSE),0),0) -> 0 | AH18: =IF(AND(H18<>" ",H18<>""),IF(VLOOKUP(LEFT(H18,FIND(":",H18)-1),tSeed_Add[],5,FALSE)="No",VLOOKUP(LEFT(H18,FIND(":",H18)-1),tSeed_Add[],4,FALSE),0),0) -> 0 | AI18: =IF(AND(I18<>" ",I18<>""),IF(VLOOKUP(LEFT(I18,FIND(":",I18)-1),tSeed_Add[],5,FALSE)="No",VLOOKUP(LEFT(I18,FIND(":",I18)-1),tSeed_Add[],4,FALSE),0),0) -> 0 | AJ18: =IF(AND(J18<>" ",J18<>""),IF(VLOOKUP(LEFT(J18,FIND(":",J18)-1),tSeed_Add[],5,FALSE)="No",VLOOKUP(LEFT(J18,FIND(":",J18)-1),tSeed_Add[],4,FALSE),0),0) -> 0 | AK18: =IF(LEFT(OFFSET(rSP_Mix1,7,5),1)="y",OFFSET(rSP_Mix1,10,5)*AK19,0) -> 0 | AL18: =IF(LEFT(OFFSET(rSP_Mix1,7,5),1)="y",OFFSET(rSP_Mix1,10,5)*AL19,0) -> 0 | AN18: Additive 6 (A, B, C…) | AO18: =IF(AND(C18<>" ",C18<>""),IF(VLOOKUP(LEFT(C18,FIND(":",C18)-1),tSeed_Add[],5,FALSE)="Yes",VLOOKUP(LEFT(C18,FIND(":",C18)-1),tSeed_Add[],4,FALSE),0),0) -> 0 | AP18: =IF(AND(D18<>" ",D18<>""),IF(VLOOKUP(LEFT(D18,FIND(":",D18)-1),tSeed_Add[],5,FALSE)="Yes",VLOOKUP(LEFT(D18,FIND(":",D18)-1),tSeed_Add[],4,FALSE),0),0) -> 0 | AQ18: =IF(AND(E18<>" ",E18<>""),IF(VLOOKUP(LEFT(E18,FIND(":",E18)-1),tSeed_Add[],5,FALSE)="Yes",VLOOKUP(LEFT(E18,FIND(":",E18)-1),tSeed_Add[],4,FALSE),0),0) -> 0 | AR18: =IF(AND(F18<>" ",F18<>""),IF(VLOOKUP(LEFT(F18,FIND(":",F18)-1),tSeed_Add[],5,FALSE)="Yes",VLOOKUP(LEFT(F18,FIND(":",F18)-1),tSeed_Add[],4,FALSE),0),0) -> 0 | AS18: =IF(AND(G18<>" ",G18<>""),IF(VLOOKUP(LEFT(G18,FIND(":",G18)-1),tSeed_Add[],5,FALSE)="Yes",VLOOKUP(LEFT(G18,FIND(":",G18)-1),tSeed_Add[],4,FALSE),0),0) -> 0 | AT18: =IF(AND(H18<>" ",H18<>""),IF(VLOOKUP(LEFT(H18,FIND(":",H18)-1),tSeed_Add[],5,FALSE)="Yes",VLOOKUP(LEFT(H18,FIND(":",H18)-1),tSeed_Add[],4,FALSE),0),0) -> 0 | AU18: =IF(AND(I18<>" ",I18<>""),IF(VLOOKUP(LEFT(I18,FIND(":",I18)-1),tSeed_Add[],5,FALSE)="Yes",VLOOKUP(LEFT(I18,FIND(":",I18)-1),tSeed_Add[],4,FALSE),0),0) -> 0 | AV18: =IF(AND(J18<>" ",J18<>""),IF(VLOOKUP(LEFT(J18,FIND(":",J18)-1),tSeed_Add[],5,FALSE)="Yes",VLOOKUP(LEFT(J18,FIND(":",J18)-1),tSeed_Add[],4,FALSE),0),0) -> 0 | AW18: =IF(LEFT(OFFSET(rSP_Mix1,7,5),1)="y",OFFSET(rSP_Mix1,10,5)*AW19,0) -> 0 | AX18: =IF(LEFT(OFFSET(rSP_Mix1,7,5),1)="y",OFFSET(rSP_Mix1,10,5)*AX19,0) -> 0
A19: =IF(fRowHeight=0,"Click on the Plus Sign (+) on the left to show the "&A9&" Selection Matrix","Click on the Minus Sign (-) on the left to hide the "&A9&" Selection Matrix") -> Click on the Minus Sign (-) on the left to hide the Core Mix 1 Selection Matrix | AB19: Core Mix 1 Total Seed | AC19: =SUM(AC10:AC18) -> 0 | AD19: 0 | AE19: 0 | AF19: 0 | AG19: 0 | AH19: 0 | AI19: 0 | AJ19: 0 | AK19: =MAX(AC19,AE19,AG19,AI19) -> 0 | AL19: =MAX(AD19,AF19,AH19,AJ19) -> 0 | AN19: Core Mix 1 Total Legumes | AO19: =SUM(AO10:AO18) -> 0 | AP19: 0 | AQ19: 0 | AR19: 0 | AS19: 0 | AT19: 0 | AU19: 0 | AV19: 0 | AW19: =MAX(AO19,AQ19,AS19,AU19) -> 0 | AX19: =MAX(AP19,AR19,AT19,AV19) -> 0
B20: =IF(C20<>"","WARNING:","") -> WARNING: | C20: =IF(iNumMixes<2,"2nd Mix not selected on Start Page (Proj. Q's #5)",IF(Area_PS2<0.01,"No Area assigned to Core Mix 2 (on start page)","")) -> 2nd Mix not selected on Start Page (Proj. Q's #5)
A21: Core Mix 2 | B21: Mix Code | C21: ="("&IF(AND(C22<>" ",C22<>""),LEFT(C22,FIND(":",C22)-1),"")&")"&IF(AND(C25<>" ",C25<>""),LEFT(C25,1),"")&IF(AND(C26<>" ",C26<>""),LEFT(C26,1),"")&IF(AND(C27<>" ",C27<>""),LEFT(C27,1),"")&IF(AND(C28<>" ",C28<>""),LEFT(C28,1),"")&IF(AND(C29<>" ",C29<>""),LEFT(C29,1),"")&IF(AND(C30<>" ",C30<>""),LEFT(C30,1),"") -> () | D21: ="("&IF(AND(D22<>" ",D22<>""),LEFT(D22,FIND(":",D22)-1),"")&")"&IF(AND(D25<>" ",D25<>""),LEFT(D25,1),"")&IF(AND(D26<>" ",D26<>""),LEFT(D26,1),"")&IF(AND(D27<>" ",D27<>""),LEFT(D27,1),"")&IF(AND(D28<>" ",D28<>""),LEFT(D28,1),"")&IF(AND(D29<>" ",D29<>""),LEFT(D29,1),"")&IF(AND(D30<>" ",D30<>""),LEFT(D30,1),"") -> () | E21: ="("&IF(AND(E22<>" ",E22<>""),LEFT(E22,FIND(":",E22)-1),"")&")"&IF(AND(E25<>" ",E25<>""),LEFT(E25,1),"")&IF(AND(E26<>" ",E26<>""),LEFT(E26,1),"")&IF(AND(E27<>" ",E27<>""),LEFT(E27,1),"")&IF(AND(E28<>" ",E28<>""),LEFT(E28,1),"")&IF(AND(E29<>" ",E29<>""),LEFT(E29,1),"")&IF(AND(E30<>" ",E30<>""),LEFT(E30,1),"") -> () | F21: () | G21: () | H21: () | I21: () | J21: () | K21: Mix Description: | M21: =OFFSET(rSP_Mix2,1,5) -> 0 | AB21: Mix Code | AC21: =$C21 -> () | AD21: =$D21 -> () | AE21: =$E21 -> () | AF21: =$F21 -> () | AG21: =$G21 -> () | AH21: =$H21 -> () | AI21: =$I21 -> () | AJ21: =$J21 -> () | AN21: Mix Code | AO21: =$C21 -> () | AP21: =$D21 -> () | AQ21: =$E21 -> () | AR21: =$F21 -> () | AS21: =$G21 -> () | AT21: =$H21 -> () | AU21: =$I21 -> () | AV21: =$J21 -> ()
B22: Core Mixture (1, 2, 3…) | AB22: Core Mixture (1, 2, 3…) | AC22: =IF(AND(C22<>" ",C22<>""),VLOOKUP(LEFT(C22,FIND(":",C22)-1),tSeed_Core[],4,FALSE),0) -> 0 | AD22: =IF(AND(D22<>" ",D22<>""),VLOOKUP(LEFT(D22,FIND(":",D22)-1),tSeed_Core[],4,FALSE),0) -> 0 | AE22: =IF(AND(E22<>" ",E22<>""),VLOOKUP(LEFT(E22,FIND(":",E22)-1),tSeed_Core[],4,FALSE),0) -> 0 | AF22: =IF(AND(F22<>" ",F22<>""),VLOOKUP(LEFT(F22,FIND(":",F22)-1),tSeed_Core[],4,FALSE),0) -> 0 | AG22: =IF(AND(G22<>" ",G22<>""),VLOOKUP(LEFT(G22,FIND(":",G22)-1),tSeed_Core[],4,FALSE),0) -> 0 | AH22: =IF(AND(H22<>" ",H22<>""),VLOOKUP(LEFT(H22,FIND(":",H22)-1),tSeed_Core[],4,FALSE),0) -> 0 | AI22: =IF(AND(I22<>" ",I22<>""),VLOOKUP(LEFT(I22,FIND(":",I22)-1),tSeed_Core[],4,FALSE),0) -> 0 | AJ22: =IF(AND(J22<>" ",J22<>""),VLOOKUP(LEFT(J22,FIND(":",J22)-1),tSeed_Core[],4,FALSE),0) -> 0 | AN22: Core Mixture (1, 2, 3…) | AO22: =IF(LEFT(C22,1)="C",VLOOKUP(LEFT(C22,FIND(":",C22)-1),tSeed_Core[],5,FALSE),0) -> 0 | AP22: =IF(LEFT(D22,1)="C",VLOOKUP(LEFT(D22,FIND(":",D22)-1),tSeed_Core[],5,FALSE),0) -> 0 | AQ22: =IF(LEFT(E22,1)="C",VLOOKUP(LEFT(E22,FIND(":",E22)-1),tSeed_Core[],5,FALSE),0) -> 0 | AR22: =IF(LEFT(F22,1)="C",VLOOKUP(LEFT(F22,FIND(":",F22)-1),tSeed_Core[],5,FALSE),0) -> 0 | AS22: =IF(LEFT(G22,1)="C",VLOOKUP(LEFT(G22,FIND(":",G22)-1),tSeed_Core[],5,FALSE),0) -> 0 | AT22: =IF(LEFT(H22,1)="C",VLOOKUP(LEFT(H22,FIND(":",H22)-1),tSeed_Core[],5,FALSE),0) -> 0 | AU22: =IF(LEFT(I22,1)="C",VLOOKUP(LEFT(I22,FIND(":",I22)-1),tSeed_Core[],5,FALSE),0) -> 0 | AV22: =IF(LEFT(J22,1)="C",VLOOKUP(LEFT(J22,FIND(":",J22)-1),tSeed_Core[],5,FALSE),0) -> 0
B23: =IF(COUNTIF(AC23:AJ23,"Yes")>0,"Specific Type of Fine Fescue","n/a") -> n/a | AB23: Fine Fescue? | AC23: =IF(RIGHT(C22,1)="*","Yes","No") -> No | AD23: =IF(RIGHT(D22,1)="*","Yes","No") -> No | AE23: =IF(RIGHT(E22,1)="*","Yes","No") -> No | AF23: =IF(RIGHT(F22,1)="*","Yes","No") -> No | AG23: =IF(RIGHT(G22,1)="*","Yes","No") -> No | AH23: =IF(RIGHT(H22,1)="*","Yes","No") -> No | AI23: =IF(RIGHT(I22,1)="*","Yes","No") -> No | AJ23: =IF(RIGHT(J22,1)="*","Yes","No") -> No
B24: =IF(COUNTIF(AC24:AJ24,"Yes")>0,"Specify Other Type","n/a") -> n/a | AB24: User Entry? | AC24: =IF(LEFT(C23,5)="Other","Yes","No") -> No | AD24: =IF(LEFT(D23,5)="Other","Yes","No") -> No | AE24: =IF(LEFT(E23,5)="Other","Yes","No") -> No | AF24: =IF(LEFT(F23,5)="Other","Yes","No") -> No | AG24: =IF(LEFT(G23,5)="Other","Yes","No") -> No | AH24: =IF(LEFT(H23,5)="Other","Yes","No") -> No | AI24: =IF(LEFT(I23,5)="Other","Yes","No") -> No | AJ24: =IF(LEFT(J23,5)="Other","Yes","No") -> No
B25: Additive 1 (A, B, C…) | K25: =IF(OR(AND(COUNTIF(C22:H22,"C1:*")>0,OFFSET(rSeedCustom_1,1,1)<0.01),AND(COUNTIF(C22:H22,"C2:*")>0,OFFSET(rSeedCustom_2,1,1)<0.01),AND(COUNTIF(C22:H22,"C3:*")>0,OFFSET(rSeedCustom_3,1,1)<0.01)),"Please Check the Custom Seed Mix inputs on the Seed Mix Selection tab","") ->  | AB25: Additive 1 (A, B, C…) | AC25: =IF(AND(C25<>" ",C25<>""),IF(VLOOKUP(LEFT(C25,FIND(":",C25)-1),tSeed_Add[],5,FALSE)="No",VLOOKUP(LEFT(C25,FIND(":",C25)-1),tSeed_Add[],4,FALSE),0),0) -> 0 | AD25: =IF(AND(D25<>" ",D25<>""),IF(VLOOKUP(LEFT(D25,FIND(":",D25)-1),tSeed_Add[],5,FALSE)="No",VLOOKUP(LEFT(D25,FIND(":",D25)-1),tSeed_Add[],4,FALSE),0),0) -> 0 | AE25: =IF(AND(E25<>" ",E25<>""),IF(VLOOKUP(LEFT(E25,FIND(":",E25)-1),tSeed_Add[],5,FALSE)="No",VLOOKUP(LEFT(E25,FIND(":",E25)-1),tSeed_Add[],4,FALSE),0),0) -> 0 | AF25: =IF(AND(F25<>" ",F25<>""),IF(VLOOKUP(LEFT(F25,FIND(":",F25)-1),tSeed_Add[],5,FALSE)="No",VLOOKUP(LEFT(F25,FIND(":",F25)-1),tSeed_Add[],4,FALSE),0),0) -> 0 | AG25: =IF(AND(G25<>" ",G25<>""),IF(VLOOKUP(LEFT(G25,FIND(":",G25)-1),tSeed_Add[],5,FALSE)="No",VLOOKUP(LEFT(G25,FIND(":",G25)-1),tSeed_Add[],4,FALSE),0),0) -> 0 | AH25: =IF(AND(H25<>" ",H25<>""),IF(VLOOKUP(LEFT(H25,FIND(":",H25)-1),tSeed_Add[],5,FALSE)="No",VLOOKUP(LEFT(H25,FIND(":",H25)-1),tSeed_Add[],4,FALSE),0),0) -> 0 | AI25: =IF(AND(I25<>" ",I25<>""),IF(VLOOKUP(LEFT(I25,FIND(":",I25)-1),tSeed_Add[],5,FALSE)="No",VLOOKUP(LEFT(I25,FIND(":",I25)-1),tSeed_Add[],4,FALSE),0),0) -> 0 | AJ25: =IF(AND(J25<>" ",J25<>""),IF(VLOOKUP(LEFT(J25,FIND(":",J25)-1),tSeed_Add[],5,FALSE)="No",VLOOKUP(LEFT(J25,FIND(":",J25)-1),tSeed_Add[],4,FALSE),0),0) -> 0 | AN25: Additive 1 (A, B, C…) | AO25: =IF(AND(C25<>" ",C25<>""),IF(VLOOKUP(LEFT(C25,FIND(":",C25)-1),tSeed_Add[],5,FALSE)="Yes",VLOOKUP(LEFT(C25,FIND(":",C25)-1),tSeed_Add[],4,FALSE),0),0) -> 0 | AP25: =IF(AND(D25<>" ",D25<>""),IF(VLOOKUP(LEFT(D25,FIND(":",D25)-1),tSeed_Add[],5,FALSE)="Yes",VLOOKUP(LEFT(D25,FIND(":",D25)-1),tSeed_Add[],4,FALSE),0),0) -> 0 | AQ25: =IF(AND(E25<>" ",E25<>""),IF(VLOOKUP(LEFT(E25,FIND(":",E25)-1),tSeed_Add[],5,FALSE)="Yes",VLOOKUP(LEFT(E25,FIND(":",E25)-1),tSeed_Add[],4,FALSE),0),0) -> 0 | AR25: =IF(AND(F25<>" ",F25<>""),IF(VLOOKUP(LEFT(F25,FIND(":",F25)-1),tSeed_Add[],5,FALSE)="Yes",VLOOKUP(LEFT(F25,FIND(":",F25)-1),tSeed_Add[],4,FALSE),0),0) -> 0 | AS25: =IF(AND(G25<>" ",G25<>""),IF(VLOOKUP(LEFT(G25,FIND(":",G25)-1),tSeed_Add[],5,FALSE)="Yes",VLOOKUP(LEFT(G25,FIND(":",G25)-1),tSeed_Add[],4,FALSE),0),0) -> 0 | AT25: =IF(AND(H25<>" ",H25<>""),IF(VLOOKUP(LEFT(H25,FIND(":",H25)-1),tSeed_Add[],5,FALSE)="Yes",VLOOKUP(LEFT(H25,FIND(":",H25)-1),tSeed_Add[],4,FALSE),0),0) -> 0 | AU25: =IF(AND(I25<>" ",I25<>""),IF(VLOOKUP(LEFT(I25,FIND(":",I25)-1),tSeed_Add[],5,FALSE)="Yes",VLOOKUP(LEFT(I25,FIND(":",I25)-1),tSeed_Add[],4,FALSE),0),0) -> 0 | AV25: =IF(AND(J25<>" ",J25<>""),IF(VLOOKUP(LEFT(J25,FIND(":",J25)-1),tSeed_Add[],5,FALSE)="Yes",VLOOKUP(LEFT(J25,FIND(":",J25)-1),tSeed_Add[],4,FALSE),0),0) -> 0
B26: Additive 2 (A, B, C…) | AB26: Additive 2 (A, B, C…) | AC26: =IF(AND(C26<>" ",C26<>""),IF(VLOOKUP(LEFT(C26,FIND(":",C26)-1),tSeed_Add[],5,FALSE)="No",VLOOKUP(LEFT(C26,FIND(":",C26)-1),tSeed_Add[],4,FALSE),0),0) -> 0 | AD26: =IF(AND(D26<>" ",D26<>""),IF(VLOOKUP(LEFT(D26,FIND(":",D26)-1),tSeed_Add[],5,FALSE)="No",VLOOKUP(LEFT(D26,FIND(":",D26)-1),tSeed_Add[],4,FALSE),0),0) -> 0 | AE26: =IF(AND(E26<>" ",E26<>""),IF(VLOOKUP(LEFT(E26,FIND(":",E26)-1),tSeed_Add[],5,FALSE)="No",VLOOKUP(LEFT(E26,FIND(":",E26)-1),tSeed_Add[],4,FALSE),0),0) -> 0 | AF26: =IF(AND(F26<>" ",F26<>""),IF(VLOOKUP(LEFT(F26,FIND(":",F26)-1),tSeed_Add[],5,FALSE)="No",VLOOKUP(LEFT(F26,FIND(":",F26)-1),tSeed_Add[],4,FALSE),0),0) -> 0 | AG26: =IF(AND(G26<>" ",G26<>""),IF(VLOOKUP(LEFT(G26,FIND(":",G26)-1),tSeed_Add[],5,FALSE)="No",VLOOKUP(LEFT(G26,FIND(":",G26)-1),tSeed_Add[],4,FALSE),0),0) -> 0 | AH26: =IF(AND(H26<>" ",H26<>""),IF(VLOOKUP(LEFT(H26,FIND(":",H26)-1),tSeed_Add[],5,FALSE)="No",VLOOKUP(LEFT(H26,FIND(":",H26)-1),tSeed_Add[],4,FALSE),0),0) -> 0 | AI26: =IF(AND(I26<>" ",I26<>""),IF(VLOOKUP(LEFT(I26,FIND(":",I26)-1),tSeed_Add[],5,FALSE)="No",VLOOKUP(LEFT(I26,FIND(":",I26)-1),tSeed_Add[],4,FALSE),0),0) -> 0 | AJ26: =IF(AND(J26<>" ",J26<>""),IF(VLOOKUP(LEFT(J26,FIND(":",J26)-1),tSeed_Add[],5,FALSE)="No",VLOOKUP(LEFT(J26,FIND(":",J26)-1),tSeed_Add[],4,FALSE),0),0) -> 0 | AN26: Additive 2 (A, B, C…) | AO26: =IF(AND(C26<>" ",C26<>""),IF(VLOOKUP(LEFT(C26,FIND(":",C26)-1),tSeed_Add[],5,FALSE)="Yes",VLOOKUP(LEFT(C26,FIND(":",C26)-1),tSeed_Add[],4,FALSE),0),0) -> 0 | AP26: =IF(AND(D26<>" ",D26<>""),IF(VLOOKUP(LEFT(D26,FIND(":",D26)-1),tSeed_Add[],5,FALSE)="Yes",VLOOKUP(LEFT(D26,FIND(":",D26)-1),tSeed_Add[],4,FALSE),0),0) -> 0 | AQ26: =IF(AND(E26<>" ",E26<>""),IF(VLOOKUP(LEFT(E26,FIND(":",E26)-1),tSeed_Add[],5,FALSE)="Yes",VLOOKUP(LEFT(E26,FIND(":",E26)-1),tSeed_Add[],4,FALSE),0),0) -> 0 | AR26: =IF(AND(F26<>" ",F26<>""),IF(VLOOKUP(LEFT(F26,FIND(":",F26)-1),tSeed_Add[],5,FALSE)="Yes",VLOOKUP(LEFT(F26,FIND(":",F26)-1),tSeed_Add[],4,FALSE),0),0) -> 0 | AS26: =IF(AND(G26<>" ",G26<>""),IF(VLOOKUP(LEFT(G26,FIND(":",G26)-1),tSeed_Add[],5,FALSE)="Yes",VLOOKUP(LEFT(G26,FIND(":",G26)-1),tSeed_Add[],4,FALSE),0),0) -> 0 | AT26: =IF(AND(H26<>" ",H26<>""),IF(VLOOKUP(LEFT(H26,FIND(":",H26)-1),tSeed_Add[],5,FALSE)="Yes",VLOOKUP(LEFT(H26,FIND(":",H26)-1),tSeed_Add[],4,FALSE),0),0) -> 0 | AU26: =IF(AND(I26<>" ",I26<>""),IF(VLOOKUP(LEFT(I26,FIND(":",I26)-1),tSeed_Add[],5,FALSE)="Yes",VLOOKUP(LEFT(I26,FIND(":",I26)-1),tSeed_Add[],4,FALSE),0),0) -> 0 | AV26: =IF(AND(J26<>" ",J26<>""),IF(VLOOKUP(LEFT(J26,FIND(":",J26)-1),tSeed_Add[],5,FALSE)="Yes",VLOOKUP(LEFT(J26,FIND(":",J26)-1),tSeed_Add[],4,FALSE),0),0) -> 0
B27: Additive 3 (A, B, C…) | AB27: Additive 3 (A, B, C…) | AC27: =IF(AND(C27<>" ",C27<>""),IF(VLOOKUP(LEFT(C27,FIND(":",C27)-1),tSeed_Add[],5,FALSE)="No",VLOOKUP(LEFT(C27,FIND(":",C27)-1),tSeed_Add[],4,FALSE),0),0) -> 0 | AD27: =IF(AND(D27<>" ",D27<>""),IF(VLOOKUP(LEFT(D27,FIND(":",D27)-1),tSeed_Add[],5,FALSE)="No",VLOOKUP(LEFT(D27,FIND(":",D27)-1),tSeed_Add[],4,FALSE),0),0) -> 0 | AE27: =IF(AND(E27<>" ",E27<>""),IF(VLOOKUP(LEFT(E27,FIND(":",E27)-1),tSeed_Add[],5,FALSE)="No",VLOOKUP(LEFT(E27,FIND(":",E27)-1),tSeed_Add[],4,FALSE),0),0) -> 0 | AF27: =IF(AND(F27<>" ",F27<>""),IF(VLOOKUP(LEFT(F27,FIND(":",F27)-1),tSeed_Add[],5,FALSE)="No",VLOOKUP(LEFT(F27,FIND(":",F27)-1),tSeed_Add[],4,FALSE),0),0) -> 0 | AG27: =IF(AND(G27<>" ",G27<>""),IF(VLOOKUP(LEFT(G27,FIND(":",G27)-1),tSeed_Add[],5,FALSE)="No",VLOOKUP(LEFT(G27,FIND(":",G27)-1),tSeed_Add[],4,FALSE),0),0) -> 0 | AH27: =IF(AND(H27<>" ",H27<>""),IF(VLOOKUP(LEFT(H27,FIND(":",H27)-1),tSeed_Add[],5,FALSE)="No",VLOOKUP(LEFT(H27,FIND(":",H27)-1),tSeed_Add[],4,FALSE),0),0) -> 0 | AI27: =IF(AND(I27<>" ",I27<>""),IF(VLOOKUP(LEFT(I27,FIND(":",I27)-1),tSeed_Add[],5,FALSE)="No",VLOOKUP(LEFT(I27,FIND(":",I27)-1),tSeed_Add[],4,FALSE),0),0) -> 0 | AJ27: =IF(AND(J27<>" ",J27<>""),IF(VLOOKUP(LEFT(J27,FIND(":",J27)-1),tSeed_Add[],5,FALSE)="No",VLOOKUP(LEFT(J27,FIND(":",J27)-1),tSeed_Add[],4,FALSE),0),0) -> 0 | AN27: Additive 3 (A, B, C…) | AO27: =IF(AND(C27<>" ",C27<>""),IF(VLOOKUP(LEFT(C27,FIND(":",C27)-1),tSeed_Add[],5,FALSE)="Yes",VLOOKUP(LEFT(C27,FIND(":",C27)-1),tSeed_Add[],4,FALSE),0),0) -> 0 | AP27: =IF(AND(D27<>" ",D27<>""),IF(VLOOKUP(LEFT(D27,FIND(":",D27)-1),tSeed_Add[],5,FALSE)="Yes",VLOOKUP(LEFT(D27,FIND(":",D27)-1),tSeed_Add[],4,FALSE),0),0) -> 0 | AQ27: =IF(AND(E27<>" ",E27<>""),IF(VLOOKUP(LEFT(E27,FIND(":",E27)-1),tSeed_Add[],5,FALSE)="Yes",VLOOKUP(LEFT(E27,FIND(":",E27)-1),tSeed_Add[],4,FALSE),0),0) -> 0 | AR27: =IF(AND(F27<>" ",F27<>""),IF(VLOOKUP(LEFT(F27,FIND(":",F27)-1),tSeed_Add[],5,FALSE)="Yes",VLOOKUP(LEFT(F27,FIND(":",F27)-1),tSeed_Add[],4,FALSE),0),0) -> 0 | AS27: =IF(AND(G27<>" ",G27<>""),IF(VLOOKUP(LEFT(G27,FIND(":",G27)-1),tSeed_Add[],5,FALSE)="Yes",VLOOKUP(LEFT(G27,FIND(":",G27)-1),tSeed_Add[],4,FALSE),0),0) -> 0 | AT27: =IF(AND(H27<>" ",H27<>""),IF(VLOOKUP(LEFT(H27,FIND(":",H27)-1),tSeed_Add[],5,FALSE)="Yes",VLOOKUP(LEFT(H27,FIND(":",H27)-1),tSeed_Add[],4,FALSE),0),0) -> 0 | AU27: =IF(AND(I27<>" ",I27<>""),IF(VLOOKUP(LEFT(I27,FIND(":",I27)-1),tSeed_Add[],5,FALSE)="Yes",VLOOKUP(LEFT(I27,FIND(":",I27)-1),tSeed_Add[],4,FALSE),0),0) -> 0 | AV27: =IF(AND(J27<>" ",J27<>""),IF(VLOOKUP(LEFT(J27,FIND(":",J27)-1),tSeed_Add[],5,FALSE)="Yes",VLOOKUP(LEFT(J27,FIND(":",J27)-1),tSeed_Add[],4,FALSE),0),0) -> 0
B28: Additive 4 (A, B, C…) | AB28: Additive 4 (A, B, C…) | AC28: =IF(AND(C28<>" ",C28<>""),IF(VLOOKUP(LEFT(C28,FIND(":",C28)-1),tSeed_Add[],5,FALSE)="No",VLOOKUP(LEFT(C28,FIND(":",C28)-1),tSeed_Add[],4,FALSE),0),0) -> 0 | AD28: =IF(AND(D28<>" ",D28<>""),IF(VLOOKUP(LEFT(D28,FIND(":",D28)-1),tSeed_Add[],5,FALSE)="No",VLOOKUP(LEFT(D28,FIND(":",D28)-1),tSeed_Add[],4,FALSE),0),0) -> 0 | AE28: =IF(AND(E28<>" ",E28<>""),IF(VLOOKUP(LEFT(E28,FIND(":",E28)-1),tSeed_Add[],5,FALSE)="No",VLOOKUP(LEFT(E28,FIND(":",E28)-1),tSeed_Add[],4,FALSE),0),0) -> 0 | AF28: =IF(AND(F28<>" ",F28<>""),IF(VLOOKUP(LEFT(F28,FIND(":",F28)-1),tSeed_Add[],5,FALSE)="No",VLOOKUP(LEFT(F28,FIND(":",F28)-1),tSeed_Add[],4,FALSE),0),0) -> 0 | AG28: =IF(AND(G28<>" ",G28<>""),IF(VLOOKUP(LEFT(G28,FIND(":",G28)-1),tSeed_Add[],5,FALSE)="No",VLOOKUP(LEFT(G28,FIND(":",G28)-1),tSeed_Add[],4,FALSE),0),0) -> 0 | AH28: =IF(AND(H28<>" ",H28<>""),IF(VLOOKUP(LEFT(H28,FIND(":",H28)-1),tSeed_Add[],5,FALSE)="No",VLOOKUP(LEFT(H28,FIND(":",H28)-1),tSeed_Add[],4,FALSE),0),0) -> 0 | AI28: =IF(AND(I28<>" ",I28<>""),IF(VLOOKUP(LEFT(I28,FIND(":",I28)-1),tSeed_Add[],5,FALSE)="No",VLOOKUP(LEFT(I28,FIND(":",I28)-1),tSeed_Add[],4,FALSE),0),0) -> 0 | AJ28: =IF(AND(J28<>" ",J28<>""),IF(VLOOKUP(LEFT(J28,FIND(":",J28)-1),tSeed_Add[],5,FALSE)="No",VLOOKUP(LEFT(J28,FIND(":",J28)-1),tSeed_Add[],4,FALSE),0),0) -> 0 | AN28: Additive 4 (A, B, C…) | AO28: =IF(AND(C28<>" ",C28<>""),IF(VLOOKUP(LEFT(C28,FIND(":",C28)-1),tSeed_Add[],5,FALSE)="Yes",VLOOKUP(LEFT(C28,FIND(":",C28)-1),tSeed_Add[],4,FALSE),0),0) -> 0 | AP28: =IF(AND(D28<>" ",D28<>""),IF(VLOOKUP(LEFT(D28,FIND(":",D28)-1),tSeed_Add[],5,FALSE)="Yes",VLOOKUP(LEFT(D28,FIND(":",D28)-1),tSeed_Add[],4,FALSE),0),0) -> 0 | AQ28: =IF(AND(E28<>" ",E28<>""),IF(VLOOKUP(LEFT(E28,FIND(":",E28)-1),tSeed_Add[],5,FALSE)="Yes",VLOOKUP(LEFT(E28,FIND(":",E28)-1),tSeed_Add[],4,FALSE),0),0) -> 0 | AR28: =IF(AND(F28<>" ",F28<>""),IF(VLOOKUP(LEFT(F28,FIND(":",F28)-1),tSeed_Add[],5,FALSE)="Yes",VLOOKUP(LEFT(F28,FIND(":",F28)-1),tSeed_Add[],4,FALSE),0),0) -> 0 | AS28: =IF(AND(G28<>" ",G28<>""),IF(VLOOKUP(LEFT(G28,FIND(":",G28)-1),tSeed_Add[],5,FALSE)="Yes",VLOOKUP(LEFT(G28,FIND(":",G28)-1),tSeed_Add[],4,FALSE),0),0) -> 0 | AT28: =IF(AND(H28<>" ",H28<>""),IF(VLOOKUP(LEFT(H28,FIND(":",H28)-1),tSeed_Add[],5,FALSE)="Yes",VLOOKUP(LEFT(H28,FIND(":",H28)-1),tSeed_Add[],4,FALSE),0),0) -> 0 | AU28: =IF(AND(I28<>" ",I28<>""),IF(VLOOKUP(LEFT(I28,FIND(":",I28)-1),tSeed_Add[],5,FALSE)="Yes",VLOOKUP(LEFT(I28,FIND(":",I28)-1),tSeed_Add[],4,FALSE),0),0) -> 0 | AV28: =IF(AND(J28<>" ",J28<>""),IF(VLOOKUP(LEFT(J28,FIND(":",J28)-1),tSeed_Add[],5,FALSE)="Yes",VLOOKUP(LEFT(J28,FIND(":",J28)-1),tSeed_Add[],4,FALSE),0),0) -> 0
B29: Additive 5 (A, B, C…) | AB29: Additive 5 (A, B, C…) | AC29: =IF(AND(C29<>" ",C29<>""),IF(VLOOKUP(LEFT(C29,FIND(":",C29)-1),tSeed_Add[],5,FALSE)="No",VLOOKUP(LEFT(C29,FIND(":",C29)-1),tSeed_Add[],4,FALSE),0),0) -> 0 | AD29: =IF(AND(D29<>" ",D29<>""),IF(VLOOKUP(LEFT(D29,FIND(":",D29)-1),tSeed_Add[],5,FALSE)="No",VLOOKUP(LEFT(D29,FIND(":",D29)-1),tSeed_Add[],4,FALSE),0),0) -> 0 | AE29: =IF(AND(E29<>" ",E29<>""),IF(VLOOKUP(LEFT(E29,FIND(":",E29)-1),tSeed_Add[],5,FALSE)="No",VLOOKUP(LEFT(E29,FIND(":",E29)-1),tSeed_Add[],4,FALSE),0),0) -> 0 | AF29: =IF(AND(F29<>" ",F29<>""),IF(VLOOKUP(LEFT(F29,FIND(":",F29)-1),tSeed_Add[],5,FALSE)="No",VLOOKUP(LEFT(F29,FIND(":",F29)-1),tSeed_Add[],4,FALSE),0),0) -> 0 | AG29: =IF(AND(G29<>" ",G29<>""),IF(VLOOKUP(LEFT(G29,FIND(":",G29)-1),tSeed_Add[],5,FALSE)="No",VLOOKUP(LEFT(G29,FIND(":",G29)-1),tSeed_Add[],4,FALSE),0),0) -> 0 | AH29: =IF(AND(H29<>" ",H29<>""),IF(VLOOKUP(LEFT(H29,FIND(":",H29)-1),tSeed_Add[],5,FALSE)="No",VLOOKUP(LEFT(H29,FIND(":",H29)-1),tSeed_Add[],4,FALSE),0),0) -> 0 | AI29: =IF(AND(I29<>" ",I29<>""),IF(VLOOKUP(LEFT(I29,FIND(":",I29)-1),tSeed_Add[],5,FALSE)="No",VLOOKUP(LEFT(I29,FIND(":",I29)-1),tSeed_Add[],4,FALSE),0),0) -> 0 | AJ29: =IF(AND(J29<>" ",J29<>""),IF(VLOOKUP(LEFT(J29,FIND(":",J29)-1),tSeed_Add[],5,FALSE)="No",VLOOKUP(LEFT(J29,FIND(":",J29)-1),tSeed_Add[],4,FALSE),0),0) -> 0 | AK29: Adjusted Rate (if Applicable) | AN29: Additive 5 (A, B, C…) | AO29: =IF(AND(C29<>" ",C29<>""),IF(VLOOKUP(LEFT(C29,FIND(":",C29)-1),tSeed_Add[],5,FALSE)="Yes",VLOOKUP(LEFT(C29,FIND(":",C29)-1),tSeed_Add[],4,FALSE),0),0) -> 0 | AP29: =IF(AND(D29<>" ",D29<>""),IF(VLOOKUP(LEFT(D29,FIND(":",D29)-1),tSeed_Add[],5,FALSE)="Yes",VLOOKUP(LEFT(D29,FIND(":",D29)-1),tSeed_Add[],4,FALSE),0),0) -> 0 | AQ29: =IF(AND(E29<>" ",E29<>""),IF(VLOOKUP(LEFT(E29,FIND(":",E29)-1),tSeed_Add[],5,FALSE)="Yes",VLOOKUP(LEFT(E29,FIND(":",E29)-1),tSeed_Add[],4,FALSE),0),0) -> 0 | AR29: =IF(AND(F29<>" ",F29<>""),IF(VLOOKUP(LEFT(F29,FIND(":",F29)-1),tSeed_Add[],5,FALSE)="Yes",VLOOKUP(LEFT(F29,FIND(":",F29)-1),tSeed_Add[],4,FALSE),0),0) -> 0 | AS29: =IF(AND(G29<>" ",G29<>""),IF(VLOOKUP(LEFT(G29,FIND(":",G29)-1),tSeed_Add[],5,FALSE)="Yes",VLOOKUP(LEFT(G29,FIND(":",G29)-1),tSeed_Add[],4,FALSE),0),0) -> 0 | AT29: =IF(AND(H29<>" ",H29<>""),IF(VLOOKUP(LEFT(H29,FIND(":",H29)-1),tSeed_Add[],5,FALSE)="Yes",VLOOKUP(LEFT(H29,FIND(":",H29)-1),tSeed_Add[],4,FALSE),0),0) -> 0 | AU29: =IF(AND(I29<>" ",I29<>""),IF(VLOOKUP(LEFT(I29,FIND(":",I29)-1),tSeed_Add[],5,FALSE)="Yes",VLOOKUP(LEFT(I29,FIND(":",I29)-1),tSeed_Add[],4,FALSE),0),0) -> 0 | AV29: =IF(AND(J29<>" ",J29<>""),IF(VLOOKUP(LEFT(J29,FIND(":",J29)-1),tSeed_Add[],5,FALSE)="Yes",VLOOKUP(LEFT(J29,FIND(":",J29)-1),tSeed_Add[],4,FALSE),0),0) -> 0 | AW29: Adjusted Rate (if Applicable)
B30: Additive 6 (A, B, C…) | AB30: Additive 6 (A, B, C…) | AC30: =IF(AND(C30<>" ",C30<>""),IF(VLOOKUP(LEFT(C30,FIND(":",C30)-1),tSeed_Add[],5,FALSE)="No",VLOOKUP(LEFT(C30,FIND(":",C30)-1),tSeed_Add[],4,FALSE),0),0) -> 0 | AD30: =IF(AND(D30<>" ",D30<>""),IF(VLOOKUP(LEFT(D30,FIND(":",D30)-1),tSeed_Add[],5,FALSE)="No",VLOOKUP(LEFT(D30,FIND(":",D30)-1),tSeed_Add[],4,FALSE),0),0) -> 0 | AE30: =IF(AND(E30<>" ",E30<>""),IF(VLOOKUP(LEFT(E30,FIND(":",E30)-1),tSeed_Add[],5,FALSE)="No",VLOOKUP(LEFT(E30,FIND(":",E30)-1),tSeed_Add[],4,FALSE),0),0) -> 0 | AF30: =IF(AND(F30<>" ",F30<>""),IF(VLOOKUP(LEFT(F30,FIND(":",F30)-1),tSeed_Add[],5,FALSE)="No",VLOOKUP(LEFT(F30,FIND(":",F30)-1),tSeed_Add[],4,FALSE),0),0) -> 0 | AG30: =IF(AND(G30<>" ",G30<>""),IF(VLOOKUP(LEFT(G30,FIND(":",G30)-1),tSeed_Add[],5,FALSE)="No",VLOOKUP(LEFT(G30,FIND(":",G30)-1),tSeed_Add[],4,FALSE),0),0) -> 0 | AH30: =IF(AND(H30<>" ",H30<>""),IF(VLOOKUP(LEFT(H30,FIND(":",H30)-1),tSeed_Add[],5,FALSE)="No",VLOOKUP(LEFT(H30,FIND(":",H30)-1),tSeed_Add[],4,FALSE),0),0) -> 0 | AI30: =IF(AND(I30<>" ",I30<>""),IF(VLOOKUP(LEFT(I30,FIND(":",I30)-1),tSeed_Add[],5,FALSE)="No",VLOOKUP(LEFT(I30,FIND(":",I30)-1),tSeed_Add[],4,FALSE),0),0) -> 0 | AJ30: =IF(AND(J30<>" ",J30<>""),IF(VLOOKUP(LEFT(J30,FIND(":",J30)-1),tSeed_Add[],5,FALSE)="No",VLOOKUP(LEFT(J30,FIND(":",J30)-1),tSeed_Add[],4,FALSE),0),0) -> 0 | AK30: =IF(LEFT(OFFSET(rSP_Mix2,7,5),1)="y",OFFSET(rSP_Mix2,10,5)*AK31,0) -> 0 | AL30: =IF(LEFT(OFFSET(rSP_Mix2,7,5),1)="y",OFFSET(rSP_Mix2,10,5)*AL31,0) -> 0 | AN30: Additive 6 (A, B, C…) | AO30: =IF(AND(C30<>" ",C30<>""),IF(VLOOKUP(LEFT(C30,FIND(":",C30)-1),tSeed_Add[],5,FALSE)="Yes",VLOOKUP(LEFT(C30,FIND(":",C30)-1),tSeed_Add[],4,FALSE),0),0) -> 0 | AP30: =IF(AND(D30<>" ",D30<>""),IF(VLOOKUP(LEFT(D30,FIND(":",D30)-1),tSeed_Add[],5,FALSE)="Yes",VLOOKUP(LEFT(D30,FIND(":",D30)-1),tSeed_Add[],4,FALSE),0),0) -> 0 | AQ30: =IF(AND(E30<>" ",E30<>""),IF(VLOOKUP(LEFT(E30,FIND(":",E30)-1),tSeed_Add[],5,FALSE)="Yes",VLOOKUP(LEFT(E30,FIND(":",E30)-1),tSeed_Add[],4,FALSE),0),0) -> 0 | AR30: =IF(AND(F30<>" ",F30<>""),IF(VLOOKUP(LEFT(F30,FIND(":",F30)-1),tSeed_Add[],5,FALSE)="Yes",VLOOKUP(LEFT(F30,FIND(":",F30)-1),tSeed_Add[],4,FALSE),0),0) -> 0 | AS30: =IF(AND(G30<>" ",G30<>""),IF(VLOOKUP(LEFT(G30,FIND(":",G30)-1),tSeed_Add[],5,FALSE)="Yes",VLOOKUP(LEFT(G30,FIND(":",G30)-1),tSeed_Add[],4,FALSE),0),0) -> 0 | AT30: =IF(AND(H30<>" ",H30<>""),IF(VLOOKUP(LEFT(H30,FIND(":",H30)-1),tSeed_Add[],5,FALSE)="Yes",VLOOKUP(LEFT(H30,FIND(":",H30)-1),tSeed_Add[],4,FALSE),0),0) -> 0 | AU30: =IF(AND(I30<>" ",I30<>""),IF(VLOOKUP(LEFT(I30,FIND(":",I30)-1),tSeed_Add[],5,FALSE)="Yes",VLOOKUP(LEFT(I30,FIND(":",I30)-1),tSeed_Add[],4,FALSE),0),0) -> 0 | AV30: =IF(AND(J30<>" ",J30<>""),IF(VLOOKUP(LEFT(J30,FIND(":",J30)-1),tSeed_Add[],5,FALSE)="Yes",VLOOKUP(LEFT(J30,FIND(":",J30)-1),tSeed_Add[],4,FALSE),0),0) -> 0 | AW30: =IF(LEFT(OFFSET(rSP_Mix2,7,5),1)="y",OFFSET(rSP_Mix2,10,5)*AW31,0) -> 0 | AX30: =IF(LEFT(OFFSET(rSP_Mix2,7,5),1)="y",OFFSET(rSP_Mix2,10,5)*AX31,0) -> 0
A31: =IF(fRowHeight=0,"Click on the Plus Sign (+) on the left to show the "&A21&" Selection Matrix","Click on the Minus Sign (-) on the left to hide the "&A21&" Selection Matrix") -> Click on the Minus Sign (-) on the left to hide the Core Mix 2 Selection Matrix | AB31: Core Mix 2 Total Seed | AC31: =SUM(AC22:AC30) -> 0 | AD31: =SUM(AD22:AD30) -> 0 | AE31: 0 | AF31: 0 | AG31: 0 | AH31: 0 | AI31: 0 | AJ31: 0 | AK31: =MAX(AC31,AE31,AG31,AI31) -> 0 | AL31: =MAX(AD31,AF31,AH31,AJ31) -> 0 | AN31: Core Mix 2 Total Legumes | AO31: =SUM(AO22:AO30) -> 0 | AP31: =SUM(AP22:AP30) -> 0 | AQ31: 0 | AR31: 0 | AS31: 0 | AT31: 0 | AU31: 0 | AV31: 0 | AW31: =MAX(AO31,AQ31,AS31,AU31) -> 0 | AX31: =MAX(AP31,AR31,AT31,AV31) -> 0
B32: =IF(C32<>"","WARNING:","") -> WARNING: | C32: =IF(iNumMixes<3,"3nd Mix not selected on Start Page (Proj. Q's #5)",IF(Area_PS3<0.01,"No Area assigned to Core Mix 3 (on start page)","")) -> 3nd Mix not selected on Start Page (Proj. Q's #5)
A33: Core Mix 3 | B33: Mix Code | C33: ="("&IF(AND(C34<>" ",C34<>""),LEFT(C34,FIND(":",C34)-1),"")&")"&IF(AND(C37<>" ",C37<>""),LEFT(C37,1),"")&IF(AND(C38<>" ",C38<>""),LEFT(C38,1),"")&IF(AND(C39<>" ",C39<>""),LEFT(C39,1),"")&IF(AND(C40<>" ",C40<>""),LEFT(C40,1),"")&IF(AND(C41<>" ",C41<>""),LEFT(C41,1),"")&IF(AND(C42<>" ",C42<>""),LEFT(C42,1),"") -> () | D33: ="("&IF(AND(D34<>" ",D34<>""),LEFT(D34,FIND(":",D34)-1),"")&")"&IF(AND(D37<>" ",D37<>""),LEFT(D37,1),"")&IF(AND(D38<>" ",D38<>""),LEFT(D38,1),"")&IF(AND(D39<>" ",D39<>""),LEFT(D39,1),"")&IF(AND(D40<>" ",D40<>""),LEFT(D40,1),"")&IF(AND(D41<>" ",D41<>""),LEFT(D41,1),"")&IF(AND(D42<>" ",D42<>""),LEFT(D42,1),"") -> () | E33: ="("&IF(AND(E34<>" ",E34<>""),LEFT(E34,FIND(":",E34)-1),"")&")"&IF(AND(E37<>" ",E37<>""),LEFT(E37,1),"")&IF(AND(E38<>" ",E38<>""),LEFT(E38,1),"")&IF(AND(E39<>" ",E39<>""),LEFT(E39,1),"")&IF(AND(E40<>" ",E40<>""),LEFT(E40,1),"")&IF(AND(E41<>" ",E41<>""),LEFT(E41,1),"")&IF(AND(E42<>" ",E42<>""),LEFT(E42,1),"") -> () | F33: () | G33: () | H33: () | I33: () | J33: () | K33: Mix Description: | M33: =OFFSET(rSP_Mix3,1,5) -> 0 | AB33: Mix Code | AC33: =$C33 -> () | AD33: =$D33 -> () | AE33: =$E33 -> () | AF33: =$F33 -> () | AG33: =$G33 -> () | AH33: =$H33 -> () | AI33: =$I33 -> () | AJ33: =$J33 -> () | AN33: Mix Code | AO33: =$C33 -> () | AP33: =$D33 -> () | AQ33: =$E33 -> () | AR33: =$F33 -> () | AS33: =$G33 -> () | AT33: =$H33 -> () | AU33: =$I33 -> () | AV33: =$J33 -> ()
B34: Core Mixture (1, 2, 3…) | AB34: Core Mixture (1, 2, 3…) | AC34: =IF(AND(C34<>" ",C34<>""),VLOOKUP(LEFT(C34,FIND(":",C34)-1),tSeed_Core[],4,FALSE),0) -> 0 | AD34: =IF(AND(D34<>" ",D34<>""),VLOOKUP(LEFT(D34,FIND(":",D34)-1),tSeed_Core[],4,FALSE),0) -> 0 | AE34: =IF(AND(E34<>" ",E34<>""),VLOOKUP(LEFT(E34,FIND(":",E34)-1),tSeed_Core[],4,FALSE),0) -> 0 | AF34: =IF(AND(F34<>" ",F34<>""),VLOOKUP(LEFT(F34,FIND(":",F34)-1),tSeed_Core[],4,FALSE),0) -> 0 | AG34: =IF(AND(G34<>" ",G34<>""),VLOOKUP(LEFT(G34,FIND(":",G34)-1),tSeed_Core[],4,FALSE),0) -> 0 | AH34: =IF(AND(H34<>" ",H34<>""),VLOOKUP(LEFT(H34,FIND(":",H34)-1),tSeed_Core[],4,FALSE),0) -> 0 | AI34: =IF(AND(I34<>" ",I34<>""),VLOOKUP(LEFT(I34,FIND(":",I34)-1),tSeed_Core[],4,FALSE),0) -> 0 | AJ34: =IF(AND(J34<>" ",J34<>""),VLOOKUP(LEFT(J34,FIND(":",J34)-1),tSeed_Core[],4,FALSE),0) -> 0 | AN34: Core Mixture (1, 2, 3…) | AO34: =IF(LEFT(C34,1)="C",VLOOKUP(LEFT(C34,FIND(":",C34)-1),tSeed_Core[],5,FALSE),0) -> 0 | AP34: =IF(LEFT(D34,1)="C",VLOOKUP(LEFT(D34,FIND(":",D34)-1),tSeed_Core[],5,FALSE),0) -> 0 | AQ34: =IF(LEFT(E34,1)="C",VLOOKUP(LEFT(E34,FIND(":",E34)-1),tSeed_Core[],5,FALSE),0) -> 0 | AR34: =IF(LEFT(F34,1)="C",VLOOKUP(LEFT(F34,FIND(":",F34)-1),tSeed_Core[],5,FALSE),0) -> 0 | AS34: =IF(LEFT(G34,1)="C",VLOOKUP(LEFT(G34,FIND(":",G34)-1),tSeed_Core[],5,FALSE),0) -> 0 | AT34: =IF(LEFT(H34,1)="C",VLOOKUP(LEFT(H34,FIND(":",H34)-1),tSeed_Core[],5,FALSE),0) -> 0 | AU34: =IF(LEFT(I34,1)="C",VLOOKUP(LEFT(I34,FIND(":",I34)-1),tSeed_Core[],5,FALSE),0) -> 0 | AV34: =IF(LEFT(J34,1)="C",VLOOKUP(LEFT(J34,FIND(":",J34)-1),tSeed_Core[],5,FALSE),0) -> 0
B35: =IF(COUNTIF(AC35:AJ35,"Yes")>0,"Specific Type of Fine Fescue","n/a") -> n/a | AB35: Fine Fescue? | AC35: =IF(RIGHT(C34,1)="*","Yes","No") -> No | AD35: =IF(RIGHT(D34,1)="*","Yes","No") -> No | AE35: No | AF35: No | AG35: No | AH35: No | AI35: No | AJ35: No
B36: =IF(COUNTIF(AC36:AJ36,"Yes")>0,"Specify Other Type","n/a") -> n/a | AB36: User Entry? | AC36: =IF(LEFT(C35,5)="Other","Yes","No") -> No | AD36: =IF(LEFT(D35,5)="Other","Yes","No") -> No | AE36: =IF(LEFT(E35,5)="Other","Yes","No") -> No | AF36: =IF(LEFT(F35,5)="Other","Yes","No") -> No | AG36: =IF(LEFT(G35,5)="Other","Yes","No") -> No | AH36: =IF(LEFT(H35,5)="Other","Yes","No") -> No | AI36: =IF(LEFT(I35,5)="Other","Yes","No") -> No | AJ36: =IF(LEFT(J35,5)="Other","Yes","No") -> No
B37: Additive 1 (A, B, C…) | K37: =IF(OR(AND(COUNTIF(C34:H34,"C1:*")>0,OFFSET(rSeedCustom_1,1,1)<0.01),AND(COUNTIF(C34:H34,"C2:*")>0,OFFSET(rSeedCustom_2,1,1)<0.01),AND(COUNTIF(C34:H34,"C3:*")>0,OFFSET(rSeedCustom_3,1,1)<0.01)),"Please Check the Custom Seed Mix inputs on the Seed Mix Selection tab","") ->  | AB37: Additive 1 (A, B, C…) | AC37: =IF(AND(C37<>" ",C37<>""),IF(VLOOKUP(LEFT(C37,FIND(":",C37)-1),tSeed_Add[],5,FALSE)="No",VLOOKUP(LEFT(C37,FIND(":",C37)-1),tSeed_Add[],4,FALSE),0),0) -> 0 | AD37: =IF(AND(D37<>" ",D37<>""),IF(VLOOKUP(LEFT(D37,FIND(":",D37)-1),tSeed_Add[],5,FALSE)="No",VLOOKUP(LEFT(D37,FIND(":",D37)-1),tSeed_Add[],4,FALSE),0),0) -> 0 | AE37: =IF(AND(E37<>" ",E37<>""),IF(VLOOKUP(LEFT(E37,FIND(":",E37)-1),tSeed_Add[],5,FALSE)="No",VLOOKUP(LEFT(E37,FIND(":",E37)-1),tSeed_Add[],4,FALSE),0),0) -> 0 | AF37: =IF(AND(F37<>" ",F37<>""),IF(VLOOKUP(LEFT(F37,FIND(":",F37)-1),tSeed_Add[],5,FALSE)="No",VLOOKUP(LEFT(F37,FIND(":",F37)-1),tSeed_Add[],4,FALSE),0),0) -> 0 | AG37: =IF(AND(G37<>" ",G37<>""),IF(VLOOKUP(LEFT(G37,FIND(":",G37)-1),tSeed_Add[],5,FALSE)="No",VLOOKUP(LEFT(G37,FIND(":",G37)-1),tSeed_Add[],4,FALSE),0),0) -> 0 | AH37: =IF(AND(H37<>" ",H37<>""),IF(VLOOKUP(LEFT(H37,FIND(":",H37)-1),tSeed_Add[],5,FALSE)="No",VLOOKUP(LEFT(H37,FIND(":",H37)-1),tSeed_Add[],4,FALSE),0),0) -> 0 | AI37: =IF(AND(I37<>" ",I37<>""),IF(VLOOKUP(LEFT(I37,FIND(":",I37)-1),tSeed_Add[],5,FALSE)="No",VLOOKUP(LEFT(I37,FIND(":",I37)-1),tSeed_Add[],4,FALSE),0),0) -> 0 | AJ37: =IF(AND(J37<>" ",J37<>""),IF(VLOOKUP(LEFT(J37,FIND(":",J37)-1),tSeed_Add[],5,FALSE)="No",VLOOKUP(LEFT(J37,FIND(":",J37)-1),tSeed_Add[],4,FALSE),0),0) -> 0 | AN37: Additive 1 (A, B, C…) | AO37: =IF(AND(C37<>" ",C37<>""),IF(VLOOKUP(LEFT(C37,FIND(":",C37)-1),tSeed_Add[],5,FALSE)="Yes",VLOOKUP(LEFT(C37,FIND(":",C37)-1),tSeed_Add[],4,FALSE),0),0) -> 0 | AP37: =IF(AND(D37<>" ",D37<>""),IF(VLOOKUP(LEFT(D37,FIND(":",D37)-1),tSeed_Add[],5,FALSE)="Yes",VLOOKUP(LEFT(D37,FIND(":",D37)-1),tSeed_Add[],4,FALSE),0),0) -> 0 | AQ37: =IF(AND(E37<>" ",E37<>""),IF(VLOOKUP(LEFT(E37,FIND(":",E37)-1),tSeed_Add[],5,FALSE)="Yes",VLOOKUP(LEFT(E37,FIND(":",E37)-1),tSeed_Add[],4,FALSE),0),0) -> 0 | AR37: =IF(AND(F37<>" ",F37<>""),IF(VLOOKUP(LEFT(F37,FIND(":",F37)-1),tSeed_Add[],5,FALSE)="Yes",VLOOKUP(LEFT(F37,FIND(":",F37)-1),tSeed_Add[],4,FALSE),0),0) -> 0 | AS37: =IF(AND(G37<>" ",G37<>""),IF(VLOOKUP(LEFT(G37,FIND(":",G37)-1),tSeed_Add[],5,FALSE)="Yes",VLOOKUP(LEFT(G37,FIND(":",G37)-1),tSeed_Add[],4,FALSE),0),0) -> 0 | AT37: =IF(AND(H37<>" ",H37<>""),IF(VLOOKUP(LEFT(H37,FIND(":",H37)-1),tSeed_Add[],5,FALSE)="Yes",VLOOKUP(LEFT(H37,FIND(":",H37)-1),tSeed_Add[],4,FALSE),0),0) -> 0 | AU37: =IF(AND(I37<>" ",I37<>""),IF(VLOOKUP(LEFT(I37,FIND(":",I37)-1),tSeed_Add[],5,FALSE)="Yes",VLOOKUP(LEFT(I37,FIND(":",I37)-1),tSeed_Add[],4,FALSE),0),0) -> 0 | AV37: =IF(AND(J37<>" ",J37<>""),IF(VLOOKUP(LEFT(J37,FIND(":",J37)-1),tSeed_Add[],5,FALSE)="Yes",VLOOKUP(LEFT(J37,FIND(":",J37)-1),tSeed_Add[],4,FALSE),0),0) -> 0
B38: Additive 2 (A, B, C…) | AB38: Additive 2 (A, B, C…) | AC38: =IF(AND(C38<>" ",C38<>""),IF(VLOOKUP(LEFT(C38,FIND(":",C38)-1),tSeed_Add[],5,FALSE)="No",VLOOKUP(LEFT(C38,FIND(":",C38)-1),tSeed_Add[],4,FALSE),0),0) -> 0 | AD38: =IF(AND(D38<>" ",D38<>""),IF(VLOOKUP(LEFT(D38,FIND(":",D38)-1),tSeed_Add[],5,FALSE)="No",VLOOKUP(LEFT(D38,FIND(":",D38)-1),tSeed_Add[],4,FALSE),0),0) -> 0 | AE38: =IF(AND(E38<>" ",E38<>""),IF(VLOOKUP(LEFT(E38,FIND(":",E38)-1),tSeed_Add[],5,FALSE)="No",VLOOKUP(LEFT(E38,FIND(":",E38)-1),tSeed_Add[],4,FALSE),0),0) -> 0 | AF38: =IF(AND(F38<>" ",F38<>""),IF(VLOOKUP(LEFT(F38,FIND(":",F38)-1),tSeed_Add[],5,FALSE)="No",VLOOKUP(LEFT(F38,FIND(":",F38)-1),tSeed_Add[],4,FALSE),0),0) -> 0 | AG38: =IF(AND(G38<>" ",G38<>""),IF(VLOOKUP(LEFT(G38,FIND(":",G38)-1),tSeed_Add[],5,FALSE)="No",VLOOKUP(LEFT(G38,FIND(":",G38)-1),tSeed_Add[],4,FALSE),0),0) -> 0 | AH38: =IF(AND(H38<>" ",H38<>""),IF(VLOOKUP(LEFT(H38,FIND(":",H38)-1),tSeed_Add[],5,FALSE)="No",VLOOKUP(LEFT(H38,FIND(":",H38)-1),tSeed_Add[],4,FALSE),0),0) -> 0 | AI38: =IF(AND(I38<>" ",I38<>""),IF(VLOOKUP(LEFT(I38,FIND(":",I38)-1),tSeed_Add[],5,FALSE)="No",VLOOKUP(LEFT(I38,FIND(":",I38)-1),tSeed_Add[],4,FALSE),0),0) -> 0 | AJ38: =IF(AND(J38<>" ",J38<>""),IF(VLOOKUP(LEFT(J38,FIND(":",J38)-1),tSeed_Add[],5,FALSE)="No",VLOOKUP(LEFT(J38,FIND(":",J38)-1),tSeed_Add[],4,FALSE),0),0) -> 0 | AN38: Additive 2 (A, B, C…) | AO38: =IF(AND(C38<>" ",C38<>""),IF(VLOOKUP(LEFT(C38,FIND(":",C38)-1),tSeed_Add[],5,FALSE)="Yes",VLOOKUP(LEFT(C38,FIND(":",C38)-1),tSeed_Add[],4,FALSE),0),0) -> 0 | AP38: =IF(AND(D38<>" ",D38<>""),IF(VLOOKUP(LEFT(D38,FIND(":",D38)-1),tSeed_Add[],5,FALSE)="Yes",VLOOKUP(LEFT(D38,FIND(":",D38)-1),tSeed_Add[],4,FALSE),0),0) -> 0 | AQ38: =IF(AND(E38<>" ",E38<>""),IF(VLOOKUP(LEFT(E38,FIND(":",E38)-1),tSeed_Add[],5,FALSE)="Yes",VLOOKUP(LEFT(E38,FIND(":",E38)-1),tSeed_Add[],4,FALSE),0),0) -> 0 | AR38: =IF(AND(F38<>" ",F38<>""),IF(VLOOKUP(LEFT(F38,FIND(":",F38)-1),tSeed_Add[],5,FALSE)="Yes",VLOOKUP(LEFT(F38,FIND(":",F38)-1),tSeed_Add[],4,FALSE),0),0) -> 0 | AS38: =IF(AND(G38<>" ",G38<>""),IF(VLOOKUP(LEFT(G38,FIND(":",G38)-1),tSeed_Add[],5,FALSE)="Yes",VLOOKUP(LEFT(G38,FIND(":",G38)-1),tSeed_Add[],4,FALSE),0),0) -> 0 | AT38: =IF(AND(H38<>" ",H38<>""),IF(VLOOKUP(LEFT(H38,FIND(":",H38)-1),tSeed_Add[],5,FALSE)="Yes",VLOOKUP(LEFT(H38,FIND(":",H38)-1),tSeed_Add[],4,FALSE),0),0) -> 0 | AU38: =IF(AND(I38<>" ",I38<>""),IF(VLOOKUP(LEFT(I38,FIND(":",I38)-1),tSeed_Add[],5,FALSE)="Yes",VLOOKUP(LEFT(I38,FIND(":",I38)-1),tSeed_Add[],4,FALSE),0),0) -> 0 | AV38: =IF(AND(J38<>" ",J38<>""),IF(VLOOKUP(LEFT(J38,FIND(":",J38)-1),tSeed_Add[],5,FALSE)="Yes",VLOOKUP(LEFT(J38,FIND(":",J38)-1),tSeed_Add[],4,FALSE),0),0) -> 0
B39: Additive 3 (A, B, C…) | AB39: Additive 3 (A, B, C…) | AC39: =IF(AND(C39<>" ",C39<>""),IF(VLOOKUP(LEFT(C39,FIND(":",C39)-1),tSeed_Add[],5,FALSE)="No",VLOOKUP(LEFT(C39,FIND(":",C39)-1),tSeed_Add[],4,FALSE),0),0) -> 0 | AD39: =IF(AND(D39<>" ",D39<>""),IF(VLOOKUP(LEFT(D39,FIND(":",D39)-1),tSeed_Add[],5,FALSE)="No",VLOOKUP(LEFT(D39,FIND(":",D39)-1),tSeed_Add[],4,FALSE),0),0) -> 0 | AE39: =IF(AND(E39<>" ",E39<>""),IF(VLOOKUP(LEFT(E39,FIND(":",E39)-1),tSeed_Add[],5,FALSE)="No",VLOOKUP(LEFT(E39,FIND(":",E39)-1),tSeed_Add[],4,FALSE),0),0) -> 0 | AF39: =IF(AND(F39<>" ",F39<>""),IF(VLOOKUP(LEFT(F39,FIND(":",F39)-1),tSeed_Add[],5,FALSE)="No",VLOOKUP(LEFT(F39,FIND(":",F39)-1),tSeed_Add[],4,FALSE),0),0) -> 0 | AG39: =IF(AND(G39<>" ",G39<>""),IF(VLOOKUP(LEFT(G39,FIND(":",G39)-1),tSeed_Add[],5,FALSE)="No",VLOOKUP(LEFT(G39,FIND(":",G39)-1),tSeed_Add[],4,FALSE),0),0) -> 0 | AH39: =IF(AND(H39<>" ",H39<>""),IF(VLOOKUP(LEFT(H39,FIND(":",H39)-1),tSeed_Add[],5,FALSE)="No",VLOOKUP(LEFT(H39,FIND(":",H39)-1),tSeed_Add[],4,FALSE),0),0) -> 0 | AI39: =IF(AND(I39<>" ",I39<>""),IF(VLOOKUP(LEFT(I39,FIND(":",I39)-1),tSeed_Add[],5,FALSE)="No",VLOOKUP(LEFT(I39,FIND(":",I39)-1),tSeed_Add[],4,FALSE),0),0) -> 0 | AJ39: =IF(AND(J39<>" ",J39<>""),IF(VLOOKUP(LEFT(J39,FIND(":",J39)-1),tSeed_Add[],5,FALSE)="No",VLOOKUP(LEFT(J39,FIND(":",J39)-1),tSeed_Add[],4,FALSE),0),0) -> 0 | AN39: Additive 3 (A, B, C…) | AO39: =IF(AND(C39<>" ",C39<>""),IF(VLOOKUP(LEFT(C39,FIND(":",C39)-1),tSeed_Add[],5,FALSE)="Yes",VLOOKUP(LEFT(C39,FIND(":",C39)-1),tSeed_Add[],4,FALSE),0),0) -> 0 | AP39: =IF(AND(D39<>" ",D39<>""),IF(VLOOKUP(LEFT(D39,FIND(":",D39)-1),tSeed_Add[],5,FALSE)="Yes",VLOOKUP(LEFT(D39,FIND(":",D39)-1),tSeed_Add[],4,FALSE),0),0) -> 0 | AQ39: =IF(AND(E39<>" ",E39<>""),IF(VLOOKUP(LEFT(E39,FIND(":",E39)-1),tSeed_Add[],5,FALSE)="Yes",VLOOKUP(LEFT(E39,FIND(":",E39)-1),tSeed_Add[],4,FALSE),0),0) -> 0 | AR39: =IF(AND(F39<>" ",F39<>""),IF(VLOOKUP(LEFT(F39,FIND(":",F39)-1),tSeed_Add[],5,FALSE)="Yes",VLOOKUP(LEFT(F39,FIND(":",F39)-1),tSeed_Add[],4,FALSE),0),0) -> 0 | AS39: =IF(AND(G39<>" ",G39<>""),IF(VLOOKUP(LEFT(G39,FIND(":",G39)-1),tSeed_Add[],5,FALSE)="Yes",VLOOKUP(LEFT(G39,FIND(":",G39)-1),tSeed_Add[],4,FALSE),0),0) -> 0 | AT39: =IF(AND(H39<>" ",H39<>""),IF(VLOOKUP(LEFT(H39,FIND(":",H39)-1),tSeed_Add[],5,FALSE)="Yes",VLOOKUP(LEFT(H39,FIND(":",H39)-1),tSeed_Add[],4,FALSE),0),0) -> 0 | AU39: =IF(AND(I39<>" ",I39<>""),IF(VLOOKUP(LEFT(I39,FIND(":",I39)-1),tSeed_Add[],5,FALSE)="Yes",VLOOKUP(LEFT(I39,FIND(":",I39)-1),tSeed_Add[],4,FALSE),0),0) -> 0 | AV39: =IF(AND(J39<>" ",J39<>""),IF(VLOOKUP(LEFT(J39,FIND(":",J39)-1),tSeed_Add[],5,FALSE)="Yes",VLOOKUP(LEFT(J39,FIND(":",J39)-1),tSeed_Add[],4,FALSE),0),0) -> 0
B40: Additive 4 (A, B, C…) | AB40: Additive 4 (A, B, C…) | AC40: =IF(AND(C40<>" ",C40<>""),IF(VLOOKUP(LEFT(C40,FIND(":",C40)-1),tSeed_Add[],5,FALSE)="No",VLOOKUP(LEFT(C40,FIND(":",C40)-1),tSeed_Add[],4,FALSE),0),0) -> 0 | AD40: =IF(AND(D40<>" ",D40<>""),IF(VLOOKUP(LEFT(D40,FIND(":",D40)-1),tSeed_Add[],5,FALSE)="No",VLOOKUP(LEFT(D40,FIND(":",D40)-1),tSeed_Add[],4,FALSE),0),0) -> 0 | AE40: =IF(AND(E40<>" ",E40<>""),IF(VLOOKUP(LEFT(E40,FIND(":",E40)-1),tSeed_Add[],5,FALSE)="No",VLOOKUP(LEFT(E40,FIND(":",E40)-1),tSeed_Add[],4,FALSE),0),0) -> 0 | AF40: =IF(AND(F40<>" ",F40<>""),IF(VLOOKUP(LEFT(F40,FIND(":",F40)-1),tSeed_Add[],5,FALSE)="No",VLOOKUP(LEFT(F40,FIND(":",F40)-1),tSeed_Add[],4,FALSE),0),0) -> 0 | AG40: =IF(AND(G40<>" ",G40<>""),IF(VLOOKUP(LEFT(G40,FIND(":",G40)-1),tSeed_Add[],5,FALSE)="No",VLOOKUP(LEFT(G40,FIND(":",G40)-1),tSeed_Add[],4,FALSE),0),0) -> 0 | AH40: =IF(AND(H40<>" ",H40<>""),IF(VLOOKUP(LEFT(H40,FIND(":",H40)-1),tSeed_Add[],5,FALSE)="No",VLOOKUP(LEFT(H40,FIND(":",H40)-1),tSeed_Add[],4,FALSE),0),0) -> 0 | AI40: =IF(AND(I40<>" ",I40<>""),IF(VLOOKUP(LEFT(I40,FIND(":",I40)-1),tSeed_Add[],5,FALSE)="No",VLOOKUP(LEFT(I40,FIND(":",I40)-1),tSeed_Add[],4,FALSE),0),0) -> 0 | AJ40: =IF(AND(J40<>" ",J40<>""),IF(VLOOKUP(LEFT(J40,FIND(":",J40)-1),tSeed_Add[],5,FALSE)="No",VLOOKUP(LEFT(J40,FIND(":",J40)-1),tSeed_Add[],4,FALSE),0),0) -> 0 | AN40: Additive 4 (A, B, C…) | AO40: =IF(AND(C40<>" ",C40<>""),IF(VLOOKUP(LEFT(C40,FIND(":",C40)-1),tSeed_Add[],5,FALSE)="Yes",VLOOKUP(LEFT(C40,FIND(":",C40)-1),tSeed_Add[],4,FALSE),0),0) -> 0 | AP40: =IF(AND(D40<>" ",D40<>""),IF(VLOOKUP(LEFT(D40,FIND(":",D40)-1),tSeed_Add[],5,FALSE)="Yes",VLOOKUP(LEFT(D40,FIND(":",D40)-1),tSeed_Add[],4,FALSE),0),0) -> 0 | AQ40: =IF(AND(E40<>" ",E40<>""),IF(VLOOKUP(LEFT(E40,FIND(":",E40)-1),tSeed_Add[],5,FALSE)="Yes",VLOOKUP(LEFT(E40,FIND(":",E40)-1),tSeed_Add[],4,FALSE),0),0) -> 0 | AR40: =IF(AND(F40<>" ",F40<>""),IF(VLOOKUP(LEFT(F40,FIND(":",F40)-1),tSeed_Add[],5,FALSE)="Yes",VLOOKUP(LEFT(F40,FIND(":",F40)-1),tSeed_Add[],4,FALSE),0),0) -> 0 | AS40: =IF(AND(G40<>" ",G40<>""),IF(VLOOKUP(LEFT(G40,FIND(":",G40)-1),tSeed_Add[],5,FALSE)="Yes",VLOOKUP(LEFT(G40,FIND(":",G40)-1),tSeed_Add[],4,FALSE),0),0) -> 0 | AT40: =IF(AND(H40<>" ",H40<>""),IF(VLOOKUP(LEFT(H40,FIND(":",H40)-1),tSeed_Add[],5,FALSE)="Yes",VLOOKUP(LEFT(H40,FIND(":",H40)-1),tSeed_Add[],4,FALSE),0),0) -> 0 | AU40: =IF(AND(I40<>" ",I40<>""),IF(VLOOKUP(LEFT(I40,FIND(":",I40)-1),tSeed_Add[],5,FALSE)="Yes",VLOOKUP(LEFT(I40,FIND(":",I40)-1),tSeed_Add[],4,FALSE),0),0) -> 0 | AV40: =IF(AND(J40<>" ",J40<>""),IF(VLOOKUP(LEFT(J40,FIND(":",J40)-1),tSeed_Add[],5,FALSE)="Yes",VLOOKUP(LEFT(J40,FIND(":",J40)-1),tSeed_Add[],4,FALSE),0),0) -> 0
B41: Additive 5 (A, B, C…) | AB41: Additive 5 (A, B, C…) | AC41: =IF(AND(C41<>" ",C41<>""),IF(VLOOKUP(LEFT(C41,FIND(":",C41)-1),tSeed_Add[],5,FALSE)="No",VLOOKUP(LEFT(C41,FIND(":",C41)-1),tSeed_Add[],4,FALSE),0),0) -> 0 | AD41: =IF(AND(D41<>" ",D41<>""),IF(VLOOKUP(LEFT(D41,FIND(":",D41)-1),tSeed_Add[],5,FALSE)="No",VLOOKUP(LEFT(D41,FIND(":",D41)-1),tSeed_Add[],4,FALSE),0),0) -> 0 | AE41: =IF(AND(E41<>" ",E41<>""),IF(VLOOKUP(LEFT(E41,FIND(":",E41)-1),tSeed_Add[],5,FALSE)="No",VLOOKUP(LEFT(E41,FIND(":",E41)-1),tSeed_Add[],4,FALSE),0),0) -> 0 | AF41: =IF(AND(F41<>" ",F41<>""),IF(VLOOKUP(LEFT(F41,FIND(":",F41)-1),tSeed_Add[],5,FALSE)="No",VLOOKUP(LEFT(F41,FIND(":",F41)-1),tSeed_Add[],4,FALSE),0),0) -> 0 | AG41: =IF(AND(G41<>" ",G41<>""),IF(VLOOKUP(LEFT(G41,FIND(":",G41)-1),tSeed_Add[],5,FALSE)="No",VLOOKUP(LEFT(G41,FIND(":",G41)-1),tSeed_Add[],4,FALSE),0),0) -> 0 | AH41: =IF(AND(H41<>" ",H41<>""),IF(VLOOKUP(LEFT(H41,FIND(":",H41)-1),tSeed_Add[],5,FALSE)="No",VLOOKUP(LEFT(H41,FIND(":",H41)-1),tSeed_Add[],4,FALSE),0),0) -> 0 | AI41: =IF(AND(I41<>" ",I41<>""),IF(VLOOKUP(LEFT(I41,FIND(":",I41)-1),tSeed_Add[],5,FALSE)="No",VLOOKUP(LEFT(I41,FIND(":",I41)-1),tSeed_Add[],4,FALSE),0),0) -> 0 | AJ41: =IF(AND(J41<>" ",J41<>""),IF(VLOOKUP(LEFT(J41,FIND(":",J41)-1),tSeed_Add[],5,FALSE)="No",VLOOKUP(LEFT(J41,FIND(":",J41)-1),tSeed_Add[],4,FALSE),0),0) -> 0 | AK41: Adjusted Rate (if Applicable) | AN41: Additive 5 (A, B, C…) | AO41: =IF(AND(C41<>" ",C41<>""),IF(VLOOKUP(LEFT(C41,FIND(":",C41)-1),tSeed_Add[],5,FALSE)="Yes",VLOOKUP(LEFT(C41,FIND(":",C41)-1),tSeed_Add[],4,FALSE),0),0) -> 0 | AP41: =IF(AND(D41<>" ",D41<>""),IF(VLOOKUP(LEFT(D41,FIND(":",D41)-1),tSeed_Add[],5,FALSE)="Yes",VLOOKUP(LEFT(D41,FIND(":",D41)-1),tSeed_Add[],4,FALSE),0),0) -> 0 | AQ41: =IF(AND(E41<>" ",E41<>""),IF(VLOOKUP(LEFT(E41,FIND(":",E41)-1),tSeed_Add[],5,FALSE)="Yes",VLOOKUP(LEFT(E41,FIND(":",E41)-1),tSeed_Add[],4,FALSE),0),0) -> 0 | AR41: =IF(AND(F41<>" ",F41<>""),IF(VLOOKUP(LEFT(F41,FIND(":",F41)-1),tSeed_Add[],5,FALSE)="Yes",VLOOKUP(LEFT(F41,FIND(":",F41)-1),tSeed_Add[],4,FALSE),0),0) -> 0 | AS41: =IF(AND(G41<>" ",G41<>""),IF(VLOOKUP(LEFT(G41,FIND(":",G41)-1),tSeed_Add[],5,FALSE)="Yes",VLOOKUP(LEFT(G41,FIND(":",G41)-1),tSeed_Add[],4,FALSE),0),0) -> 0 | AT41: =IF(AND(H41<>" ",H41<>""),IF(VLOOKUP(LEFT(H41,FIND(":",H41)-1),tSeed_Add[],5,FALSE)="Yes",VLOOKUP(LEFT(H41,FIND(":",H41)-1),tSeed_Add[],4,FALSE),0),0) -> 0 | AU41: =IF(AND(I41<>" ",I41<>""),IF(VLOOKUP(LEFT(I41,FIND(":",I41)-1),tSeed_Add[],5,FALSE)="Yes",VLOOKUP(LEFT(I41,FIND(":",I41)-1),tSeed_Add[],4,FALSE),0),0) -> 0 | AV41: =IF(AND(J41<>" ",J41<>""),IF(VLOOKUP(LEFT(J41,FIND(":",J41)-1),tSeed_Add[],5,FALSE)="Yes",VLOOKUP(LEFT(J41,FIND(":",J41)-1),tSeed_Add[],4,FALSE),0),0) -> 0 | AW41: Adjusted Rate (if Applicable)
B42: Additive 6 (A, B, C…) | AB42: Additive 6 (A, B, C…) | AC42: =IF(AND(C42<>" ",C42<>""),IF(VLOOKUP(LEFT(C42,FIND(":",C42)-1),tSeed_Add[],5,FALSE)="No",VLOOKUP(LEFT(C42,FIND(":",C42)-1),tSeed_Add[],4,FALSE),0),0) -> 0 | AD42: =IF(AND(D42<>" ",D42<>""),IF(VLOOKUP(LEFT(D42,FIND(":",D42)-1),tSeed_Add[],5,FALSE)="No",VLOOKUP(LEFT(D42,FIND(":",D42)-1),tSeed_Add[],4,FALSE),0),0) -> 0 | AE42: =IF(AND(E42<>" ",E42<>""),IF(VLOOKUP(LEFT(E42,FIND(":",E42)-1),tSeed_Add[],5,FALSE)="No",VLOOKUP(LEFT(E42,FIND(":",E42)-1),tSeed_Add[],4,FALSE),0),0) -> 0 | AF42: =IF(AND(F42<>" ",F42<>""),IF(VLOOKUP(LEFT(F42,FIND(":",F42)-1),tSeed_Add[],5,FALSE)="No",VLOOKUP(LEFT(F42,FIND(":",F42)-1),tSeed_Add[],4,FALSE),0),0) -> 0 | AG42: =IF(AND(G42<>" ",G42<>""),IF(VLOOKUP(LEFT(G42,FIND(":",G42)-1),tSeed_Add[],5,FALSE)="No",VLOOKUP(LEFT(G42,FIND(":",G42)-1),tSeed_Add[],4,FALSE),0),0) -> 0 | AH42: =IF(AND(H42<>" ",H42<>""),IF(VLOOKUP(LEFT(H42,FIND(":",H42)-1),tSeed_Add[],5,FALSE)="No",VLOOKUP(LEFT(H42,FIND(":",H42)-1),tSeed_Add[],4,FALSE),0),0) -> 0 | AI42: =IF(AND(I42<>" ",I42<>""),IF(VLOOKUP(LEFT(I42,FIND(":",I42)-1),tSeed_Add[],5,FALSE)="No",VLOOKUP(LEFT(I42,FIND(":",I42)-1),tSeed_Add[],4,FALSE),0),0) -> 0 | AJ42: =IF(AND(J42<>" ",J42<>""),IF(VLOOKUP(LEFT(J42,FIND(":",J42)-1),tSeed_Add[],5,FALSE)="No",VLOOKUP(LEFT(J42,FIND(":",J42)-1),tSeed_Add[],4,FALSE),0),0) -> 0 | AK42: =IF(LEFT(OFFSET(rSP_Mix3,7,5),1)="y",OFFSET(rSP_Mix3,10,5)*AK43,0) -> 0 | AL42: =IF(LEFT(OFFSET(rSP_Mix3,7,5),1)="y",OFFSET(rSP_Mix3,10,5)*AL43,0) -> 0 | AN42: Additive 6 (A, B, C…) | AO42: =IF(AND(C42<>" ",C42<>""),IF(VLOOKUP(LEFT(C42,FIND(":",C42)-1),tSeed_Add[],5,FALSE)="Yes",VLOOKUP(LEFT(C42,FIND(":",C42)-1),tSeed_Add[],4,FALSE),0),0) -> 0 | AP42: =IF(AND(D42<>" ",D42<>""),IF(VLOOKUP(LEFT(D42,FIND(":",D42)-1),tSeed_Add[],5,FALSE)="Yes",VLOOKUP(LEFT(D42,FIND(":",D42)-1),tSeed_Add[],4,FALSE),0),0) -> 0 | AQ42: =IF(AND(E42<>" ",E42<>""),IF(VLOOKUP(LEFT(E42,FIND(":",E42)-1),tSeed_Add[],5,FALSE)="Yes",VLOOKUP(LEFT(E42,FIND(":",E42)-1),tSeed_Add[],4,FALSE),0),0) -> 0 | AR42: =IF(AND(F42<>" ",F42<>""),IF(VLOOKUP(LEFT(F42,FIND(":",F42)-1),tSeed_Add[],5,FALSE)="Yes",VLOOKUP(LEFT(F42,FIND(":",F42)-1),tSeed_Add[],4,FALSE),0),0) -> 0 | AS42: =IF(AND(G42<>" ",G42<>""),IF(VLOOKUP(LEFT(G42,FIND(":",G42)-1),tSeed_Add[],5,FALSE)="Yes",VLOOKUP(LEFT(G42,FIND(":",G42)-1),tSeed_Add[],4,FALSE),0),0) -> 0 | AT42: =IF(AND(H42<>" ",H42<>""),IF(VLOOKUP(LEFT(H42,FIND(":",H42)-1),tSeed_Add[],5,FALSE)="Yes",VLOOKUP(LEFT(H42,FIND(":",H42)-1),tSeed_Add[],4,FALSE),0),0) -> 0 | AU42: =IF(AND(I42<>" ",I42<>""),IF(VLOOKUP(LEFT(I42,FIND(":",I42)-1),tSeed_Add[],5,FALSE)="Yes",VLOOKUP(LEFT(I42,FIND(":",I42)-1),tSeed_Add[],4,FALSE),0),0) -> 0 | AV42: =IF(AND(J42<>" ",J42<>""),IF(VLOOKUP(LEFT(J42,FIND(":",J42)-1),tSeed_Add[],5,FALSE)="Yes",VLOOKUP(LEFT(J42,FIND(":",J42)-1),tSeed_Add[],4,FALSE),0),0) -> 0 | AW42: =IF(LEFT(OFFSET(rSP_Mix3,7,5),1)="y",OFFSET(rSP_Mix3,10,5)*AW43,0) -> 0 | AX42: =IF(LEFT(OFFSET(rSP_Mix3,7,5),1)="y",OFFSET(rSP_Mix3,10,5)*AX43,0) -> 0
A43: =IF(fRowHeight=0,"Click on the Plus Sign (+) on the left to show the "&A33&" Selection Matrix","Click on the Minus Sign (-) on the left to hide the "&A33&" Selection Matrix") -> Click on the Minus Sign (-) on the left to hide the Core Mix 3 Selection Matrix | AB43: Core Mix 3 Total Seed | AC43: =SUM(AC34:AC42) -> 0 | AD43: =SUM(AD34:AD42) -> 0 | AE43: 0 | AF43: 0 | AG43: 0 | AH43: 0 | AI43: 0 | AJ43: 0 | AK43: =MAX(AC43,AE43,AG43,AI43) -> 0 | AL43: =MAX(AD43,AF43,AH43,AJ43) -> 0 | AN43: Core Mix 3 Total Legumes | AO43: =SUM(AO34:AO42) -> 0 | AP43: =SUM(AP34:AP42) -> 0 | AQ43: 0 | AR43: 0 | AS43: 0 | AT43: 0 | AU43: 0 | AV43: 0 | AW43: =MAX(AO43,AQ43,AS43,AU43) -> 0 | AX43: =MAX(AP43,AR43,AT43,AV43) -> 0
B45: Core Mix 1 | C45: =C9 -> () | D45: () | E45: () | F45: () | G45: () | H45: () | I45: () | J45: ()
B46: Seed lbs/ac | C46: =AC10 -> 0 | D46: 0 | E46: 0 | F46: 0 | G46: 0 | H46: 0 | I46: 0 | J46: 0
B47: Legume lbs/ac | C47: =AO19 -> 0 | D47: 0 | E47: 0 | F47: 0 | G47: 0 | H47: 0 | I47: 0 | J47: 0
B48: Core Mix 2 | C48: =C21 -> () | D48: () | E48: () | F48: () | G48: () | H48: () | I48: () | J48: ()
B49: Seed lbs/ac | C49: =AC31 -> 0 | D49: 0 | E49: 0 | F49: 0 | G49: 0 | H49: 0 | I49: 0 | J49: 0
B50: Legume lbs/ac | C50: =AO31 -> 0 | D50: 0 | E50: 0 | F50: 0 | G50: 0 | H50: 0 | I50: 0 | J50: 0
B51: Core Mix 3 | C51: =C33 -> () | D51: () | E51: () | F51: () | G51: () | H51: () | I51: () | J51: ()
B52: Seed lbs/ac | C52: =AC43 -> 0 | D52: 0 | E52: 0 | F52: 0 | G52: 0 | H52: 0 | I52: 0 | J52: 0
B53: Legume lbs/ac | C53: =AO43 -> 0 | D53: 0 | E53: 0 | F53: 0 | G53: 0 | H53: 0 | I53: 0 | J53: 0
B54: Temporary Seed | C54: 100 | D54: 100 | E54: 100 | F54: 100 | G54: 100 | H54: 100 | I54: 100 | J54: 100
B57: Regular Seed | C57: Area (ac) Mowed | D57: Area (ac) Slopes | E57: Adj. Rate Area (M) | F57: Adj. Rate Area (S) | G57: Normal Seeding | H57: Incr. Adj. | I57: Over-seeding | J57: Total
B58: Core Mix 1 | C58: =IF(LEFT(OFFSET(rSP_Mix1,7,5),1)="y",OFFSET(Area_PS1m,0,20)-E58,OFFSET(Area_PS1m,0,20)) -> 0 | D58: =IF(LEFT(OFFSET(rSP_Mix1,7,5),1)="y",OFFSET(Area_PS1nm,0,20)-F58,OFFSET(Area_PS1nm,0,20)) -> 0 | E58: =IF(LEFT(OFFSET(rSP_Mix1,7,5),1)="y",OFFSET(rSP_Mix1,8,25),0) -> 0 | F58: =IF(LEFT(OFFSET(rSP_Mix1,7,5),1)="y",OFFSET(rSP_Mix1,9,25),0) -> 0 | G58: =SUMPRODUCT(C58:D58,$AK$19:$AL$19)+SUMPRODUCT(E58:F58,$AK$18:$AL$18) -> 0 | H58: =G58*0.25 -> 0 | I58: =G58 -> 0 | J58: =SUM(G58:I58) -> 0
B59: Core Mix 2 | C59: =IF(LEFT(OFFSET(rSP_Mix2,7,5),1)="y",OFFSET(Area_PS2m,0,20)-E59,OFFSET(Area_PS2m,0,20)) -> 0 | D59: =IF(LEFT(OFFSET(rSP_Mix2,7,5),1)="y",OFFSET(Area_PS2nm,0,20)-F59,OFFSET(Area_PS2nm,0,20)) -> 0 | E59: =IF(LEFT(OFFSET(rSP_Mix2,7,5),1)="y",OFFSET(rSP_Mix2,8,25),0) -> 0 | F59: =IF(LEFT(OFFSET(rSP_Mix2,7,5),1)="y",OFFSET(rSP_Mix2,9,25),0) -> 0 | G59: =SUMPRODUCT(C59:D59,$AK$31:$AL$31)+SUMPRODUCT(E59:F59,$AK$30:$AL$30) -> 0 | H59: =G59*0.25 -> 0 | I59: =G59 -> 0 | J59: =SUM(G59:I59) -> 0
B60: Core Mix 3 | C60: =IF(LEFT(OFFSET(rSP_Mix3,7,5),1)="y",OFFSET(Area_PS3m,0,20)-E60,OFFSET(Area_PS3m,0,20)) -> 0 | D60: =IF(LEFT(OFFSET(rSP_Mix3,7,5),1)="y",OFFSET(Area_PS3nm,0,20)-F60,OFFSET(Area_PS3nm,0,20)) -> 0 | E60: =IF(LEFT(OFFSET(rSP_Mix3,7,5),1)="y",OFFSET(rSP_Mix3,8,25),0) -> 0 | F60: =IF(LEFT(OFFSET(rSP_Mix3,7,5),1)="y",OFFSET(rSP_Mix3,9,25),0) -> 0 | G60: =SUMPRODUCT(C60:D60,$AK$43:$AL$43)+SUMPRODUCT(E60:F60,$AK$42:$AL$42) -> 0 | H60: =G60*0.25 -> 0 | I60: =G60 -> 0 | J60: =SUM(G60:I60) -> 0
B61: Grand Totals | C61: =SUM(C58:C60) -> 0 | D61: 0 | E61: 0 | F61: 0 | G61: 0 | H61: 0 | I61: 0 | J61: 0
B63: Legume Seed | C63: Area (ac) Mowed | D63: Area (ac) Slopes | E63: Adj. Rate Area (M) | F63: Adj. Rate Area (S) | G63: Normal Seeding | H63: Incr. Adj. | I63: Over-seeding | J63: Total
B64: Core Mix 1 | C64: =C58 -> 0 | D64: =D58 -> 0 | E64: 0 | F64: 0 | G64: =SUMPRODUCT(C64:D64,$AW$19:$AX$19)+SUMPRODUCT(E64:F64,$AW$18:$AX$18) -> 0 | H64: =G64*0.25 -> 0 | I64: =G64 -> 0 | J64: =SUM(G64:I64) -> 0
B65: Core Mix 2 | C65: =C59 -> 0 | D65: =D59 -> 0 | E65: 0 | F65: 0 | G65: =SUMPRODUCT(C65:D65,$AW$31:$AX$31)+SUMPRODUCT(E65:F65,$AW$30:$AX$30) -> 0 | H65: =G65*0.25 -> 0 | I65: =G65 -> 0 | J65: =SUM(G65:I65) -> 0
B66: Core Mix 3 | C66: 0 | D66: =D60 -> 0 | E66: 0 | F66: 0 | G66: =SUMPRODUCT(C66:D66,$AW$43:$AX$43)+SUMPRODUCT(E66:F66,$AW$42:$AX$42) -> 0 | H66: =G66*0.25 -> 0 | I66: =G66 -> 0 | J66: =SUM(G66:I66) -> 0
B67: Grand Totals | C67: =SUM(C64:C66) -> 0 | D67: 0 | E67: =SUM(E64:E66) -> 0 | F67: 0 | G67: =SUM(G64:G66) -> 0 | H67: 0 | I67: 0 | J67: 0
B69: Temporary Seed
B70: Rate | C70: 100 | D70: lbs/ac
B71: Acres | C71: =Area_TSac -> 0 | D71: acres
B72: Total Lbs | C72: =C71*C70 -> 0 | D72: pounds
B74: Slope Restricted Additives Used?
C75: =COUNTIFS(tSeed_Add[Selected?],"Yes",tSeed_Add[Slope Restricted?],"Yes") -> 0

Sheet Seed Rate Selection (hidden)
B1: Enter/Adjust Seed Application Rates and/or Create Custom Seed Mixes (Core Mix)
A2: Required Questions | E2: Navigation Links:
A3: 1 | B3: Will there be Custom Seed Mixes on this Project? | D3: Custom Mix 1 | E3: Custom Mix 2 | F3: Custom Mix 3
A4: 1a | B4: If so, how many are there? (can use up to 3) | D4: =IF(AND(LEFT(C3,1)="n",C4>0),"Conflicting Answer - Please Delete Value or Enter 0 if no custom mixes will be used.",IF(AND(LEFT(C3,1)="y",C4<1),"Please Enter the Number of Custom Mixes that will be used on this project.","")) -> 
A6: CORE MIXES: | C6: =IF(COUNTIFS(tSeed_Core[Selected?],"Yes",tSeed_Core[Lbs/Acre],"")>0,"Please provide a seed application rate for all used Core Mixes","") -> 
A7: Mix | B7: Description | C7: Dropdown List | D7: Lbs/Acre | E7: Legume | F7: Coastal Order | G7: Piedmont Order | H7: Mountain Order | I7: Selected? | K7: Region | L7: Spring | M7: Summer | N7: Fall | O7: Dormant Period
C8: =IF(OR(ISBLANK(tSeed_Core[[#This Row],[Mix]]),tSeed_Core[[#This Row],[Mix]]=" "),"",tSeed_Core[[#This Row],[Mix]]&": "&tSeed_Core[[#This Row],[Description]]) ->  | E8: No | F8: 1 | G8: 1 | H8: 1 | I8: n/a | K8: Coastal | L8: 3/1 to 5/15 | M8: 5/16 to 9/15 | N8: 9/16 to 11/15 | O8: 11/16 to 2/29
A9: 1* | B9: 100% Certified Fine Fescue* | C9: =IF(OR(ISBLANK(tSeed_Core[[#This Row],[Mix]]),tSeed_Core[[#This Row],[Mix]]=" "),"",tSeed_Core[[#This Row],[Mix]]&": "&tSeed_Core[[#This Row],[Description]]) -> 1*: 100% Certified Fine Fescue* | E9: No | F9: 2 | G9: 6 | H9: 3 | I9: =IF(COUNTIF('Seed Mix Selection'!$C$9:$J$42,tSeed_Core[[#This Row],[Dropdown List]])>0,"Yes","No") -> No | K9: Piedmont | L9: 3/16 to 5/31 | M9: 6/1 to 9/15 | N9: 9/16 to 10/31 | O9: 11/1 to 3/15
A10: 2 | B10: 100% Certified Tall Fescue | C10: =IF(OR(ISBLANK(tSeed_Core[[#This Row],[Mix]]),tSeed_Core[[#This Row],[Mix]]=" "),"",tSeed_Core[[#This Row],[Mix]]&": "&tSeed_Core[[#This Row],[Description]]) -> 2: 100% Certified Tall Fescue | E10: No | F10: 3 | G10: 7 | H10: 4 | I10: =IF(COUNTIF('Seed Mix Selection'!$C$9:$J$42,tSeed_Core[[#This Row],[Dropdown List]])>0,"Yes","No") -> No | K10: Mountain | L10: 3/16 to 5/31 | M10: 6/1 to 9/15 | N10: 9/16 to 10/31 | O10: 11/1 to 3/15
A11: 3* | B11: 50% Certified Tall Fescue / 50% Certified Fine Fescue* | C11: =IF(OR(ISBLANK(tSeed_Core[[#This Row],[Mix]]),tSeed_Core[[#This Row],[Mix]]=" "),"",tSeed_Core[[#This Row],[Mix]]&": "&tSeed_Core[[#This Row],[Description]]) -> 3*: 50% Certified Tall Fescue / 50% Certified Fine Fescue* | E11: No | F11: 4 | G11: 2 | H11: 5 | I11: =IF(COUNTIF('Seed Mix Selection'!$C$9:$J$42,tSeed_Core[[#This Row],[Dropdown List]])>0,"Yes","No") -> No
A12: 4 | B12: 50% Orchardgrass / 50% Certified Kentucky Bluegrass | C12: =IF(OR(ISBLANK(tSeed_Core[[#This Row],[Mix]]),tSeed_Core[[#This Row],[Mix]]=" "),"",tSeed_Core[[#This Row],[Mix]]&": "&tSeed_Core[[#This Row],[Description]]) -> 4: 50% Orchardgrass / 50% Certified Kentucky Bluegrass | E12: No | F12: 5 | G12: 3 | H12: 6 | I12: =IF(COUNTIF('Seed Mix Selection'!$C$9:$J$42,tSeed_Core[[#This Row],[Dropdown List]])>0,"Yes","No") -> No | K12: Fine Fescue Types:
A13: 5 | B13: 100% Bermudagrass | C13: =IF(OR(ISBLANK(tSeed_Core[[#This Row],[Mix]]),tSeed_Core[[#This Row],[Mix]]=" "),"",tSeed_Core[[#This Row],[Mix]]&": "&tSeed_Core[[#This Row],[Description]]) -> 5: 100% Bermudagrass | E13: No | F13: 6 | G13: 4 | H13: 7 | I13: =IF(COUNTIF('Seed Mix Selection'!$C$9:$J$42,tSeed_Core[[#This Row],[Dropdown List]])>0,"Yes","No") -> No | K13: Chewings
A14: C1 | B14: Custom 1, See Box Below for Contents of Mixture | C14: =IF(OR(ISBLANK(tSeed_Core[[#This Row],[Mix]]),tSeed_Core[[#This Row],[Mix]]=" "),"",tSeed_Core[[#This Row],[Mix]]&": "&tSeed_Core[[#This Row],[Description]]) -> C1: Custom 1, See Box Below for Contents of Mixture | D14: =OFFSET(rSeedCustom_1,1,1) -> 0 | E14: =E56 -> 0 | F14: 7 | G14: 5 | H14: 2 | I14: =IF(COUNTIF('Seed Mix Selection'!$C$9:$J$42,tSeed_Core[[#This Row],[Dropdown List]])>0,"Yes","No") -> No | K14: Creeping Red
A15: C2 | B15: Custom 2, See Box Below for Contents of Mixture | C15: =IF(OR(ISBLANK(tSeed_Core[[#This Row],[Mix]]),tSeed_Core[[#This Row],[Mix]]=" "),"",tSeed_Core[[#This Row],[Mix]]&": "&tSeed_Core[[#This Row],[Description]]) -> C2: Custom 2, See Box Below for Contents of Mixture | D15: =OFFSET(rSeedCustom_2,1,1) -> 0 | E15: =E75 -> 0 | F15: =F14 -> 7 | G15: 5 | H15: 2 | I15: =IF(COUNTIF('Seed Mix Selection'!$C$9:$J$42,tSeed_Core[[#This Row],[Dropdown List]])>0,"Yes","No") -> No | K15: Hard
A16: C3 | B16: Custom 3, See Box Below for Contents of Mixture | C16: =IF(OR(ISBLANK(tSeed_Core[[#This Row],[Mix]]),tSeed_Core[[#This Row],[Mix]]=" "),"",tSeed_Core[[#This Row],[Mix]]&": "&tSeed_Core[[#This Row],[Description]]) -> C3: Custom 3, See Box Below for Contents of Mixture | D16: =OFFSET(rSeedCustom_3,1,1) -> 0 | E16: =E94 -> 0 | F16: 7 | G16: 5 | H16: 2 | I16: =IF(COUNTIF('Seed Mix Selection'!$C$9:$J$42,tSeed_Core[[#This Row],[Dropdown List]])>0,"Yes","No") -> No | K16: Sheep
A17: T1 | B17: 50% Certified Tall Fescue / 50% Barley, Winter Rye, or Winter Wheat | C17: =IF(OR(ISBLANK(tSeed_Core[[#This Row],[Mix]]),tSeed_Core[[#This Row],[Mix]]=" "),"",tSeed_Core[[#This Row],[Mix]]&": "&tSeed_Core[[#This Row],[Description]]) -> T1: 50% Certified Tall Fescue / 50% Barley, Winter Rye, or Winter Wheat | E17: No | F17: 8 | G17: 8 | H17: 8 | I17: =IF(COUNTIF('Seed Mix Selection'!$C$9:$J$42,tSeed_Core[[#This Row],[Dropdown List]])>0,"Yes","No") -> No | K17: Other (Specify Below)
A18: T2 | B18: 50% Foxtail Millet / 50% Certified Tall Fescue | C18: =IF(OR(ISBLANK(tSeed_Core[[#This Row],[Mix]]),tSeed_Core[[#This Row],[Mix]]=" "),"",tSeed_Core[[#This Row],[Mix]]&": "&tSeed_Core[[#This Row],[Description]]) -> T2: 50% Foxtail Millet / 50% Certified Tall Fescue | E18: No | F18: 9 | G18: 9 | H18: 9 | I18: =IF(COUNTIF('Seed Mix Selection'!$C$9:$J$42,tSeed_Core[[#This Row],[Dropdown List]])>0,"Yes","No") -> No
A19: n/a | B19: No seed selected for this period | C19: =IF(OR(ISBLANK(tSeed_Core[[#This Row],[Mix]]),tSeed_Core[[#This Row],[Mix]]=" "),"",tSeed_Core[[#This Row],[Mix]]&": "&tSeed_Core[[#This Row],[Description]]) -> n/a: No seed selected for this period | D19: n/a | E19: No | F19: 9 | G19: 9 | H19: 9 | I19: =IF(COUNTIF('Seed Mix Selection'!$C$9:$J$42,tSeed_Core[[#This Row],[Dropdown List]])>0,"Yes","No") -> No | K19: Any Type**
A20: *: | B20: Fine Fescues include Chewings, Creeping Red, Hard, & Sheep. | C20: See Seeding Schedule for type(s) specified for this project.
A22: NATIVE SEEDS: | C22: =IF(COUNTIFS(tSeed_Alt[Selected?],"Yes",tSeed_Alt[Lbs/Acre],"")>0,"Please provide a seed application rate for all used Native Seeds","") -> 
A23: Code | B23: Description (Category) | C23: Dropdown List | D23: Lbs/Acre | E23: Legume | F23: Coastal Order | G23: Piedmont Order | H23: Mountain Order | I23: Selected?
C24: =IF(OR(ISBLANK(tSeed_Alt[[#This Row],[Code]]),tSeed_Alt[[#This Row],[Code]]=" "),"",tSeed_Alt[[#This Row],[Code]]&": "&tSeed_Alt[[#This Row],[Description (Category)]]) ->  | I24: n/a
A25: 6 | B25: AUTUMN BENTGRASS (NATIVE) | C25: =IF(OR(ISBLANK(tSeed_Alt[[#This Row],[Code]]),tSeed_Alt[[#This Row],[Code]]=" "),"",tSeed_Alt[[#This Row],[Code]]&": "&tSeed_Alt[[#This Row],[Description (Category)]]) -> 6: AUTUMN BENTGRASS (NATIVE) | I25: =IF(COUNTIF('Seed Mix Selection'!$C$9:$J$42,tSeed_Alt[[#This Row],[Dropdown List]])>0,"Yes","No") -> No
A26: 7 | B26: BROOMSEDGE (NATIVE) | C26: =IF(OR(ISBLANK(tSeed_Alt[[#This Row],[Code]]),tSeed_Alt[[#This Row],[Code]]=" "),"",tSeed_Alt[[#This Row],[Code]]&": "&tSeed_Alt[[#This Row],[Description (Category)]]) -> 7: BROOMSEDGE (NATIVE) | I26: =IF(COUNTIF('Seed Mix Selection'!$C$9:$J$42,tSeed_Alt[[#This Row],[Dropdown List]])>0,"Yes","No") -> No
A27: 8 | B27: DEER TONGUE (NATIVE) | C27: =IF(OR(ISBLANK(tSeed_Alt[[#This Row],[Code]]),tSeed_Alt[[#This Row],[Code]]=" "),"",tSeed_Alt[[#This Row],[Code]]&": "&tSeed_Alt[[#This Row],[Description (Category)]]) -> 8: DEER TONGUE (NATIVE) | I27: =IF(COUNTIF('Seed Mix Selection'!$C$9:$J$42,tSeed_Alt[[#This Row],[Dropdown List]])>0,"Yes","No") -> No
A28: 9 | B28: VA WILD RYE (NATIVE) | C28: =IF(OR(ISBLANK(tSeed_Alt[[#This Row],[Code]]),tSeed_Alt[[#This Row],[Code]]=" "),"",tSeed_Alt[[#This Row],[Code]]&": "&tSeed_Alt[[#This Row],[Description (Category)]]) -> 9: VA WILD RYE (NATIVE) | I28: =IF(COUNTIF('Seed Mix Selection'!$C$9:$J$42,tSeed_Alt[[#This Row],[Dropdown List]])>0,"Yes","No") -> No
A29: 10 | B29: LITTLE BLUE STEM (NATIVE) | C29: =IF(OR(ISBLANK(tSeed_Alt[[#This Row],[Code]]),tSeed_Alt[[#This Row],[Code]]=" "),"",tSeed_Alt[[#This Row],[Code]]&": "&tSeed_Alt[[#This Row],[Description (Category)]]) -> 10: LITTLE BLUE STEM (NATIVE) | I29: =IF(COUNTIF('Seed Mix Selection'!$C$9:$J$42,tSeed_Alt[[#This Row],[Dropdown List]])>0,"Yes","No") -> No
A30: 11 | B30: INDIAN GRASS (NATIVE) | C30: =IF(OR(ISBLANK(tSeed_Alt[[#This Row],[Code]]),tSeed_Alt[[#This Row],[Code]]=" "),"",tSeed_Alt[[#This Row],[Code]]&": "&tSeed_Alt[[#This Row],[Description (Category)]]) -> 11: INDIAN GRASS (NATIVE) | I30: =IF(COUNTIF('Seed Mix Selection'!$C$9:$J$42,tSeed_Alt[[#This Row],[Dropdown List]])>0,"Yes","No") -> No
A31: 12 | B31: PURPLE TOP (NATIVE) | C31: =IF(OR(ISBLANK(tSeed_Alt[[#This Row],[Code]]),tSeed_Alt[[#This Row],[Code]]=" "),"",tSeed_Alt[[#This Row],[Code]]&": "&tSeed_Alt[[#This Row],[Description (Category)]]) -> 12: PURPLE TOP (NATIVE) | I31: =IF(COUNTIF('Seed Mix Selection'!$C$9:$J$42,tSeed_Alt[[#This Row],[Dropdown List]])>0,"Yes","No") -> No
A33: ADDITIVES: | C33: =IF(COUNTIFS(tSeed_Add[Selected?],"Yes",tSeed_Add[Lbs/Acre],"")>0,"Please provide a seed application rate for all used Core Mixes","") -> 
A34: Type | B34: Description | C34: Dropdown List | D34: Lbs/Acre | E34: Legume | F34: Coastal Order | G34: Piedmont Order | H34: Mountain Order | I34: Selected? | J34: Slope Restricted?
C35: =IF(OR(ISBLANK(tSeed_Add[[#This Row],[Type]]),tSeed_Add[[#This Row],[Type]]=" "),"",tSeed_Add[[#This Row],[Type]]&": "&tSeed_Add[[#This Row],[Description]]) ->  | E35: No | I35: n/a | J35: =IF(RIGHT(tSeed_Add[[#This Row],[Description]],2)="**","Yes","No") -> No
A36: A | B36: 100% Lovegrass** | C36: =IF(OR(ISBLANK(tSeed_Add[[#This Row],[Type]]),tSeed_Add[[#This Row],[Type]]=" "),"",tSeed_Add[[#This Row],[Type]]&": "&tSeed_Add[[#This Row],[Description]]) -> A: 100% Lovegrass** | E36: No | I36: =IF(COUNTIF('Seed Mix Selection'!$C$9:$J$42,tSeed_Add[[#This Row],[Dropdown List]])>0,"Yes","No") -> No | J36: =IF(RIGHT(tSeed_Add[[#This Row],[Description]],2)="**","Yes","No") -> Yes
A37: B | B37: 100% Barley, Winter Rye, or Winter Wheat | C37: =IF(OR(ISBLANK(tSeed_Add[[#This Row],[Type]]),tSeed_Add[[#This Row],[Type]]=" "),"",tSeed_Add[[#This Row],[Type]]&": "&tSeed_Add[[#This Row],[Description]]) -> B: 100% Barley, Winter Rye, or Winter Wheat | E37: No | I37: =IF(COUNTIF('Seed Mix Selection'!$C$9:$J$42,tSeed_Add[[#This Row],[Dropdown List]])>0,"Yes","No") -> No | J37: =IF(RIGHT(tSeed_Add[[#This Row],[Description]],2)="**","Yes","No") -> No
A38: C | B38: 100% Foxtail Millet | C38: =IF(OR(ISBLANK(tSeed_Add[[#This Row],[Type]]),tSeed_Add[[#This Row],[Type]]=" "),"",tSeed_Add[[#This Row],[Type]]&": "&tSeed_Add[[#This Row],[Description]]) -> C: 100% Foxtail Millet | E38: No | I38: =IF(COUNTIF('Seed Mix Selection'!$C$9:$J$42,tSeed_Add[[#This Row],[Dropdown List]])>0,"Yes","No") -> No | J38: =IF(RIGHT(tSeed_Add[[#This Row],[Description]],2)="**","Yes","No") -> No
A39: D | B39: 100% Annual Ryegrass | C39: =IF(OR(ISBLANK(tSeed_Add[[#This Row],[Type]]),tSeed_Add[[#This Row],[Type]]=" "),"",tSeed_Add[[#This Row],[Type]]&": "&tSeed_Add[[#This Row],[Description]]) -> D: 100% Annual Ryegrass | E39: No | I39: =IF(COUNTIF('Seed Mix Selection'!$C$9:$J$42,tSeed_Add[[#This Row],[Dropdown List]])>0,"Yes","No") -> No | J39: =IF(RIGHT(tSeed_Add[[#This Row],[Description]],2)="**","Yes","No") -> No
A40: E | B40: 100% Blue Grama | C40: =IF(OR(ISBLANK(tSeed_Add[[#This Row],[Type]]),tSeed_Add[[#This Row],[Type]]=" "),"",tSeed_Add[[#This Row],[Type]]&": "&tSeed_Add[[#This Row],[Description]]) -> E: 100% Blue Grama | E40: No | I40: =IF(COUNTIF('Seed Mix Selection'!$C$9:$J$42,tSeed_Add[[#This Row],[Dropdown List]])>0,"Yes","No") -> No | J40: =IF(RIGHT(tSeed_Add[[#This Row],[Description]],2)="**","Yes","No") -> No
A41: F | B41: 100% Alfalfa | C41: =IF(OR(ISBLANK(tSeed_Add[[#This Row],[Type]]),tSeed_Add[[#This Row],[Type]]=" "),"",tSeed_Add[[#This Row],[Type]]&": "&tSeed_Add[[#This Row],[Description]]) -> F: 100% Alfalfa | E41: Yes | I41: =IF(COUNTIF('Seed Mix Selection'!$C$9:$J$42,tSeed_Add[[#This Row],[Dropdown List]])>0,"Yes","No") -> No | J41: =IF(RIGHT(tSeed_Add[[#This Row],[Description]],2)="**","Yes","No") -> No
A42: G | B42: 100% White Clover | C42: =IF(OR(ISBLANK(tSeed_Add[[#This Row],[Type]]),tSeed_Add[[#This Row],[Type]]=" "),"",tSeed_Add[[#This Row],[Type]]&": "&tSeed_Add[[#This Row],[Description]]) -> G: 100% White Clover | E42: Yes | I42: =IF(COUNTIF('Seed Mix Selection'!$C$9:$J$42,tSeed_Add[[#This Row],[Dropdown List]])>0,"Yes","No") -> No | J42: =IF(RIGHT(tSeed_Add[[#This Row],[Description]],2)="**","Yes","No") -> No
A43: H | B43: 100% Crown Vetch (Legume)** | C43: =IF(OR(ISBLANK(tSeed_Add[[#This Row],[Type]]),tSeed_Add[[#This Row],[Type]]=" "),"",tSeed_Add[[#This Row],[Type]]&": "&tSeed_Add[[#This Row],[Description]]) -> H: 100% Crown Vetch (Legume)** | E43: Yes | I43: =IF(COUNTIF('Seed Mix Selection'!$C$9:$J$42,tSeed_Add[[#This Row],[Dropdown List]])>0,"Yes","No") -> No | J43: =IF(RIGHT(tSeed_Add[[#This Row],[Description]],2)="**","Yes","No") -> Yes
A44: I | B44: 100% Sericea Lespedeza (Legume)** | C44: =IF(OR(ISBLANK(tSeed_Add[[#This Row],[Type]]),tSeed_Add[[#This Row],[Type]]=" "),"",tSeed_Add[[#This Row],[Type]]&": "&tSeed_Add[[#This Row],[Description]]) -> I: 100% Sericea Lespedeza (Legume)** | E44: Yes | I44: =IF(COUNTIF('Seed Mix Selection'!$C$9:$J$42,tSeed_Add[[#This Row],[Dropdown List]])>0,"Yes","No") -> No | J44: =IF(RIGHT(tSeed_Add[[#This Row],[Description]],2)="**","Yes","No") -> Yes
A45: J | B45: 100% Birdsfoot Trefoil (Legume)** | C45: =IF(OR(ISBLANK(tSeed_Add[[#This Row],[Type]]),tSeed_Add[[#This Row],[Type]]=" "),"",tSeed_Add[[#This Row],[Type]]&": "&tSeed_Add[[#This Row],[Description]]) -> J: 100% Birdsfoot Trefoil (Legume)** | E45: Yes | I45: =IF(COUNTIF('Seed Mix Selection'!$C$9:$J$42,tSeed_Add[[#This Row],[Dropdown List]])>0,"Yes","No") -> No | J45: =IF(RIGHT(tSeed_Add[[#This Row],[Description]],2)="**","Yes","No") -> Yes
A46: K | B46: Pollinator Seed Mix | C46: =IF(OR(ISBLANK(tSeed_Add[[#This Row],[Type]]),tSeed_Add[[#This Row],[Type]]=" "),"",tSeed_Add[[#This Row],[Type]]&": "&tSeed_Add[[#This Row],[Description]]) -> K: Pollinator Seed Mix | E46: No | I46: =IF(COUNTIF('Seed Mix Selection'!$C$9:$J$42,tSeed_Add[[#This Row],[Dropdown List]])>0,"Yes","No") -> No | J46: =IF(RIGHT(tSeed_Add[[#This Row],[Description]],2)="**","Yes","No") -> No
A47: L | C47: =IF(OR(ISBLANK(tSeed_Add[[#This Row],[Type]]),tSeed_Add[[#This Row],[Type]]=" "),"",tSeed_Add[[#This Row],[Type]]&": "&tSeed_Add[[#This Row],[Description]]) -> L: | I47: =IF(COUNTIF('Seed Mix Selection'!$C$9:$J$42,tSeed_Add[[#This Row],[Dropdown List]])>0,"Yes","No") -> No | J47: =IF(RIGHT(tSeed_Add[[#This Row],[Description]],2)="**","Yes","No") -> No
A48: M | C48: =IF(OR(ISBLANK(tSeed_Add[[#This Row],[Type]]),tSeed_Add[[#This Row],[Type]]=" "),"",tSeed_Add[[#This Row],[Type]]&": "&tSeed_Add[[#This Row],[Description]]) -> M: | I48: =IF(COUNTIF('Seed Mix Selection'!$C$9:$J$42,tSeed_Add[[#This Row],[Dropdown List]])>0,"Yes","No") -> No | J48: =IF(RIGHT(tSeed_Add[[#This Row],[Description]],2)="**","Yes","No") -> No
A49: N | C49: =IF(OR(ISBLANK(tSeed_Add[[#This Row],[Type]]),tSeed_Add[[#This Row],[Type]]=" "),"",tSeed_Add[[#This Row],[Type]]&": "&tSeed_Add[[#This Row],[Description]]) -> N: | I49: =IF(COUNTIF('Seed Mix Selection'!$C$9:$J$42,tSeed_Add[[#This Row],[Dropdown List]])>0,"Yes","No") -> No | J49: =IF(RIGHT(tSeed_Add[[#This Row],[Description]],2)="**","Yes","No") -> No
A50: O | C50: =IF(OR(ISBLANK(tSeed_Add[[#This Row],[Type]]),tSeed_Add[[#This Row],[Type]]=" "),"",tSeed_Add[[#This Row],[Type]]&": "&tSeed_Add[[#This Row],[Description]]) -> O: | I50: =IF(COUNTIF('Seed Mix Selection'!$C$9:$J$42,tSeed_Add[[#This Row],[Dropdown List]])>0,"Yes","No") -> No | J50: =IF(RIGHT(tSeed_Add[[#This Row],[Description]],2)="**","Yes","No") -> No
A51: Z | C51: =IF(OR(ISBLANK(tSeed_Add[[#This Row],[Type]]),tSeed_Add[[#This Row],[Type]]=" "),"",tSeed_Add[[#This Row],[Type]]&": "&tSeed_Add[[#This Row],[Description]]) -> Z: | I51: =IF(COUNTIF('Seed Mix Selection'!$C$9:$J$42,tSeed_Add[[#This Row],[Dropdown List]])>0,"Yes","No") -> No | J51: =IF(RIGHT(tSeed_Add[[#This Row],[Description]],2)="**","Yes","No") -> No
A52: **: | B52: These Additives are NOT to be used in areas that will be mowed (slopes flatter than or equal to 3:1)
A54: CUSTOM SEED MIX(ES) | C54: =IF(AND(LEFT($C$3,1)="y",$C$4>=1),IF(COUNTA(tSeed_Custom1[Seed Name])<1,"Please Enter at least One (1) Seed Name for this Custom Seed Mix",IF(COUNTIF(G58:G72,"")<15,"Please ensure that all columns are filled out for each seed listed.","")),IF(COUNTIF(G58:G72,"")<15,"Please Check Answers about Custom Seed Mixes at the Top of the Page or Delete Input in Table Below","")) -> 
A55: This area is provided in order to create a custom seed mixture that can be used | C55: Custom Mix Code: | D55: C1 | E55: =SUM(tSeed_Custom1[Lbs/Acre])-E56 -> 0 | F55: lbs/ac Seed
A56: as a core mix instead of one of the Core Mixtures listed in the tables above. | C56: Application Rate (lbs/ac): | D56: =SUM(tSeed_Custom1[Lbs/Acre]) -> 0 | E56: =SUMIF(tSeed_Custom1[Legume?],"y*",tSeed_Custom1[Lbs/Acre]) -> 0 | F56: lbs/ac Legumes
A57: To use a Custom Seed Mix: | C57: Seed Name | D57: Lbs/Acre | E57: Legume? | F57: % Of Mix
A58: 1 | B58: Enter the Seed Name (either scientific or common name) in the | F58: =IFERROR(tSeed_Custom1[[#This Row],[Lbs/Acre]]/$D$56,0) -> 0 | G58: =IF(AND(OR($C$4<1,LEFT($C$3,1)<>"Y"),OR(tSeed_Custom1[[#This Row],[Seed Name]]>0,tSeed_Custom1[[#This Row],[Lbs/Acre]]>0)),"Check Answers about Custom Seed Mixes at Top of Page",IF(AND(COUNTA(tSeed_Custom1[[#This Row],[Seed Name]:[Legume?]])>0,COUNTA(tSeed_Custom1[[#This Row],[Seed Name]:[Legume?]])<3),"Please enter information for all 3 columns!","")) -> 
B59: first column of the table to the right (or below for C2 & C3) | F59: =IFERROR(tSeed_Custom1[[#This Row],[Lbs/Acre]]/$D$56,0) -> 0 | G59: =IF(AND(OR($C$4<1,LEFT($C$3,1)<>"Y"),OR(tSeed_Custom1[[#This Row],[Seed Name]]>0,tSeed_Custom1[[#This Row],[Lbs/Acre]]>0)),"Check Answers about Custom Seed Mixes at Top of Page",IF(AND(COUNTA(tSeed_Custom1[[#This Row],[Seed Name]:[Legume?]])>0,COUNTA(tSeed_Custom1[[#This Row],[Seed Name]:[Legume?]])<3),"Please enter information for all 3 columns!","")) -> 
A60: 2 | B60: Enter the application rate for the seed in pounds per acre (lbs/ac) | F60: =IFERROR(tSeed_Custom1[[#This Row],[Lbs/Acre]]/$D$56,0) -> 0 | G60: =IF(AND(OR($C$4<1,LEFT($C$3,1)<>"Y"),OR(tSeed_Custom1[[#This Row],[Seed Name]]>0,tSeed_Custom1[[#This Row],[Lbs/Acre]]>0)),"Check Answers about Custom Seed Mixes at Top of Page",IF(AND(COUNTA(tSeed_Custom1[[#This Row],[Seed Name]:[Legume?]])>0,COUNTA(tSeed_Custom1[[#This Row],[Seed Name]:[Legume?]])<3),"Please enter information for all 3 columns!","")) -> 
A61: 3 | B61: List whether or not the seed is a Legume in the 3rd column | F61: =IFERROR(tSeed_Custom1[[#This Row],[Lbs/Acre]]/$D$56,0) -> 0 | G61: =IF(AND(OR($C$4<1,LEFT($C$3,1)<>"Y"),OR(tSeed_Custom1[[#This Row],[Seed Name]]>0,tSeed_Custom1[[#This Row],[Lbs/Acre]]>0)),"Check Answers about Custom Seed Mixes at Top of Page",IF(AND(COUNTA(tSeed_Custom1[[#This Row],[Seed Name]:[Legume?]])>0,COUNTA(tSeed_Custom1[[#This Row],[Seed Name]:[Legume?]])<3),"Please enter information for all 3 columns!","")) -> 
B62: NOTE: Program assumes seed is NOT a legume unless | F62: =IFERROR(tSeed_Custom1[[#This Row],[Lbs/Acre]]/$D$56,0) -> 0 | G62: =IF(AND(OR($C$4<1,LEFT($C$3,1)<>"Y"),OR(tSeed_Custom1[[#This Row],[Seed Name]]>0,tSeed_Custom1[[#This Row],[Lbs/Acre]]>0)),"Check Answers about Custom Seed Mixes at Top of Page",IF(AND(COUNTA(tSeed_Custom1[[#This Row],[Seed Name]:[Legume?]])>0,COUNTA(tSeed_Custom1[[#This Row],[Seed Name]:[Legume?]])<3),"Please enter information for all 3 columns!","")) -> 
B63: user enters "Yes" in this column (Legume?) | F63: =IFERROR(tSeed_Custom1[[#This Row],[Lbs/Acre]]/$D$56,0) -> 0 | G63: =IF(AND(OR($C$4<1,LEFT($C$3,1)<>"Y"),OR(tSeed_Custom1[[#This Row],[Seed Name]]>0,tSeed_Custom1[[#This Row],[Lbs/Acre]]>0)),"Check Answers about Custom Seed Mixes at Top of Page",IF(AND(COUNTA(tSeed_Custom1[[#This Row],[Seed Name]:[Legume?]])>0,COUNTA(tSeed_Custom1[[#This Row],[Seed Name]:[Legume?]])<3),"Please enter information for all 3 columns!","")) -> 
B64: Due to the additional items necessary to establish legumes vs. | F64: =IFERROR(tSeed_Custom1[[#This Row],[Lbs/Acre]]/$D$56,0) -> 0 | G64: =IF(AND(OR($C$4<1,LEFT($C$3,1)<>"Y"),OR(tSeed_Custom1[[#This Row],[Seed Name]]>0,tSeed_Custom1[[#This Row],[Lbs/Acre]]>0)),"Check Answers about Custom Seed Mixes at Top of Page",IF(AND(COUNTA(tSeed_Custom1[[#This Row],[Seed Name]:[Legume?]])>0,COUNTA(tSeed_Custom1[[#This Row],[Seed Name]:[Legume?]])<3),"Please enter information for all 3 columns!","")) -> 
B65: seeds (inocculants, etc.) they are a separate pay item & must | F65: =IFERROR(tSeed_Custom1[[#This Row],[Lbs/Acre]]/$D$56,0) -> 0 | G65: =IF(AND(OR($C$4<1,LEFT($C$3,1)<>"Y"),OR(tSeed_Custom1[[#This Row],[Seed Name]]>0,tSeed_Custom1[[#This Row],[Lbs/Acre]]>0)),"Check Answers about Custom Seed Mixes at Top of Page",IF(AND(COUNTA(tSeed_Custom1[[#This Row],[Seed Name]:[Legume?]])>0,COUNTA(tSeed_Custom1[[#This Row],[Seed Name]:[Legume?]])<3),"Please enter information for all 3 columns!","")) -> 
B66: be broken out in order for this spreadsheet to work correctly | F66: =IFERROR(tSeed_Custom1[[#This Row],[Lbs/Acre]]/$D$56,0) -> 0 | G66: =IF(AND(OR($C$4<1,LEFT($C$3,1)<>"Y"),OR(tSeed_Custom1[[#This Row],[Seed Name]]>0,tSeed_Custom1[[#This Row],[Lbs/Acre]]>0)),"Check Answers about Custom Seed Mixes at Top of Page",IF(AND(COUNTA(tSeed_Custom1[[#This Row],[Seed Name]:[Legume?]])>0,COUNTA(tSeed_Custom1[[#This Row],[Seed Name]:[Legume?]])<3),"Please enter information for all 3 columns!","")) -> 
A67: 4 | B67: Select "C#: Custom #, See Box Below for Contents of Mixture" | F67: =IFERROR(tSeed_Custom1[[#This Row],[Lbs/Acre]]/$D$56,0) -> 0 | G67: =IF(AND(OR($C$4<1,LEFT($C$3,1)<>"Y"),OR(tSeed_Custom1[[#This Row],[Seed Name]]>0,tSeed_Custom1[[#This Row],[Lbs/Acre]]>0)),"Check Answers about Custom Seed Mixes at Top of Page",IF(AND(COUNTA(tSeed_Custom1[[#This Row],[Seed Name]:[Legume?]])>0,COUNTA(tSeed_Custom1[[#This Row],[Seed Name]:[Legume?]])<3),"Please enter information for all 3 columns!","")) -> 
B68: from the drop down list under "Core Mixture" on the | F68: =IFERROR(tSeed_Custom1[[#This Row],[Lbs/Acre]]/$D$56,0) -> 0 | G68: =IF(AND(OR($C$4<1,LEFT($C$3,1)<>"Y"),OR(tSeed_Custom1[[#This Row],[Seed Name]]>0,tSeed_Custom1[[#This Row],[Lbs/Acre]]>0)),"Check Answers about Custom Seed Mixes at Top of Page",IF(AND(COUNTA(tSeed_Custom1[[#This Row],[Seed Name]:[Legume?]])>0,COUNTA(tSeed_Custom1[[#This Row],[Seed Name]:[Legume?]])<3),"Please enter information for all 3 columns!","")) -> 
B69: Seed Mix Selection tab | F69: =IFERROR(tSeed_Custom1[[#This Row],[Lbs/Acre]]/$D$56,0) -> 0 | G69: =IF(AND(OR($C$4<1,LEFT($C$3,1)<>"Y"),OR(tSeed_Custom1[[#This Row],[Seed Name]]>0,tSeed_Custom1[[#This Row],[Lbs/Acre]]>0)),"Check Answers about Custom Seed Mixes at Top of Page",IF(AND(COUNTA(tSeed_Custom1[[#This Row],[Seed Name]:[Legume?]])>0,COUNTA(tSeed_Custom1[[#This Row],[Seed Name]:[Legume?]])<3),"Please enter information for all 3 columns!","")) -> 
B70: (where # is 1, 2, or 3 for custom mixes 1, 2, & 3 respectively) | F70: =IFERROR(tSeed_Custom1[[#This Row],[Lbs/Acre]]/$D$56,0) -> 0 | G70: =IF(AND(OR($C$4<1,LEFT($C$3,1)<>"Y"),OR(tSeed_Custom1[[#This Row],[Seed Name]]>0,tSeed_Custom1[[#This Row],[Lbs/Acre]]>0)),"Check Answers about Custom Seed Mixes at Top of Page",IF(AND(COUNTA(tSeed_Custom1[[#This Row],[Seed Name]:[Legume?]])>0,COUNTA(tSeed_Custom1[[#This Row],[Seed Name]:[Legume?]])<3),"Please enter information for all 3 columns!","")) -> 
A71: Helpful Hints: | F71: =IFERROR(tSeed_Custom1[[#This Row],[Lbs/Acre]]/$D$56,0) -> 0 | G71: =IF(AND(OR($C$4<1,LEFT($C$3,1)<>"Y"),OR(tSeed_Custom1[[#This Row],[Seed Name]]>0,tSeed_Custom1[[#This Row],[Lbs/Acre]]>0)),"Check Answers about Custom Seed Mixes at Top of Page",IF(AND(COUNTA(tSeed_Custom1[[#This Row],[Seed Name]:[Legume?]])>0,COUNTA(tSeed_Custom1[[#This Row],[Seed Name]:[Legume?]])<3),"Please enter information for all 3 columns!","")) -> 
A72: A. | B72: You can copy and paste from the seed lists above if it is a mixture | F72: =IFERROR(tSeed_Custom1[[#This Row],[Lbs/Acre]]/$D$56,0) -> 0 | G72: =IF(AND(OR($C$4<1,LEFT($C$3,1)<>"Y"),OR(tSeed_Custom1[[#This Row],[Seed Name]]>0,tSeed_Custom1[[#This Row],[Lbs/Acre]]>0)),"Check Answers about Custom Seed Mixes at Top of Page",IF(AND(COUNTA(tSeed_Custom1[[#This Row],[Seed Name]:[Legume?]])>0,COUNTA(tSeed_Custom1[[#This Row],[Seed Name]:[Legume?]])<3),"Please enter information for all 3 columns!","")) -> 
B73: of seeds already listed on this page. | C73: =IF(AND(LEFT($C$3,1)="y",$C$4>=2),IF(COUNTA(tSeed_Custom2[Seed Name])<1,"Please Enter at least One (1) Seed Name for this Custom Seed Mix",IF(COUNTIF(B77:B91,"")<15,"Please ensure that all columns are filled out for each seed listed.","")),IF(COUNTIF(B77:B91,"")<15,"Please Check Answers about Custom Seed Mixes at the Top of the Page or Delete Input in Table Below","")) ->  | K73: =IF(AND(LEFT($C$3,1)="y",$C$4>=2),IF(COUNTA(tSeed_Custom2[Seed Name])<1,"Please Enter at least One (1) Seed Name for this Custom Seed Mix",IF(COUNTIF(B77:B91,"")<15,"Please ensure that all columns are filled out for each seed listed.","")),IF(COUNTIF(B77:B91,"")<15,"Please Check Answers about Custom Seed Mixes at the Top of the Page or Delete Input in Table Below","")) -> 
A74: B. | B74: Alternatively, if it is a custom blend you often use, keep a copy of | C74: Custom Mix Code: | D74: C2 | E74: =SUM(tSeed_Custom2[Lbs/Acre])-E75 -> 0 | F74: lbs/ac Seed
B75: the list in another file and copy/paste the values into new versions | C75: Application Rate (lbs/ac): | D75: =SUM(tSeed_Custom2[Lbs/Acre]) -> 0 | E75: =SUMIF(tSeed_Custom2[Legume?],"y*",tSeed_Custom2[Lbs/Acre]) -> 0 | F75: lbs/ac Legumes
B76: of this spreadsheet. | C76: Seed Name | D76: Lbs/Acre | E76: Legume? | F76: % Of Mix
B77: =IF(AND(OR($C$4<2,LEFT($C$3,1)<>"Y"),OR(tSeed_Custom2[[#This Row],[Seed Name]]>0,tSeed_Custom2[[#This Row],[Lbs/Acre]]>0)),"Check Answers about Custom Seed Mixes at Top of Page",IF(AND(COUNTA(tSeed_Custom2[[#This Row],[Seed Name]:[Legume?]])>0,COUNTA(tSeed_Custom2[[#This Row],[Seed Name]:[Legume?]])<3),"Please enter information for all 3 columns!","")) ->  | F77: =IFERROR(tSeed_Custom2[[#This Row],[Lbs/Acre]]/$D$75,0) -> 0
B78: =IF(AND(OR($C$4<2,LEFT($C$3,1)<>"Y"),OR(tSeed_Custom2[[#This Row],[Seed Name]]>0,tSeed_Custom2[[#This Row],[Lbs/Acre]]>0)),"Check Answers about Custom Seed Mixes at Top of Page",IF(AND(COUNTA(tSeed_Custom2[[#This Row],[Seed Name]:[Legume?]])>0,COUNTA(tSeed_Custom2[[#This Row],[Seed Name]:[Legume?]])<3),"Please enter information for all 3 columns!","")) ->  | F78: =IFERROR(tSeed_Custom2[[#This Row],[Lbs/Acre]]/$D$75,0) -> 0
B79: =IF(AND(OR($C$4<2,LEFT($C$3,1)<>"Y"),OR(tSeed_Custom2[[#This Row],[Seed Name]]>0,tSeed_Custom2[[#This Row],[Lbs/Acre]]>0)),"Check Answers about Custom Seed Mixes at Top of Page",IF(AND(COUNTA(tSeed_Custom2[[#This Row],[Seed Name]:[Legume?]])>0,COUNTA(tSeed_Custom2[[#This Row],[Seed Name]:[Legume?]])<3),"Please enter information for all 3 columns!","")) ->  | F79: =IFERROR(tSeed_Custom2[[#This Row],[Lbs/Acre]]/$D$75,0) -> 0
B80: =IF(AND(OR($C$4<2,LEFT($C$3,1)<>"Y"),OR(tSeed_Custom2[[#This Row],[Seed Name]]>0,tSeed_Custom2[[#This Row],[Lbs/Acre]]>0)),"Check Answers about Custom Seed Mixes at Top of Page",IF(AND(COUNTA(tSeed_Custom2[[#This Row],[Seed Name]:[Legume?]])>0,COUNTA(tSeed_Custom2[[#This Row],[Seed Name]:[Legume?]])<3),"Please enter information for all 3 columns!","")) ->  | F80: =IFERROR(tSeed_Custom2[[#This Row],[Lbs/Acre]]/$D$75,0) -> 0
B81: =IF(AND(OR($C$4<2,LEFT($C$3,1)<>"Y"),OR(tSeed_Custom2[[#This Row],[Seed Name]]>0,tSeed_Custom2[[#This Row],[Lbs/Acre]]>0)),"Check Answers about Custom Seed Mixes at Top of Page",IF(AND(COUNTA(tSeed_Custom2[[#This Row],[Seed Name]:[Legume?]])>0,COUNTA(tSeed_Custom2[[#This Row],[Seed Name]:[Legume?]])<3),"Please enter information for all 3 columns!","")) ->  | F81: =IFERROR(tSeed_Custom2[[#This Row],[Lbs/Acre]]/$D$75,0) -> 0
B82: =IF(AND(OR($C$4<2,LEFT($C$3,1)<>"Y"),OR(tSeed_Custom2[[#This Row],[Seed Name]]>0,tSeed_Custom2[[#This Row],[Lbs/Acre]]>0)),"Check Answers about Custom Seed Mixes at Top of Page",IF(AND(COUNTA(tSeed_Custom2[[#This Row],[Seed Name]:[Legume?]])>0,COUNTA(tSeed_Custom2[[#This Row],[Seed Name]:[Legume?]])<3),"Please enter information for all 3 columns!","")) ->  | F82: =IFERROR(tSeed_Custom2[[#This Row],[Lbs/Acre]]/$D$75,0) -> 0
B83: =IF(AND(OR($C$4<2,LEFT($C$3,1)<>"Y"),OR(tSeed_Custom2[[#This Row],[Seed Name]]>0,tSeed_Custom2[[#This Row],[Lbs/Acre]]>0)),"Check Answers about Custom Seed Mixes at Top of Page",IF(AND(COUNTA(tSeed_Custom2[[#This Row],[Seed Name]:[Legume?]])>0,COUNTA(tSeed_Custom2[[#This Row],[Seed Name]:[Legume?]])<3),"Please enter information for all 3 columns!","")) ->  | F83: =IFERROR(tSeed_Custom2[[#This Row],[Lbs/Acre]]/$D$75,0) -> 0
B84: =IF(AND(OR($C$4<2,LEFT($C$3,1)<>"Y"),OR(tSeed_Custom2[[#This Row],[Seed Name]]>0,tSeed_Custom2[[#This Row],[Lbs/Acre]]>0)),"Check Answers about Custom Seed Mixes at Top of Page",IF(AND(COUNTA(tSeed_Custom2[[#This Row],[Seed Name]:[Legume?]])>0,COUNTA(tSeed_Custom2[[#This Row],[Seed Name]:[Legume?]])<3),"Please enter information for all 3 columns!","")) ->  | F84: =IFERROR(tSeed_Custom2[[#This Row],[Lbs/Acre]]/$D$75,0) -> 0
B85: =IF(AND(OR($C$4<2,LEFT($C$3,1)<>"Y"),OR(tSeed_Custom2[[#This Row],[Seed Name]]>0,tSeed_Custom2[[#This Row],[Lbs/Acre]]>0)),"Check Answers about Custom Seed Mixes at Top of Page",IF(AND(COUNTA(tSeed_Custom2[[#This Row],[Seed Name]:[Legume?]])>0,COUNTA(tSeed_Custom2[[#This Row],[Seed Name]:[Legume?]])<3),"Please enter information for all 3 columns!","")) ->  | F85: =IFERROR(tSeed_Custom2[[#This Row],[Lbs/Acre]]/$D$75,0) -> 0
B86: =IF(AND(OR($C$4<2,LEFT($C$3,1)<>"Y"),OR(tSeed_Custom2[[#This Row],[Seed Name]]>0,tSeed_Custom2[[#This Row],[Lbs/Acre]]>0)),"Check Answers about Custom Seed Mixes at Top of Page",IF(AND(COUNTA(tSeed_Custom2[[#This Row],[Seed Name]:[Legume?]])>0,COUNTA(tSeed_Custom2[[#This Row],[Seed Name]:[Legume?]])<3),"Please enter information for all 3 columns!","")) ->  | F86: =IFERROR(tSeed_Custom2[[#This Row],[Lbs/Acre]]/$D$75,0) -> 0
B87: =IF(AND(OR($C$4<2,LEFT($C$3,1)<>"Y"),OR(tSeed_Custom2[[#This Row],[Seed Name]]>0,tSeed_Custom2[[#This Row],[Lbs/Acre]]>0)),"Check Answers about Custom Seed Mixes at Top of Page",IF(AND(COUNTA(tSeed_Custom2[[#This Row],[Seed Name]:[Legume?]])>0,COUNTA(tSeed_Custom2[[#This Row],[Seed Name]:[Legume?]])<3),"Please enter information for all 3 columns!","")) ->  | F87: =IFERROR(tSeed_Custom2[[#This Row],[Lbs/Acre]]/$D$75,0) -> 0
B88: =IF(AND(OR($C$4<2,LEFT($C$3,1)<>"Y"),OR(tSeed_Custom2[[#This Row],[Seed Name]]>0,tSeed_Custom2[[#This Row],[Lbs/Acre]]>0)),"Check Answers about Custom Seed Mixes at Top of Page",IF(AND(COUNTA(tSeed_Custom2[[#This Row],[Seed Name]:[Legume?]])>0,COUNTA(tSeed_Custom2[[#This Row],[Seed Name]:[Legume?]])<3),"Please enter information for all 3 columns!","")) ->  | F88: =IFERROR(tSeed_Custom2[[#This Row],[Lbs/Acre]]/$D$75,0) -> 0
B89: =IF(AND(OR($C$4<2,LEFT($C$3,1)<>"Y"),OR(tSeed_Custom2[[#This Row],[Seed Name]]>0,tSeed_Custom2[[#This Row],[Lbs/Acre]]>0)),"Check Answers about Custom Seed Mixes at Top of Page",IF(AND(COUNTA(tSeed_Custom2[[#This Row],[Seed Name]:[Legume?]])>0,COUNTA(tSeed_Custom2[[#This Row],[Seed Name]:[Legume?]])<3),"Please enter information for all 3 columns!","")) ->  | F89: =IFERROR(tSeed_Custom2[[#This Row],[Lbs/Acre]]/$D$75,0) -> 0
B90: =IF(AND(OR($C$4<2,LEFT($C$3,1)<>"Y"),OR(tSeed_Custom2[[#This Row],[Seed Name]]>0,tSeed_Custom2[[#This Row],[Lbs/Acre]]>0)),"Check Answers about Custom Seed Mixes at Top of Page",IF(AND(COUNTA(tSeed_Custom2[[#This Row],[Seed Name]:[Legume?]])>0,COUNTA(tSeed_Custom2[[#This Row],[Seed Name]:[Legume?]])<3),"Please enter information for all 3 columns!","")) ->  | F90: =IFERROR(tSeed_Custom2[[#This Row],[Lbs/Acre]]/$D$75,0) -> 0
B91: =IF(AND(OR($C$4<2,LEFT($C$3,1)<>"Y"),OR(tSeed_Custom2[[#This Row],[Seed Name]]>0,tSeed_Custom2[[#This Row],[Lbs/Acre]]>0)),"Check Answers about Custom Seed Mixes at Top of Page",IF(AND(COUNTA(tSeed_Custom2[[#This Row],[Seed Name]:[Legume?]])>0,COUNTA(tSeed_Custom2[[#This Row],[Seed Name]:[Legume?]])<3),"Please enter information for all 3 columns!","")) ->  | F91: =IFERROR(tSeed_Custom2[[#This Row],[Lbs/Acre]]/$D$75,0) -> 0
C92: =IF(AND(LEFT($C$3,1)="y",$C$4>=3),IF(COUNTA(tSeed_Custom3[Seed Name])<1,"Please Enter at least One (1) Seed Name for this Custom Seed Mix",IF(COUNTIF(B96:B110,"")<15,"Please ensure that all columns are filled out for each seed listed.","")),IF(COUNTIF(B96:B110,"")<15,"Please Check Answers about Custom Seed Mixes at the Top of the Page or Delete Input in Table Below","")) -> 
C93: Custom Mix Code: | D93: C3 | E93: =SUM(tSeed_Custom3[Lbs/Acre])-E94 -> 0 | F93: lbs/ac Seed
C94: Application Rate (lbs/ac): | D94: =SUM(tSeed_Custom3[Lbs/Acre]) -> 0 | E94: =SUMIF(tSeed_Custom3[Legume?],"y*",tSeed_Custom3[Lbs/Acre]) -> 0 | F94: lbs/ac Legumes
C95: Seed Name | D95: Lbs/Acre | E95: Legume? | F95: % Of Mix
B96: =IF(AND(OR($C$4<3,LEFT($C$3,1)<>"Y"),OR(tSeed_Custom3[[#This Row],[Seed Name]]>0,tSeed_Custom3[[#This Row],[Lbs/Acre]]>0)),"Check Answers about Custom Seed Mixes at Top of Page",IF(AND(COUNTA(tSeed_Custom3[[#This Row],[Seed Name]:[Legume?]])>0,COUNTA(tSeed_Custom3[[#This Row],[Seed Name]:[Legume?]])<3),"Please enter information for all 3 columns!","")) ->  | F96: =IFERROR(tSeed_Custom3[[#This Row],[Lbs/Acre]]/$D$94,0) -> 0
B97: =IF(AND(OR($C$4<3,LEFT($C$3,1)<>"Y"),OR(tSeed_Custom3[[#This Row],[Seed Name]]>0,tSeed_Custom3[[#This Row],[Lbs/Acre]]>0)),"Check Answers about Custom Seed Mixes at Top of Page",IF(AND(COUNTA(tSeed_Custom3[[#This Row],[Seed Name]:[Legume?]])>0,COUNTA(tSeed_Custom3[[#This Row],[Seed Name]:[Legume?]])<3),"Please enter information for all 3 columns!","")) ->  | F97: =IFERROR(tSeed_Custom3[[#This Row],[Lbs/Acre]]/$D$94,0) -> 0
B98: =IF(AND(OR($C$4<3,LEFT($C$3,1)<>"Y"),OR(tSeed_Custom3[[#This Row],[Seed Name]]>0,tSeed_Custom3[[#This Row],[Lbs/Acre]]>0)),"Check Answers about Custom Seed Mixes at Top of Page",IF(AND(COUNTA(tSeed_Custom3[[#This Row],[Seed Name]:[Legume?]])>0,COUNTA(tSeed_Custom3[[#This Row],[Seed Name]:[Legume?]])<3),"Please enter information for all 3 columns!","")) ->  | F98: =IFERROR(tSeed_Custom3[[#This Row],[Lbs/Acre]]/$D$94,0) -> 0
B99: =IF(AND(OR($C$4<3,LEFT($C$3,1)<>"Y"),OR(tSeed_Custom3[[#This Row],[Seed Name]]>0,tSeed_Custom3[[#This Row],[Lbs/Acre]]>0)),"Check Answers about Custom Seed Mixes at Top of Page",IF(AND(COUNTA(tSeed_Custom3[[#This Row],[Seed Name]:[Legume?]])>0,COUNTA(tSeed_Custom3[[#This Row],[Seed Name]:[Legume?]])<3),"Please enter information for all 3 columns!","")) ->  | F99: =IFERROR(tSeed_Custom3[[#This Row],[Lbs/Acre]]/$D$94,0) -> 0
B100: =IF(AND(OR($C$4<3,LEFT($C$3,1)<>"Y"),OR(tSeed_Custom3[[#This Row],[Seed Name]]>0,tSeed_Custom3[[#This Row],[Lbs/Acre]]>0)),"Check Answers about Custom Seed Mixes at Top of Page",IF(AND(COUNTA(tSeed_Custom3[[#This Row],[Seed Name]:[Legume?]])>0,COUNTA(tSeed_Custom3[[#This Row],[Seed Name]:[Legume?]])<3),"Please enter information for all 3 columns!","")) ->  | F100: =IFERROR(tSeed_Custom3[[#This Row],[Lbs/Acre]]/$D$94,0) -> 0
B101: =IF(AND(OR($C$4<3,LEFT($C$3,1)<>"Y"),OR(tSeed_Custom3[[#This Row],[Seed Name]]>0,tSeed_Custom3[[#This Row],[Lbs/Acre]]>0)),"Check Answers about Custom Seed Mixes at Top of Page",IF(AND(COUNTA(tSeed_Custom3[[#This Row],[Seed Name]:[Legume?]])>0,COUNTA(tSeed_Custom3[[#This Row],[Seed Name]:[Legume?]])<3),"Please enter information for all 3 columns!","")) ->  | F101: =IFERROR(tSeed_Custom3[[#This Row],[Lbs/Acre]]/$D$94,0) -> 0
B102: =IF(AND(OR($C$4<3,LEFT($C$3,1)<>"Y"),OR(tSeed_Custom3[[#This Row],[Seed Name]]>0,tSeed_Custom3[[#This Row],[Lbs/Acre]]>0)),"Check Answers about Custom Seed Mixes at Top of Page",IF(AND(COUNTA(tSeed_Custom3[[#This Row],[Seed Name]:[Legume?]])>0,COUNTA(tSeed_Custom3[[#This Row],[Seed Name]:[Legume?]])<3),"Please enter information for all 3 columns!","")) ->  | F102: =IFERROR(tSeed_Custom3[[#This Row],[Lbs/Acre]]/$D$94,0) -> 0
B103: =IF(AND(OR($C$4<3,LEFT($C$3,1)<>"Y"),OR(tSeed_Custom3[[#This Row],[Seed Name]]>0,tSeed_Custom3[[#This Row],[Lbs/Acre]]>0)),"Check Answers about Custom Seed Mixes at Top of Page",IF(AND(COUNTA(tSeed_Custom3[[#This Row],[Seed Name]:[Legume?]])>0,COUNTA(tSeed_Custom3[[#This Row],[Seed Name]:[Legume?]])<3),"Please enter information for all 3 columns!","")) ->  | F103: =IFERROR(tSeed_Custom3[[#This Row],[Lbs/Acre]]/$D$94,0) -> 0
B104: =IF(AND(OR($C$4<3,LEFT($C$3,1)<>"Y"),OR(tSeed_Custom3[[#This Row],[Seed Name]]>0,tSeed_Custom3[[#This Row],[Lbs/Acre]]>0)),"Check Answers about Custom Seed Mixes at Top of Page",IF(AND(COUNTA(tSeed_Custom3[[#This Row],[Seed Name]:[Legume?]])>0,COUNTA(tSeed_Custom3[[#This Row],[Seed Name]:[Legume?]])<3),"Please enter information for all 3 columns!","")) ->  | F104: =IFERROR(tSeed_Custom3[[#This Row],[Lbs/Acre]]/$D$94,0) -> 0
B105: =IF(AND(OR($C$4<3,LEFT($C$3,1)<>"Y"),OR(tSeed_Custom3[[#This Row],[Seed Name]]>0,tSeed_Custom3[[#This Row],[Lbs/Acre]]>0)),"Check Answers about Custom Seed Mixes at Top of Page",IF(AND(COUNTA(tSeed_Custom3[[#This Row],[Seed Name]:[Legume?]])>0,COUNTA(tSeed_Custom3[[#This Row],[Seed Name]:[Legume?]])<3),"Please enter information for all 3 columns!","")) ->  | F105: =IFERROR(tSeed_Custom3[[#This Row],[Lbs/Acre]]/$D$94,0) -> 0
B106: =IF(AND(OR($C$4<3,LEFT($C$3,1)<>"Y"),OR(tSeed_Custom3[[#This Row],[Seed Name]]>0,tSeed_Custom3[[#This Row],[Lbs/Acre]]>0)),"Check Answers about Custom Seed Mixes at Top of Page",IF(AND(COUNTA(tSeed_Custom3[[#This Row],[Seed Name]:[Legume?]])>0,COUNTA(tSeed_Custom3[[#This Row],[Seed Name]:[Legume?]])<3),"Please enter information for all 3 columns!","")) ->  | F106: =IFERROR(tSeed_Custom3[[#This Row],[Lbs/Acre]]/$D$94,0) -> 0
B107: =IF(AND(OR($C$4<3,LEFT($C$3,1)<>"Y"),OR(tSeed_Custom3[[#This Row],[Seed Name]]>0,tSeed_Custom3[[#This Row],[Lbs/Acre]]>0)),"Check Answers about Custom Seed Mixes at Top of Page",IF(AND(COUNTA(tSeed_Custom3[[#This Row],[Seed Name]:[Legume?]])>0,COUNTA(tSeed_Custom3[[#This Row],[Seed Name]:[Legume?]])<3),"Please enter information for all 3 columns!","")) ->  | F107: =IFERROR(tSeed_Custom3[[#This Row],[Lbs/Acre]]/$D$94,0) -> 0
B108: =IF(AND(OR($C$4<3,LEFT($C$3,1)<>"Y"),OR(tSeed_Custom3[[#This Row],[Seed Name]]>0,tSeed_Custom3[[#This Row],[Lbs/Acre]]>0)),"Check Answers about Custom Seed Mixes at Top of Page",IF(AND(COUNTA(tSeed_Custom3[[#This Row],[Seed Name]:[Legume?]])>0,COUNTA(tSeed_Custom3[[#This Row],[Seed Name]:[Legume?]])<3),"Please enter information for all 3 columns!","")) ->  | F108: =IFERROR(tSeed_Custom3[[#This Row],[Lbs/Acre]]/$D$94,0) -> 0
B109: =IF(AND(OR($C$4<3,LEFT($C$3,1)<>"Y"),OR(tSeed_Custom3[[#This Row],[Seed Name]]>0,tSeed_Custom3[[#This Row],[Lbs/Acre]]>0)),"Check Answers about Custom Seed Mixes at Top of Page",IF(AND(COUNTA(tSeed_Custom3[[#This Row],[Seed Name]:[Legume?]])>0,COUNTA(tSeed_Custom3[[#This Row],[Seed Name]:[Legume?]])<3),"Please enter information for all 3 columns!","")) ->  | F109: =IFERROR(tSeed_Custom3[[#This Row],[Lbs/Acre]]/$D$94,0) -> 0
B110: =IF(AND(OR($C$4<3,LEFT($C$3,1)<>"Y"),OR(tSeed_Custom3[[#This Row],[Seed Name]]>0,tSeed_Custom3[[#This Row],[Lbs/Acre]]>0)),"Check Answers about Custom Seed Mixes at Top of Page",IF(AND(COUNTA(tSeed_Custom3[[#This Row],[Seed Name]:[Legume?]])>0,COUNTA(tSeed_Custom3[[#This Row],[Seed Name]:[Legume?]])<3),"Please enter information for all 3 columns!","")) ->  | F110: =IFERROR(tSeed_Custom3[[#This Row],[Lbs/Acre]]/$D$94,0) -> 0

Sheet Example Lab Report (hidden)

Sheet References (hidden)
A4: Soil Sample Frequency
A5: Routine Fertilization of Ex. Veg.
A6: Linear; non-interstate | B6: One soil test per 5-mile section
A7: Linear; Interstate | B7: One soil test per 5-mile section OR one soil sample in each direction between exits, whichever distance is greater
A8: Non-linear (incl. Interchanges) | B8: One soil test per 20 acres
A9: Repair or Establish Vegetation
A10: Linear | B10: One soil test per linear mile
A11: Non-linear (incl. Interchanges) | B11: One soil test per 20 acres
A12: Problem Sites (failing vegetation)
A13: Linear & Non-linear | B13: New soil test & site assessment by a qualified professional
A15: Laboratory Conversion Factors | J15: Lime Test Key
A16: Laboratory | B16: P-type (DCR 7-13) | C16: Lime Test Type | D16: Notes | E16: Pg. in VT powerpoint | F16: Units | G16: Reference No. | J16: Abreviation | K16: Full Name
A17: Virginia Tech Soil Testing Lab | B17: Mehlich I | C17: 1A | E17: 62, 63, 69 | F17: lbs/ac (P) | G17: 1 | J17: 1A | K17: Mehlich Single Buffer Method
A18: Waters Agricultural Lab., Inc (GA)* | B18: Mehlich I | C18: 1C | D18: Contact lab for Lime Recommendation spreadsheet | E18: 60, 83 | F18: lbs/ac (P) | G18: 2 | J18: 1C | K18: Adams-Evans Single Buffer Method
A19: Waypoint Analytical | B19: Mehlich III | C19: 1B | D19: Formerly A&L Eastern Labs | E19: 77, 78 | F19: ppm (P) | G19: 3 | J19: 1B | K19: Shoemaker-McLean-Pratt (SMP) Single Buffer Method
A20: Agri-Analysis Testing Laboratory | B20: Mehlich III | C20: 1A | E20: 79 | F20: lbs/ac (P2O5) | G20: 4
A21: AgroLab, Inc | B21: Mehlich III | C21: 1B | E21: 81 | F21: ppm (P) | G21: 5 | J21: Units
A22: Brookside Laboratories, Inc | B22: Mehlich III | C22: 1B | E22: 76 | F22: ppm (P) | G22: 6 | J22: ppm (P)
A23: Logan Labs, LLC | B23: Mehlich III | C23: 1B | E23: 80 | F23: lbs/ac (P2O5) | G23: 7 | J23: lbs/ac (P2O5)
A24: Midwest Laboratories, Inc* | B24: Mehlich III | C24: 1B | D24: Lab report shows Bray I test - Must request Mehlich III to use for plan writing. | E24: N/A | F24: ??? | G24: 8 | J24: lbs/ac (P)
A25: Spectrum Analytic, Inc | B25: Mehlich III | C25: 1B | E25: 74, 75 | F25: ppm (P) | G25: 9
A26: Waters Agricultural Lab., Inc (NC)* | B26: Mehlich III | C26: 1C | D26: Contact lab for Lime Recommendation spreadsheet | E26: N/A | F26: lbs/ac (P) | G26: 10
A27: Not Applicable (n/a) | B27: n/a | C27: n/a | G27: 0
A28: Source: VDOT Nutrient Management Plan, dated July 1, 2013; Updated March 2016 (Paper copy from M. Walton)
A30: Soil Types | K30: Fertilizer Types
A31: VA Tech Fertility Rating | B31: Lower P (ppm) | C31: Upper P (ppm) | D31: P Break (ppm) | E31: Lower K (ppm) | F31: Upper K (ppm) | G31: K Break (ppm) | H31: Numeric Value | J31: Fertility Rating | K31: P – lbs/ac | L31: P - PPM | M31: P2O5 – lbs/ac* | O31: Fertility Rating | P31: K – lbs/ac | Q31: K - PPM | R31: K2O – lbs/ac*
A32: L- | B32: 0 | C32: 2 | D32: 0 | E32: 0 | F32: 8 | G32: 0 | H32: 1 | J32: L- | K32: 0-3 | L32: 0-2 | M32: 0-7 | O32: L- | P32: 0-15 | Q32: 0-8 | R32: 0-18
A33: L | B33: 2 | C33: 4 | D33: =AVERAGE(C32,B33) -> 2 | E33: 8 | F33: 28 | G33: =AVERAGE(F32,E33) -> 8 | H33: 2 | J33: L | K33: 4-8 | L33: 2-4 | M33: 9-18 | O33: L | P33: 16-55 | Q33: 8-28 | R33: 19-66
A34: L+ | B34: 5 | C34: 6 | D34: =AVERAGE(C33,B34) -> 4.5 | E34: 28 | F34: 38 | G34: =AVERAGE(F33,E34) -> 28 | H34: 3 | J34: L+ | K34: 9-11 | L34: 5-6 | M34: 21-25 | O34: L+ | P34: 56-75 | Q34: 28-38 | R34: 68-90
A35: M- | B35: 6 | C35: 10 | D35: 6 | E35: 38 | F35: 50 | G35: 38 | H35: 4 | J35: M- | K35: 12-20 | L35: 6-10 | M35: 28-46 | O35: M- | P35: 76-100 | Q35: 38-50 | R35: 92-121
A36: M | B36: 11 | C36: 15 | D36: 10.5 | E36: 51 | F36: 75 | G36: 50.5 | H36: 5 | J36: M | K36: 21-30 | L36: 11-15 | M36: 48-69 | O36: M | P36: 101-150 | Q36: 51-75 | R36: 122-181
A37: M+ | B37: 16 | C37: 18 | D37: 15.5 | E37: 76 | F37: 88 | G37: 75.5 | H37: 6 | J37: M+ | K37: 31-35 | L37: 16-18 | M37: 71-80 | O37: M+ | P37: 151-175 | Q37: 76-88 | R37: 182-211
A38: H- | B38: 18 | C38: 28 | D38: 18 | E38: 88 | F38: 105 | G38: 88 | H38: 7 | J38: H- | K38: 36-55 | L38: 18-28 | M38: 82-126 | O38: H- | P38: 176-210 | Q38: 88-105 | R38: 212-253
A39: H | B39: 28 | C39: 43 | D39: 28 | E39: 106 | F39: 140 | G39: 105.5 | H39: 8 | J39: H | K39: 56-85 | L39: 28-43 | M39: 128-195 | O39: H | P39: 211-280 | Q39: 106-140 | R39: 254-337
A40: H+ | B40: 43 | C40: 55 | D40: 43 | E40: 141 | F40: 155 | G40: 140.5 | H40: 9 | J40: H+ | K40: 86-110 | L40: 43-55 | M40: 197-252 | O40: H+ | P40: 281-310 | Q40: 141-155 | R40: 339-373
A41: VH | B41: 55 | C41: n/a | D41: 55 | E41: 155 | G41: 155 | H41: 10 | J41: VH | K41: 110+ | L41: 55+ | M41: 252+ | O41: VH | P41: 310+ | Q41: 155+ | R41: 373+
A42: Source: Table at right (Table 2-1, DCR Laboratory List 7-13 (VDOT Expanded_R2) (2).docx) | J42: Source: Table 2-1, DCR Laboratory List 7-13 (VDOT Expanded_R2) (2).docx
A44: Phosphorus Conversion Formulas | B44: Mehlich III | C44: Mehlich I
A45: Mehlich III ≤ 205 ppm → Mehlich I | B45: 138 | C45: =ROUND(B45*0.458-3.26,1) -> 59.9 | D45: [Mehlich III (205 ppm P or less) X 0.458] - 3.26 = Mehlich I ppm
A46: Mehlich III > 205 ppm → Mehlich I | B46: 253 | C46: =ROUND((B46*0.945)-103.5,1) -> 135.6 | D46: [Mehlich III (206 ppm P or greater) X 0.945] - 103.5 = Mehlich I P ppm
A47: Unit Conversion Formulas | B47: Example | D47: Converted
A48: Mehlich III P2O5 lbs/ac. → ppm | B48: 1164 | C48: lbs/ac (P2O5) | D48: =B48*0.22 -> 256.08 | E48: P2O5 #/ac. (Mehlich III) X 0.22 = P ppm (Mehlich III)
A49: Mehlich I or III P lbs/ac. → ppm | B49: 506 | C49: lbs/ac (P) | D49: =B49*0.5 -> 253 | E49: P #/ac. (Mehlich III) X 0.5 = P ppm ( Mehlich III)
A51: Table 3.G: Fertilizer Ratios Recommended for ROADSIDE MAINTENANCE
A52: Fertilizer Analysis | B52: Application Rate | C52: Soil Rating | D52: N Rate | E52: P2O5 Rate | F52: K2O Rate
A53: Nominal Analysis (N-P2O5-K2O) (a.k.a. Grade) | B53: Lbs/Ac (lbs/1000 SF) | C53: VA Tech "P" | D53: Lbs/Ac N (lbs/1000 SF) | E53: Lbs/Ac P (lbs/1000 SF) | F53: Lbs/Ac K (lbs/1000 SF)
A54: 10-20-20 and 0-46-0 | B54: 300 (6.9) and 85 (2.0) | C54: L- to L+ | D54: 30 (0.7) | E54: 100 (2.3) | F54: 60 (1.4)
A55: 10-20-20 | B55: 300 (6.9) | C55: M- to M+ | D55: 30 (0.7) | E55: 60 (1.4) | F55: 60 (1.4)
A56: 10-10-10 | B56: 300 (6.9) | C56: H- to H+ | D56: 30 (0.7) | E56: 30 (0.7) | F56: 30 (0.7) | G56: Default (No Soil Test)
A57: 46-0-0 | B57: 65 (1.5) | C57: VH & Overseeding | D57: 30 (0.7) | E57: 0 | F57: 0 | G57: All Overseeding
A58: 5-10-10 | B58: 900 (20) | C58: * | D58: 45 (1.0) | E58: 90 (2.0) | F58: 90 (2.0)
A59: 18-46-0 | B59: 240 (5.5) | C59: * | D59: 45 (1.0) | E59: 110 (2.5) | F59: 0
A60: 0-46-0 | B60: 98 (2) | C60: * | D60: 0 | E60: 45 (1.0) | F60: 0
A61: 10-10-10 | B61: 150 (3.4) | C61: All | D61: 15 (0.3) | E61: 15 (0.3) | F61: 15 (0.3) | G61: ALL TEMPORARY SEEDING
A62: * These ratios can be specified for Roadside maintenance only when the soil tests are review by a qualified professional
A63: Source: VDOT Nutrient Management Plan for Roadside Management, dated July 1, 2013; Updated July 2016 (Paper copy from M. Walton)
I64: Conversion
A65: Table 3.G: Fertilizer Ratios Recommended for CONSTRUCTION PROJECTS | I65: Calculator: | L65: lbs/ | O65: lbs/ | Q65: lbs/
A66: Fertilizer Analysis | B66: Application Rate | C66: Soil Rating | D66: N Rate | E66: P2O5 Rate | F66: K2O Rate | J66: Fertilizer 1 | K66: Lbs/Ac | L66: 1000 SF | M66: Fertilizer 2 | N66: Lbs/Ac | O66: 1000 SF | P66: Lbs/Ac | Q66: 1000 SF
A67: Nominal Analysis (N-P2O5-K2O) (a.k.a. Grade) | B67: Lbs/Ac (lbs/1000 SF) | C67: VA Tech "P" | D67: Lbs/Ac N (lbs/1000 SF) | E67: Lbs/Ac P (lbs/1000 SF) | F67: Lbs/Ac K (lbs/1000 SF) | I67: Application Rate | J67: 150 | K67: =J67 -> 150 | L67: =K67/43560*1000 -> 3.443526171 | M67: 175 | N67: =M67 -> 175 | O67: =N67/43560*1000 -> 4.017447199 | P67: =K67+N67 -> 325 | Q67: 7.46097337
A68: 10-20-20 and 0-46-0 | B68: 400 (9.2) and 175 (4.0) | C68: L- and L | D68: 40 (0.9) | E68: 160.5 (3.7) | F68: 80 (1.8) | I68: N Rate | J68: 10 | K68: =$K$67*J68/100 -> 15 | L68: =K68/43560*1000 -> 0.3443526171 | M68: 0 | N68: =$M$67*M68/100 -> 0 | O68: =N68/43560*1000 -> 0 | P68: 15 | Q68: 0.3443526171
A69: 10-20-20 and 0-46-0 | B69: 400 (9.2) and 100 (2.3) | C69: L+ and M- | D69: 40 (0.9) | E69: 126 (2.9) | F69: 80 (1.8) | I69: P2O5 Rate | J69: 10 | K69: =$K$67*J69/100 -> 15 | L69: =K69/43560*1000 -> 0.3443526171 | M69: 46 | N69: =$M$67*M69/100 -> 80.5 | O69: =N69/43560*1000 -> 1.848025712 | P69: 95.5 | Q69: 2.192378329
A70: 15-30-15 | B70: 250 (5.7) | C70: M thru H- | D70: 37.5 (0.9) | E70: 75 (1.7) | F70: 37.5 (0.9) | G70: Default (No Soil Test) | I70: K2O Rate | J70: 10 | K70: =$K$67*J70/100 -> 15 | L70: =K70/43560*1000 -> 0.3443526171 | M70: 0 | N70: =$M$67*M70/100 -> 0 | O70: =N70/43560*1000 -> 0 | P70: 15 | Q70: 0.3443526171
A71: 10-10-10 | B71: 400 (9.2) | C71: H and H+ | D71: 40 (0.9) | E71: 40 (0.9) | F71: 40 (0.9)
A72: 46-0-0 | B72: 65 (1.5) | C72: VH | D72: 29.9 (0.7) | E72: 0 (0.0) | F72: 0 (0.0) | G72: All Overseeding | K72: 65 | L72: =K72/43560*1000 -> 1.492194674
A73: 15-30-15 | B73: 125 (2.9) | C73: All | D73: 18.75 (0.4) | E73: 37.5 (0.9) | F73: 18.75 (0.4) | G73: ALL TEMPORARY SEEDING
A74: Source: VDOT Nutrient Management Plan for Turf Establishment, dated Jan. 1, 2014; Updated July 2016 (Construction Shortcut 2016 NMP_R2.doc)
A75: Previous Updates: July 2014 (Construction Shortcut 2014 NMP.doc)
C77: Roadside Maintenance | F77: Construction (Establishment)
A78: VA Tech Soil Fertility Rating | B78: RM Fertilizer Grade | C78: RM App. Rate (lbs/ac) | D78: RM App. Rate (lbs/1000 SF) | E78: CE Fertilizer Grade | F78: CE App. Rate (lbs/ac) | G78: CE App. Rate (lbs/1000 SF) | H78: VA Tech Soil Rating
A79: L- | B79: 10-20-20 and 0-46-0 | C79: (300 & 85 lbs/ac) | D79: (6.9 & 2.0 lbs/1,000 SF) | E79: 10-20-20 & 0-46-0 | F79: (400 & 175 lbs/ac) | G79: (9.2 & 4.0 lbs/1,000 SF) | H79: =tFertilizers[[#This Row],[VA Tech Soil Fertility Rating]] -> L-
A80: L | B80: 10-20-20 and 0-46-0 | C80: (300 & 85 lbs/ac) | D80: (6.9 & 2.0 lbs/1,000 SF) | E80: 10-20-20 & 0-46-0 | F80: (400 & 175 lbs/ac) | G80: (9.2 & 4.0 lbs/1,000 SF) | H80: =tFertilizers[[#This Row],[VA Tech Soil Fertility Rating]] -> L
A81: L+ | B81: 10-20-20 and 0-46-0 | C81: (300 & 85 lbs/ac) | D81: (6.9 & 2.0 lbs/1,000 SF) | E81: 10-20-20 & 0-46-0 | F81: (400 & 100 lbs/ac) | G81: (9.2 & 2.3 lbs/1,000 SF) | H81: =tFertilizers[[#This Row],[VA Tech Soil Fertility Rating]] -> L+
A82: M- | B82: 10-20-20 | C82: 300 | D82: 6.9 | E82: 10-20-20 & 0-46-0 | F82: (400 & 100 lbs/ac) | G82: (9.2 & 2.3 lbs/1,000 SF) | H82: =tFertilizers[[#This Row],[VA Tech Soil Fertility Rating]] -> M-
A83: M | B83: 10-20-20 | C83: 300 | D83: 6.9 | E83: 15-30-15 | F83: 250 | G83: 5.7 | H83: =tFertilizers[[#This Row],[VA Tech Soil Fertility Rating]] -> M
A84: M+ | B84: 10-20-20 | C84: 300 | D84: 6.9 | E84: 15-30-15 | F84: 250 | G84: 5.7 | H84: =tFertilizers[[#This Row],[VA Tech Soil Fertility Rating]] -> M+
A85: H- | B85: 10-10-10 | C85: 300 | D85: 6.9 | E85: 15-30-15 | F85: 250 | G85: 5.7 | H85: =tFertilizers[[#This Row],[VA Tech Soil Fertility Rating]] -> H-
A86: H | B86: 10-10-10 | C86: 300 | D86: 6.9 | E86: 10-10-10 | F86: 400 | G86: 9.2 | H86: =tFertilizers[[#This Row],[VA Tech Soil Fertility Rating]] -> H
A87: H+ | B87: 10-10-10 | C87: 300 | D87: 6.9 | E87: 10-10-10 | F87: 400 | G87: 9.2 | H87: =tFertilizers[[#This Row],[VA Tech Soil Fertility Rating]] -> H+
A88: VH | B88: 46-0-0 | C88: 65 | D88: 1.5 | E88: 46-0-0 | F88: 65 | G88: 1.5 | H88: =tFertilizers[[#This Row],[VA Tech Soil Fertility Rating]] -> VH
A89: Overseeding | B89: 46-0-0 | C89: 65 | D89: 1.5 | E89: 46-0-0 | F89: 65 | G89: 1.5 | H89: =tFertilizers[[#This Row],[VA Tech Soil Fertility Rating]] -> Overseeding
A90: Temporary Seeding | B90: 10-10-10 | C90: 150 | D90: 3.4 | E90: 15-30-15 | F90: 125 | G90: 2.9 | H90: =tFertilizers[[#This Row],[VA Tech Soil Fertility Rating]] -> Temporary Seeding
A91: Default Fertilizer | B91: 10-10-10 | C91: 300 | D91: 6.9 | E91: 15-30-15 | F91: 250 | G91: 5.7 | H91: =tFertilizers[[#This Row],[VA Tech Soil Fertility Rating]] -> Default Fertilizer
A92: Source: Compilation of Table 3.g from VDOT NMPs (above two tables)
A93: Fertilizer Grade: % (N-P2O5-K2O) in Nominal Analysis
C95: Roadside Maintenance lbs/ac | F95: Construction (Establishment) lbs/ac
A96: VA Tech Soil Fertility Rating | B96: RM N | C96: RM P | D96: RM K | E96: CE N | F96: CE P | G96: CE K | H96: VA Tech Soil Rating
A97: L- | B97: 30 | C97: 100 | D97: 60 | E97: 40 | F97: 160 | G97: 80 | H97: =tFertRatio_ac[[#This Row],[VA Tech Soil Fertility Rating]] -> L-
A98: L | B98: 30 | C98: 100 | D98: 60 | E98: 40 | F98: 160 | G98: 80 | H98: =tFertRatio_ac[[#This Row],[VA Tech Soil Fertility Rating]] -> L
A99: L+ | B99: 30 | C99: 100 | D99: 60 | E99: 40 | F99: 126 | G99: 80 | H99: =tFertRatio_ac[[#This Row],[VA Tech Soil Fertility Rating]] -> L+
A100: M- | B100: 30 | C100: 60 | D100: 60 | E100: 40 | F100: 126 | G100: 80 | H100: =tFertRatio_ac[[#This Row],[VA Tech Soil Fertility Rating]] -> M-
A101: M | B101: 30 | C101: 60 | D101: 60 | E101: 37.5 | F101: 75 | G101: 37.5 | H101: =tFertRatio_ac[[#This Row],[VA Tech Soil Fertility Rating]] -> M
A102: M+ | B102: 30 | C102: 60 | D102: 60 | E102: 37.5 | F102: 75 | G102: 37.5 | H102: =tFertRatio_ac[[#This Row],[VA Tech Soil Fertility Rating]] -> M+
A103: H- | B103: 30 | C103: 30 | D103: 30 | E103: 37.5 | F103: 75 | G103: 37.5 | H103: =tFertRatio_ac[[#This Row],[VA Tech Soil Fertility Rating]] -> H-
A104: H | B104: 30 | C104: 30 | D104: 30 | E104: 40 | F104: 40 | G104: 40 | H104: =tFertRatio_ac[[#This Row],[VA Tech Soil Fertility Rating]] -> H
A105: H+ | B105: 30 | C105: 30 | D105: 30 | E105: 40 | F105: 40 | G105: 40 | H105: =tFertRatio_ac[[#This Row],[VA Tech Soil Fertility Rating]] -> H+
A106: VH | B106: 30 | C106: 0 | D106: 0 | E106: 30 | F106: 0 | G106: 0 | H106: =tFertRatio_ac[[#This Row],[VA Tech Soil Fertility Rating]] -> VH
A107: OS | B107: 30 | C107: 0 | D107: 0 | E107: 30 | F107: 0 | G107: 0 | H107: =tFertRatio_ac[[#This Row],[VA Tech Soil Fertility Rating]] -> OS
A108: TS | B108: 15 | C108: 15 | D108: 15 | E108: 18.75 | F108: 37.5 | G108: 18.75 | H108: =tFertRatio_ac[[#This Row],[VA Tech Soil Fertility Rating]] -> TS
A109: Default | B109: 30 | C109: 30 | D109: 30 | E109: 37.5 | F109: 75 | G109: 37.5 | H109: =tFertRatio_ac[[#This Row],[VA Tech Soil Fertility Rating]] -> Default
A110: Source: Compilation of Table 3.g from VDOT NMPs (above two tables)
C112: Roadside Maintenance lbs/1000 sf | F112: Construction (Establishment) lbs/1000 sf
A113: VA Tech Soil Fertility Rating | B113: RM N | C113: RM P | D113: RM K | E113: CE N | F113: CE P | G113: CE K | H113: VA Tech Soil Rating
A114: L- | B114: =ROUND(B97*1000/43560,1) -> 0.7 | C114: =ROUND(C97*1000/43560,1) -> 2.3 | D114: =ROUND(D97*1000/43560,1) -> 1.4 | E114: =ROUND(E97/43560*1000,1) -> 0.9 | F114: 3.7 | G114: 1.8 | H114: =tFertRatio_sf[[#This Row],[VA Tech Soil Fertility Rating]] -> L-
A115: L | B115: 0.7 | C115: 2.3 | D115: 1.4 | E115: 0.9 | F115: 3.7 | G115: 1.8 | H115: =tFertRatio_sf[[#This Row],[VA Tech Soil Fertility Rating]] -> L
A116: L+ | B116: 0.7 | C116: 2.3 | D116: 1.4 | E116: 0.9 | F116: 2.9 | G116: 1.8 | H116: =tFertRatio_sf[[#This Row],[VA Tech Soil Fertility Rating]] -> L+
A117: M- | B117: 0.7 | C117: 1.4 | D117: 1.4 | E117: 0.9 | F117: 2.9 | G117: 1.8 | H117: =tFertRatio_sf[[#This Row],[VA Tech Soil Fertility Rating]] -> M-
A118: M | B118: 0.7 | C118: 1.4 | D118: 1.4 | E118: 0.9 | F118: 1.7 | G118: 0.9 | H118: =tFertRatio_sf[[#This Row],[VA Tech Soil Fertility Rating]] -> M
A119: M+ | B119: 0.7 | C119: 1.4 | D119: 1.4 | E119: 0.9 | F119: 1.7 | G119: 0.9 | H119: =tFertRatio_sf[[#This Row],[VA Tech Soil Fertility Rating]] -> M+
A120: H- | B120: 0.7 | C120: 0.7 | D120: 0.7 | E120: 0.9 | F120: 1.7 | G120: 0.9 | H120: =tFertRatio_sf[[#This Row],[VA Tech Soil Fertility Rating]] -> H-
A121: H | B121: 0.7 | C121: 0.7 | D121: 0.7 | E121: 0.9 | F121: 0.9 | G121: 0.9 | H121: =tFertRatio_sf[[#This Row],[VA Tech Soil Fertility Rating]] -> H
A122: H+ | B122: 0.7 | C122: 0.7 | D122: 0.7 | E122: 0.9 | F122: 0.9 | G122: 0.9 | H122: =tFertRatio_sf[[#This Row],[VA Tech Soil Fertility Rating]] -> H+
A123: VH | B123: 0.7 | C123: 0 | D123: 0 | E123: 0.7 | F123: 0 | G123: 0 | H123: =tFertRatio_sf[[#This Row],[VA Tech Soil Fertility Rating]] -> VH
A124: OS | B124: 0.7 | C124: 0 | D124: 0 | E124: =ROUND(E107/43560*1000,1) -> 0.7 | F124: 0 | G124: 0 | H124: =tFertRatio_sf[[#This Row],[VA Tech Soil Fertility Rating]] -> OS
A125: TS | B125: =ROUND(B108*1000/43560,1) -> 0.3 | C125: =ROUND(C108*1000/43560,1) -> 0.3 | D125: =ROUND(D108*1000/43560,1) -> 0.3 | E125: 0.4 | F125: 0.9 | G125: 0.4 | H125: =tFertRatio_sf[[#This Row],[VA Tech Soil Fertility Rating]] -> TS
A126: Default | B126: 0.7 | C126: 0.7 | D126: 0.7 | E126: =ROUND(E109/43560*1000,1) -> 0.9 | F126: =ROUND(F109/43560*1000,1) -> 1.7 | G126: =ROUND(G109/43560*1000,1) -> 0.9 | H126: =tFertRatio_sf[[#This Row],[VA Tech Soil Fertility Rating]] -> Default
A127: Source: Compilation of Table 3.g from VDOT NMPs (above two tables); Green Highlighting = Default
A129: Lime Conversion Factors
A130: Lime Types (Groups) | B130: VA TECH | C130: Target Soil pH | H130: Acidity
A131: A). Agricultural Lime | B131: Buffer pH | C131: 5.2 | D131: 5.8 | E131: 6.2 | F131: 6.5 | G131: 6.8 | H131: meq/100
A132: B). Hydrated Lime | B132: 0.01 | C132: 4.25 | D132: 5 | E132: 5.75 | F132: 6.25 | G132: 6.75 | H132: 6.52
A133: C). Industrial Co-Product (Substandard Liming Materials) | B133: 5.3 | C133: 4.25 | D133: 5 | E133: 5.75 | F133: 6.25 | G133: 6.75 | H133: 6.52
B134: 5.4 | C134: 3.75 | D134: 4.5 | E134: 5.25 | F134: 5.75 | G134: 6.25 | H134: 5.93
B135: 5.5 | C135: 3.25 | D135: 4 | E135: 4.75 | F135: 5.25 | G135: 5.5 | H135: 5.34
B136: 5.55 | C136: 3 | D136: 3.75 | E136: 4.5 | F136: 4.75 | G136: 5.25 | H136: 5.04
B137: 5.6 | C137: 2.75 | D137: 3.5 | E137: 4.25 | F137: 4.5 | G137: 5 | H137: 4.74
B138: 5.65 | C138: 2.5 | D138: 3.25 | E138: 4 | F138: 4.25 | G138: 4.75 | H138: 4.45
B139: 5.7 | C139: 2.25 | D139: 3 | E139: 3.75 | F139: 4 | G139: 4.5 | H139: 4.15
B140: 5.75 | C140: 2 | D140: 2.75 | E140: 3.5 | F140: 3.75 | G140: 4.25 | H140: 3.85
B141: 5.8 | C141: 1.75 | D141: 2.5 | E141: 3.25 | F141: 3.5 | G141: 3.75 | H141: 3.56
B142: 5.85 | C142: 1.5 | D142: 2.25 | E142: 2.75 | F142: 3.25 | G142: 3.5 | H142: 3.26
B143: 5.9 | C143: 1.25 | D143: 2 | E143: 2.5 | F143: 3 | G143: 3.25 | H143: 2.96
B144: 5.95 | C144: 1 | D144: 1.75 | E144: 2.25 | F144: 2.5 | G144: 3 | H144: 2.67
B145: 6 | C145: 1 | D145: 1.5 | E145: 2 | F145: 2.25 | G145: 2.75 | H145: 2.37
B146: 6.02 | C146: 0.75 | D146: 1.5 | E146: 2 | F146: 2.25 | G146: 2.5 | H146: 2.25
B147: 6.04 | C147: 0.75 | D147: 1.25 | E147: 2 | F147: 2 | G147: 2.5 | H147: 2.13
B148: 6.06 | C148: 0.5 | D148: 1.25 | E148: 1.75 | F148: 2 | G148: 2.25 | H148: 2.02
B149: 6.08 | C149: 0.5 | D149: 1.25 | E149: 1.75 | F149: 2 | G149: 2.25 | H149: 1.9
B150: 6.1 | C150: 0.5 | D150: 1 | E150: 1.5 | F150: 1.75 | G150: 2.25 | H150: 1.78
B151: 6.12 | C151: 0.25 | D151: 1 | E151: 1.5 | F151: 1.75 | G151: 2 | H151: 1.66
B152: 6.14 | C152: 0.25 | D152: 0.75 | E152: 1.5 | F152: 1.5 | G152: 2 | H152: 1.54
B153: 6.16 | C153: 0 | D153: 0.75 | E153: 1.25 | F153: 1.5 | G153: 1.75 | H153: 1.42
B154: 6.18 | C154: 0 | D154: 0.75 | E154: 1.25 | F154: 1.25 | G154: 1.75 | H154: 1.3
B155: 6.2 | C155: 0 | D155: 0.5 | E155: 1 | F155: 1.25 | G155: 1.5 | H155: 1.19
B156: 6.22 | C156: 0 | D156: 0.5 | E156: 1 | F156: 1 | G156: 1.5 | H156: 1.07
B157: 6.24 | C157: 0 | D157: 0.25 | E157: 0.75 | F157: 1 | G157: 1.25 | H157: 0.95
B158: 6.26 | C158: 0 | D158: 0.25 | E158: 0.75 | F158: 1 | G158: 1.25 | H158: 0.83
B159: 6.28 | C159: 0 | D159: 0.25 | E159: 0.75 | F159: 0.75 | G159: 1 | H159: 0.71
B160: 6.3 | C160: 0 | D160: 0 | E160: 0.5 | F160: 0.75 | G160: 1 | H160: 0.59
B161: 6.32 | C161: 0 | D161: 0 | E161: 0.5 | F161: 0.5 | G161: 0.75 | H161: 0.48
B162: 6.34 | C162: 0 | D162: 0 | E162: 0.25 | F162: 0.5 | G162: 0.75 | H162: 0.36
B163: 6.36 | C163: 0 | D163: 0 | E163: 0.25 | F163: 0.25 | G163: 0.75 | H163: 0.24
B164: 6.38 | C164: 0 | D164: 0 | E164: 0.25 | F164: 0.25 | G164: 0.5 | H164: 0.12
B165: 6.4 | C165: 0 | D165: 0 | E165: 0 | F165: 0 | G165: 0.5 | H165: 0.06
B166: 6.5 | C166: 0 | D166: 0 | E166: 0 | F166: 0 | G166: 0 | H166: 0.03
B167: 6.6 | C167: 0 | D167: 0 | E167: 0 | F167: 0 | G167: 0 | H167: 0
B168: Source: VA Nutr. Mgt. Std.'s & Criteria, Rev. Oct. 2005, Table 3-1
B171: Soil-Buffer | E171: Target Soil pH
B172: pH | C172: 5.2 | D172: 5.8 | E172: 6.2 | F172: 6.5 | G172: 6.8
B173: 0.01 | C173: 3.25 | D173: 3.5 | E173: 4 | F173: 4.5 | G173: 5
B174: 6.3 | C174: 3.25 | D174: 3.5 | E174: 4 | F174: 4.5 | G174: 5
B175: 6.4 | C175: 2.75 | D175: 3 | E175: 3.25 | F175: 3.75 | G175: 4
B176: 6.5 | C176: 2 | D176: 2.25 | E176: 2.5 | F176: 3 | G176: 3.25
B177: 6.6 | C177: 1.5 | D177: 1.75 | E177: 2 | F177: 2.25 | G177: 2.5
B178: 6.7 | C178: 1 | D178: 1.5 | E178: 1.5 | F178: 1.75 | G178: 2
B179: 6.8 | C179: 0.5 | D179: 0.75 | E179: 1 | F179: 1 | G179: 1.25
B180: 6.9 | C180: 0 | D180: 0.25 | E180: 0.5 | F180: 0.5 | G180: 0.75
B181: Source: VA Nutr. Mgt. Std.'s & Criteria, Rev. Oct. 2005, Table 3-2
H183: % CCE of Your Liming Material | O183: %CCE
B184: T/ac* | C184: 50 | D184: 60 | E184: 70 | F184: 80 | G184: 90 | H184: 100 | I184: 110 | J184: 120 | K184: 130 | L184: 140 | M184: 150 | O184: 50
B185: 0 | C185: 0 | D185: 0 | E185: 0 | F185: 0 | G185: 0 | H185: =tPercentCCE[[#This Row],[T/ac*]] -> 0 | I185: 0 | J185: 0 | K185: 0 | L185: 0 | M185: 0 | O185: 60
B186: 0.25 | C186: 0.5 | D186: 0.5 | E186: 0.25 | F186: 0.25 | G186: 0.25 | H186: =tPercentCCE[[#This Row],[T/ac*]] -> 0.25 | I186: 0.25 | J186: 0.25 | K186: 0.25 | L186: 0.25 | M186: 0.25 | O186: 70
B187: 0.5 | C187: 1 | D187: 0.75 | E187: 0.75 | F187: 0.75 | G187: 0.5 | H187: =tPercentCCE[[#This Row],[T/ac*]] -> 0.5 | I187: 0.5 | J187: 0.5 | K187: 0.5 | L187: 0.25 | M187: 0.25 | O187: 80
B188: 0.75 | C188: 1.5 | D188: 1.25 | E188: 1 | F188: 1 | G188: 0.75 | H188: =tPercentCCE[[#This Row],[T/ac*]] -> 0.75 | I188: 0.75 | J188: 0.75 | K188: 0.5 | L188: 0.5 | M188: 0.5 | O188: 90
B189: 1 | C189: 2 | D189: 1.75 | E189: 1.5 | F189: 1.25 | G189: 1 | H189: =tPercentCCE[[#This Row],[T/ac*]] -> 1 | I189: 1 | J189: 0.75 | K189: 0.75 | L189: 0.75 | M189: 0.75 | O189: 100
B190: 1.25 | C190: 2.5 | D190: 2 | E190: 1.75 | F190: 1.5 | G190: 1.5 | H190: =tPercentCCE[[#This Row],[T/ac*]] -> 1.25 | I190: 1.25 | J190: 1 | K190: 1 | L190: 1 | M190: 0.75 | O190: 110
B191: 1.5 | C191: 3 | D191: 2.5 | E191: 2.25 | F191: 2 | G191: 1.75 | H191: =tPercentCCE[[#This Row],[T/ac*]] -> 1.5 | I191: 1.25 | J191: 1.25 | K191: 1.25 | L191: 1 | M191: 1 | O191: 120
B192: 1.75 | C192: 3.5 | D192: 3 | E192: 2.5 | F192: 2.25 | G192: 2 | H192: =tPercentCCE[[#This Row],[T/ac*]] -> 1.75 | I192: 1.5 | J192: 1.5 | K192: 1.25 | L192: 1.25 | M192: 1.25 | O192: 130
B193: 2 | C193: 4 | D193: 3.25 | E193: 2.75 | F193: 2.5 | G193: 2.25 | H193: =tPercentCCE[[#This Row],[T/ac*]] -> 2 | I193: 1.75 | J193: 1.75 | K193: 1.5 | L193: 1.5 | M193: 1.25 | O193: 140
B194: 2.25 | C194: 4.5 | D194: 3.75 | E194: 3.25 | F194: 2.75 | G194: 2.5 | H194: =tPercentCCE[[#This Row],[T/ac*]] -> 2.25 | I194: 2 | J194: 2 | K194: 1.75 | L194: 1.5 | M194: 1.5 | O194: 150
B195: 2.5 | C195: 5 | D195: 4.25 | E195: 3.5 | F195: 3.25 | G195: 2.75 | H195: =tPercentCCE[[#This Row],[T/ac*]] -> 2.5 | I195: 2.25 | J195: 2 | K195: 2 | L195: 1.75 | M195: 1.75
B196: 2.75 | C196: 5.5 | D196: 4.5 | E196: 4 | F196: 3.5 | G196: 3 | H196: =tPercentCCE[[#This Row],[T/ac*]] -> 2.75 | I196: 2.5 | J196: 2.25 | K196: 2 | L196: 2 | M196: 1.75
B197: 3 | C197: 6 | D197: 5 | E197: 4.25 | F197: 3.75 | G197: 3.25 | H197: =tPercentCCE[[#This Row],[T/ac*]] -> 3 | I197: 2.75 | J197: 2.5 | K197: 2.25 | L197: 2.25 | M197: 2
B198: 3.25 | C198: 6.5 | D198: 5.5 | E198: 4.75 | F198: 4 | G198: 3.5 | H198: =tPercentCCE[[#This Row],[T/ac*]] -> 3.25 | I198: 3 | J198: 2.75 | K198: 2.5 | L198: 2.25 | M198: 2.25
B199: 3.5 | C199: 7 | D199: 5.75 | E199: 5 | F199: 4.5 | G199: 4 | H199: =tPercentCCE[[#This Row],[T/ac*]] -> 3.5 | I199: 3.25 | J199: 3 | K199: 2.75 | L199: 2.5 | M199: 2.25
B200: 3.75 | C200: 7.5 | D200: 6.25 | E200: 5.25 | F200: 4.75 | G200: 4.25 | H200: =tPercentCCE[[#This Row],[T/ac*]] -> 3.75 | I200: 3.5 | J200: 3.25 | K200: 3 | L200: 2.75 | M200: 2.5
B201: 4 | C201: 8 | D201: 6.75 | E201: 5.75 | F201: 5 | G201: 4.5 | H201: =tPercentCCE[[#This Row],[T/ac*]] -> 4 | I201: 3.75 | J201: 3.25 | K201: 3 | L201: 2.75 | M201: 2.75
B202: 4.25 | C202: 8.5 | D202: 7 | E202: 6 | F202: 5.25 | G202: 4.75 | H202: =tPercentCCE[[#This Row],[T/ac*]] -> 4.25 | I202: 3.75 | J202: 3.5 | K202: 3.25 | L202: 3 | M202: 2.75
B203: 4.5 | C203: 9 | D203: 7.5 | E203: 6.5 | F203: 5.75 | G203: 5 | H203: =tPercentCCE[[#This Row],[T/ac*]] -> 4.5 | I203: 4 | J203: 3.75 | K203: 3.5 | L203: 3.25 | M203: 3
B204: 4.75 | C204: 9.5 | D204: 8 | E204: 6.75 | F204: 6 | G204: 5.25 | H204: =tPercentCCE[[#This Row],[T/ac*]] -> 4.75 | I204: 4.25 | J204: 4 | K204: 3.75 | L204: 3.5 | M204: 3.25
B205: 5 | C205: 10 | D205: 8.25 | E205: 7.25 | F205: 6.25 | G205: 5.5 | H205: =tPercentCCE[[#This Row],[T/ac*]] -> 5 | I205: 4.5 | J205: 4.25 | K205: 3.75 | L205: 3.5 | M205: 3.25
B206: 5.25 | C206: 10.5 | D206: 8.75 | E206: 7.5 | F206: 6.5 | G206: 5.75 | H206: =tPercentCCE[[#This Row],[T/ac*]] -> 5.25 | I206: 4.75 | J206: 4.5 | K206: 4 | L206: 3.75 | M206: 3.5
B207: 5.5 | C207: 11 | D207: 9.25 | E207: 7.75 | F207: 7 | G207: 6 | H207: =tPercentCCE[[#This Row],[T/ac*]] -> 5.5 | I207: 5 | J207: 4.5 | K207: 4.25 | L207: 4 | M207: 3.75
B208: 5.75 | C208: 11.5 | D208: 9.5 | E208: 8.25 | F208: 7.25 | G208: 6.5 | H208: =tPercentCCE[[#This Row],[T/ac*]] -> 5.75 | I208: 5.25 | J208: 4.75 | K208: 4.5 | L208: 4 | M208: 3.75
B209: 6 | C209: 12 | D209: 10 | E209: 8.5 | F209: 7.5 | G209: 6.75 | H209: =tPercentCCE[[#This Row],[T/ac*]] -> 6 | I209: 5.5 | J209: 5 | K209: 4.5 | L209: 4.25 | M209: 4
B210: * Lime recommendation to adjust pH as determined from soil test analysis.
B211: Source: VA Nutr. Mgt. Std.'s & Criteria, Rev. Oct. 2005, Table 3-3; modified to include 0.25 T/ac increments & rates > 4 tons/ac, bold indicates value that is not avg. btwn. ex. increments
B213: CALCULATIONS: Test formula vs. table to calculate amt of lime necessary where DCR Table did not include increment
B214: T/ac* | C214: % CCE | D214: Actual T/ac | E214: Table 3-3 | F214: Act. Lime/ac | G214: Table 3-3 Lime/ac | H214: Rnd Down | I214: error down | J214: Rnd Up | K214: error up | L214: Rounded Value
B215: =6 -> 6 | C215: 50 | D215: =tLime_Formula_Test[[#This Row],[T/ac*]]/(tLime_Formula_Test[[#This Row],[% CCE]]/100) -> 12 | E215: =VLOOKUP(tLime_Formula_Test[[#This Row],[T/ac*]],tPercentCCE[],MATCH(tLime_Formula_Test[[#This Row],[% CCE]],rCCE_RowNum)) -> 12 | F215: =tLime_Formula_Test[[#This Row],[% CCE]]/100*tLime_Formula_Test[[#This Row],[Actual T/ac]] -> 6 | G215: =tLime_Formula_Test[[#This Row],[% CCE]]/100*tLime_Formula_Test[[#This Row],[Table 3-3]] -> 6 | H215: =_xlfn.FLOOR.PRECISE(tLime_Formula_Test[[#This Row],[Actual T/ac]],0.25) -> 12 | I215: =tLime_Formula_Test[[#This Row],[Actual T/ac]]-tLime_Formula_Test[[#This Row],[Rnd Down]] -> 0 | J215: =_xlfn.CEILING.PRECISE(tLime_Formula_Test[[#This Row],[Actual T/ac]],0.25) -> 12 | K215: =-tLime_Formula_Test[[#This Row],[Actual T/ac]]+tLime_Formula_Test[[#This Row],[Rnd Up]] -> 0 | L215: =IF(tLime_Formula_Test[[#This Row],[error down]]<tLime_Formula_Test[[#This Row],[error up]],tLime_Formula_Test[[#This Row],[Rnd Down]],tLime_Formula_Test[[#This Row],[Rnd Up]]) -> 12
... 17 more rows

Sheet 00_Blank (hidden)

Sheet 01_VA Tech (hidden)
B1: =IF(nLabUsed<>B2,"Please delete this tab and refer to the Example Lab Report from:"&CHAR(10)&nLabUsed,"") -> Please delete this tab and refer to the Example Lab Report from: | AC1: =B1 -> Please delete this tab and refer to the Example Lab Report from:
B2: Virginia Tech Soil Testing Lab | AA2: A | AC2: =SUM(AB3:AB12) -> 82.43
C3: Phosphorus Test: | D3: Mehlich I | AA3: B | AB3: 9.44
C4: Lime Test: | D4: Mehlich Single Buffer Method | AA4: C | AB4: 8.11
AA5: D | AB5: 8.11
AA6: E | AB6: 8.11
AA7: F | AB7: 8.11
AA8: G | AB8: 8.11
AA9: H | AB9: 8.11
AA10: I | AB10: 8.11
AA11: J | AB11: 8.11
AA12: K | AB12: 8.11
AA13: L

Sheet 02_Waters(GA) (hidden)
B1: =IF(nLabUsed<>B2,"Please delete this tab and refer to the Example Lab Report from:"&CHAR(10)&nLabUsed,"") -> Please delete this tab and refer to the Example Lab Report from: | AC1: =B1 -> Please delete this tab and refer to the Example Lab Report from:
B2: Waters Agricultural Lab., Inc (GA)*
C3: P-type: | D3: Mehlich I
C4: Lime Test: | D4: Adams-Evans Single Buffer Method
C5: Notes: | D5: Contact lab for Lime Recommendation spreadsheet
B47: Older Example Report with Multiple Samples shown on one page:

Sheet 03_Waypoint (hidden)
B1: =IF(nLabUsed<>B2,"Please delete this tab and refer to the Example Lab Report from:"&CHAR(10)&nLabUsed,"") -> Please delete this tab and refer to the Example Lab Report from: | AC1: =B1 -> Please delete this tab and refer to the Example Lab Report from:
B2: Waypoint Analytical
C3: Phosphorus Test: | D3: Mehlich III
C4: Lime Test: | D4: Adams-Evans Single Buffer Method

Sheet 04_Agri-Analysis (hidden)
B1: =IF(nLabUsed<>B2,"Please delete this tab and refer to the Example Lab Report from:"&CHAR(10)&nLabUsed,"") -> Please delete this tab and refer to the Example Lab Report from: | AC1: =B1 -> Please delete this tab and refer to the Example Lab Report from:
B2: Agri-Analysis Testing Laboratory
C3: Phosphorus Test: | D3: Mehlich III
C4: Lime Test: | D4: Mehlich Single Buffer Method

Sheet 05_AgroLab (hidden)
B1: =IF(nLabUsed<>B2,"Please delete this tab and refer to the Example Lab Report from:"&CHAR(10)&nLabUsed,"") -> Please delete this tab and refer to the Example Lab Report from: | AA1: =B1 -> Please delete this tab and refer to the Example Lab Report from:
B2: AgroLab, Inc
C3: Phosphorus Test: | D3: Mehlich III
C4: Lime Test: | D4: Shoemaker-McLean-Pratt (SMP) Single Buffer Method

Sheet 06_Brookside (hidden)
B1: =IF(nLabUsed<>B2,"Please delete this tab and refer to the Example Lab Report from:"&CHAR(10)&nLabUsed,"") -> Please delete this tab and refer to the Example Lab Report from: | AC1: =B1 -> Please delete this tab and refer to the Example Lab Report from:
B2: Brookside Laboratories, Inc | AA2: A | AC2: =SUM(AB3:AB12) -> 82.43
C3: Phosphorus Test: | D3: Mehlich III | AA3: B | AB3: 9.44
C4: Lime Test: | D4: Shoemaker-McLean-Pratt (SMP) Single Buffer Method | AA4: C | AB4: 8.11
AA5: D | AB5: 8.11
AA6: E | AB6: 8.11
AA7: F | AB7: 8.11
AA8: G | AB8: 8.11
AA9: H | AB9: 8.11
AA10: I | AB10: 8.11
AA11: J | AB11: 8.11
AA12: K | AB12: 8.11
AA13: L
K21: Could also use P as P2O5 (lb/A)

Sheet 07_Logan (hidden)
B1: =IF(nLabUsed<>B2,"Please delete this tab and refer to the Example Lab Report from:"&CHAR(10)&nLabUsed,"") -> Please delete this tab and refer to the Example Lab Report from: | AC1: =B1 -> Please delete this tab and refer to the Example Lab Report from:
B2: Logan Labs, LLC | AA2: A | AC2: =SUM(AB3:AB12) -> 82.43
C3: Phosphorus Test: | D3: Mehlich III | AA3: B | AB3: 9.44
C4: Lime Test: | D4: Shoemaker-McLean-Pratt (SMP) Single Buffer Method | AA4: C | AB4: 8.11
AA5: D | AB5: 8.11
AA6: E | AB6: 8.11
AA7: F | AB7: 8.11
AA8: G | AB8: 8.11
AA9: H | AB9: 8.11
AA10: I | AB10: 8.11
AA11: J | AB11: 8.11
AA12: K | AB12: 8.11
AA13: L

Sheet 08_Midwest (hidden)
B1: =IF(nLabUsed<>B2,"Please delete this tab and refer to the Example Lab Report from:"&CHAR(10)&nLabUsed,"") -> Please delete this tab and refer to the Example Lab Report from: | AA1: =B1 -> Please delete this tab and refer to the Example Lab Report from:
B2: Midwest Laboratories, Inc* | AA2: =SUM(#REF!) -> 
C3: Phosphorus Test: | D3: Mehlich III
C4: Lime Test: | D4: Shoemaker-McLean-Pratt (SMP) Single Buffer Method
C5: Notes: | D5: Lab report shows Bray I test - Must request Mehlich III to use for plan writing.
F10: NEED EXAMPLE LAB REPORT

Sheet 09_Spectrum (hidden)
B1: =IF(nLabUsed<>B2,"Please delete this tab and refer to the Example Lab Report from:"&CHAR(10)&nLabUsed,"") -> Please delete this tab and refer to the Example Lab Report from: | AC1: =B1 -> Please delete this tab and refer to the Example Lab Report from:
B2: Spectrum Analytic, Inc | AA2: A | AC2: =SUM(AB3:AB12) -> 82.43
C3: Phosphorus Test: | D3: Mehlich III | AA3: B | AB3: 9.44
C4: Lime Test: | D4: Shoemaker-McLean-Pratt (SMP) Single Buffer Method | AA4: C | AB4: 8.11
AA5: D | AB5: 8.11
AA6: E | AB6: 8.11
AA7: F | AB7: 8.11
AA8: G | AB8: 8.11
AA9: H | AB9: 8.11
AA10: I | AB10: 8.11
AA11: J | AB11: 8.11
AA12: K | AB12: 8.11
AA13: L

Sheet 10_Waters(NC) (hidden)
B1: =IF(nLabUsed<>B2,"Please delete this tab and refer to the Example Lab Report from:"&CHAR(10)&nLabUsed,"") -> Please delete this tab and refer to the Example Lab Report from: | AC1: =B1 -> Please delete this tab and refer to the Example Lab Report from:
B2: Waters Agricultural Lab., Inc (NC)*
C3: P-type: | D3: Mehlich III
C4: Lime Test: | D4: Adams-Evans Single Buffer Method
C5: Notes: | D5: Contact lab for Lime Recommendation spreadsheet
B47: Older Example Report with Multiple Samples shown on one page:
